Workbook

Sheet START
F11: =INDIRECT("START!I25") -> START | I11: =INDIRECT("START!K25") -> Описание методологии финмодели
I13: лист | K13: описание листа/столбца/строки/ячейки/блока ячеек
D14: =INDIRECT("Cntrl!M17") -> 0 | E14: =SUM($F14:$PL14) -> 0 | F14: =IFERROR(_xlfn.SHEET($A$1)-SUMIFS(Cntrl!O$15:O$100000,Cntrl!I$15:I$100000,$F$11),1) -> 0
A15: =ROW() -> 15
A16: =ROW() -> 16 | H16: ФИНАНСОВАЯ МОДЕЛЬ
A17: =ROW() -> 17
A18: =ROW() -> 18
A19: =ROW() -> 19 | H19: ИНВЕСТИЦИОННЫЙ ПРОЕКТ: ОРГАНИЗАЦИЯ ПРОИЗВОДСТВА СРЕДСТВ ИНДИВИДУАЛЬНОЙ ЗАЩИТЫ (СИЗ)
A20: =ROW() -> 20
A21: =ROW() -> 21
A22: =ROW() -> 22
A23: =ROW() -> 23 | H23: Методология. Список и предназначение листов настоящей финансовой модели
A24: =ROW() -> 24
A25: =ROW() -> 25 | I25: START | K25: Описание методологии финмодели
A26: =ROW() -> 26 | I26: Cntrl | K26: Общий контроль финансовой модели
A27: =ROW() -> 27 | I27: Periods | K27: Периоды и горизонты моделирования фактических и прогнозных данных
A28: =ROW() -> 28 | I28: Lists | K28: Выпадающие списки финансовой модели
A29: =ROW() -> 29 | I29: Macro | K29: Макропоказатели внешней среды
A30: =ROW() -> 30 | I30: Items | K30: Справочники статей доходов и расходов и т.д.
A31: =ROW() -> 31 | I31: KPI | K31: Справочники ключевых показателей эффективности
A32: =ROW() -> 32 | I32: Mrkting | K32: Маркетинг. Параметры рынков сбыта и каналов привлечения клиентов
A33: =ROW() -> 33 | I33: CapEx | K33: Календарный план-график капитальных затрат
A34: =ROW() -> 34 | I34: Sales | K34: Параметры бюджета продаж
A35: =ROW() -> 35 | I35: Prdction | K35: Технологическая карта производственного процесса
A36: =ROW() -> 36 | I36: HR | K36: Штатное расписание
A37: =ROW() -> 37 | I37: Exp | K37: Прочие расходы бизнес-проекта
A38: =ROW() -> 38 | I38: Credits | K38: Источники финансирования и их условия
A39: =ROW() -> 39 | I39: PL | K39: Итоговый отчет о прибылях и убытках
A40: =ROW() -> 40 | I40: CF | K40: Итоговый отчет о движении денежных средств
A41: =ROW() -> 41 | I41: BS | K41: Итоговый баланс
A42: =ROW() -> 42 | I42: MAIN | K42: Ключевые параметры управления и результаты финансовой модели
A43: =ROW() -> 43 | I43: PLd | K43: Детализированный отчет о прибылях и убытках
A44: =ROW() -> 44 | I44: CFd | K44: Детализированный отчет о движении денежных средств
A45: =ROW() -> 45 | I45: BSd | K45: Детализированный баланс
A46: =ROW() -> 46 | I46: Sens | K46: Анализ чувствительности финмодели
A47: =ROW() -> 47 | I47: UnitEc | K47: Расчет юнит-экономики бизнес-проекта
A48: =ROW() -> 48 | I48: CFind | K48: Анализ финансового потока косвенным методом
A49: =ROW() -> 49 | I49: FinEcAn | K49: Финансово-экономический анализ проекта
A50: =ROW() -> 50 | I50: InvAn | K50: Инвестиционный анализ проекта
A51: =ROW() -> 51 | I51: EBITDA | K51: Анализ собственной операционной деят-сти. Точки безубыточности
A52: =ROW() -> 52 | I52: Rep | K52: Укрупненное формирование всей отчетности финмодели
A53: =ROW() -> 53 | I53: Repd | K53: Детализированное формирование всей отчетности финмодели
A54: =ROW() -> 54 | I54: Calc | K54: Функционал финансовой модели. Все расчеты
A55: =ROW() -> 55 | I55: Fact | K55: Учет фактических операций
A56: =ROW() -> 56 | I56: 1S | K56: Выгрузки из 1С карточек с оборотами по счетам бухучета
A57: =ROW() -> 57 | I57: Rules | K57: Правила сопоставления статей для выгрузок из 1С
A58: =ROW() -> 58 | I58: Res1 | K58: Резервная вкладка 1
A59: =ROW() -> 59 | I59: Res2 | K59: Резервная вкладка 2
A60: =ROW() -> 60 | I60: Res3 | K60: Резервная вкладка 3
A61: =ROW() -> 61 | I61: Res4 | K61: Резервная вкладка 4
A62: =ROW() -> 62 | I62: Res5 | K62: Резервная вкладка 5
A63: =ROW() -> 63
A64: =ROW() -> 64 | H64: Обозначение ячеек для задания исходных данных
A65: =ROW() -> 65
A66: =ROW() -> 66 | H66: * | K66: Ячейки для задания исходных данных финмодели вручную
A67: =ROW() -> 67
A68: =ROW() -> 68 | H68: * | J68: ^ | K68: Ячейки для задания исходных данных финмодели из выпадающих списков вкладки "Lists"
A69: =ROW() -> 69
A70: =ROW() -> 70 | H70: Ячейка F11 | K70: Для каждого листа в этой ячейке отображается название (ярлычка) листа
A71: =ROW() -> 71
A72: =ROW() -> 72 | H72: Ячейка I11 | K72: Для каждого листа в этой ячейке отображается заголовок листа
A73: =ROW() -> 73
A74: =ROW() -> 74 | H74: Ячейка E14 | K74: Для каждого листа в этой ячейке суммируются все контроли листа по 14-той строке
A75: =ROW() -> 75
A76: =ROW() -> 76 | H76: Ячейка D14 | K76: Для каждого листа в этой ячейке отображается общий контроль финмодели из листа "Cntrl"
A77: =ROW() -> 77
A78: =ROW() -> 78 | H78: Ячейка F14 | K78: Для каждого листа в этой ячейке проверяется соответствие названия листа их списку из "START"
A79: =ROW() -> 79
A80: =ROW() -> 80 | H80: Строка 13 | K80: Для каждого листа в этой строке отображаются заголовки столбцов
A81: =ROW() -> 81
A82: =ROW() -> 82 | I82: =$I$26 -> Cntrl | K82: =$K$26 -> Общий контроль финансовой модели
A83: =ROW() -> 83
A84: =ROW() -> 84 | I84: столбец M | K84: Со строки 19 здесь подтягиваются контроли всех листов из ячеек E14
A85: =ROW() -> 85
A86: =ROW() -> 86 | I86: M17 | K86: Общий контроль финмодели - сумма всех контрлей листов в столбце M
A87: =ROW() -> 87
A88: =ROW() -> 88 | I88: столбец O | K88: Со строки 19 здесь рассчитываются порядковые номера ярлычков листов в нижней панели
A89: =ROW() -> 89
A90: =ROW() -> 90 | I90: столбец Q | K90: Со строки 19 здесь из выпадающего списка пользователь выбирает тип листов
A91: =ROW() -> 91
A92: =ROW() -> 92 | I92: столбец S | K92: Со строки 19 здесь проверяется наличие значений из столбца Q в списке столбца U листа "Lists"
A93: =ROW() -> 93
A94: =ROW() -> 94 | I94: столбец G | K94: Со строки 19 здесь проверяется наличие названия из столбца H в заголовках списков листа "Lists"
A95: =ROW() -> 95
A96: =ROW() -> 96 | I96: =$I$27 -> Periods | K96: =$K$27 -> Периоды и горизонты моделирования фактических и прогнозных данных
A97: =ROW() -> 97
A98: =ROW() -> 98 | I98: Q16 | K98: Пользователь задает, выбирая из выпадающего списка, минимальный период шкалы времени
A99: =ROW() -> 99
A100: =ROW() -> 100 | I100: Q17 | K100: Пользователь задает вручную дату, с которой начинаются расчеты моделирования - старт
A101: =ROW() -> 101
A102: =ROW() -> 102 | I102: Q18 | K102: Пользователь задает вручную (от 1 до 400) количество периодов в шкале расчетов - горизонт
A103: =ROW() -> 103
A104: =ROW() -> 104 | I104: строки 20,21 | K104: По данным из ячеек Q16,Q17,Q18 рассчитываются даты начала и окончания периодов шкалы расчетов
A105: =ROW() -> 105
A106: =ROW() -> 106 | I106: строка 22 | K106: Формируются названия периодов шкалы расчетов
A107: =ROW() -> 107
A108: =ROW() -> 108 | I108: Q25 | K108: Пользователь указывает на необходимость отражения фактически проведенных операций
A109: =ROW() -> 109
A110: =ROW() -> 110 | I110: Q26 | K110: В случае выбора "да" в ячейке Q25, пользователь выбирает вариант задания фактического периода
A111: =ROW() -> 111
A112: =ROW() -> 112 | I112: Q30 | K112: Если в ячейках Q25 и Q26 "да", то здесь отображается текущая дата - окончание фактического периода
A113: =ROW() -> 113
A114: =ROW() -> 114 | I114: Q31 | K114: Если в ячейке Q25 "да" и в Q26 "нет", то здесь вручную задаем дату окончания фактического периода
A115: =ROW() -> 115
A116: =ROW() -> 116 | I116: строки 28,29 | K116: По данным из ячеек Q25,Q26,Q30,Q31 рассчитываются даты начала и окончания фактических периодов
A117: =ROW() -> 117
A118: =ROW() -> 118 | I118: Q33 | K118: Пользователь задает, выбирая из выпадающего списка, период шкалы времени для отчетности
A119: =ROW() -> 119
A120: =ROW() -> 120 | I120: строки 35,36 | K120: Рассчитываются даты начала и окончания периодов шкалы отчетности
A121: =ROW() -> 121
A122: =ROW() -> 122 | I122: строка 37 | K122: Формируются названия периодов шкалы отчетности
A123: =ROW() -> 123
A124: =ROW() -> 124 | I124: Q12 | K124: Отображается тип листа
A125: =ROW() -> 125
A126: =ROW() -> 126 | I126: строки 11,12 | K126: В зависимости от типа листа отображаются соответствующие даты начала и окончания периодов
A127: =ROW() -> 127
A128: =ROW() -> 128 | I128: строки 1-10 | K128: Строки носят технический характер, в них рассчитываются следующие параметры:
A129: =ROW() -> 129
A130: =ROW() -> 130 | K130: номер столбца:
A131: =ROW() -> 131 | K131: номер периода модели:
A132: =ROW() -> 132 | K132: номер факт-периода:
A133: =ROW() -> 133 | K133: номер план-периода:
A134: =ROW() -> 134 | K134: число даты начала:
A135: =ROW() -> 135 | K135: номер месяца даты начала:
A136: =ROW() -> 136 | K136: год даты начала:
A137: =ROW() -> 137 | K137: число даты окончания:
A138: =ROW() -> 138 | K138: номер месяца даты окончания:
A139: =ROW() -> 139 | K139: год даты окончания:
A140: =ROW() -> 140
A141: =ROW() -> 141 | I141: столбцы G,S | K141: Производится контроль за корректностью работы выпадающих списков
A142: =ROW() -> 142
A143: =ROW() -> 143 | I143: Lists | K143: Выпадающие списки финансовой модели
A144: =ROW() -> 144
A145: =ROW() -> 145 | I145: строка 1 | K145: Для технических нужд отображаются номера столбцов, в которых находятся выпадающие списки
A146: =ROW() -> 146
A147: =ROW() -> 147 | I147: строка 2 | K147: Для технических нужд отображаются названия столбцов, в которых находятся выпадающие списки
A148: =ROW() -> 148
A149: =ROW() -> 149 | I149: строка 15 | K149: Для технических нужд рассчитываются адреса блоков ячеек с выпадающими списками
A150: =ROW() -> 150
A151: =ROW() -> 151 | I151: столбец Q | K151: Значения выпадающего списка зависят от значения ячейки Q16 листа "Periods" и столбца I
A152: =ROW() -> 152
A153: =ROW() -> 153 | I153: справа от списков | K153: В 1-ом столбце справа от вып.списков производится нумерация актуальных значений вып.списков
A154: =ROW() -> 154
A155: =ROW() -> 155 | I155: справа от списков | K155: Во 2-ом столбце справа от вып.списков производится контроль за неповторяемостью значений
A156: =ROW() -> 156
A157: =ROW() -> 157
A158: =ROW() -> 158
A159: =ROW() -> 159
A160: =ROW() -> 160
A161: =ROW() -> 161
A162: =ROW() -> 162
A163: =ROW() -> 163
A164: =ROW() -> 164
A165: =ROW() -> 165
A166: =ROW() -> 166
A167: =ROW() -> 167
A168: =ROW() -> 168
A169: =ROW() -> 169
A170: =ROW() -> 170
A171: =ROW() -> 171
A172: =ROW() -> 172
A173: =ROW() -> 173
A174: =ROW() -> 174
A175: =ROW() -> 175
A176: =ROW() -> 176

Sheet Cntrl
F11: Cntrl | I11: Общий контроль финансовой модели
I13: лист | K13: ячейка с контролем | M13: контроль | O13: номер листа | Q13: тип листа | V13: точность
D14: 0 | E14: 0 | F14: 0 | G14: 0 | S14: 0
A15: 15
A16: 16
A17: 17 | G17: 0 | H17: Общий контроль | M17: 0
A18: 18
A19: 19 | G19: 0 | H19: тип листа | I19: START | K19: E14 | M19: 0 | O19: 1 | P19: * | Q19: технический | R19: ^ | S19: 0 | U19: * | V19: 0
A20: 20 | G20: 0 | H20: тип листа | I20: Cntrl | K20: E14 | M20: 0 | O20: 2 | P20: * | Q20: технический | R20: ^ | S20: 0 | U20: * | V20: 0
A21: 21 | G21: 0 | H21: тип листа | I21: Periods | K21: E14 | M21: 0 | O21: 3 | P21: * | Q21: расчетный | R21: ^ | S21: 0 | U21: * | V21: 0
A22: 22 | G22: 0 | H22: тип листа | I22: Lists | K22: E14 | M22: 0 | O22: 4 | P22: * | Q22: технический | R22: ^ | S22: 0 | U22: * | V22: 0
A23: 23 | G23: 0 | H23: тип листа | I23: Macro | K23: E14 | M23: 0 | O23: 5 | P23: * | Q23: расчетный | R23: ^ | S23: 0 | U23: * | V23: 0
A24: 24 | G24: 0 | H24: тип листа | I24: Items | K24: E14 | M24: 0 | O24: 6 | P24: * | Q24: технический | R24: ^ | S24: 0 | U24: * | V24: 0
A25: 25 | G25: 0 | H25: тип листа | I25: KPI | K25: E14 | M25: 0 | O25: 7 | P25: * | Q25: технический | R25: ^ | S25: 0 | U25: * | V25: 0
A26: 26 | G26: 0 | H26: тип листа | I26: Mrkting | K26: E14 | M26: 0 | O26: 8 | P26: * | Q26: расчетный | R26: ^ | S26: 0 | U26: * | V26: 1e-05
A27: 27 | G27: 0 | H27: тип листа | I27: CapEx | K27: E14 | M27: 0 | O27: 9 | P27: * | Q27: расчетный | R27: ^ | S27: 0 | U27: * | V27: 1e-05
A28: 28 | G28: 0 | H28: тип листа | I28: Sales | K28: E14 | M28: 0 | O28: 10 | P28: * | Q28: расчетный | R28: ^ | S28: 0 | U28: * | V28: 1e-05
A29: 29 | G29: 0 | H29: тип листа | I29: Prdction | K29: E14 | M29: 0 | O29: 11 | P29: * | Q29: расчетный | R29: ^ | S29: 0 | U29: * | V29: 1e-05
A30: 30 | G30: 0 | H30: тип листа | I30: HR | K30: E14 | M30: 0 | O30: 12 | P30: * | Q30: расчетный | R30: ^ | S30: 0 | U30: * | V30: 1e-05
A31: 31 | G31: 0 | H31: тип листа | I31: Exp | K31: E14 | M31: 0 | O31: 13 | P31: * | Q31: расчетный | R31: ^ | S31: 0 | U31: * | V31: 1e-05
A32: 32 | G32: 0 | H32: тип листа | I32: Credits | K32: E14 | M32: 0 | O32: 14 | P32: * | Q32: расчетный | R32: ^ | S32: 0 | U32: * | V32: 1e-05
A33: 33 | G33: 0 | H33: тип листа | I33: PL | K33: E14 | M33: 0 | O33: 15 | P33: * | Q33: отчетный | R33: ^ | S33: 0 | U33: * | V33: 1e-05
A34: 34 | G34: 0 | H34: тип листа | I34: CF | K34: E14 | M34: 0 | O34: 16 | P34: * | Q34: отчетный | R34: ^ | S34: 0 | U34: * | V34: 1e-05
A35: 35 | G35: 0 | H35: тип листа | I35: BS | K35: E14 | M35: 0 | O35: 17 | P35: * | Q35: отчетный | R35: ^ | S35: 0 | U35: * | V35: 1e-05
A36: 36 | G36: 0 | H36: тип листа | I36: MAIN | K36: E14 | M36: 0 | O36: 18 | P36: * | Q36: отчетный | R36: ^ | S36: 0 | U36: * | V36: 1e-05
A37: 37 | G37: 0 | H37: тип листа | I37: PLd | K37: E14 | M37: 0 | O37: 19 | P37: * | Q37: расчетный | R37: ^ | S37: 0 | U37: * | V37: 1e-05
A38: 38 | G38: 0 | H38: тип листа | I38: CFd | K38: E14 | M38: 0 | O38: 20 | P38: * | Q38: расчетный | R38: ^ | S38: 0 | U38: * | V38: 1e-05
A39: 39 | G39: 0 | H39: тип листа | I39: BSd | K39: E14 | M39: 0 | O39: 21 | P39: * | Q39: расчетный | R39: ^ | S39: 0 | U39: * | V39: 0.001
A40: 40 | G40: 0 | H40: тип листа | I40: Sens | K40: E14 | M40: 0 | O40: 22 | P40: * | Q40: отчетный | R40: ^ | S40: 0 | U40: * | V40: 1e-05
A41: 41 | G41: 0 | H41: тип листа | I41: UnitEc | K41: E14 | M41: 0 | O41: 23 | P41: * | Q41: отчетный | R41: ^ | S41: 0 | U41: * | V41: 1e-05
A42: 42 | G42: 0 | H42: тип листа | I42: CFind | K42: E14 | M42: 0 | O42: 24 | P42: * | Q42: отчетный | R42: ^ | S42: 0 | U42: * | V42: 1e-05
A43: 43 | G43: 0 | H43: тип листа | I43: FinEcAn | K43: E14 | M43: 0 | O43: 25 | P43: * | Q43: отчетный | R43: ^ | S43: 0 | U43: * | V43: 1e-05
A44: 44 | G44: 0 | H44: тип листа | I44: InvAn | K44: E14 | M44: 0 | O44: 26 | P44: * | Q44: отчетный | R44: ^ | S44: 0 | U44: * | V44: 1e-05
A45: 45 | G45: 0 | H45: тип листа | I45: EBITDA | K45: E14 | M45: 0 | O45: 27 | P45: * | Q45: отчетный | R45: ^ | S45: 0 | U45: * | V45: 1e-05
A46: 46 | G46: 0 | H46: тип листа | I46: Rep | K46: E14 | M46: 0 | O46: 28 | P46: * | Q46: отчетный | R46: ^ | S46: 0 | U46: * | V46: 1e-05
A47: 47 | G47: 0 | H47: тип листа | I47: Repd | K47: E14 | M47: 0 | O47: 29 | P47: * | Q47: расчетный | R47: ^ | S47: 0 | U47: * | V47: 0.001
A48: 48 | G48: 0 | H48: тип листа | I48: Calc | K48: E14 | M48: 0 | O48: 30 | P48: * | Q48: расчетный | R48: ^ | S48: 0 | U48: * | V48: 0.001
A49: 49 | G49: 0 | H49: тип листа | I49: Fact | K49: E14 | P49: * | Q49: расчетный | R49: ^ | S49: 0 | U49: * | V49: 0
A50: 50 | G50: 0 | H50: тип листа | I50: 1S | K50: E14 | P50: * | Q50: расчетный | R50: ^ | S50: 0 | U50: * | V50: 0
A51: 51 | G51: 0 | H51: тип листа | I51: Rules | K51: E14 | P51: * | Q51: расчетный | R51: ^ | S51: 0 | U51: * | V51: 0
A52: 52 | G52: 0 | H52: тип листа | I52: Res1 | K52: E14 | P52: * | Q52: расчетный | R52: ^ | S52: 0 | U52: * | V52: 0
A53: 53 | G53: 0 | H53: тип листа | I53: Res2 | K53: E14 | P53: * | Q53: расчетный | R53: ^ | S53: 0 | U53: * | V53: 0
A54: 54 | G54: 0 | H54: тип листа | I54: Res3 | K54: E14 | P54: * | Q54: расчетный | R54: ^ | S54: 0 | U54: * | V54: 0
A55: 55 | G55: 0 | H55: тип листа | I55: Res4 | K55: E14 | P55: * | Q55: расчетный | R55: ^ | S55: 0 | U55: * | V55: 0
A56: 56 | G56: 0 | H56: тип листа | I56: Res5 | K56: E14 | P56: * | Q56: расчетный | R56: ^ | S56: 0 | U56: * | V56: 0
A57: 57
A58: 58
A59: 59
A60: 60
A61: 61
A62: 62
A63: 63
A64: 64
A65: 65
A66: 66
A67: 67
A68: 68
A69: 69
A70: 70

Sheet Periods
Y1: номер столбца: | AA1: 27 | AB1: 28 | AC1: 29 | AD1: 30 | AE1: 31 | AF1: 32 | AG1: 33 | AH1: 34 | AI1: 35 | AJ1: 36 | AK1: 37 | AL1: 38 | AM1: 39 | AN1: 40 | AO1: 41 | AP1: 42 | AQ1: 43 | AR1: 44 | AS1: 45 | AT1: 46 | AU1: 47 | AV1: 48 | AW1: 49 | AX1: 50 | AY1: 51 | AZ1: 52 | BA1: 53 | BB1: 54 | BC1: 55 | BD1: 56 | BE1: 57 | BF1: 58 | BG1: 59 | BH1: 60 | BI1: 61 | BJ1: 62 | BK1: 63 | BL1: 64 | BM1: 65 | BN1: 66 | BO1: 67 | BP1: 68 | BQ1: 69 | BR1: 70 | BS1: 71 | BT1: 72 | BU1: 73 | BV1: 74 | BW1: 75 | BX1: 76 | BY1: 77 | BZ1: 78 | CA1: 79 | CB1: 80 | CC1: 81 | CD1: 82 | CE1: 83 | CF1: 84 | CG1: 85 | CH1: 86 | CI1: 87 | CJ1: 88 | CK1: 89 | CL1: 90 | CM1: 91 | CN1: 92 | CO1: 93 | CP1: 94 | CQ1: 95 | CR1: 96 | CS1: 97 | CT1: 98 | CU1: 99
Y2: номер периода модели: | AA2: 1 | AB2: 2 | AC2: 3 | AD2: 4 | AE2: 5 | AF2: 6 | AG2: 7 | AH2: 8 | AI2: 9 | AJ2: 10 | AK2: 11 | AL2: 12 | AM2: 13 | AN2: 14 | AO2: 15 | AP2: 16 | AQ2: 17 | AR2: 18 | AS2: 19 | AT2: 20 | AU2: 21 | AV2: 22 | AW2: 23 | AX2: 24 | AY2: 25 | AZ2: 26 | BA2: 27 | BB2: 28 | BC2: 29 | BD2: 30 | BE2: 31 | BF2: 32 | BG2: 33 | BH2: 34 | BI2: 35 | BJ2: 36 | BK2: 37 | BL2: 38 | BM2: 39 | BN2: 40 | BO2: 41 | BP2: 42 | BQ2: 43 | BR2: 44 | BS2: 45 | BT2: 46 | BU2: 47 | BV2: 48 | BW2: 49 | BX2: 50 | BY2: 51 | BZ2: 52 | CA2: 53 | CB2: 54 | CC2: 55 | CD2: 56 | CE2: 57 | CF2: 58 | CG2: 59 | CH2: 60 | CI2: 61 | CJ2: 62 | CK2: 63 | CL2: 64 | CM2: 65 | CN2: 66 | CO2: 67 | CP2: 68 | CQ2: 69 | CR2: 70 | CS2: 71 | CT2: 72 | CU2: 73
Y3: номер факт-периода:
Y4: номер план-периода: | AA4: 1 | AB4: 2 | AC4: 3 | AD4: 4 | AE4: 5 | AF4: 6 | AG4: 7 | AH4: 8 | AI4: 9 | AJ4: 10 | AK4: 11 | AL4: 12 | AM4: 13 | AN4: 14 | AO4: 15 | AP4: 16 | AQ4: 17 | AR4: 18 | AS4: 19 | AT4: 20 | AU4: 21 | AV4: 22 | AW4: 23 | AX4: 24 | AY4: 25 | AZ4: 26 | BA4: 27 | BB4: 28 | BC4: 29 | BD4: 30 | BE4: 31 | BF4: 32 | BG4: 33 | BH4: 34 | BI4: 35 | BJ4: 36 | BK4: 37 | BL4: 38 | BM4: 39 | BN4: 40 | BO4: 41 | BP4: 42 | BQ4: 43 | BR4: 44 | BS4: 45 | BT4: 46 | BU4: 47 | BV4: 48 | BW4: 49 | BX4: 50 | BY4: 51 | BZ4: 52 | CA4: 53 | CB4: 54 | CC4: 55 | CD4: 56 | CE4: 57 | CF4: 58 | CG4: 59 | CH4: 60
Y5: число даты начала: | AA5: 1 | AB5: 1 | AC5: 1 | AD5: 1 | AE5: 1 | AF5: 1 | AG5: 1 | AH5: 1 | AI5: 1 | AJ5: 1 | AK5: 1 | AL5: 1 | AM5: 1 | AN5: 1 | AO5: 1 | AP5: 1 | AQ5: 1 | AR5: 1 | AS5: 1 | AT5: 1 | AU5: 1 | AV5: 1 | AW5: 1 | AX5: 1 | AY5: 1 | AZ5: 1 | BA5: 1 | BB5: 1 | BC5: 1 | BD5: 1 | BE5: 1 | BF5: 1 | BG5: 1 | BH5: 1 | BI5: 1 | BJ5: 1 | BK5: 1 | BL5: 1 | BM5: 1 | BN5: 1 | BO5: 1 | BP5: 1 | BQ5: 1 | BR5: 1 | BS5: 1 | BT5: 1 | BU5: 1 | BV5: 1 | BW5: 1 | BX5: 1 | BY5: 1 | BZ5: 1 | CA5: 1 | CB5: 1 | CC5: 1 | CD5: 1 | CE5: 1 | CF5: 1 | CG5: 1 | CH5: 1
Y6: номер месяца даты начала: | AA6: 5 | AB6: 6 | AC6: 7 | AD6: 8 | AE6: 9 | AF6: 10 | AG6: 11 | AH6: 12 | AI6: 1 | AJ6: 2 | AK6: 3 | AL6: 4 | AM6: 5 | AN6: 6 | AO6: 7 | AP6: 8 | AQ6: 9 | AR6: 10 | AS6: 11 | AT6: 12 | AU6: 1 | AV6: 2 | AW6: 3 | AX6: 4 | AY6: 5 | AZ6: 6 | BA6: 7 | BB6: 8 | BC6: 9 | BD6: 10 | BE6: 11 | BF6: 12 | BG6: 1 | BH6: 2 | BI6: 3 | BJ6: 4 | BK6: 5 | BL6: 6 | BM6: 7 | BN6: 8 | BO6: 9 | BP6: 10 | BQ6: 11 | BR6: 12 | BS6: 1 | BT6: 2 | BU6: 3 | BV6: 4 | BW6: 5 | BX6: 6 | BY6: 7 | BZ6: 8 | CA6: 9 | CB6: 10 | CC6: 11 | CD6: 12 | CE6: 1 | CF6: 2 | CG6: 3 | CH6: 4
Y7: год даты начала: | AA7: 21 | AB7: 21 | AC7: 21 | AD7: 21 | AE7: 21 | AF7: 21 | AG7: 21 | AH7: 21 | AI7: 22 | AJ7: 22 | AK7: 22 | AL7: 22 | AM7: 22 | AN7: 22 | AO7: 22 | AP7: 22 | AQ7: 22 | AR7: 22 | AS7: 22 | AT7: 22 | AU7: 23 | AV7: 23 | AW7: 23 | AX7: 23 | AY7: 23 | AZ7: 23 | BA7: 23 | BB7: 23 | BC7: 23 | BD7: 23 | BE7: 23 | BF7: 23 | BG7: 24 | BH7: 24 | BI7: 24 | BJ7: 24 | BK7: 24 | BL7: 24 | BM7: 24 | BN7: 24 | BO7: 24 | BP7: 24 | BQ7: 24 | BR7: 24 | BS7: 25 | BT7: 25 | BU7: 25 | BV7: 25 | BW7: 25 | BX7: 25 | BY7: 25 | BZ7: 25 | CA7: 25 | CB7: 25 | CC7: 25 | CD7: 25 | CE7: 26 | CF7: 26 | CG7: 26 | CH7: 26
Y8: число даты окончания: | AA8: 31 | AB8: 30 | AC8: 31 | AD8: 31 | AE8: 30 | AF8: 31 | AG8: 30 | AH8: 31 | AI8: 31 | AJ8: 28 | AK8: 31 | AL8: 30 | AM8: 31 | AN8: 30 | AO8: 31 | AP8: 31 | AQ8: 30 | AR8: 31 | AS8: 30 | AT8: 31 | AU8: 31 | AV8: 28 | AW8: 31 | AX8: 30 | AY8: 31 | AZ8: 30 | BA8: 31 | BB8: 31 | BC8: 30 | BD8: 31 | BE8: 30 | BF8: 31 | BG8: 31 | BH8: 29 | BI8: 31 | BJ8: 30 | BK8: 31 | BL8: 30 | BM8: 31 | BN8: 31 | BO8: 30 | BP8: 31 | BQ8: 30 | BR8: 31 | BS8: 31 | BT8: 28 | BU8: 31 | BV8: 30 | BW8: 31 | BX8: 30 | BY8: 31 | BZ8: 31 | CA8: 30 | CB8: 31 | CC8: 30 | CD8: 31 | CE8: 31 | CF8: 28 | CG8: 31 | CH8: 30
Y9: номер месяца даты окончания: | AA9: 5 | AB9: 6 | AC9: 7 | AD9: 8 | AE9: 9 | AF9: 10 | AG9: 11 | AH9: 12 | AI9: 1 | AJ9: 2 | AK9: 3 | AL9: 4 | AM9: 5 | AN9: 6 | AO9: 7 | AP9: 8 | AQ9: 9 | AR9: 10 | AS9: 11 | AT9: 12 | AU9: 1 | AV9: 2 | AW9: 3 | AX9: 4 | AY9: 5 | AZ9: 6 | BA9: 7 | BB9: 8 | BC9: 9 | BD9: 10 | BE9: 11 | BF9: 12 | BG9: 1 | BH9: 2 | BI9: 3 | BJ9: 4 | BK9: 5 | BL9: 6 | BM9: 7 | BN9: 8 | BO9: 9 | BP9: 10 | BQ9: 11 | BR9: 12 | BS9: 1 | BT9: 2 | BU9: 3 | BV9: 4 | BW9: 5 | BX9: 6 | BY9: 7 | BZ9: 8 | CA9: 9 | CB9: 10 | CC9: 11 | CD9: 12 | CE9: 1 | CF9: 2 | CG9: 3 | CH9: 4
Y10: год даты окончания: | AA10: 21 | AB10: 21 | AC10: 21 | AD10: 21 | AE10: 21 | AF10: 21 | AG10: 21 | AH10: 21 | AI10: 22 | AJ10: 22 | AK10: 22 | AL10: 22 | AM10: 22 | AN10: 22 | AO10: 22 | AP10: 22 | AQ10: 22 | AR10: 22 | AS10: 22 | AT10: 22 | AU10: 23 | AV10: 23 | AW10: 23 | AX10: 23 | AY10: 23 | AZ10: 23 | BA10: 23 | BB10: 23 | BC10: 23 | BD10: 23 | BE10: 23 | BF10: 23 | BG10: 24 | BH10: 24 | BI10: 24 | BJ10: 24 | BK10: 24 | BL10: 24 | BM10: 24 | BN10: 24 | BO10: 24 | BP10: 24 | BQ10: 24 | BR10: 24 | BS10: 25 | BT10: 25 | BU10: 25 | BV10: 25 | BW10: 25 | BX10: 25 | BY10: 25 | BZ10: 25 | CA10: 25 | CB10: 25 | CC10: 25 | CD10: 25 | CE10: 26 | CF10: 26 | CG10: 26 | CH10: 26
F11: Periods | I11: Периоды и горизонты моделирования фактических и прогнозных данных | X11: 2021-05-01 | AA11: 2021-05-01 | AB11: 2021-06-01 | AC11: 2021-07-01 | AD11: 2021-08-01 | AE11: 2021-09-01 | AF11: 2021-10-01 | AG11: 2021-11-01 | AH11: 2021-12-01 | AI11: 2022-01-01 | AJ11: 2022-02-01 | AK11: 2022-03-01 | AL11: 2022-04-01 | AM11: 2022-05-01 | AN11: 2022-06-01 | AO11: 2022-07-01 | AP11: 2022-08-01 | AQ11: 2022-09-01 | AR11: 2022-10-01 | AS11: 2022-11-01 | AT11: 2022-12-01 | AU11: 2023-01-01 | AV11: 2023-02-01 | AW11: 2023-03-01 | AX11: 2023-04-01 | AY11: 2023-05-01 | AZ11: 2023-06-01 | BA11: 2023-07-01 | BB11: 2023-08-01 | BC11: 2023-09-01 | BD11: 2023-10-01 | BE11: 2023-11-01 | BF11: 2023-12-01 | BG11: 2024-01-01 | BH11: 2024-02-01 | BI11: 2024-03-01 | BJ11: 2024-04-01 | BK11: 2024-05-01 | BL11: 2024-06-01 | BM11: 2024-07-01 | BN11: 2024-08-01 | BO11: 2024-09-01 | BP11: 2024-10-01 | BQ11: 2024-11-01 | BR11: 2024-12-01 | BS11: 2025-01-01 | BT11: 2025-02-01 | BU11: 2025-03-01 | BV11: 2025-04-01 | BW11: 2025-05-01 | BX11: 2025-06-01 | BY11: 2025-07-01 | BZ11: 2025-08-01 | CA11: 2025-09-01 | CB11: 2025-10-01 | CC11: 2025-11-01 | CD11: 2025-12-01 | CE11: 2026-01-01 | CF11: 2026-02-01 | CG11: 2026-03-01 | CH11: 2026-04-01
H12: тип листа | Q12: расчетный | X12: 2026-04-30 | AA12: 2021-05-31 | AB12: 2021-06-30 | AC12: 2021-07-31 | AD12: 2021-08-31 | AE12: 2021-09-30 | AF12: 2021-10-31 | AG12: 2021-11-30 | AH12: 2021-12-31 | AI12: 2022-01-31 | AJ12: 2022-02-28 | AK12: 2022-03-31 | AL12: 2022-04-30 | AM12: 2022-05-31 | AN12: 2022-06-30 | AO12: 2022-07-31 | AP12: 2022-08-31 | AQ12: 2022-09-30 | AR12: 2022-10-31 | AS12: 2022-11-30 | AT12: 2022-12-31 | AU12: 2023-01-31 | AV12: 2023-02-28 | AW12: 2023-03-31 | AX12: 2023-04-30 | AY12: 2023-05-31 | AZ12: 2023-06-30 | BA12: 2023-07-31 | BB12: 2023-08-31 | BC12: 2023-09-30 | BD12: 2023-10-31 | BE12: 2023-11-30 | BF12: 2023-12-31 | BG12: 2024-01-31 | BH12: 2024-02-29 | BI12: 2024-03-31 | BJ12: 2024-04-30 | BK12: 2024-05-31 | BL12: 2024-06-30 | BM12: 2024-07-31 | BN12: 2024-08-31 | BO12: 2024-09-30 | BP12: 2024-10-31 | BQ12: 2024-11-30 | BR12: 2024-12-31 | BS12: 2025-01-31 | BT12: 2025-02-28 | BU12: 2025-03-31 | BV12: 2025-04-30 | BW12: 2025-05-31 | BX12: 2025-06-30 | BY12: 2025-07-31 | BZ12: 2025-08-31 | CA12: 2025-09-30 | CB12: 2025-10-31 | CC12: 2025-11-30 | CD12: 2025-12-31 | CE12: 2026-01-31 | CF12: 2026-02-28 | CG12: 2026-03-31 | CH12: 2026-04-30
H13: показатель | Q13: значение | X13: итого | AA13: 2021-05-01 | AB13: 2021-06-01 | AC13: 2021-07-01 | AD13: 2021-08-01 | AE13: 2021-09-01 | AF13: 2021-10-01 | AG13: 2021-11-01 | AH13: 2021-12-01 | AI13: 2022-01-01 | AJ13: 2022-02-01 | AK13: 2022-03-01 | AL13: 2022-04-01 | AM13: 2022-05-01 | AN13: 2022-06-01 | AO13: 2022-07-01 | AP13: 2022-08-01 | AQ13: 2022-09-01 | AR13: 2022-10-01 | AS13: 2022-11-01 | AT13: 2022-12-01 | AU13: 2023-01-01 | AV13: 2023-02-01 | AW13: 2023-03-01 | AX13: 2023-04-01 | AY13: 2023-05-01 | AZ13: 2023-06-01 | BA13: 2023-07-01 | BB13: 2023-08-01 | BC13: 2023-09-01 | BD13: 2023-10-01 | BE13: 2023-11-01 | BF13: 2023-12-01 | BG13: 2024-01-01 | BH13: 2024-02-01 | BI13: 2024-03-01 | BJ13: 2024-04-01 | BK13: 2024-05-01 | BL13: 2024-06-01 | BM13: 2024-07-01 | BN13: 2024-08-01 | BO13: 2024-09-01 | BP13: 2024-10-01 | BQ13: 2024-11-01 | BR13: 2024-12-01 | BS13: 2025-01-01 | BT13: 2025-02-01 | BU13: 2025-03-01 | BV13: 2025-04-01 | BW13: 2025-05-01 | BX13: 2025-06-01 | BY13: 2025-07-01 | BZ13: 2025-08-01 | CA13: 2025-09-01 | CB13: 2025-10-01 | CC13: 2025-11-01 | CD13: 2025-12-01 | CE13: 2026-01-01 | CF13: 2026-02-01 | CG13: 2026-03-01 | CH13: 2026-04-01
D14: 0 | E14: 0 | F14: 0 | G14: 0 | S14: 0
A15: 15
A16: 16 | G16: 0 | H16: минимальный период расчетов | P16: * | Q16: месяц | R16: ^ | S16: 0 | Y16: номер периода модели: | AA16: 1 | AB16: 2 | AC16: 3 | AD16: 4 | AE16: 5 | AF16: 6 | AG16: 7 | AH16: 8 | AI16: 9 | AJ16: 10 | AK16: 11 | AL16: 12 | AM16: 13 | AN16: 14 | AO16: 15 | AP16: 16 | AQ16: 17 | AR16: 18 | AS16: 19 | AT16: 20 | AU16: 21 | AV16: 22 | AW16: 23 | AX16: 24 | AY16: 25 | AZ16: 26 | BA16: 27 | BB16: 28 | BC16: 29 | BD16: 30 | BE16: 31 | BF16: 32 | BG16: 33 | BH16: 34 | BI16: 35 | BJ16: 36 | BK16: 37 | BL16: 38 | BM16: 39 | BN16: 40 | BO16: 41 | BP16: 42 | BQ16: 43 | BR16: 44 | BS16: 45 | BT16: 46 | BU16: 47 | BV16: 48 | BW16: 49 | BX16: 50 | BY16: 51 | BZ16: 52 | CA16: 53 | CB16: 54 | CC16: 55 | CD16: 56 | CE16: 57 | CF16: 58 | CG16: 59 | CH16: 60 | CI16: 61 | CJ16: 62 | CK16: 63 | CL16: 64 | CM16: 65 | CN16: 66 | CO16: 67 | CP16: 68 | CQ16: 69 | CR16: 70 | CS16: 71 | CT16: 72 | CU16: 73
A17: 17 | G17: 0 | H17: дата старта проекта | P17: * | Q17: 2021-05-01 | S17: 0 | Y17: номер месяца даты начала: | AA17: 5 | AB17: 6 | AC17: 7 | AD17: 8 | AE17: 9 | AF17: 10 | AG17: 11 | AH17: 12 | AI17: 1 | AJ17: 2 | AK17: 3 | AL17: 4 | AM17: 5 | AN17: 6 | AO17: 7 | AP17: 8 | AQ17: 9 | AR17: 10 | AS17: 11 | AT17: 12 | AU17: 1 | AV17: 2 | AW17: 3 | AX17: 4 | AY17: 5 | AZ17: 6 | BA17: 7 | BB17: 8 | BC17: 9 | BD17: 10 | BE17: 11 | BF17: 12 | BG17: 1 | BH17: 2 | BI17: 3 | BJ17: 4 | BK17: 5 | BL17: 6 | BM17: 7 | BN17: 8 | BO17: 9 | BP17: 10 | BQ17: 11 | BR17: 12 | BS17: 1 | BT17: 2 | BU17: 3 | BV17: 4 | BW17: 5 | BX17: 6 | BY17: 7 | BZ17: 8 | CA17: 9 | CB17: 10 | CC17: 11 | CD17: 12 | CE17: 1 | CF17: 2 | CG17: 3 | CH17: 4
A18: 18 | G18: 0 | H18: горизонт моделирования в кол-ве периодов | P18: * | Q18: 60 | S18: 0 | Y18: год даты начала: | AA18: 21 | AB18: 21 | AC18: 21 | AD18: 21 | AE18: 21 | AF18: 21 | AG18: 21 | AH18: 21 | AI18: 22 | AJ18: 22 | AK18: 22 | AL18: 22 | AM18: 22 | AN18: 22 | AO18: 22 | AP18: 22 | AQ18: 22 | AR18: 22 | AS18: 22 | AT18: 22 | AU18: 23 | AV18: 23 | AW18: 23 | AX18: 23 | AY18: 23 | AZ18: 23 | BA18: 23 | BB18: 23 | BC18: 23 | BD18: 23 | BE18: 23 | BF18: 23 | BG18: 24 | BH18: 24 | BI18: 24 | BJ18: 24 | BK18: 24 | BL18: 24 | BM18: 24 | BN18: 24 | BO18: 24 | BP18: 24 | BQ18: 24 | BR18: 24 | BS18: 25 | BT18: 25 | BU18: 25 | BV18: 25 | BW18: 25 | BX18: 25 | BY18: 25 | BZ18: 25 | CA18: 25 | CB18: 25 | CC18: 25 | CD18: 25 | CE18: 26 | CF18: 26 | CG18: 26 | CH18: 26
A19: 19
A20: 20 | G20: 0 | H20: дата старта периода расчетов модели | X20: 2021-05-01 | AA20: 2021-05-01 | AB20: 2021-06-01 | AC20: 2021-07-01 | AD20: 2021-08-01 | AE20: 2021-09-01 | AF20: 2021-10-01 | AG20: 2021-11-01 | AH20: 2021-12-01 | AI20: 2022-01-01 | AJ20: 2022-02-01 | AK20: 2022-03-01 | AL20: 2022-04-01 | AM20: 2022-05-01 | AN20: 2022-06-01 | AO20: 2022-07-01 | AP20: 2022-08-01 | AQ20: 2022-09-01 | AR20: 2022-10-01 | AS20: 2022-11-01 | AT20: 2022-12-01 | AU20: 2023-01-01 | AV20: 2023-02-01 | AW20: 2023-03-01 | AX20: 2023-04-01 | AY20: 2023-05-01 | AZ20: 2023-06-01 | BA20: 2023-07-01 | BB20: 2023-08-01 | BC20: 2023-09-01 | BD20: 2023-10-01 | BE20: 2023-11-01 | BF20: 2023-12-01 | BG20: 2024-01-01 | BH20: 2024-02-01 | BI20: 2024-03-01 | BJ20: 2024-04-01 | BK20: 2024-05-01 | BL20: 2024-06-01 | BM20: 2024-07-01 | BN20: 2024-08-01 | BO20: 2024-09-01 | BP20: 2024-10-01 | BQ20: 2024-11-01 | BR20: 2024-12-01 | BS20: 2025-01-01 | BT20: 2025-02-01 | BU20: 2025-03-01 | BV20: 2025-04-01 | BW20: 2025-05-01 | BX20: 2025-06-01 | BY20: 2025-07-01 | BZ20: 2025-08-01 | CA20: 2025-09-01 | CB20: 2025-10-01 | CC20: 2025-11-01 | CD20: 2025-12-01 | CE20: 2026-01-01 | CF20: 2026-02-01 | CG20: 2026-03-01 | CH20: 2026-04-01
A21: 21 | G21: 0 | H21: дата завершения периода расчетов модели | X21: 2026-04-30 | AA21: 2021-05-31 | AB21: 2021-06-30 | AC21: 2021-07-31 | AD21: 2021-08-31 | AE21: 2021-09-30 | AF21: 2021-10-31 | AG21: 2021-11-30 | AH21: 2021-12-31 | AI21: 2022-01-31 | AJ21: 2022-02-28 | AK21: 2022-03-31 | AL21: 2022-04-30 | AM21: 2022-05-31 | AN21: 2022-06-30 | AO21: 2022-07-31 | AP21: 2022-08-31 | AQ21: 2022-09-30 | AR21: 2022-10-31 | AS21: 2022-11-30 | AT21: 2022-12-31 | AU21: 2023-01-31 | AV21: 2023-02-28 | AW21: 2023-03-31 | AX21: 2023-04-30 | AY21: 2023-05-31 | AZ21: 2023-06-30 | BA21: 2023-07-31 | BB21: 2023-08-31 | BC21: 2023-09-30 | BD21: 2023-10-31 | BE21: 2023-11-30 | BF21: 2023-12-31 | BG21: 2024-01-31 | BH21: 2024-02-29 | BI21: 2024-03-31 | BJ21: 2024-04-30 | BK21: 2024-05-31 | BL21: 2024-06-30 | BM21: 2024-07-31 | BN21: 2024-08-31 | BO21: 2024-09-30 | BP21: 2024-10-31 | BQ21: 2024-11-30 | BR21: 2024-12-31 | BS21: 2025-01-31 | BT21: 2025-02-28 | BU21: 2025-03-31 | BV21: 2025-04-30 | BW21: 2025-05-31 | BX21: 2025-06-30 | BY21: 2025-07-31 | BZ21: 2025-08-31 | CA21: 2025-09-30 | CB21: 2025-10-31 | CC21: 2025-11-30 | CD21: 2025-12-31 | CE21: 2026-01-31 | CF21: 2026-02-28 | CG21: 2026-03-31 | CH21: 2026-04-30
A22: 22 | G22: 0 | H22: названия периодов расчета | AA22: 2021-05-01 | AB22: 2021-06-01 | AC22: 2021-07-01 | AD22: 2021-08-01 | AE22: 2021-09-01 | AF22: 2021-10-01 | AG22: 2021-11-01 | AH22: 2021-12-01 | AI22: 2022-01-01 | AJ22: 2022-02-01 | AK22: 2022-03-01 | AL22: 2022-04-01 | AM22: 2022-05-01 | AN22: 2022-06-01 | AO22: 2022-07-01 | AP22: 2022-08-01 | AQ22: 2022-09-01 | AR22: 2022-10-01 | AS22: 2022-11-01 | AT22: 2022-12-01 | AU22: 2023-01-01 | AV22: 2023-02-01 | AW22: 2023-03-01 | AX22: 2023-04-01 | AY22: 2023-05-01 | AZ22: 2023-06-01 | BA22: 2023-07-01 | BB22: 2023-08-01 | BC22: 2023-09-01 | BD22: 2023-10-01 | BE22: 2023-11-01 | BF22: 2023-12-01 | BG22: 2024-01-01 | BH22: 2024-02-01 | BI22: 2024-03-01 | BJ22: 2024-04-01 | BK22: 2024-05-01 | BL22: 2024-06-01 | BM22: 2024-07-01 | BN22: 2024-08-01 | BO22: 2024-09-01 | BP22: 2024-10-01 | BQ22: 2024-11-01 | BR22: 2024-12-01 | BS22: 2025-01-01 | BT22: 2025-02-01 | BU22: 2025-03-01 | BV22: 2025-04-01 | BW22: 2025-05-01 | BX22: 2025-06-01 | BY22: 2025-07-01 | BZ22: 2025-08-01 | CA22: 2025-09-01 | CB22: 2025-10-01 | CC22: 2025-11-01 | CD22: 2025-12-01 | CE22: 2026-01-01 | CF22: 2026-02-01 | CG22: 2026-03-01 | CH22: 2026-04-01
A23: 23
A24: 24 | G24: 0 | H24: ответ "да/нет"
A25: 25 | G25: 0 | H25: ответ "да/нет" | I25: учесть фактические данные? | P25: * | Q25: нет | R25: ^ | S25: 0
A26: 26 | G26: 0 | H26: ответ "да/нет" | I26: фактический период выбрать по умолчанию? | Q26: да | R26: ^ | S26: 0
A27: 27
A28: 28 | G28: 0 | H28: дата начала фактического периода
A29: 29 | G29: 0 | H29: дата окончания фактического периода
A30: 30 | G30: 0 | H30: дата окончания фактического периода | I30: по умолчанию - сегодняшний день | Q30: 2022-02-08
A31: 31 | G31: 0 | H31: дата окончания фактического периода | I31: задать вручную дату окончания периода | Q31: 2020-10-31 | Y31: номер периода модели: | AA31: 1 | AB31: 2 | AC31: 3 | AD31: 4 | AE31: 5 | AF31: 6 | AG31: 7 | AH31: 8 | AI31: 9 | AJ31: 10 | AK31: 11 | AL31: 12 | AM31: 13 | AN31: 14 | AO31: 15 | AP31: 16 | AQ31: 17 | AR31: 18 | AS31: 19 | AT31: 20 | AU31: 21 | AV31: 22 | AW31: 23 | AX31: 24 | AY31: 25 | AZ31: 26 | BA31: 27 | BB31: 28 | BC31: 29 | BD31: 30 | BE31: 31 | BF31: 32 | BG31: 33 | BH31: 34 | BI31: 35 | BJ31: 36 | BK31: 37 | BL31: 38 | BM31: 39 | BN31: 40 | BO31: 41 | BP31: 42 | BQ31: 43 | BR31: 44 | BS31: 45 | BT31: 46 | BU31: 47 | BV31: 48 | BW31: 49 | BX31: 50 | BY31: 51 | BZ31: 52 | CA31: 53 | CB31: 54 | CC31: 55 | CD31: 56 | CE31: 57 | CF31: 58 | CG31: 59 | CH31: 60 | CI31: 61 | CJ31: 62 | CK31: 63 | CL31: 64 | CM31: 65 | CN31: 66 | CO31: 67 | CP31: 68 | CQ31: 69 | CR31: 70 | CS31: 71 | CT31: 72 | CU31: 73
A32: 32 | Y32: номер месяца даты начала: | AA32: 5 | AB32: 5 | AC32: 5 | AD32: 5 | AE32: 5
A33: 33 | G33: 0 | H33: период отчетности | P33: * | Q33: год текущий | R33: ^ | S33: 0 | Y33: год даты начала: | AA33: 21 | AB33: 22 | AC33: 23 | AD33: 24 | AE33: 25
A34: 34
A35: 35 | G35: 0 | H35: дата старта отчетности модели | X35: 2021-05-01 | AA35: 2021-05-01 | AB35: 2022-05-01 | AC35: 2023-05-01 | AD35: 2024-05-01 | AE35: 2025-05-01
A36: 36 | G36: 0 | H36: дата завершения отчетности модели | X36: 2026-04-30 | AA36: 2022-04-30 | AB36: 2023-04-30 | AC36: 2024-04-30 | AD36: 2025-04-30 | AE36: 2026-04-30
A37: 37 | G37: 0 | H37: названия периодов отчетности | AA37: 1 год | AB37: 2 год | AC37: 3 год | AD37: 4 год | AE37: 5 год
A38: 38
A39: 39
A40: 40
A41: 41
A42: 42
A43: 43
A44: 44
A45: 45
A46: 46
A47: 47
A48: 48
A49: 49
A50: 50
A51: 51
A52: 52
A53: 53
A54: 54
A55: 55
A56: 56
A57: 57
A58: 58
A59: 59
A60: 60
A61: 61
A62: 62
A63: 63
A64: 64
A65: 65
A66: 66
A67: 67
A68: 68
A69: 69
A70: 70

Sheet Lists
I1: =COLUMN() -> 9 | M1: =COLUMN() -> 13 | Q1: =COLUMN() -> 17 | U1: =COLUMN() -> 21 | AB1: =COLUMN() -> 28 | AF1: =COLUMN() -> 32 | AI1: =COLUMN() -> 35 | AM1: =COLUMN() -> 39 | AQ1: =COLUMN() -> 43 | AU1: =COLUMN() -> 47 | AY1: =COLUMN() -> 51 | BC1: =COLUMN() -> 55 | BG1: =COLUMN() -> 59 | BK1: =COLUMN() -> 63 | BO1: =COLUMN() -> 67 | BS1: =COLUMN() -> 71 | BW1: =COLUMN() -> 75 | CA1: =COLUMN() -> 79 | CE1: =COLUMN() -> 83 | CI1: =COLUMN() -> 87 | CM1: =COLUMN() -> 91 | CQ1: =COLUMN() -> 95 | CU1: =COLUMN() -> 99
I2: =LEFT(ADDRESS(1,COLUMN(),4),LEN(ADDRESS(1,COLUMN(),4))-1) -> I | M2: =LEFT(ADDRESS(1,COLUMN(),4),LEN(ADDRESS(1,COLUMN(),4))-1) -> M | Q2: =LEFT(ADDRESS(1,COLUMN(),4),LEN(ADDRESS(1,COLUMN(),4))-1) -> Q | U2: =LEFT(ADDRESS(1,COLUMN(),4),LEN(ADDRESS(1,COLUMN(),4))-1) -> U | AB2: =LEFT(ADDRESS(1,COLUMN(),4),LEN(ADDRESS(1,COLUMN(),4))-1) -> AB | AF2: =LEFT(ADDRESS(1,COLUMN(),4),LEN(ADDRESS(1,COLUMN(),4))-1) -> AF | AI2: =LEFT(ADDRESS(1,COLUMN(),4),LEN(ADDRESS(1,COLUMN(),4))-1) -> AI | AM2: =LEFT(ADDRESS(1,COLUMN(),4),LEN(ADDRESS(1,COLUMN(),4))-1) -> AM | AQ2: =LEFT(ADDRESS(1,COLUMN(),4),LEN(ADDRESS(1,COLUMN(),4))-1) -> AQ | AU2: =LEFT(ADDRESS(1,COLUMN(),4),LEN(ADDRESS(1,COLUMN(),4))-1) -> AU | AY2: =LEFT(ADDRESS(1,COLUMN(),4),LEN(ADDRESS(1,COLUMN(),4))-1) -> AY | BC2: =LEFT(ADDRESS(1,COLUMN(),4),LEN(ADDRESS(1,COLUMN(),4))-1) -> BC | BG2: =LEFT(ADDRESS(1,COLUMN(),4),LEN(ADDRESS(1,COLUMN(),4))-1) -> BG | BK2: =LEFT(ADDRESS(1,COLUMN(),4),LEN(ADDRESS(1,COLUMN(),4))-1) -> BK | BO2: =LEFT(ADDRESS(1,COLUMN(),4),LEN(ADDRESS(1,COLUMN(),4))-1) -> BO | BS2: =LEFT(ADDRESS(1,COLUMN(),4),LEN(ADDRESS(1,COLUMN(),4))-1) -> BS | BW2: =LEFT(ADDRESS(1,COLUMN(),4),LEN(ADDRESS(1,COLUMN(),4))-1) -> BW | CA2: =LEFT(ADDRESS(1,COLUMN(),4),LEN(ADDRESS(1,COLUMN(),4))-1) -> CA | CE2: =LEFT(ADDRESS(1,COLUMN(),4),LEN(ADDRESS(1,COLUMN(),4))-1) -> CE | CI2: =LEFT(ADDRESS(1,COLUMN(),4),LEN(ADDRESS(1,COLUMN(),4))-1) -> CI | CM2: =LEFT(ADDRESS(1,COLUMN(),4),LEN(ADDRESS(1,COLUMN(),4))-1) -> CM | CQ2: =LEFT(ADDRESS(1,COLUMN(),4),LEN(ADDRESS(1,COLUMN(),4))-1) -> CQ | CU2: =LEFT(ADDRESS(1,COLUMN(),4),LEN(ADDRESS(1,COLUMN(),4))-1) -> CU
F11: =INDIRECT("START!I28") -> Lists | I11: =INDIRECT("START!K28") -> Выпадающие списки финансовой модели
AI12: =START!$I$32 -> Mrkting | AY12: =START!$I$32 -> Mrkting | BC12: =START!$I$32 -> Mrkting | BK12: =START!$I$34 -> Sales | BO12: =START!$I$35 -> Prdction | BS12: =START!$I$33 -> CapEx | BW12: =START!$I$33 -> CapEx | CA12: =START!$I$36 -> HR | CI12: =START!$I$36 -> HR | CM12: =START!$I$29 -> Macro | CQ12: =START!$I$29 -> Macro | CU12: =START!$I$54 -> Calc
I13: минимальный период расчетов | M13: ответ "да/нет" | Q13: период отчетности | U13: тип листа | AB13: тип прогрессии | AF13: кол-во дней в периоде | AI13: каналы привлечения клиентов | AM13: продукция | AQ13: дата старта | AU13: тип учета | AY13: натуральные факторы переменных расходов маркетинга | BC13: денежные факторы переменных расходов маркетинга | BG13: тип зависимости переменных расходов | BK13: типы деятельности сотрудников отдела продаж | BO13: типы деятельности производственных сотрудников | BS13: Ввод в эксплуатацию | BW13: Налоги на внеоборотные активы | CA13: Типы и должности персонала | CE13: Типы оплаты | CI13: Потребность в р/месте | CM13: Система налогообложения | CQ13: Налоги и сборы | CU13: Метки расчетов
D14: =INDIRECT("Cntrl!M17") -> 0 | E14: =SUM($F14:$PH14) -> 0 | F14: =IFERROR(_xlfn.SHEET($A$1)-SUMIFS(Cntrl!O$15:O$100000,Cntrl!I$15:I$100000,$F$11),1) -> 0 | I14: =IF(OR(I13=0,I13=""),1,IF(COUNTIF(13:13,I13)=1,0,1)) -> 0 | K14: =SUM(K$15:K$100000) -> 0 | M14: =IF(OR(M13=0,M13=""),1,IF(COUNTIF(13:13,M13)=1,0,1)) -> 0 | O14: =SUM(O$15:O$100000) -> 0 | Q14: =IF(OR(Q13=0,Q13=""),1,IF(COUNTIF(13:13,Q13)=1,0,1)) -> 0 | S14: =SUM(S$15:S$100000) -> 0 | U14: =IF(OR(U13=0,U13=""),1,IF(COUNTIF(13:13,U13)=1,0,1)) -> 0 | W14: =SUM(W$15:W$100000) -> 0 | AD14: =SUM(AD$15:AD$100000) -> 0 | AF14: =IF(OR(AF13=0,AF13=""),1,IF(COUNTIF(13:13,AF13)=1,0,1)) -> 0 | AI14: =IF(OR(AI13=0,AI13=""),1,IF(COUNTIF(13:13,AI13)=1,0,1)) -> 0 | AK14: =SUM(AK$15:AK$100000) -> 0 | AM14: =IF(OR(AM13=0,AM13=""),1,IF(COUNTIF(13:13,AM13)=1,0,1)) -> 0 | AO14: =SUM(AO$15:AO$100000) -> 0 | AQ14: =IF(OR(AQ13=0,AQ13=""),1,IF(COUNTIF(13:13,AQ13)=1,0,1)) -> 0 | AS14: =SUM(AS$15:AS$100000) -> 0 | AU14: =IF(OR(AU13=0,AU13=""),1,IF(COUNTIF(13:13,AU13)=1,0,1)) -> 0 | AW14: =SUM(AW$15:AW$100000) -> 0 | AY14: =IF(OR(AY13=0,AY13=""),1,IF(COUNTIF(13:13,AY13)=1,0,1)) -> 0 | BA14: =SUM(BA$15:BA$100000) -> 0 | BC14: =IF(OR(BC13=0,BC13=""),1,IF(COUNTIF(13:13,BC13)=1,0,1)) -> 0 | BE14: =SUM(BE$15:BE$100000) -> 0 | BG14: =IF(OR(BG13=0,BG13=""),1,IF(COUNTIF(13:13,BG13)=1,0,1)) -> 0 | BI14: =SUM(BI$15:BI$100000) -> 0 | BK14: =IF(OR(BK13=0,BK13=""),1,IF(COUNTIF(13:13,BK13)=1,0,1)) -> 0 | BM14: =SUM(BM$15:BM$100000) -> 0 | BO14: =IF(OR(BO13=0,BO13=""),1,IF(COUNTIF(13:13,BO13)=1,0,1)) -> 0 | BQ14: =SUM(BQ$15:BQ$100000) -> 0 | BS14: =IF(OR(BS13=0,BS13=""),1,IF(COUNTIF(13:13,BS13)=1,0,1)) -> 0 | BU14: =SUM(BU$15:BU$100000) -> 0 | BW14: =IF(OR(BW13=0,BW13=""),1,IF(COUNTIF(13:13,BW13)=1,0,1)) -> 0 | BY14: =SUM(BY$15:BY$100000) -> 0 | CA14: =IF(OR(CA13=0,CA13=""),1,IF(COUNTIF(13:13,CA13)=1,0,1)) -> 0 | CC14: =SUM(CC$15:CC$100000) -> 0 | CE14: =IF(OR(CE13=0,CE13=""),1,IF(COUNTIF(13:13,CE13)=1,0,1)) -> 0 | CG14: =SUM(CG$15:CG$100000) -> 0 | CI14: =IF(OR(CI13=0,CI13=""),1,IF(COUNTIF(13:13,CI13)=1,0,1)) -> 0 | CK14: =SUM(CK$15:CK$100000) -> 0 | CM14: =IF(OR(CM13=0,CM13=""),1,IF(COUNTIF(13:13,CM13)=1,0,1)) -> 0 | CO14: =SUM(CO$15:CO$100000) -> 0 | CQ14: =IF(OR(CQ13=0,CQ13=""),1,IF(COUNTIF(13:13,CQ13)=1,0,1)) -> 0 | CS14: =SUM(CS$15:CS$100000) -> 0 | CU14: =IF(OR(CU13=0,CU13=""),1,IF(COUNTIF(13:13,CU13)=1,0,1)) -> 0 | CW14: =SUM(CW$15:CW$100000) -> 0
A15: =ROW() -> 15 | I15: =$F$11&"!"&I$2&$A16&":"&I$2&($A15+MAX(J$15:J$100000)) -> Lists!I16:I22 | M15: =$F$11&"!"&M$2&$A16&":"&M$2&($A15+MAX(N$15:N$100000)) -> Lists!M16:M17 | Q15: =$F$11&"!"&Q$2&$A16&":"&Q$2&($A15+MAX(R$15:R$100000)) -> Lists!Q16:Q18 | U15: =$F$11&"!"&U$2&$A16&":"&U$2&($A15+MAX(V$15:V$100000)) -> Lists!U16:U18 | AB15: =$F$11&"!"&AB$2&$A16&":"&AB$2&($A15+MAX(AC$15:AC$100000)) -> Lists!AB16:AB17 | AF15: =$F$11&"!"&AF$2&$A16&":"&AF$2&($A15+MAX(AG$15:AG$100000)) -> Lists!AF16:AF22 | AI15: =$F$11&"!"&AI$2&$A16&":"&AI$2&($A15+MAX(AJ$15:AJ$100000)) -> Lists!AI16:AI16 | AM15: =$F$11&"!"&AM$2&$A16&":"&AM$2&($A15+MAX(AN$15:AN$100000)) -> Lists!AM16:AM21 | AQ15: =$F$11&"!"&AQ$2&$A16&":"&AQ$2&($A15+MAX(AR$15:AR$100000)) -> Lists!AQ16:AQ75 | AU15: =$F$11&"!"&AU$2&$A16&":"&AU$2&($A15+MAX(AV$15:AV$100000)) -> Lists!AU16:AU20 | AY15: =$F$11&"!"&AY$2&$A16&":"&AY$2&($A15+MAX(AZ$15:AZ$100000)) -> Lists!AY16:AY19 | BC15: =$F$11&"!"&BC$2&$A16&":"&BC$2&($A15+MAX(BD$15:BD$100000)) -> Lists!BC16:BC17 | BG15: =$F$11&"!"&BG$2&$A16&":"&BG$2&($A15+MAX(BH$15:BH$100000)) -> Lists!BG16:BG17 | BK15: =$F$11&"!"&BK$2&$A16&":"&BK$2&($A15+MAX(BL$15:BL$100000)) -> Lists!BK16:BK18 | BO15: =$F$11&"!"&BO$2&$A16&":"&BO$2&($A15+MAX(BP$15:BP$100000)) -> Lists!BO16:BO18 | BS15: =$F$11&"!"&BS$2&$A16&":"&BS$2&($A15+MAX(BT$15:BT$100000)) -> Lists!BS16:BS18 | BW15: =$F$11&"!"&BW$2&$A16&":"&BW$2&($A15+MAX(BX$15:BX$100000)) -> Lists!BW16:BW18 | CA15: =$F$11&"!"&CA$2&$A16&":"&CA$2&($A15+MAX(CB$15:CB$100000)) -> Lists!CA16:CA25 | CE15: =$F$11&"!"&CE$2&$A16&":"&CE$2&($A15+MAX(CF$15:CF$100000)) -> Lists!CE16:CE18 | CI15: =$F$11&"!"&CI$2&$A16&":"&CI$2&($A15+MAX(CJ$15:CJ$100000)) -> Lists!CI16:CI17 | CM15: =$F$11&"!"&CM$2&$A16&":"&CM$2&($A15+MAX(CN$15:CN$100000)) -> Lists!CM16:CM19 | CQ15: =$F$11&"!"&CQ$2&$A16&":"&CQ$2&($A15+MAX(CR$15:CR$100000)) -> Lists!CQ16:CQ19 | CU15: =$F$11&"!"&CU$2&$A16&":"&CU$2&($A15+MAX(CV$15:CV$100000)) -> Lists!CU16:CU29
A16: =ROW() -> 16 | I16: день | J16: =MAX(J$15:J15)+1 -> 1 | K16: =IF(OR(I16=0,I16=""),0,IF(COUNTIF(I$15:I$100000,I16)=1,0,1)) -> 0 | M16: да | N16: =MAX(N$15:N15)+1 -> 1 | O16: =IF(OR(M16=0,M16=""),0,IF(COUNTIF(M$15:M$100000,M16)=1,0,1)) -> 0 | Q16: =IF(Periods!$Q$16=$I$16,$I17,IF(OR(Periods!$Q$16=$I$17,Periods!$Q$16=$I$18),$I19,IF(Periods!$Q$16=$I$19,$I20,IF(Periods!$Q$16=$I$20,$I21,IF(Periods!$Q$16=$I$21,$I22,""))))) -> квартал | R16: =IF(OR(Q16="",Q16=0),"",MAX(R$15:R15)+1) -> 1 | S16: =IF(OR(Q16=0,Q16=""),0,IF(COUNTIF(Q$15:Q$100000,Q16)=1,0,1)) -> 0 | U16: расчетный | V16: =MAX(V$15:V15)+1 -> 1 | W16: =IF(OR(U16=0,U16=""),0,IF(COUNTIF(U$15:U$100000,U16)=1,0,1)) -> 0 | AB16: линейная | AC16: =MAX(AC$15:AC15)+1 -> 1 | AD16: =IF(OR(AB16=0,AB16=""),0,IF(COUNTIF(AB$15:AB$100000,AB16)=1,0,1)) -> 0 | AF16: 1 | AG16: =MAX(AG$15:AG15)+1 -> 1 | AH16: =MAX(AH$15:AH15)+1 -> 1 | AI16: =IF(SUMIFS(Mrkting!$A:$A,Mrkting!$K:$K,AH16)=0,"",INDEX(Mrkting!$L:$L,SUMIFS(Mrkting!$A:$A,Mrkting!$K:$K,AH16))) -> Привлечение клиентов | AJ16: =IF(OR(AI16="",AI16=0),"",MAX(AJ$15:AJ15)+1) -> 1 | AK16: =IF(OR(AI16=0,AI16=""),0,IF(COUNTIF(AI$15:AI$100000,AI16)=1,0,1)) -> 0 | AL16: * | AM16: Полумаски FFP1 | AN16: =MAX(AN$15:AN15)+1 -> 1 | AO16: =IF(OR(AM16=0,AM16=""),0,IF(COUNTIF(AM$15:AM$100000,AM16)=1,0,1)) -> 0 | AP16: =MAX(AP$15:AP15)+1 -> 1 | AQ16: =SUMIFS(Periods!$11:$11,Periods!$2:$2,AP16) -> 2021-05-01 | AR16: =IF(OR(AQ16="",AQ16=0),"",MAX(AR$15:AR15)+1) -> 1 | AS16: =IF(OR(AQ16=0,AQ16=""),0,IF(COUNTIF(AQ$15:AQ$100000,AQ16)=1,0,1)) -> 0 | AU16: начисление | AV16: =MAX(AV$15:AV15)+1 -> 1 | AW16: =IF(OR(AU16=0,AU16=""),0,IF(COUNTIF(AU$15:AU$100000,AU16)=1,0,1)) -> 0 | AY16: =Mrkting!$H$19 -> Поток запусков создания производства СИЗ | AZ16: =MAX(AZ$15:AZ15)+1 -> 1 | BA16: =IF(OR(AY16=0,AY16=""),0,IF(COUNTIF(AY$15:AY$100000,AY16)=1,0,1)) -> 0 | BC16: =Mrkting!$H$107 -> Общий оборот (GMV) | BD16: =MAX(BD$15:BD15)+1 -> 1 | BE16: =IF(OR(BC16=0,BC16=""),0,IF(COUNTIF(BC$15:BC$100000,BC16)=1,0,1)) -> 0 | BG16: натуральные факторы | BH16: =MAX(BH$15:BH15)+1 -> 1 | BI16: =IF(OR(BG16=0,BG16=""),0,IF(COUNTIF(BG$15:BG$100000,BG16)=1,0,1)) -> 0 | BJ16: * | BK16: информирование об услугах | BL16: =MAX(BL$15:BL15)+1 -> 1 | BM16: =IF(OR(BK16=0,BK16=""),0,IF(COUNTIF(BK$15:BK$100000,BK16)=1,0,1)) -> 0 | BN16: * | BO16: Вырубка полотна | BP16: =MAX(BP$15:BP15)+1 -> 1 | BQ16: =IF(OR(BO16=0,BO16=""),0,IF(COUNTIF(BO$15:BO$100000,BO16)=1,0,1)) -> 0 | BS16: в последний период всех капзатрат | BT16: =MAX(BT$15:BT15)+1 -> 1 | BU16: =IF(OR(BS16=0,BS16=""),0,IF(COUNTIF(BS$15:BS$100000,BS16)=1,0,1)) -> 0 | BW16: земельный налог | BX16: =MAX(BX$15:BX15)+1 -> 1 | BY16: =IF(OR(BW16=0,BW16=""),0,IF(COUNTIF(BW$15:BW$100000,BW16)=1,0,1)) -> 0 | CA16: Сотрудники маркетинга | CB16: =MAX(CB$15:CB15)+1 -> 1 | CC16: =IF(OR(CA16=0,CA16=""),0,IF(COUNTIF(CA$15:CA$100000,CA16)=1,0,1)) -> 0 | CE16: аванс-доплата | CF16: =MAX(CF$15:CF15)+1 -> 1 | CG16: =IF(OR(CE16=0,CE16=""),0,IF(COUNTIF(CE$15:CE$100000,CE16)=1,0,1)) -> 0 | CI16: нужно р/место | CJ16: =MAX(CJ$15:CJ15)+1 -> 1 | CK16: =IF(OR(CI16=0,CI16=""),0,IF(COUNTIF(CI$15:CI$100000,CI16)=1,0,1)) -> 0 | CM16: ОСНО | CN16: =MAX(CN$15:CN15)+1 -> 1 | CO16: =IF(OR(CM16=0,CM16=""),0,IF(COUNTIF(CM$15:CM$100000,CM16)=1,0,1)) -> 0 | CQ16: НДС | CR16: =MAX(CR$15:CR15)+1 -> 1 | CS16: =IF(OR(CQ16=0,CQ16=""),0,IF(COUNTIF(CQ$15:CQ$100000,CQ16)=1,0,1)) -> 0 | CU16: ндс(+) | CV16: =MAX(CV$15:CV15)+1 -> 1 | CW16: =IF(OR(CU16=0,CU16=""),0,IF(COUNTIF(CU$15:CU$100000,CU16)=1,0,1)) -> 0
A17: =ROW() -> 17 | I17: неделя | J17: =MAX(J$15:J16)+1 -> 2 | K17: =IF(OR(I17=0,I17=""),0,IF(COUNTIF(I$15:I$100000,I17)=1,0,1)) -> 0 | M17: нет | N17: =MAX(N$15:N16)+1 -> 2 | O17: =IF(OR(M17=0,M17=""),0,IF(COUNTIF(M$15:M$100000,M17)=1,0,1)) -> 0 | Q17: =IF(Periods!$Q$16=$I$16,$I18,IF(OR(Periods!$Q$16=$I$17,Periods!$Q$16=$I$18),$I20,IF(Periods!$Q$16=$I$19,$I21,IF(Periods!$Q$16=$I$20,$I22,IF(Periods!$Q$16=$I$21,$I23,""))))) -> год текущий | R17: =IF(OR(Q17="",Q17=0),"",MAX(R$15:R16)+1) -> 2 | S17: =IF(OR(Q17=0,Q17=""),0,IF(COUNTIF(Q$15:Q$100000,Q17)=1,0,1)) -> 0 | U17: отчетный | V17: =MAX(V$15:V16)+1 -> 2 | W17: =IF(OR(U17=0,U17=""),0,IF(COUNTIF(U$15:U$100000,U17)=1,0,1)) -> 0 | AB17: геометрическая | AC17: =MAX(AC$15:AC16)+1 -> 2 | AD17: =IF(OR(AB17=0,AB17=""),0,IF(COUNTIF(AB$15:AB$100000,AB17)=1,0,1)) -> 0 | AF17: 7 | AG17: =MAX(AG$15:AG16)+1 -> 2 | AH17: =MAX(AH$15:AH16)+1 -> 2 | AI17: =IF(SUMIFS(Mrkting!$A:$A,Mrkting!$K:$K,AH17)=0,"",INDEX(Mrkting!$L:$L,SUMIFS(Mrkting!$A:$A,Mrkting!$K:$K,AH17))) ->  | AJ17: =IF(OR(AI17="",AI17=0),"",MAX(AJ$15:AJ16)+1) ->  | AK17: =IF(OR(AI17=0,AI17=""),0,IF(COUNTIF(AI$15:AI$100000,AI17)=1,0,1)) -> 0 | AL17: * | AM17: Полумаски FFP2 | AN17: =MAX(AN$15:AN16)+1 -> 2 | AO17: =IF(OR(AM17=0,AM17=""),0,IF(COUNTIF(AM$15:AM$100000,AM17)=1,0,1)) -> 0 | AP17: =MAX(AP$15:AP16)+1 -> 2 | AQ17: =SUMIFS(Periods!$11:$11,Periods!$2:$2,AP17) -> 2021-06-01 | AR17: =IF(OR(AQ17="",AQ17=0),"",MAX(AR$15:AR16)+1) -> 2 | AS17: =IF(OR(AQ17=0,AQ17=""),0,IF(COUNTIF(AQ$15:AQ$100000,AQ17)=1,0,1)) -> 0 | AU17: учет | AV17: =MAX(AV$15:AV16)+1 -> 2 | AW17: =IF(OR(AU17=0,AU17=""),0,IF(COUNTIF(AU$15:AU$100000,AU17)=1,0,1)) -> 0 | AY17: =Mrkting!$H$66 -> Трафик потребности в СИЗ, шт | AZ17: =MAX(AZ$15:AZ16)+1 -> 2 | BA17: =IF(OR(AY17=0,AY17=""),0,IF(COUNTIF(AY$15:AY$100000,AY17)=1,0,1)) -> 0 | BC17: =Mrkting!$H$156 -> Общий оборот (GMV) с учетом скидок | BD17: =MAX(BD$15:BD16)+1 -> 2 | BE17: =IF(OR(BC17=0,BC17=""),0,IF(COUNTIF(BC$15:BC$100000,BC17)=1,0,1)) -> 0 | BG17: денежные факторы | BH17: =MAX(BH$15:BH16)+1 -> 2 | BI17: =IF(OR(BG17=0,BG17=""),0,IF(COUNTIF(BG$15:BG$100000,BG17)=1,0,1)) -> 0 | BJ17: * | BK17: информирование о ценах и условиях | BL17: =MAX(BL$15:BL16)+1 -> 2 | BM17: =IF(OR(BK17=0,BK17=""),0,IF(COUNTIF(BK$15:BK$100000,BK17)=1,0,1)) -> 0 | BN17: * | BO17: Литье и пайка | BP17: =MAX(BP$15:BP16)+1 -> 2 | BQ17: =IF(OR(BO17=0,BO17=""),0,IF(COUNTIF(BO$15:BO$100000,BO17)=1,0,1)) -> 0 | BS17: в последний период данной статьи | BT17: =MAX(BT$15:BT16)+1 -> 2 | BU17: =IF(OR(BS17=0,BS17=""),0,IF(COUNTIF(BS$15:BS$100000,BS17)=1,0,1)) -> 0 | BW17: транспортный налог | BX17: =MAX(BX$15:BX16)+1 -> 2 | BY17: =IF(OR(BW17=0,BW17=""),0,IF(COUNTIF(BW$15:BW$100000,BW17)=1,0,1)) -> 0 | CA17: Менеджеры по продажам | CB17: =MAX(CB$15:CB16)+1 -> 2 | CC17: =IF(OR(CA17=0,CA17=""),0,IF(COUNTIF(CA$15:CA$100000,CA17)=1,0,1)) -> 0 | CE17: аванс-платеж | CF17: =MAX(CF$15:CF16)+1 -> 2 | CG17: =IF(OR(CE17=0,CE17=""),0,IF(COUNTIF(CE$15:CE$100000,CE17)=1,0,1)) -> 0 | CI17: не нужно р/место | CJ17: =MAX(CJ$15:CJ16)+1 -> 2 | CK17: =IF(OR(CI17=0,CI17=""),0,IF(COUNTIF(CI$15:CI$100000,CI17)=1,0,1)) -> 0 | CM17: УСН(6%) | CN17: =MAX(CN$15:CN16)+1 -> 2 | CO17: =IF(OR(CM17=0,CM17=""),0,IF(COUNTIF(CM$15:CM$100000,CM17)=1,0,1)) -> 0 | CQ17: Соцсборы | CR17: =MAX(CR$15:CR16)+1 -> 2 | CS17: =IF(OR(CQ17=0,CQ17=""),0,IF(COUNTIF(CQ$15:CQ$100000,CQ17)=1,0,1)) -> 0 | CU17: ндс(-) | CV17: =MAX(CV$15:CV16)+1 -> 2 | CW17: 0
A18: =ROW() -> 18 | I18: декада | J18: =MAX(J$15:J17)+1 -> 3 | K18: 0 | Q18: =IF(Periods!$Q$16=$I$16,$I19,IF(OR(Periods!$Q$16=$I$17,Periods!$Q$16=$I$18),$I21,IF(Periods!$Q$16=$I$19,$I22,IF(Periods!$Q$16=$I$20,$I23,IF(Periods!$Q$16=$I$21,$I24,""))))) -> год календ. | R18: =IF(OR(Q18="",Q18=0),"",MAX(R$15:R17)+1) -> 3 | S18: 0 | U18: технический | V18: =MAX(V$15:V17)+1 -> 3 | W18: =IF(OR(U18=0,U18=""),0,IF(COUNTIF(U$15:U$100000,U18)=1,0,1)) -> 0 | AF18: 10 | AG18: =MAX(AG$15:AG17)+1 -> 3 | AH18: =MAX(AH$15:AH17)+1 -> 3 | AI18: =IF(SUMIFS(Mrkting!$A:$A,Mrkting!$K:$K,AH18)=0,"",INDEX(Mrkting!$L:$L,SUMIFS(Mrkting!$A:$A,Mrkting!$K:$K,AH18))) ->  | AJ18: =IF(OR(AI18="",AI18=0),"",MAX(AJ$15:AJ17)+1) ->  | AK18: 0 | AL18: * | AM18: Полумаски FFP3 | AN18: =MAX(AN$15:AN17)+1 -> 3 | AO18: =IF(OR(AM18=0,AM18=""),0,IF(COUNTIF(AM$15:AM$100000,AM18)=1,0,1)) -> 0 | AP18: =MAX(AP$15:AP17)+1 -> 3 | AQ18: =SUMIFS(Periods!$11:$11,Periods!$2:$2,AP18) -> 2021-07-01 | AR18: =IF(OR(AQ18="",AQ18=0),"",MAX(AR$15:AR17)+1) -> 3 | AS18: 0 | AU18: оплата | AV18: =MAX(AV$15:AV17)+1 -> 3 | AW18: =IF(OR(AU18=0,AU18=""),0,IF(COUNTIF(AU$15:AU$100000,AU18)=1,0,1)) -> 0 | AY18: =Mrkting!$H$68 -> Конверсия в заказ | AZ18: =MAX(AZ$15:AZ17)+1 -> 3 | BA18: =IF(OR(AY18=0,AY18=""),0,IF(COUNTIF(AY$15:AY$100000,AY18)=1,0,1)) -> 0 | BJ18: * | BK18: представительская деятельность | BL18: =MAX(BL$15:BL17)+1 -> 3 | BM18: =IF(OR(BK18=0,BK18=""),0,IF(COUNTIF(BK$15:BK$100000,BK18)=1,0,1)) -> 0 | BN18: * | BO18: Упаковка | BP18: =MAX(BP$15:BP17)+1 -> 3 | BQ18: =IF(OR(BO18=0,BO18=""),0,IF(COUNTIF(BO$15:BO$100000,BO18)=1,0,1)) -> 0 | BS18: в каждый период начисления | BT18: =MAX(BT$15:BT17)+1 -> 3 | BU18: =IF(OR(BS18=0,BS18=""),0,IF(COUNTIF(BS$15:BS$100000,BS18)=1,0,1)) -> 0 | BW18: налог на имущество организаций | BX18: =MAX(BX$15:BX17)+1 -> 3 | BY18: =IF(OR(BW18=0,BW18=""),0,IF(COUNTIF(BW$15:BW$100000,BW18)=1,0,1)) -> 0 | CA18: Производственный персонал | CB18: =MAX(CB$15:CB17)+1 -> 3 | CC18: =IF(OR(CA18=0,CA18=""),0,IF(COUNTIF(CA$15:CA$100000,CA18)=1,0,1)) -> 0 | CE18: ретро-платеж | CF18: =MAX(CF$15:CF17)+1 -> 3 | CG18: =IF(OR(CE18=0,CE18=""),0,IF(COUNTIF(CE$15:CE$100000,CE18)=1,0,1)) -> 0 | CM18: УСН(15%) | CN18: =MAX(CN$15:CN17)+1 -> 3 | CO18: =IF(OR(CM18=0,CM18=""),0,IF(COUNTIF(CM$15:CM$100000,CM18)=1,0,1)) -> 0 | CQ18: Налог на прибыль | CR18: =MAX(CR$15:CR17)+1 -> 3 | CS18: =IF(OR(CQ18=0,CQ18=""),0,IF(COUNTIF(CQ$15:CQ$100000,CQ18)=1,0,1)) -> 0 | CU18: PL(+) | CV18: =MAX(CV$15:CV17)+1 -> 3 | CW18: 0
A19: =ROW() -> 19 | I19: месяц | J19: =MAX(J$15:J18)+1 -> 4 | K19: 0 | Q19: =IF(Periods!$Q$16=$I$16,$I20,IF(OR(Periods!$Q$16=$I$17,Periods!$Q$16=$I$18),$I22,IF(Periods!$Q$16=$I$19,$I23,IF(Periods!$Q$16=$I$20,$I24,IF(Periods!$Q$16=$I$21,$I25,""))))) -> 0 | R19: =IF(OR(Q19="",Q19=0),"",MAX(R$15:R18)+1) ->  | S19: 0 | AF19: 30 | AG19: =MAX(AG$15:AG18)+1 -> 4 | AH19: =MAX(AH$15:AH18)+1 -> 4 | AI19: =IF(SUMIFS(Mrkting!$A:$A,Mrkting!$K:$K,AH19)=0,"",INDEX(Mrkting!$L:$L,SUMIFS(Mrkting!$A:$A,Mrkting!$K:$K,AH19))) ->  | AJ19: =IF(OR(AI19="",AI19=0),"",MAX(AJ$15:AJ18)+1) ->  | AK19: 0 | AL19: * | AM19: Полумаски FFP4 | AN19: =MAX(AN$15:AN18)+1 -> 4 | AO19: =IF(OR(AM19=0,AM19=""),0,IF(COUNTIF(AM$15:AM$100000,AM19)=1,0,1)) -> 0 | AP19: =MAX(AP$15:AP18)+1 -> 4 | AQ19: =SUMIFS(Periods!$11:$11,Periods!$2:$2,AP19) -> 2021-08-01 | AR19: =IF(OR(AQ19="",AQ19=0),"",MAX(AR$15:AR18)+1) -> 4 | AS19: 0 | AU19: списание | AV19: =MAX(AV$15:AV18)+1 -> 4 | AW19: =IF(OR(AU19=0,AU19=""),0,IF(COUNTIF(AU$15:AU$100000,AU19)=1,0,1)) -> 0 | AY19: =Mrkting!$H$77 -> Поток потенциальных заказов | AZ19: =MAX(AZ$15:AZ18)+1 -> 4 | BA19: =IF(OR(AY19=0,AY19=""),0,IF(COUNTIF(AY$15:AY$100000,AY19)=1,0,1)) -> 0 | BZ19: * | CA19: Администрация | CB19: =MAX(CB$15:CB18)+1 -> 4 | CC19: =IF(OR(CA19=0,CA19=""),0,IF(COUNTIF(CA$15:CA$100000,CA19)=1,0,1)) -> 0 | CM19: ТОСЭР | CN19: =MAX(CN$15:CN18)+1 -> 4 | CO19: =IF(OR(CM19=0,CM19=""),0,IF(COUNTIF(CM$15:CM$100000,CM19)=1,0,1)) -> 0 | CQ19: ТОСЭР | CR19: =MAX(CR$15:CR18)+1 -> 4 | CS19: =IF(OR(CQ19=0,CQ19=""),0,IF(COUNTIF(CQ$15:CQ$100000,CQ19)=1,0,1)) -> 0 | CU19: PL(-) | CV19: =MAX(CV$15:CV18)+1 -> 4 | CW19: 0
A20: =ROW() -> 20 | I20: квартал | J20: =MAX(J$15:J19)+1 -> 5 | K20: 0 | Q20: =IF(Periods!$Q$16=$I$16,$I21,IF(OR(Periods!$Q$16=$I$17,Periods!$Q$16=$I$18),$I23,IF(Periods!$Q$16=$I$19,$I24,IF(Periods!$Q$16=$I$20,$I25,IF(Periods!$Q$16=$I$21,$I26,""))))) -> 0 | R20: =IF(OR(Q20="",Q20=0),"",MAX(R$15:R19)+1) ->  | S20: 0 | AF20: 90 | AG20: =MAX(AG$15:AG19)+1 -> 5 | AH20: =MAX(AH$15:AH19)+1 -> 5 | AI20: =IF(SUMIFS(Mrkting!$A:$A,Mrkting!$K:$K,AH20)=0,"",INDEX(Mrkting!$L:$L,SUMIFS(Mrkting!$A:$A,Mrkting!$K:$K,AH20))) ->  | AJ20: =IF(OR(AI20="",AI20=0),"",MAX(AJ$15:AJ19)+1) ->  | AK20: 0 | AL20: * | AM20: Маски медицинские | AN20: =MAX(AN$15:AN19)+1 -> 5 | AO20: 0 | AP20: =MAX(AP$15:AP19)+1 -> 5 | AQ20: =SUMIFS(Periods!$11:$11,Periods!$2:$2,AP20) -> 2021-09-01 | AR20: =IF(OR(AQ20="",AQ20=0),"",MAX(AR$15:AR19)+1) -> 5 | AS20: 0 | AU20: калькуляция | AV20: =MAX(AV$15:AV19)+1 -> 5 | AW20: =IF(OR(AU20=0,AU20=""),0,IF(COUNTIF(AU$15:AU$100000,AU20)=1,0,1)) -> 0 | BZ20: * | CA20: Служба главного инженера | CB20: =MAX(CB$15:CB19)+1 -> 5 | CC20: 0 | CU20: PL | CV20: =MAX(CV$15:CV19)+1 -> 5 | CW20: 0
A21: =ROW() -> 21 | I21: год текущий | J21: =MAX(J$15:J20)+1 -> 6 | K21: 0 | Q21: =IF(Periods!$Q$16=$I$16,$I22,IF(OR(Periods!$Q$16=$I$17,Periods!$Q$16=$I$18),$I24,IF(Periods!$Q$16=$I$19,$I25,IF(Periods!$Q$16=$I$20,$I26,IF(Periods!$Q$16=$I$21,$I27,""))))) -> 0 | R21: =IF(OR(Q21="",Q21=0),"",MAX(R$15:R20)+1) ->  | S21: 0 | AF21: 360 | AG21: =MAX(AG$15:AG20)+1 -> 6 | AH21: =MAX(AH$15:AH20)+1 -> 6 | AI21: =IF(SUMIFS(Mrkting!$A:$A,Mrkting!$K:$K,AH21)=0,"",INDEX(Mrkting!$L:$L,SUMIFS(Mrkting!$A:$A,Mrkting!$K:$K,AH21))) ->  | AJ21: =IF(OR(AI21="",AI21=0),"",MAX(AJ$15:AJ20)+1) ->  | AK21: 0 | AL21: * | AM21: Маски гигиенические | AN21: =MAX(AN$15:AN20)+1 -> 6 | AO21: 0 | AP21: =MAX(AP$15:AP20)+1 -> 6 | AQ21: =SUMIFS(Periods!$11:$11,Periods!$2:$2,AP21) -> 2021-10-01 | AR21: =IF(OR(AQ21="",AQ21=0),"",MAX(AR$15:AR20)+1) -> 6 | AS21: 0 | BZ21: * | CA21: Технический отдел | CB21: =MAX(CB$15:CB20)+1 -> 6 | CC21: 0 | CU21: CF(+) | CV21: =MAX(CV$15:CV20)+1 -> 6 | CW21: 0
A22: =ROW() -> 22 | I22: год календ. | J22: =MAX(J$15:J21)+1 -> 7 | K22: 0 | Q22: =IF(Periods!$Q$16=$I$16,$I23,IF(OR(Periods!$Q$16=$I$17,Periods!$Q$16=$I$18),$I25,IF(Periods!$Q$16=$I$19,$I26,IF(Periods!$Q$16=$I$20,$I27,IF(Periods!$Q$16=$I$21,$I28,""))))) -> 0 | R22: =IF(OR(Q22="",Q22=0),"",MAX(R$15:R21)+1) ->  | S22: 0 | AF22: 360 | AG22: =MAX(AG$15:AG21)+1 -> 7 | AH22: =MAX(AH$15:AH21)+1 -> 7 | AI22: =IF(SUMIFS(Mrkting!$A:$A,Mrkting!$K:$K,AH22)=0,"",INDEX(Mrkting!$L:$L,SUMIFS(Mrkting!$A:$A,Mrkting!$K:$K,AH22))) ->  | AJ22: =IF(OR(AI22="",AI22=0),"",MAX(AJ$15:AJ21)+1) ->  | AK22: 0 | AP22: =MAX(AP$15:AP21)+1 -> 7 | AQ22: =SUMIFS(Periods!$11:$11,Periods!$2:$2,AP22) -> 2021-11-01 | AR22: =IF(OR(AQ22="",AQ22=0),"",MAX(AR$15:AR21)+1) -> 7 | AS22: 0 | BZ22: * | CA22: Планово-диспетчерский отдел | CB22: =MAX(CB$15:CB21)+1 -> 7 | CC22: 0 | CU22: CF(-) | CV22: =MAX(CV$15:CV21)+1 -> 7 | CW22: 0
A23: =ROW() -> 23 | AH23: =MAX(AH$15:AH22)+1 -> 8 | AI23: =IF(SUMIFS(Mrkting!$A:$A,Mrkting!$K:$K,AH23)=0,"",INDEX(Mrkting!$L:$L,SUMIFS(Mrkting!$A:$A,Mrkting!$K:$K,AH23))) ->  | AJ23: =IF(OR(AI23="",AI23=0),"",MAX(AJ$15:AJ22)+1) ->  | AK23: =IF(OR(AI23=0,AI23=""),0,IF(COUNTIF(AI$15:AI$100000,AI23)=1,0,1)) -> 0 | AP23: =MAX(AP$15:AP22)+1 -> 8 | AQ23: =SUMIFS(Periods!$11:$11,Periods!$2:$2,AP23) -> 2021-12-01 | AR23: =IF(OR(AQ23="",AQ23=0),"",MAX(AR$15:AR22)+1) -> 8 | AS23: =IF(OR(AQ23=0,AQ23=""),0,IF(COUNTIF(AQ$15:AQ$100000,AQ23)=1,0,1)) -> 0 | BZ23: * | CA23: Начальник производства СИЗ | CB23: =MAX(CB$15:CB22)+1 -> 8 | CC23: 0 | CU23: CF | CV23: =MAX(CV$15:CV22)+1 -> 8 | CW23: 0
A24: =ROW() -> 24 | AH24: =MAX(AH$15:AH23)+1 -> 9 | AI24: =IF(SUMIFS(Mrkting!$A:$A,Mrkting!$K:$K,AH24)=0,"",INDEX(Mrkting!$L:$L,SUMIFS(Mrkting!$A:$A,Mrkting!$K:$K,AH24))) ->  | AJ24: =IF(OR(AI24="",AI24=0),"",MAX(AJ$15:AJ23)+1) ->  | AK24: 0 | AP24: =MAX(AP$15:AP23)+1 -> 9 | AQ24: =SUMIFS(Periods!$11:$11,Periods!$2:$2,AP24) -> 2022-01-01 | AR24: =IF(OR(AQ24="",AQ24=0),"",MAX(AR$15:AR23)+1) -> 9 | AS24: 0 | BZ24: * | CA24: Заведующий складом | CB24: =MAX(CB$15:CB23)+1 -> 9 | CC24: 0 | CU24: BS | CV24: =MAX(CV$15:CV23)+1 -> 9 | CW24: 0
A25: =ROW() -> 25 | AH25: =MAX(AH$15:AH24)+1 -> 10 | AI25: =IF(SUMIFS(Mrkting!$A:$A,Mrkting!$K:$K,AH25)=0,"",INDEX(Mrkting!$L:$L,SUMIFS(Mrkting!$A:$A,Mrkting!$K:$K,AH25))) ->  | AJ25: =IF(OR(AI25="",AI25=0),"",MAX(AJ$15:AJ24)+1) ->  | AK25: 0 | AP25: =MAX(AP$15:AP24)+1 -> 10 | AQ25: =SUMIFS(Periods!$11:$11,Periods!$2:$2,AP25) -> 2022-02-01 | AR25: =IF(OR(AQ25="",AQ25=0),"",MAX(AR$15:AR24)+1) -> 10 | AS25: 0 | BZ25: * | CA25: Начальник цеха литья | CB25: =MAX(CB$15:CB24)+1 -> 10 | CC25: 0 | CU25: BS(+) | CV25: =MAX(CV$15:CV24)+1 -> 10 | CW25: 0
A26: =ROW() -> 26 | AH26: =MAX(AH$15:AH25)+1 -> 11 | AI26: =IF(SUMIFS(Mrkting!$A:$A,Mrkting!$K:$K,AH26)=0,"",INDEX(Mrkting!$L:$L,SUMIFS(Mrkting!$A:$A,Mrkting!$K:$K,AH26))) ->  | AJ26: =IF(OR(AI26="",AI26=0),"",MAX(AJ$15:AJ25)+1) ->  | AK26: 0 | AP26: =MAX(AP$15:AP25)+1 -> 11 | AQ26: =SUMIFS(Periods!$11:$11,Periods!$2:$2,AP26) -> 2022-03-01 | AR26: =IF(OR(AQ26="",AQ26=0),"",MAX(AR$15:AR25)+1) -> 11 | AS26: 0 | CU26: BS(-) | CV26: =MAX(CV$15:CV25)+1 -> 11 | CW26: 0
A27: =ROW() -> 27 | AH27: =MAX(AH$15:AH26)+1 -> 12 | AI27: =IF(SUMIFS(Mrkting!$A:$A,Mrkting!$K:$K,AH27)=0,"",INDEX(Mrkting!$L:$L,SUMIFS(Mrkting!$A:$A,Mrkting!$K:$K,AH27))) ->  | AJ27: =IF(OR(AI27="",AI27=0),"",MAX(AJ$15:AJ26)+1) ->  | AK27: 0 | AP27: =MAX(AP$15:AP26)+1 -> 12 | AQ27: =SUMIFS(Periods!$11:$11,Periods!$2:$2,AP27) -> 2022-04-01 | AR27: =IF(OR(AQ27="",AQ27=0),"",MAX(AR$15:AR26)+1) -> 12 | AS27: 0 | CU27: SF(+) | CV27: =MAX(CV$15:CV26)+1 -> 12 | CW27: 0
A28: =ROW() -> 28 | AH28: =MAX(AH$15:AH27)+1 -> 13 | AI28: =IF(SUMIFS(Mrkting!$A:$A,Mrkting!$K:$K,AH28)=0,"",INDEX(Mrkting!$L:$L,SUMIFS(Mrkting!$A:$A,Mrkting!$K:$K,AH28))) ->  | AJ28: =IF(OR(AI28="",AI28=0),"",MAX(AJ$15:AJ27)+1) ->  | AK28: 0 | AP28: =MAX(AP$15:AP27)+1 -> 13 | AQ28: =SUMIFS(Periods!$11:$11,Periods!$2:$2,AP28) -> 2022-05-01 | AR28: =IF(OR(AQ28="",AQ28=0),"",MAX(AR$15:AR27)+1) -> 13 | AS28: 0 | CU28: SF(-) | CV28: =MAX(CV$15:CV27)+1 -> 13 | CW28: 0
A29: =ROW() -> 29 | AH29: =MAX(AH$15:AH28)+1 -> 14 | AI29: =IF(SUMIFS(Mrkting!$A:$A,Mrkting!$K:$K,AH29)=0,"",INDEX(Mrkting!$L:$L,SUMIFS(Mrkting!$A:$A,Mrkting!$K:$K,AH29))) ->  | AJ29: =IF(OR(AI29="",AI29=0),"",MAX(AJ$15:AJ28)+1) ->  | AK29: =IF(OR(AI29=0,AI29=""),0,IF(COUNTIF(AI$15:AI$100000,AI29)=1,0,1)) -> 0 | AP29: =MAX(AP$15:AP28)+1 -> 14 | AQ29: =SUMIFS(Periods!$11:$11,Periods!$2:$2,AP29) -> 2022-06-01 | AR29: =IF(OR(AQ29="",AQ29=0),"",MAX(AR$15:AR28)+1) -> 14 | AS29: 0 | CU29: SF | CV29: =MAX(CV$15:CV28)+1 -> 14 | CW29: 0
A30: =ROW() -> 30 | AH30: =MAX(AH$15:AH29)+1 -> 15 | AI30: =IF(SUMIFS(Mrkting!$A:$A,Mrkting!$K:$K,AH30)=0,"",INDEX(Mrkting!$L:$L,SUMIFS(Mrkting!$A:$A,Mrkting!$K:$K,AH30))) ->  | AJ30: =IF(OR(AI30="",AI30=0),"",MAX(AJ$15:AJ29)+1) ->  | AK30: =IF(OR(AI30=0,AI30=""),0,IF(COUNTIF(AI$15:AI$100000,AI30)=1,0,1)) -> 0 | AP30: =MAX(AP$15:AP29)+1 -> 15 | AQ30: =SUMIFS(Periods!$11:$11,Periods!$2:$2,AP30) -> 2022-07-01 | AR30: =IF(OR(AQ30="",AQ30=0),"",MAX(AR$15:AR29)+1) -> 15 | AS30: 0
A31: =ROW() -> 31 | AP31: =MAX(AP$15:AP30)+1 -> 16 | AQ31: =SUMIFS(Periods!$11:$11,Periods!$2:$2,AP31) -> 2022-08-01 | AR31: =IF(OR(AQ31="",AQ31=0),"",MAX(AR$15:AR30)+1) -> 16 | AS31: =IF(OR(AQ31=0,AQ31=""),0,IF(COUNTIF(AQ$15:AQ$100000,AQ31)=1,0,1)) -> 0
A32: =ROW() -> 32 | AP32: =MAX(AP$15:AP31)+1 -> 17 | AQ32: =SUMIFS(Periods!$11:$11,Periods!$2:$2,AP32) -> 2022-09-01 | AR32: =IF(OR(AQ32="",AQ32=0),"",MAX(AR$15:AR31)+1) -> 17 | AS32: 0
A33: =ROW() -> 33 | AP33: =MAX(AP$15:AP32)+1 -> 18 | AQ33: =SUMIFS(Periods!$11:$11,Periods!$2:$2,AP33) -> 2022-10-01 | AR33: =IF(OR(AQ33="",AQ33=0),"",MAX(AR$15:AR32)+1) -> 18 | AS33: 0
A34: =ROW() -> 34 | AP34: =MAX(AP$15:AP33)+1 -> 19 | AQ34: =SUMIFS(Periods!$11:$11,Periods!$2:$2,AP34) -> 2022-11-01 | AR34: =IF(OR(AQ34="",AQ34=0),"",MAX(AR$15:AR33)+1) -> 19 | AS34: 0
A35: =ROW() -> 35 | AP35: =MAX(AP$15:AP34)+1 -> 20 | AQ35: =SUMIFS(Periods!$11:$11,Periods!$2:$2,AP35) -> 2022-12-01 | AR35: =IF(OR(AQ35="",AQ35=0),"",MAX(AR$15:AR34)+1) -> 20 | AS35: 0
A36: =ROW() -> 36 | AP36: =MAX(AP$15:AP35)+1 -> 21 | AQ36: =SUMIFS(Periods!$11:$11,Periods!$2:$2,AP36) -> 2023-01-01 | AR36: =IF(OR(AQ36="",AQ36=0),"",MAX(AR$15:AR35)+1) -> 21 | AS36: 0
A37: =ROW() -> 37 | AP37: =MAX(AP$15:AP36)+1 -> 22 | AQ37: =SUMIFS(Periods!$11:$11,Periods!$2:$2,AP37) -> 2023-02-01 | AR37: =IF(OR(AQ37="",AQ37=0),"",MAX(AR$15:AR36)+1) -> 22 | AS37: 0
A38: =ROW() -> 38 | AP38: =MAX(AP$15:AP37)+1 -> 23 | AQ38: =SUMIFS(Periods!$11:$11,Periods!$2:$2,AP38) -> 2023-03-01 | AR38: =IF(OR(AQ38="",AQ38=0),"",MAX(AR$15:AR37)+1) -> 23 | AS38: 0
A39: =ROW() -> 39 | AP39: =MAX(AP$15:AP38)+1 -> 24 | AQ39: =SUMIFS(Periods!$11:$11,Periods!$2:$2,AP39) -> 2023-04-01 | AR39: =IF(OR(AQ39="",AQ39=0),"",MAX(AR$15:AR38)+1) -> 24 | AS39: 0
A40: =ROW() -> 40 | AP40: =MAX(AP$15:AP39)+1 -> 25 | AQ40: =SUMIFS(Periods!$11:$11,Periods!$2:$2,AP40) -> 2023-05-01 | AR40: =IF(OR(AQ40="",AQ40=0),"",MAX(AR$15:AR39)+1) -> 25 | AS40: 0
A41: =ROW() -> 41 | AP41: =MAX(AP$15:AP40)+1 -> 26 | AQ41: =SUMIFS(Periods!$11:$11,Periods!$2:$2,AP41) -> 2023-06-01 | AR41: =IF(OR(AQ41="",AQ41=0),"",MAX(AR$15:AR40)+1) -> 26 | AS41: 0
A42: =ROW() -> 42 | AP42: =MAX(AP$15:AP41)+1 -> 27 | AQ42: =SUMIFS(Periods!$11:$11,Periods!$2:$2,AP42) -> 2023-07-01 | AR42: =IF(OR(AQ42="",AQ42=0),"",MAX(AR$15:AR41)+1) -> 27 | AS42: 0
A43: =ROW() -> 43 | AP43: =MAX(AP$15:AP42)+1 -> 28 | AQ43: =SUMIFS(Periods!$11:$11,Periods!$2:$2,AP43) -> 2023-08-01 | AR43: =IF(OR(AQ43="",AQ43=0),"",MAX(AR$15:AR42)+1) -> 28 | AS43: 0
A44: =ROW() -> 44 | AP44: =MAX(AP$15:AP43)+1 -> 29 | AQ44: =SUMIFS(Periods!$11:$11,Periods!$2:$2,AP44) -> 2023-09-01 | AR44: =IF(OR(AQ44="",AQ44=0),"",MAX(AR$15:AR43)+1) -> 29 | AS44: 0
A45: =ROW() -> 45 | AP45: =MAX(AP$15:AP44)+1 -> 30 | AQ45: =SUMIFS(Periods!$11:$11,Periods!$2:$2,AP45) -> 2023-10-01 | AR45: =IF(OR(AQ45="",AQ45=0),"",MAX(AR$15:AR44)+1) -> 30 | AS45: 0
A46: =ROW() -> 46 | AP46: =MAX(AP$15:AP45)+1 -> 31 | AQ46: =SUMIFS(Periods!$11:$11,Periods!$2:$2,AP46) -> 2023-11-01 | AR46: =IF(OR(AQ46="",AQ46=0),"",MAX(AR$15:AR45)+1) -> 31 | AS46: 0
A47: =ROW() -> 47 | AP47: =MAX(AP$15:AP46)+1 -> 32 | AQ47: =SUMIFS(Periods!$11:$11,Periods!$2:$2,AP47) -> 2023-12-01 | AR47: =IF(OR(AQ47="",AQ47=0),"",MAX(AR$15:AR46)+1) -> 32 | AS47: 0
A48: =ROW() -> 48 | AP48: =MAX(AP$15:AP47)+1 -> 33 | AQ48: =SUMIFS(Periods!$11:$11,Periods!$2:$2,AP48) -> 2024-01-01 | AR48: =IF(OR(AQ48="",AQ48=0),"",MAX(AR$15:AR47)+1) -> 33 | AS48: 0
A49: =ROW() -> 49 | AP49: =MAX(AP$15:AP48)+1 -> 34 | AQ49: =SUMIFS(Periods!$11:$11,Periods!$2:$2,AP49) -> 2024-02-01 | AR49: =IF(OR(AQ49="",AQ49=0),"",MAX(AR$15:AR48)+1) -> 34 | AS49: 0
A50: =ROW() -> 50 | AP50: =MAX(AP$15:AP49)+1 -> 35 | AQ50: =SUMIFS(Periods!$11:$11,Periods!$2:$2,AP50) -> 2024-03-01 | AR50: =IF(OR(AQ50="",AQ50=0),"",MAX(AR$15:AR49)+1) -> 35 | AS50: 0
A51: =ROW() -> 51 | AP51: =MAX(AP$15:AP50)+1 -> 36 | AQ51: =SUMIFS(Periods!$11:$11,Periods!$2:$2,AP51) -> 2024-04-01 | AR51: =IF(OR(AQ51="",AQ51=0),"",MAX(AR$15:AR50)+1) -> 36 | AS51: 0
A52: =ROW() -> 52 | AP52: =MAX(AP$15:AP51)+1 -> 37 | AQ52: =SUMIFS(Periods!$11:$11,Periods!$2:$2,AP52) -> 2024-05-01 | AR52: =IF(OR(AQ52="",AQ52=0),"",MAX(AR$15:AR51)+1) -> 37 | AS52: 0
A53: =ROW() -> 53 | AP53: =MAX(AP$15:AP52)+1 -> 38 | AQ53: =SUMIFS(Periods!$11:$11,Periods!$2:$2,AP53) -> 2024-06-01 | AR53: =IF(OR(AQ53="",AQ53=0),"",MAX(AR$15:AR52)+1) -> 38 | AS53: 0
A54: =ROW() -> 54 | AP54: =MAX(AP$15:AP53)+1 -> 39 | AQ54: =SUMIFS(Periods!$11:$11,Periods!$2:$2,AP54) -> 2024-07-01 | AR54: =IF(OR(AQ54="",AQ54=0),"",MAX(AR$15:AR53)+1) -> 39 | AS54: 0
A55: =ROW() -> 55 | AP55: =MAX(AP$15:AP54)+1 -> 40 | AQ55: =SUMIFS(Periods!$11:$11,Periods!$2:$2,AP55) -> 2024-08-01 | AR55: =IF(OR(AQ55="",AQ55=0),"",MAX(AR$15:AR54)+1) -> 40 | AS55: 0
A56: =ROW() -> 56 | AP56: =MAX(AP$15:AP55)+1 -> 41 | AQ56: =SUMIFS(Periods!$11:$11,Periods!$2:$2,AP56) -> 2024-09-01 | AR56: =IF(OR(AQ56="",AQ56=0),"",MAX(AR$15:AR55)+1) -> 41 | AS56: 0
A57: =ROW() -> 57 | AP57: =MAX(AP$15:AP56)+1 -> 42 | AQ57: =SUMIFS(Periods!$11:$11,Periods!$2:$2,AP57) -> 2024-10-01 | AR57: =IF(OR(AQ57="",AQ57=0),"",MAX(AR$15:AR56)+1) -> 42 | AS57: 0
A58: =ROW() -> 58 | AP58: =MAX(AP$15:AP57)+1 -> 43 | AQ58: =SUMIFS(Periods!$11:$11,Periods!$2:$2,AP58) -> 2024-11-01 | AR58: =IF(OR(AQ58="",AQ58=0),"",MAX(AR$15:AR57)+1) -> 43 | AS58: 0
A59: =ROW() -> 59 | AP59: =MAX(AP$15:AP58)+1 -> 44 | AQ59: =SUMIFS(Periods!$11:$11,Periods!$2:$2,AP59) -> 2024-12-01 | AR59: =IF(OR(AQ59="",AQ59=0),"",MAX(AR$15:AR58)+1) -> 44 | AS59: 0
A60: =ROW() -> 60 | AP60: =MAX(AP$15:AP59)+1 -> 45 | AQ60: =SUMIFS(Periods!$11:$11,Periods!$2:$2,AP60) -> 2025-01-01 | AR60: =IF(OR(AQ60="",AQ60=0),"",MAX(AR$15:AR59)+1) -> 45 | AS60: 0
A61: =ROW() -> 61 | AP61: =MAX(AP$15:AP60)+1 -> 46 | AQ61: =SUMIFS(Periods!$11:$11,Periods!$2:$2,AP61) -> 2025-02-01 | AR61: =IF(OR(AQ61="",AQ61=0),"",MAX(AR$15:AR60)+1) -> 46 | AS61: 0
A62: =ROW() -> 62 | AP62: =MAX(AP$15:AP61)+1 -> 47 | AQ62: =SUMIFS(Periods!$11:$11,Periods!$2:$2,AP62) -> 2025-03-01 | AR62: =IF(OR(AQ62="",AQ62=0),"",MAX(AR$15:AR61)+1) -> 47 | AS62: 0
A63: =ROW() -> 63 | AP63: =MAX(AP$15:AP62)+1 -> 48 | AQ63: =SUMIFS(Periods!$11:$11,Periods!$2:$2,AP63) -> 2025-04-01 | AR63: =IF(OR(AQ63="",AQ63=0),"",MAX(AR$15:AR62)+1) -> 48 | AS63: 0
A64: =ROW() -> 64 | AP64: =MAX(AP$15:AP63)+1 -> 49 | AQ64: =SUMIFS(Periods!$11:$11,Periods!$2:$2,AP64) -> 2025-05-01 | AR64: =IF(OR(AQ64="",AQ64=0),"",MAX(AR$15:AR63)+1) -> 49 | AS64: 0
A65: =ROW() -> 65 | AP65: =MAX(AP$15:AP64)+1 -> 50 | AQ65: =SUMIFS(Periods!$11:$11,Periods!$2:$2,AP65) -> 2025-06-01 | AR65: =IF(OR(AQ65="",AQ65=0),"",MAX(AR$15:AR64)+1) -> 50 | AS65: 0
A66: =ROW() -> 66 | AP66: =MAX(AP$15:AP65)+1 -> 51 | AQ66: =SUMIFS(Periods!$11:$11,Periods!$2:$2,AP66) -> 2025-07-01 | AR66: =IF(OR(AQ66="",AQ66=0),"",MAX(AR$15:AR65)+1) -> 51 | AS66: 0
A67: =ROW() -> 67 | AP67: =MAX(AP$15:AP66)+1 -> 52 | AQ67: =SUMIFS(Periods!$11:$11,Periods!$2:$2,AP67) -> 2025-08-01 | AR67: =IF(OR(AQ67="",AQ67=0),"",MAX(AR$15:AR66)+1) -> 52 | AS67: 0
A68: =ROW() -> 68 | AP68: =MAX(AP$15:AP67)+1 -> 53 | AQ68: =SUMIFS(Periods!$11:$11,Periods!$2:$2,AP68) -> 2025-09-01 | AR68: =IF(OR(AQ68="",AQ68=0),"",MAX(AR$15:AR67)+1) -> 53 | AS68: 0
A69: =ROW() -> 69 | AP69: =MAX(AP$15:AP68)+1 -> 54 | AQ69: =SUMIFS(Periods!$11:$11,Periods!$2:$2,AP69) -> 2025-10-01 | AR69: =IF(OR(AQ69="",AQ69=0),"",MAX(AR$15:AR68)+1) -> 54 | AS69: 0
A70: =ROW() -> 70 | AP70: =MAX(AP$15:AP69)+1 -> 55 | AQ70: =SUMIFS(Periods!$11:$11,Periods!$2:$2,AP70) -> 2025-11-01 | AR70: =IF(OR(AQ70="",AQ70=0),"",MAX(AR$15:AR69)+1) -> 55 | AS70: 0
AP71: =MAX(AP$15:AP70)+1 -> 56 | AQ71: =SUMIFS(Periods!$11:$11,Periods!$2:$2,AP71) -> 2025-12-01 | AR71: =IF(OR(AQ71="",AQ71=0),"",MAX(AR$15:AR70)+1) -> 56 | AS71: 0
AP72: =MAX(AP$15:AP71)+1 -> 57 | AQ72: =SUMIFS(Periods!$11:$11,Periods!$2:$2,AP72) -> 2026-01-01 | AR72: =IF(OR(AQ72="",AQ72=0),"",MAX(AR$15:AR71)+1) -> 57 | AS72: 0
AP73: =MAX(AP$15:AP72)+1 -> 58 | AQ73: =SUMIFS(Periods!$11:$11,Periods!$2:$2,AP73) -> 2026-02-01 | AR73: =IF(OR(AQ73="",AQ73=0),"",MAX(AR$15:AR72)+1) -> 58 | AS73: 0
AP74: =MAX(AP$15:AP73)+1 -> 59 | AQ74: =SUMIFS(Periods!$11:$11,Periods!$2:$2,AP74) -> 2026-03-01 | AR74: =IF(OR(AQ74="",AQ74=0),"",MAX(AR$15:AR73)+1) -> 59 | AS74: 0
AP75: =MAX(AP$15:AP74)+1 -> 60 | AQ75: =SUMIFS(Periods!$11:$11,Periods!$2:$2,AP75) -> 2026-04-01 | AR75: =IF(OR(AQ75="",AQ75=0),"",MAX(AR$15:AR74)+1) -> 60 | AS75: 0
AP76: =MAX(AP$15:AP75)+1 -> 61 | AQ76: =SUMIFS(Periods!$11:$11,Periods!$2:$2,AP76) -> 00:00:00 | AR76: =IF(OR(AQ76="",AQ76=0),"",MAX(AR$15:AR75)+1) ->  | AS76: 0
AP77: =MAX(AP$15:AP76)+1 -> 62 | AQ77: =SUMIFS(Periods!$11:$11,Periods!$2:$2,AP77) -> 00:00:00 | AR77: =IF(OR(AQ77="",AQ77=0),"",MAX(AR$15:AR76)+1) ->  | AS77: 0
AP78: =MAX(AP$15:AP77)+1 -> 63 | AQ78: =SUMIFS(Periods!$11:$11,Periods!$2:$2,AP78) -> 00:00:00 | AR78: =IF(OR(AQ78="",AQ78=0),"",MAX(AR$15:AR77)+1) ->  | AS78: 0
AP79: =MAX(AP$15:AP78)+1 -> 64 | AQ79: =SUMIFS(Periods!$11:$11,Periods!$2:$2,AP79) -> 00:00:00 | AR79: =IF(OR(AQ79="",AQ79=0),"",MAX(AR$15:AR78)+1) ->  | AS79: 0
AP80: =MAX(AP$15:AP79)+1 -> 65 | AQ80: =SUMIFS(Periods!$11:$11,Periods!$2:$2,AP80) -> 00:00:00 | AR80: =IF(OR(AQ80="",AQ80=0),"",MAX(AR$15:AR79)+1) ->  | AS80: 0
AP81: =MAX(AP$15:AP80)+1 -> 66 | AQ81: =SUMIFS(Periods!$11:$11,Periods!$2:$2,AP81) -> 00:00:00 | AR81: =IF(OR(AQ81="",AQ81=0),"",MAX(AR$15:AR80)+1) ->  | AS81: 0
AP82: =MAX(AP$15:AP81)+1 -> 67 | AQ82: =SUMIFS(Periods!$11:$11,Periods!$2:$2,AP82) -> 00:00:00 | AR82: =IF(OR(AQ82="",AQ82=0),"",MAX(AR$15:AR81)+1) ->  | AS82: 0
AP83: =MAX(AP$15:AP82)+1 -> 68 | AQ83: =SUMIFS(Periods!$11:$11,Periods!$2:$2,AP83) -> 00:00:00 | AR83: =IF(OR(AQ83="",AQ83=0),"",MAX(AR$15:AR82)+1) ->  | AS83: 0
AP84: =MAX(AP$15:AP83)+1 -> 69 | AQ84: =SUMIFS(Periods!$11:$11,Periods!$2:$2,AP84) -> 00:00:00 | AR84: =IF(OR(AQ84="",AQ84=0),"",MAX(AR$15:AR83)+1) ->  | AS84: 0
AP85: =MAX(AP$15:AP84)+1 -> 70 | AQ85: =SUMIFS(Periods!$11:$11,Periods!$2:$2,AP85) -> 00:00:00 | AR85: =IF(OR(AQ85="",AQ85=0),"",MAX(AR$15:AR84)+1) ->  | AS85: 0
AP86: =MAX(AP$15:AP85)+1 -> 71 | AQ86: =SUMIFS(Periods!$11:$11,Periods!$2:$2,AP86) -> 00:00:00 | AR86: =IF(OR(AQ86="",AQ86=0),"",MAX(AR$15:AR85)+1) ->  | AS86: 0
AP87: =MAX(AP$15:AP86)+1 -> 72 | AQ87: =SUMIFS(Periods!$11:$11,Periods!$2:$2,AP87) -> 00:00:00 | AR87: =IF(OR(AQ87="",AQ87=0),"",MAX(AR$15:AR86)+1) ->  | AS87: 0
AP88: =MAX(AP$15:AP87)+1 -> 73 | AQ88: =SUMIFS(Periods!$11:$11,Periods!$2:$2,AP88) -> 00:00:00 | AR88: =IF(OR(AQ88="",AQ88=0),"",MAX(AR$15:AR87)+1) ->  | AS88: 0
AP89: =MAX(AP$15:AP88)+1 -> 74 | AQ89: =SUMIFS(Periods!$11:$11,Periods!$2:$2,AP89) -> 00:00:00 | AR89: =IF(OR(AQ89="",AQ89=0),"",MAX(AR$15:AR88)+1) ->  | AS89: 0
AP90: =MAX(AP$15:AP89)+1 -> 75 | AQ90: =SUMIFS(Periods!$11:$11,Periods!$2:$2,AP90) -> 00:00:00 | AR90: =IF(OR(AQ90="",AQ90=0),"",MAX(AR$15:AR89)+1) ->  | AS90: 0
AP91: =MAX(AP$15:AP90)+1 -> 76 | AQ91: =SUMIFS(Periods!$11:$11,Periods!$2:$2,AP91) -> 00:00:00 | AR91: =IF(OR(AQ91="",AQ91=0),"",MAX(AR$15:AR90)+1) ->  | AS91: 0
AP92: =MAX(AP$15:AP91)+1 -> 77 | AQ92: =SUMIFS(Periods!$11:$11,Periods!$2:$2,AP92) -> 00:00:00 | AR92: =IF(OR(AQ92="",AQ92=0),"",MAX(AR$15:AR91)+1) ->  | AS92: 0
AP93: =MAX(AP$15:AP92)+1 -> 78 | AQ93: =SUMIFS(Periods!$11:$11,Periods!$2:$2,AP93) -> 00:00:00 | AR93: =IF(OR(AQ93="",AQ93=0),"",MAX(AR$15:AR92)+1) ->  | AS93: 0
AP94: =MAX(AP$15:AP93)+1 -> 79 | AQ94: =SUMIFS(Periods!$11:$11,Periods!$2:$2,AP94) -> 00:00:00 | AR94: =IF(OR(AQ94="",AQ94=0),"",MAX(AR$15:AR93)+1) ->  | AS94: 0
AP95: =MAX(AP$15:AP94)+1 -> 80 | AQ95: =SUMIFS(Periods!$11:$11,Periods!$2:$2,AP95) -> 00:00:00 | AR95: =IF(OR(AQ95="",AQ95=0),"",MAX(AR$15:AR94)+1) ->  | AS95: =IF(OR(AQ95=0,AQ95=""),0,IF(COUNTIF(AQ$15:AQ$100000,AQ95)=1,0,1)) -> 0
AP96: =MAX(AP$15:AP95)+1 -> 81 | AQ96: =SUMIFS(Periods!$11:$11,Periods!$2:$2,AP96) -> 00:00:00 | AR96: =IF(OR(AQ96="",AQ96=0),"",MAX(AR$15:AR95)+1) ->  | AS96: 0
AP97: =MAX(AP$15:AP96)+1 -> 82 | AQ97: =SUMIFS(Periods!$11:$11,Periods!$2:$2,AP97) -> 00:00:00 | AR97: =IF(OR(AQ97="",AQ97=0),"",MAX(AR$15:AR96)+1) ->  | AS97: 0
AP98: =MAX(AP$15:AP97)+1 -> 83 | AQ98: =SUMIFS(Periods!$11:$11,Periods!$2:$2,AP98) -> 00:00:00 | AR98: =IF(OR(AQ98="",AQ98=0),"",MAX(AR$15:AR97)+1) ->  | AS98: 0
AP99: =MAX(AP$15:AP98)+1 -> 84 | AQ99: =SUMIFS(Periods!$11:$11,Periods!$2:$2,AP99) -> 00:00:00 | AR99: =IF(OR(AQ99="",AQ99=0),"",MAX(AR$15:AR98)+1) ->  | AS99: 0
AP100: =MAX(AP$15:AP99)+1 -> 85 | AQ100: =SUMIFS(Periods!$11:$11,Periods!$2:$2,AP100) -> 00:00:00 | AR100: =IF(OR(AQ100="",AQ100=0),"",MAX(AR$15:AR99)+1) ->  | AS100: 0
AP101: =MAX(AP$15:AP100)+1 -> 86 | AQ101: =SUMIFS(Periods!$11:$11,Periods!$2:$2,AP101) -> 00:00:00 | AR101: =IF(OR(AQ101="",AQ101=0),"",MAX(AR$15:AR100)+1) ->  | AS101: 0
AP102: =MAX(AP$15:AP101)+1 -> 87 | AQ102: =SUMIFS(Periods!$11:$11,Periods!$2:$2,AP102) -> 00:00:00 | AR102: =IF(OR(AQ102="",AQ102=0),"",MAX(AR$15:AR101)+1) ->  | AS102: 0
AP103: =MAX(AP$15:AP102)+1 -> 88 | AQ103: =SUMIFS(Periods!$11:$11,Periods!$2:$2,AP103) -> 00:00:00 | AR103: =IF(OR(AQ103="",AQ103=0),"",MAX(AR$15:AR102)+1) ->  | AS103: 0
AP104: =MAX(AP$15:AP103)+1 -> 89 | AQ104: =SUMIFS(Periods!$11:$11,Periods!$2:$2,AP104) -> 00:00:00 | AR104: =IF(OR(AQ104="",AQ104=0),"",MAX(AR$15:AR103)+1) ->  | AS104: 0
AP105: =MAX(AP$15:AP104)+1 -> 90 | AQ105: =SUMIFS(Periods!$11:$11,Periods!$2:$2,AP105) -> 00:00:00 | AR105: =IF(OR(AQ105="",AQ105=0),"",MAX(AR$15:AR104)+1) ->  | AS105: 0
AP106: =MAX(AP$15:AP105)+1 -> 91 | AQ106: =SUMIFS(Periods!$11:$11,Periods!$2:$2,AP106) -> 00:00:00 | AR106: =IF(OR(AQ106="",AQ106=0),"",MAX(AR$15:AR105)+1) ->  | AS106: 0
AP107: =MAX(AP$15:AP106)+1 -> 92 | AQ107: =SUMIFS(Periods!$11:$11,Periods!$2:$2,AP107) -> 00:00:00 | AR107: =IF(OR(AQ107="",AQ107=0),"",MAX(AR$15:AR106)+1) ->  | AS107: 0
AP108: =MAX(AP$15:AP107)+1 -> 93 | AQ108: =SUMIFS(Periods!$11:$11,Periods!$2:$2,AP108) -> 00:00:00 | AR108: =IF(OR(AQ108="",AQ108=0),"",MAX(AR$15:AR107)+1) ->  | AS108: 0
AP109: =MAX(AP$15:AP108)+1 -> 94 | AQ109: =SUMIFS(Periods!$11:$11,Periods!$2:$2,AP109) -> 00:00:00 | AR109: =IF(OR(AQ109="",AQ109=0),"",MAX(AR$15:AR108)+1) ->  | AS109: 0
AP110: =MAX(AP$15:AP109)+1 -> 95 | AQ110: =SUMIFS(Periods!$11:$11,Periods!$2:$2,AP110) -> 00:00:00 | AR110: =IF(OR(AQ110="",AQ110=0),"",MAX(AR$15:AR109)+1) ->  | AS110: 0
AP111: =MAX(AP$15:AP110)+1 -> 96 | AQ111: =SUMIFS(Periods!$11:$11,Periods!$2:$2,AP111) -> 00:00:00 | AR111: =IF(OR(AQ111="",AQ111=0),"",MAX(AR$15:AR110)+1) ->  | AS111: 0
AP112: =MAX(AP$15:AP111)+1 -> 97 | AQ112: =SUMIFS(Periods!$11:$11,Periods!$2:$2,AP112) -> 00:00:00 | AR112: =IF(OR(AQ112="",AQ112=0),"",MAX(AR$15:AR111)+1) ->  | AS112: 0
AP113: =MAX(AP$15:AP112)+1 -> 98 | AQ113: =SUMIFS(Periods!$11:$11,Periods!$2:$2,AP113) -> 00:00:00 | AR113: =IF(OR(AQ113="",AQ113=0),"",MAX(AR$15:AR112)+1) ->  | AS113: 0
AP114: =MAX(AP$15:AP113)+1 -> 99 | AQ114: =SUMIFS(Periods!$11:$11,Periods!$2:$2,AP114) -> 00:00:00 | AR114: =IF(OR(AQ114="",AQ114=0),"",MAX(AR$15:AR113)+1) ->  | AS114: 0
AP115: =MAX(AP$15:AP114)+1 -> 100 | AQ115: =SUMIFS(Periods!$11:$11,Periods!$2:$2,AP115) -> 00:00:00 | AR115: =IF(OR(AQ115="",AQ115=0),"",MAX(AR$15:AR114)+1) ->  | AS115: 0
AP116: =MAX(AP$15:AP115)+1 -> 101 | AQ116: =SUMIFS(Periods!$11:$11,Periods!$2:$2,AP116) -> 00:00:00 | AR116: =IF(OR(AQ116="",AQ116=0),"",MAX(AR$15:AR115)+1) ->  | AS116: 0
AP117: =MAX(AP$15:AP116)+1 -> 102 | AQ117: =SUMIFS(Periods!$11:$11,Periods!$2:$2,AP117) -> 00:00:00 | AR117: =IF(OR(AQ117="",AQ117=0),"",MAX(AR$15:AR116)+1) ->  | AS117: 0
AP118: =MAX(AP$15:AP117)+1 -> 103 | AQ118: =SUMIFS(Periods!$11:$11,Periods!$2:$2,AP118) -> 00:00:00 | AR118: =IF(OR(AQ118="",AQ118=0),"",MAX(AR$15:AR117)+1) ->  | AS118: 0
AP119: =MAX(AP$15:AP118)+1 -> 104 | AQ119: =SUMIFS(Periods!$11:$11,Periods!$2:$2,AP119) -> 00:00:00 | AR119: =IF(OR(AQ119="",AQ119=0),"",MAX(AR$15:AR118)+1) ->  | AS119: 0
AP120: =MAX(AP$15:AP119)+1 -> 105 | AQ120: =SUMIFS(Periods!$11:$11,Periods!$2:$2,AP120) -> 00:00:00 | AR120: =IF(OR(AQ120="",AQ120=0),"",MAX(AR$15:AR119)+1) ->  | AS120: 0
AP121: =MAX(AP$15:AP120)+1 -> 106 | AQ121: =SUMIFS(Periods!$11:$11,Periods!$2:$2,AP121) -> 00:00:00 | AR121: =IF(OR(AQ121="",AQ121=0),"",MAX(AR$15:AR120)+1) ->  | AS121: 0
AP122: =MAX(AP$15:AP121)+1 -> 107 | AQ122: =SUMIFS(Periods!$11:$11,Periods!$2:$2,AP122) -> 00:00:00 | AR122: =IF(OR(AQ122="",AQ122=0),"",MAX(AR$15:AR121)+1) ->  | AS122: 0
AP123: =MAX(AP$15:AP122)+1 -> 108 | AQ123: =SUMIFS(Periods!$11:$11,Periods!$2:$2,AP123) -> 00:00:00 | AR123: =IF(OR(AQ123="",AQ123=0),"",MAX(AR$15:AR122)+1) ->  | AS123: 0
AP124: =MAX(AP$15:AP123)+1 -> 109 | AQ124: =SUMIFS(Periods!$11:$11,Periods!$2:$2,AP124) -> 00:00:00 | AR124: =IF(OR(AQ124="",AQ124=0),"",MAX(AR$15:AR123)+1) ->  | AS124: 0
AP125: =MAX(AP$15:AP124)+1 -> 110 | AQ125: =SUMIFS(Periods!$11:$11,Periods!$2:$2,AP125) -> 00:00:00 | AR125: =IF(OR(AQ125="",AQ125=0),"",MAX(AR$15:AR124)+1) ->  | AS125: 0
AP126: =MAX(AP$15:AP125)+1 -> 111 | AQ126: =SUMIFS(Periods!$11:$11,Periods!$2:$2,AP126) -> 00:00:00 | AR126: =IF(OR(AQ126="",AQ126=0),"",MAX(AR$15:AR125)+1) ->  | AS126: 0
AP127: =MAX(AP$15:AP126)+1 -> 112 | AQ127: =SUMIFS(Periods!$11:$11,Periods!$2:$2,AP127) -> 00:00:00 | AR127: =IF(OR(AQ127="",AQ127=0),"",MAX(AR$15:AR126)+1) ->  | AS127: 0
AP128: =MAX(AP$15:AP127)+1 -> 113 | AQ128: =SUMIFS(Periods!$11:$11,Periods!$2:$2,AP128) -> 00:00:00 | AR128: =IF(OR(AQ128="",AQ128=0),"",MAX(AR$15:AR127)+1) ->  | AS128: 0
AP129: =MAX(AP$15:AP128)+1 -> 114 | AQ129: =SUMIFS(Periods!$11:$11,Periods!$2:$2,AP129) -> 00:00:00 | AR129: =IF(OR(AQ129="",AQ129=0),"",MAX(AR$15:AR128)+1) ->  | AS129: 0
AP130: =MAX(AP$15:AP129)+1 -> 115 | AQ130: =SUMIFS(Periods!$11:$11,Periods!$2:$2,AP130) -> 00:00:00 | AR130: =IF(OR(AQ130="",AQ130=0),"",MAX(AR$15:AR129)+1) ->  | AS130: 0
AP131: =MAX(AP$15:AP130)+1 -> 116 | AQ131: =SUMIFS(Periods!$11:$11,Periods!$2:$2,AP131) -> 00:00:00 | AR131: =IF(OR(AQ131="",AQ131=0),"",MAX(AR$15:AR130)+1) ->  | AS131: 0
AP132: =MAX(AP$15:AP131)+1 -> 117 | AQ132: =SUMIFS(Periods!$11:$11,Periods!$2:$2,AP132) -> 00:00:00 | AR132: =IF(OR(AQ132="",AQ132=0),"",MAX(AR$15:AR131)+1) ->  | AS132: 0
AP133: =MAX(AP$15:AP132)+1 -> 118 | AQ133: =SUMIFS(Periods!$11:$11,Periods!$2:$2,AP133) -> 00:00:00 | AR133: =IF(OR(AQ133="",AQ133=0),"",MAX(AR$15:AR132)+1) ->  | AS133: 0
AP134: =MAX(AP$15:AP133)+1 -> 119 | AQ134: =SUMIFS(Periods!$11:$11,Periods!$2:$2,AP134) -> 00:00:00 | AR134: =IF(OR(AQ134="",AQ134=0),"",MAX(AR$15:AR133)+1) ->  | AS134: 0
AP135: =MAX(AP$15:AP134)+1 -> 120 | AQ135: =SUMIFS(Periods!$11:$11,Periods!$2:$2,AP135) -> 00:00:00 | AR135: =IF(OR(AQ135="",AQ135=0),"",MAX(AR$15:AR134)+1) ->  | AS135: 0
AP136: =MAX(AP$15:AP135)+1 -> 121 | AQ136: =SUMIFS(Periods!$11:$11,Periods!$2:$2,AP136) -> 00:00:00 | AR136: =IF(OR(AQ136="",AQ136=0),"",MAX(AR$15:AR135)+1) ->  | AS136: 0
AP137: =MAX(AP$15:AP136)+1 -> 122 | AQ137: =SUMIFS(Periods!$11:$11,Periods!$2:$2,AP137) -> 00:00:00 | AR137: =IF(OR(AQ137="",AQ137=0),"",MAX(AR$15:AR136)+1) ->  | AS137: 0
AP138: =MAX(AP$15:AP137)+1 -> 123 | AQ138: =SUMIFS(Periods!$11:$11,Periods!$2:$2,AP138) -> 00:00:00 | AR138: =IF(OR(AQ138="",AQ138=0),"",MAX(AR$15:AR137)+1) ->  | AS138: 0
AP139: =MAX(AP$15:AP138)+1 -> 124 | AQ139: =SUMIFS(Periods!$11:$11,Periods!$2:$2,AP139) -> 00:00:00 | AR139: =IF(OR(AQ139="",AQ139=0),"",MAX(AR$15:AR138)+1) ->  | AS139: 0
AP140: =MAX(AP$15:AP139)+1 -> 125 | AQ140: =SUMIFS(Periods!$11:$11,Periods!$2:$2,AP140) -> 00:00:00 | AR140: =IF(OR(AQ140="",AQ140=0),"",MAX(AR$15:AR139)+1) ->  | AS140: 0
AP141: =MAX(AP$15:AP140)+1 -> 126 | AQ141: =SUMIFS(Periods!$11:$11,Periods!$2:$2,AP141) -> 00:00:00 | AR141: =IF(OR(AQ141="",AQ141=0),"",MAX(AR$15:AR140)+1) ->  | AS141: 0
AP142: =MAX(AP$15:AP141)+1 -> 127 | AQ142: =SUMIFS(Periods!$11:$11,Periods!$2:$2,AP142) -> 00:00:00 | AR142: =IF(OR(AQ142="",AQ142=0),"",MAX(AR$15:AR141)+1) ->  | AS142: 0
AP143: =MAX(AP$15:AP142)+1 -> 128 | AQ143: =SUMIFS(Periods!$11:$11,Periods!$2:$2,AP143) -> 00:00:00 | AR143: =IF(OR(AQ143="",AQ143=0),"",MAX(AR$15:AR142)+1) ->  | AS143: 0
AP144: =MAX(AP$15:AP143)+1 -> 129 | AQ144: =SUMIFS(Periods!$11:$11,Periods!$2:$2,AP144) -> 00:00:00 | AR144: =IF(OR(AQ144="",AQ144=0),"",MAX(AR$15:AR143)+1) ->  | AS144: 0
AP145: =MAX(AP$15:AP144)+1 -> 130 | AQ145: =SUMIFS(Periods!$11:$11,Periods!$2:$2,AP145) -> 00:00:00 | AR145: =IF(OR(AQ145="",AQ145=0),"",MAX(AR$15:AR144)+1) ->  | AS145: 0
AP146: =MAX(AP$15:AP145)+1 -> 131 | AQ146: =SUMIFS(Periods!$11:$11,Periods!$2:$2,AP146) -> 00:00:00 | AR146: =IF(OR(AQ146="",AQ146=0),"",MAX(AR$15:AR145)+1) ->  | AS146: 0
AP147: =MAX(AP$15:AP146)+1 -> 132 | AQ147: =SUMIFS(Periods!$11:$11,Periods!$2:$2,AP147) -> 00:00:00 | AR147: =IF(OR(AQ147="",AQ147=0),"",MAX(AR$15:AR146)+1) ->  | AS147: 0
AP148: =MAX(AP$15:AP147)+1 -> 133 | AQ148: =SUMIFS(Periods!$11:$11,Periods!$2:$2,AP148) -> 00:00:00 | AR148: =IF(OR(AQ148="",AQ148=0),"",MAX(AR$15:AR147)+1) ->  | AS148: 0
AP149: =MAX(AP$15:AP148)+1 -> 134 | AQ149: =SUMIFS(Periods!$11:$11,Periods!$2:$2,AP149) -> 00:00:00 | AR149: =IF(OR(AQ149="",AQ149=0),"",MAX(AR$15:AR148)+1) ->  | AS149: 0
AP150: =MAX(AP$15:AP149)+1 -> 135 | AQ150: =SUMIFS(Periods!$11:$11,Periods!$2:$2,AP150) -> 00:00:00 | AR150: =IF(OR(AQ150="",AQ150=0),"",MAX(AR$15:AR149)+1) ->  | AS150: 0
AP151: =MAX(AP$15:AP150)+1 -> 136 | AQ151: =SUMIFS(Periods!$11:$11,Periods!$2:$2,AP151) -> 00:00:00 | AR151: =IF(OR(AQ151="",AQ151=0),"",MAX(AR$15:AR150)+1) ->  | AS151: 0
AP152: =MAX(AP$15:AP151)+1 -> 137 | AQ152: =SUMIFS(Periods!$11:$11,Periods!$2:$2,AP152) -> 00:00:00 | AR152: =IF(OR(AQ152="",AQ152=0),"",MAX(AR$15:AR151)+1) ->  | AS152: 0
AP153: =MAX(AP$15:AP152)+1 -> 138 | AQ153: =SUMIFS(Periods!$11:$11,Periods!$2:$2,AP153) -> 00:00:00 | AR153: =IF(OR(AQ153="",AQ153=0),"",MAX(AR$15:AR152)+1) ->  | AS153: 0
AP154: =MAX(AP$15:AP153)+1 -> 139 | AQ154: =SUMIFS(Periods!$11:$11,Periods!$2:$2,AP154) -> 00:00:00 | AR154: =IF(OR(AQ154="",AQ154=0),"",MAX(AR$15:AR153)+1) ->  | AS154: 0
AP155: =MAX(AP$15:AP154)+1 -> 140 | AQ155: =SUMIFS(Periods!$11:$11,Periods!$2:$2,AP155) -> 00:00:00 | AR155: =IF(OR(AQ155="",AQ155=0),"",MAX(AR$15:AR154)+1) ->  | AS155: 0
AP156: =MAX(AP$15:AP155)+1 -> 141 | AQ156: =SUMIFS(Periods!$11:$11,Periods!$2:$2,AP156) -> 00:00:00 | AR156: =IF(OR(AQ156="",AQ156=0),"",MAX(AR$15:AR155)+1) ->  | AS156: 0
AP157: =MAX(AP$15:AP156)+1 -> 142 | AQ157: =SUMIFS(Periods!$11:$11,Periods!$2:$2,AP157) -> 00:00:00 | AR157: =IF(OR(AQ157="",AQ157=0),"",MAX(AR$15:AR156)+1) ->  | AS157: 0
AP158: =MAX(AP$15:AP157)+1 -> 143 | AQ158: =SUMIFS(Periods!$11:$11,Periods!$2:$2,AP158) -> 00:00:00 | AR158: =IF(OR(AQ158="",AQ158=0),"",MAX(AR$15:AR157)+1) ->  | AS158: 0
AP159: =MAX(AP$15:AP158)+1 -> 144 | AQ159: =SUMIFS(Periods!$11:$11,Periods!$2:$2,AP159) -> 00:00:00 | AR159: =IF(OR(AQ159="",AQ159=0),"",MAX(AR$15:AR158)+1) ->  | AS159: =IF(OR(AQ159=0,AQ159=""),0,IF(COUNTIF(AQ$15:AQ$100000,AQ159)=1,0,1)) -> 0
AP160: =MAX(AP$15:AP159)+1 -> 145 | AQ160: =SUMIFS(Periods!$11:$11,Periods!$2:$2,AP160) -> 00:00:00 | AR160: =IF(OR(AQ160="",AQ160=0),"",MAX(AR$15:AR159)+1) ->  | AS160: 0
AP161: =MAX(AP$15:AP160)+1 -> 146 | AQ161: =SUMIFS(Periods!$11:$11,Periods!$2:$2,AP161) -> 00:00:00 | AR161: =IF(OR(AQ161="",AQ161=0),"",MAX(AR$15:AR160)+1) ->  | AS161: 0
AP162: =MAX(AP$15:AP161)+1 -> 147 | AQ162: =SUMIFS(Periods!$11:$11,Periods!$2:$2,AP162) -> 00:00:00 | AR162: =IF(OR(AQ162="",AQ162=0),"",MAX(AR$15:AR161)+1) ->  | AS162: 0
AP163: =MAX(AP$15:AP162)+1 -> 148 | AQ163: =SUMIFS(Periods!$11:$11,Periods!$2:$2,AP163) -> 00:00:00 | AR163: =IF(OR(AQ163="",AQ163=0),"",MAX(AR$15:AR162)+1) ->  | AS163: 0
AP164: =MAX(AP$15:AP163)+1 -> 149 | AQ164: =SUMIFS(Periods!$11:$11,Periods!$2:$2,AP164) -> 00:00:00 | AR164: =IF(OR(AQ164="",AQ164=0),"",MAX(AR$15:AR163)+1) ->  | AS164: 0
AP165: =MAX(AP$15:AP164)+1 -> 150 | AQ165: =SUMIFS(Periods!$11:$11,Periods!$2:$2,AP165) -> 00:00:00 | AR165: =IF(OR(AQ165="",AQ165=0),"",MAX(AR$15:AR164)+1) ->  | AS165: 0
AP166: =MAX(AP$15:AP165)+1 -> 151 | AQ166: =SUMIFS(Periods!$11:$11,Periods!$2:$2,AP166) -> 00:00:00 | AR166: =IF(OR(AQ166="",AQ166=0),"",MAX(AR$15:AR165)+1) ->  | AS166: 0
AP167: =MAX(AP$15:AP166)+1 -> 152 | AQ167: =SUMIFS(Periods!$11:$11,Periods!$2:$2,AP167) -> 00:00:00 | AR167: =IF(OR(AQ167="",AQ167=0),"",MAX(AR$15:AR166)+1) ->  | AS167: 0
AP168: =MAX(AP$15:AP167)+1 -> 153 | AQ168: =SUMIFS(Periods!$11:$11,Periods!$2:$2,AP168) -> 00:00:00 | AR168: =IF(OR(AQ168="",AQ168=0),"",MAX(AR$15:AR167)+1) ->  | AS168: 0
AP169: =MAX(AP$15:AP168)+1 -> 154 | AQ169: =SUMIFS(Periods!$11:$11,Periods!$2:$2,AP169) -> 00:00:00 | AR169: =IF(OR(AQ169="",AQ169=0),"",MAX(AR$15:AR168)+1) ->  | AS169: 0
AP170: =MAX(AP$15:AP169)+1 -> 155 | AQ170: =SUMIFS(Periods!$11:$11,Periods!$2:$2,AP170) -> 00:00:00 | AR170: =IF(OR(AQ170="",AQ170=0),"",MAX(AR$15:AR169)+1) ->  | AS170: 0
AP171: =MAX(AP$15:AP170)+1 -> 156 | AQ171: =SUMIFS(Periods!$11:$11,Periods!$2:$2,AP171) -> 00:00:00 | AR171: =IF(OR(AQ171="",AQ171=0),"",MAX(AR$15:AR170)+1) ->  | AS171: 0
AP172: =MAX(AP$15:AP171)+1 -> 157 | AQ172: =SUMIFS(Periods!$11:$11,Periods!$2:$2,AP172) -> 00:00:00 | AR172: =IF(OR(AQ172="",AQ172=0),"",MAX(AR$15:AR171)+1) ->  | AS172: 0
AP173: =MAX(AP$15:AP172)+1 -> 158 | AQ173: =SUMIFS(Periods!$11:$11,Periods!$2:$2,AP173) -> 00:00:00 | AR173: =IF(OR(AQ173="",AQ173=0),"",MAX(AR$15:AR172)+1) ->  | AS173: 0
AP174: =MAX(AP$15:AP173)+1 -> 159 | AQ174: =SUMIFS(Periods!$11:$11,Periods!$2:$2,AP174) -> 00:00:00 | AR174: =IF(OR(AQ174="",AQ174=0),"",MAX(AR$15:AR173)+1) ->  | AS174: 0
AP175: =MAX(AP$15:AP174)+1 -> 160 | AQ175: =SUMIFS(Periods!$11:$11,Periods!$2:$2,AP175) -> 00:00:00 | AR175: =IF(OR(AQ175="",AQ175=0),"",MAX(AR$15:AR174)+1) ->  | AS175: 0
AP176: =MAX(AP$15:AP175)+1 -> 161 | AQ176: =SUMIFS(Periods!$11:$11,Periods!$2:$2,AP176) -> 00:00:00 | AR176: =IF(OR(AQ176="",AQ176=0),"",MAX(AR$15:AR175)+1) ->  | AS176: 0
AP177: =MAX(AP$15:AP176)+1 -> 162 | AQ177: =SUMIFS(Periods!$11:$11,Periods!$2:$2,AP177) -> 00:00:00 | AR177: =IF(OR(AQ177="",AQ177=0),"",MAX(AR$15:AR176)+1) ->  | AS177: 0
AP178: =MAX(AP$15:AP177)+1 -> 163 | AQ178: =SUMIFS(Periods!$11:$11,Periods!$2:$2,AP178) -> 00:00:00 | AR178: =IF(OR(AQ178="",AQ178=0),"",MAX(AR$15:AR177)+1) ->  | AS178: 0
AP179: =MAX(AP$15:AP178)+1 -> 164 | AQ179: =SUMIFS(Periods!$11:$11,Periods!$2:$2,AP179) -> 00:00:00 | AR179: =IF(OR(AQ179="",AQ179=0),"",MAX(AR$15:AR178)+1) ->  | AS179: 0
AP180: =MAX(AP$15:AP179)+1 -> 165 | AQ180: =SUMIFS(Periods!$11:$11,Periods!$2:$2,AP180) -> 00:00:00 | AR180: =IF(OR(AQ180="",AQ180=0),"",MAX(AR$15:AR179)+1) ->  | AS180: 0
AP181: =MAX(AP$15:AP180)+1 -> 166 | AQ181: =SUMIFS(Periods!$11:$11,Periods!$2:$2,AP181) -> 00:00:00 | AR181: =IF(OR(AQ181="",AQ181=0),"",MAX(AR$15:AR180)+1) ->  | AS181: 0
AP182: =MAX(AP$15:AP181)+1 -> 167 | AQ182: =SUMIFS(Periods!$11:$11,Periods!$2:$2,AP182) -> 00:00:00 | AR182: =IF(OR(AQ182="",AQ182=0),"",MAX(AR$15:AR181)+1) ->  | AS182: 0
AP183: =MAX(AP$15:AP182)+1 -> 168 | AQ183: =SUMIFS(Periods!$11:$11,Periods!$2:$2,AP183) -> 00:00:00 | AR183: =IF(OR(AQ183="",AQ183=0),"",MAX(AR$15:AR182)+1) ->  | AS183: 0
AP184: =MAX(AP$15:AP183)+1 -> 169 | AQ184: =SUMIFS(Periods!$11:$11,Periods!$2:$2,AP184) -> 00:00:00 | AR184: =IF(OR(AQ184="",AQ184=0),"",MAX(AR$15:AR183)+1) ->  | AS184: 0
AP185: =MAX(AP$15:AP184)+1 -> 170 | AQ185: =SUMIFS(Periods!$11:$11,Periods!$2:$2,AP185) -> 00:00:00 | AR185: =IF(OR(AQ185="",AQ185=0),"",MAX(AR$15:AR184)+1) ->  | AS185: 0
AP186: =MAX(AP$15:AP185)+1 -> 171 | AQ186: =SUMIFS(Periods!$11:$11,Periods!$2:$2,AP186) -> 00:00:00 | AR186: =IF(OR(AQ186="",AQ186=0),"",MAX(AR$15:AR185)+1) ->  | AS186: 0
AP187: =MAX(AP$15:AP186)+1 -> 172 | AQ187: =SUMIFS(Periods!$11:$11,Periods!$2:$2,AP187) -> 00:00:00 | AR187: =IF(OR(AQ187="",AQ187=0),"",MAX(AR$15:AR186)+1) ->  | AS187: 0
AP188: =MAX(AP$15:AP187)+1 -> 173 | AQ188: =SUMIFS(Periods!$11:$11,Periods!$2:$2,AP188) -> 00:00:00 | AR188: =IF(OR(AQ188="",AQ188=0),"",MAX(AR$15:AR187)+1) ->  | AS188: 0
AP189: =MAX(AP$15:AP188)+1 -> 174 | AQ189: =SUMIFS(Periods!$11:$11,Periods!$2:$2,AP189) -> 00:00:00 | AR189: =IF(OR(AQ189="",AQ189=0),"",MAX(AR$15:AR188)+1) ->  | AS189: 0
AP190: =MAX(AP$15:AP189)+1 -> 175 | AQ190: =SUMIFS(Periods!$11:$11,Periods!$2:$2,AP190) -> 00:00:00 | AR190: =IF(OR(AQ190="",AQ190=0),"",MAX(AR$15:AR189)+1) ->  | AS190: 0
AP191: =MAX(AP$15:AP190)+1 -> 176 | AQ191: =SUMIFS(Periods!$11:$11,Periods!$2:$2,AP191) -> 00:00:00 | AR191: =IF(OR(AQ191="",AQ191=0),"",MAX(AR$15:AR190)+1) ->  | AS191: 0
AP192: =MAX(AP$15:AP191)+1 -> 177 | AQ192: =SUMIFS(Periods!$11:$11,Periods!$2:$2,AP192) -> 00:00:00 | AR192: =IF(OR(AQ192="",AQ192=0),"",MAX(AR$15:AR191)+1) ->  | AS192: 0
AP193: =MAX(AP$15:AP192)+1 -> 178 | AQ193: =SUMIFS(Periods!$11:$11,Periods!$2:$2,AP193) -> 00:00:00 | AR193: =IF(OR(AQ193="",AQ193=0),"",MAX(AR$15:AR192)+1) ->  | AS193: 0
AP194: =MAX(AP$15:AP193)+1 -> 179 | AQ194: =SUMIFS(Periods!$11:$11,Periods!$2:$2,AP194) -> 00:00:00 | AR194: =IF(OR(AQ194="",AQ194=0),"",MAX(AR$15:AR193)+1) ->  | AS194: 0
AP195: =MAX(AP$15:AP194)+1 -> 180 | AQ195: =SUMIFS(Periods!$11:$11,Periods!$2:$2,AP195) -> 00:00:00 | AR195: =IF(OR(AQ195="",AQ195=0),"",MAX(AR$15:AR194)+1) ->  | AS195: 0
AP196: =MAX(AP$15:AP195)+1 -> 181 | AQ196: =SUMIFS(Periods!$11:$11,Periods!$2:$2,AP196) -> 00:00:00 | AR196: =IF(OR(AQ196="",AQ196=0),"",MAX(AR$15:AR195)+1) ->  | AS196: 0
AP197: =MAX(AP$15:AP196)+1 -> 182 | AQ197: =SUMIFS(Periods!$11:$11,Periods!$2:$2,AP197) -> 00:00:00 | AR197: =IF(OR(AQ197="",AQ197=0),"",MAX(AR$15:AR196)+1) ->  | AS197: 0
AP198: =MAX(AP$15:AP197)+1 -> 183 | AQ198: =SUMIFS(Periods!$11:$11,Periods!$2:$2,AP198) -> 00:00:00 | AR198: =IF(OR(AQ198="",AQ198=0),"",MAX(AR$15:AR197)+1) ->  | AS198: 0
AP199: =MAX(AP$15:AP198)+1 -> 184 | AQ199: =SUMIFS(Periods!$11:$11,Periods!$2:$2,AP199) -> 00:00:00 | AR199: =IF(OR(AQ199="",AQ199=0),"",MAX(AR$15:AR198)+1) ->  | AS199: 0
AP200: =MAX(AP$15:AP199)+1 -> 185 | AQ200: =SUMIFS(Periods!$11:$11,Periods!$2:$2,AP200) -> 00:00:00 | AR200: =IF(OR(AQ200="",AQ200=0),"",MAX(AR$15:AR199)+1) ->  | AS200: 0
AP201: =MAX(AP$15:AP200)+1 -> 186 | AQ201: =SUMIFS(Periods!$11:$11,Periods!$2:$2,AP201) -> 00:00:00 | AR201: =IF(OR(AQ201="",AQ201=0),"",MAX(AR$15:AR200)+1) ->  | AS201: 0
AP202: =MAX(AP$15:AP201)+1 -> 187 | AQ202: =SUMIFS(Periods!$11:$11,Periods!$2:$2,AP202) -> 00:00:00 | AR202: =IF(OR(AQ202="",AQ202=0),"",MAX(AR$15:AR201)+1) ->  | AS202: 0
AP203: =MAX(AP$15:AP202)+1 -> 188 | AQ203: =SUMIFS(Periods!$11:$11,Periods!$2:$2,AP203) -> 00:00:00 | AR203: =IF(OR(AQ203="",AQ203=0),"",MAX(AR$15:AR202)+1) ->  | AS203: 0
AP204: =MAX(AP$15:AP203)+1 -> 189 | AQ204: =SUMIFS(Periods!$11:$11,Periods!$2:$2,AP204) -> 00:00:00 | AR204: =IF(OR(AQ204="",AQ204=0),"",MAX(AR$15:AR203)+1) ->  | AS204: 0
AP205: =MAX(AP$15:AP204)+1 -> 190 | AQ205: =SUMIFS(Periods!$11:$11,Periods!$2:$2,AP205) -> 00:00:00 | AR205: =IF(OR(AQ205="",AQ205=0),"",MAX(AR$15:AR204)+1) ->  | AS205: 0
AP206: =MAX(AP$15:AP205)+1 -> 191 | AQ206: =SUMIFS(Periods!$11:$11,Periods!$2:$2,AP206) -> 00:00:00 | AR206: =IF(OR(AQ206="",AQ206=0),"",MAX(AR$15:AR205)+1) ->  | AS206: 0
AP207: =MAX(AP$15:AP206)+1 -> 192 | AQ207: =SUMIFS(Periods!$11:$11,Periods!$2:$2,AP207) -> 00:00:00 | AR207: =IF(OR(AQ207="",AQ207=0),"",MAX(AR$15:AR206)+1) ->  | AS207: 0
AP208: =MAX(AP$15:AP207)+1 -> 193 | AQ208: =SUMIFS(Periods!$11:$11,Periods!$2:$2,AP208) -> 00:00:00 | AR208: =IF(OR(AQ208="",AQ208=0),"",MAX(AR$15:AR207)+1) ->  | AS208: 0
... 207 more rows

Sheet Macro
Y1: номер столбца: | AA1: 27 | AB1: 28 | AC1: 29 | AD1: 30 | AE1: 31 | AF1: 32 | AG1: 33 | AH1: 34 | AI1: 35 | AJ1: 36 | AK1: 37 | AL1: 38 | AM1: 39 | AN1: 40 | AO1: 41 | AP1: 42 | AQ1: 43 | AR1: 44 | AS1: 45 | AT1: 46 | AU1: 47 | AV1: 48 | AW1: 49 | AX1: 50 | AY1: 51 | AZ1: 52 | BA1: 53 | BB1: 54 | BC1: 55 | BD1: 56 | BE1: 57 | BF1: 58 | BG1: 59 | BH1: 60 | BI1: 61 | BJ1: 62 | BK1: 63 | BL1: 64 | BM1: 65 | BN1: 66 | BO1: 67 | BP1: 68 | BQ1: 69 | BR1: 70 | BS1: 71 | BT1: 72 | BU1: 73 | BV1: 74 | BW1: 75 | BX1: 76 | BY1: 77 | BZ1: 78 | CA1: 79 | CB1: 80 | CC1: 81 | CD1: 82 | CE1: 83 | CF1: 84 | CG1: 85 | CH1: 86 | CI1: 87 | CJ1: 88 | CK1: 89 | CL1: 90 | CM1: 91 | CN1: 92 | CO1: 93 | CP1: 94 | CQ1: 95 | CR1: 96 | CS1: 97 | CT1: 98 | CU1: 99
Y2: номер периода модели: | AA2: 1 | AB2: 2 | AC2: 3 | AD2: 4 | AE2: 5 | AF2: 6 | AG2: 7 | AH2: 8 | AI2: 9 | AJ2: 10 | AK2: 11 | AL2: 12 | AM2: 13 | AN2: 14 | AO2: 15 | AP2: 16 | AQ2: 17 | AR2: 18 | AS2: 19 | AT2: 20 | AU2: 21 | AV2: 22 | AW2: 23 | AX2: 24 | AY2: 25 | AZ2: 26 | BA2: 27 | BB2: 28 | BC2: 29 | BD2: 30 | BE2: 31 | BF2: 32 | BG2: 33 | BH2: 34 | BI2: 35 | BJ2: 36 | BK2: 37 | BL2: 38 | BM2: 39 | BN2: 40 | BO2: 41 | BP2: 42 | BQ2: 43 | BR2: 44 | BS2: 45 | BT2: 46 | BU2: 47 | BV2: 48 | BW2: 49 | BX2: 50 | BY2: 51 | BZ2: 52 | CA2: 53 | CB2: 54 | CC2: 55 | CD2: 56 | CE2: 57 | CF2: 58 | CG2: 59 | CH2: 60 | CI2: 61 | CJ2: 62 | CK2: 63 | CL2: 64 | CM2: 65 | CN2: 66 | CO2: 67 | CP2: 68 | CQ2: 69 | CR2: 70 | CS2: 71 | CT2: 72 | CU2: 73
Y3: номер факт-периода:
Y4: номер план-периода: | AA4: 1 | AB4: 2 | AC4: 3 | AD4: 4 | AE4: 5 | AF4: 6 | AG4: 7 | AH4: 8 | AI4: 9 | AJ4: 10 | AK4: 11 | AL4: 12 | AM4: 13 | AN4: 14 | AO4: 15 | AP4: 16 | AQ4: 17 | AR4: 18 | AS4: 19 | AT4: 20 | AU4: 21 | AV4: 22 | AW4: 23 | AX4: 24 | AY4: 25 | AZ4: 26 | BA4: 27 | BB4: 28 | BC4: 29 | BD4: 30 | BE4: 31 | BF4: 32 | BG4: 33 | BH4: 34 | BI4: 35 | BJ4: 36 | BK4: 37 | BL4: 38 | BM4: 39 | BN4: 40 | BO4: 41 | BP4: 42 | BQ4: 43 | BR4: 44 | BS4: 45 | BT4: 46 | BU4: 47 | BV4: 48 | BW4: 49 | BX4: 50 | BY4: 51 | BZ4: 52 | CA4: 53 | CB4: 54 | CC4: 55 | CD4: 56 | CE4: 57 | CF4: 58 | CG4: 59 | CH4: 60
Y5: число даты начала: | AA5: 1 | AB5: 1 | AC5: 1 | AD5: 1 | AE5: 1 | AF5: 1 | AG5: 1 | AH5: 1 | AI5: 1 | AJ5: 1 | AK5: 1 | AL5: 1 | AM5: 1 | AN5: 1 | AO5: 1 | AP5: 1 | AQ5: 1 | AR5: 1 | AS5: 1 | AT5: 1 | AU5: 1 | AV5: 1 | AW5: 1 | AX5: 1 | AY5: 1 | AZ5: 1 | BA5: 1 | BB5: 1 | BC5: 1 | BD5: 1 | BE5: 1 | BF5: 1 | BG5: 1 | BH5: 1 | BI5: 1 | BJ5: 1 | BK5: 1 | BL5: 1 | BM5: 1 | BN5: 1 | BO5: 1 | BP5: 1 | BQ5: 1 | BR5: 1 | BS5: 1 | BT5: 1 | BU5: 1 | BV5: 1 | BW5: 1 | BX5: 1 | BY5: 1 | BZ5: 1 | CA5: 1 | CB5: 1 | CC5: 1 | CD5: 1 | CE5: 1 | CF5: 1 | CG5: 1 | CH5: 1
Y6: номер месяца даты начала: | AA6: 5 | AB6: 6 | AC6: 7 | AD6: 8 | AE6: 9 | AF6: 10 | AG6: 11 | AH6: 12 | AI6: 1 | AJ6: 2 | AK6: 3 | AL6: 4 | AM6: 5 | AN6: 6 | AO6: 7 | AP6: 8 | AQ6: 9 | AR6: 10 | AS6: 11 | AT6: 12 | AU6: 1 | AV6: 2 | AW6: 3 | AX6: 4 | AY6: 5 | AZ6: 6 | BA6: 7 | BB6: 8 | BC6: 9 | BD6: 10 | BE6: 11 | BF6: 12 | BG6: 1 | BH6: 2 | BI6: 3 | BJ6: 4 | BK6: 5 | BL6: 6 | BM6: 7 | BN6: 8 | BO6: 9 | BP6: 10 | BQ6: 11 | BR6: 12 | BS6: 1 | BT6: 2 | BU6: 3 | BV6: 4 | BW6: 5 | BX6: 6 | BY6: 7 | BZ6: 8 | CA6: 9 | CB6: 10 | CC6: 11 | CD6: 12 | CE6: 1 | CF6: 2 | CG6: 3 | CH6: 4
Y7: год даты начала: | AA7: 21 | AB7: 21 | AC7: 21 | AD7: 21 | AE7: 21 | AF7: 21 | AG7: 21 | AH7: 21 | AI7: 22 | AJ7: 22 | AK7: 22 | AL7: 22 | AM7: 22 | AN7: 22 | AO7: 22 | AP7: 22 | AQ7: 22 | AR7: 22 | AS7: 22 | AT7: 22 | AU7: 23 | AV7: 23 | AW7: 23 | AX7: 23 | AY7: 23 | AZ7: 23 | BA7: 23 | BB7: 23 | BC7: 23 | BD7: 23 | BE7: 23 | BF7: 23 | BG7: 24 | BH7: 24 | BI7: 24 | BJ7: 24 | BK7: 24 | BL7: 24 | BM7: 24 | BN7: 24 | BO7: 24 | BP7: 24 | BQ7: 24 | BR7: 24 | BS7: 25 | BT7: 25 | BU7: 25 | BV7: 25 | BW7: 25 | BX7: 25 | BY7: 25 | BZ7: 25 | CA7: 25 | CB7: 25 | CC7: 25 | CD7: 25 | CE7: 26 | CF7: 26 | CG7: 26 | CH7: 26
Y8: число даты окончания: | AA8: 31 | AB8: 30 | AC8: 31 | AD8: 31 | AE8: 30 | AF8: 31 | AG8: 30 | AH8: 31 | AI8: 31 | AJ8: 28 | AK8: 31 | AL8: 30 | AM8: 31 | AN8: 30 | AO8: 31 | AP8: 31 | AQ8: 30 | AR8: 31 | AS8: 30 | AT8: 31 | AU8: 31 | AV8: 28 | AW8: 31 | AX8: 30 | AY8: 31 | AZ8: 30 | BA8: 31 | BB8: 31 | BC8: 30 | BD8: 31 | BE8: 30 | BF8: 31 | BG8: 31 | BH8: 29 | BI8: 31 | BJ8: 30 | BK8: 31 | BL8: 30 | BM8: 31 | BN8: 31 | BO8: 30 | BP8: 31 | BQ8: 30 | BR8: 31 | BS8: 31 | BT8: 28 | BU8: 31 | BV8: 30 | BW8: 31 | BX8: 30 | BY8: 31 | BZ8: 31 | CA8: 30 | CB8: 31 | CC8: 30 | CD8: 31 | CE8: 31 | CF8: 28 | CG8: 31 | CH8: 30
Y9: номер месяца даты окончания: | AA9: 5 | AB9: 6 | AC9: 7 | AD9: 8 | AE9: 9 | AF9: 10 | AG9: 11 | AH9: 12 | AI9: 1 | AJ9: 2 | AK9: 3 | AL9: 4 | AM9: 5 | AN9: 6 | AO9: 7 | AP9: 8 | AQ9: 9 | AR9: 10 | AS9: 11 | AT9: 12 | AU9: 1 | AV9: 2 | AW9: 3 | AX9: 4 | AY9: 5 | AZ9: 6 | BA9: 7 | BB9: 8 | BC9: 9 | BD9: 10 | BE9: 11 | BF9: 12 | BG9: 1 | BH9: 2 | BI9: 3 | BJ9: 4 | BK9: 5 | BL9: 6 | BM9: 7 | BN9: 8 | BO9: 9 | BP9: 10 | BQ9: 11 | BR9: 12 | BS9: 1 | BT9: 2 | BU9: 3 | BV9: 4 | BW9: 5 | BX9: 6 | BY9: 7 | BZ9: 8 | CA9: 9 | CB9: 10 | CC9: 11 | CD9: 12 | CE9: 1 | CF9: 2 | CG9: 3 | CH9: 4
Y10: год даты окончания: | AA10: 21 | AB10: 21 | AC10: 21 | AD10: 21 | AE10: 21 | AF10: 21 | AG10: 21 | AH10: 21 | AI10: 22 | AJ10: 22 | AK10: 22 | AL10: 22 | AM10: 22 | AN10: 22 | AO10: 22 | AP10: 22 | AQ10: 22 | AR10: 22 | AS10: 22 | AT10: 22 | AU10: 23 | AV10: 23 | AW10: 23 | AX10: 23 | AY10: 23 | AZ10: 23 | BA10: 23 | BB10: 23 | BC10: 23 | BD10: 23 | BE10: 23 | BF10: 23 | BG10: 24 | BH10: 24 | BI10: 24 | BJ10: 24 | BK10: 24 | BL10: 24 | BM10: 24 | BN10: 24 | BO10: 24 | BP10: 24 | BQ10: 24 | BR10: 24 | BS10: 25 | BT10: 25 | BU10: 25 | BV10: 25 | BW10: 25 | BX10: 25 | BY10: 25 | BZ10: 25 | CA10: 25 | CB10: 25 | CC10: 25 | CD10: 25 | CE10: 26 | CF10: 26 | CG10: 26 | CH10: 26
F11: Macro | I11: Макропоказатели внешней среды | X11: 2021-05-01 | AA11: 2021-05-01 | AB11: 2021-06-01 | AC11: 2021-07-01 | AD11: 2021-08-01 | AE11: 2021-09-01 | AF11: 2021-10-01 | AG11: 2021-11-01 | AH11: 2021-12-01 | AI11: 2022-01-01 | AJ11: 2022-02-01 | AK11: 2022-03-01 | AL11: 2022-04-01 | AM11: 2022-05-01 | AN11: 2022-06-01 | AO11: 2022-07-01 | AP11: 2022-08-01 | AQ11: 2022-09-01 | AR11: 2022-10-01 | AS11: 2022-11-01 | AT11: 2022-12-01 | AU11: 2023-01-01 | AV11: 2023-02-01 | AW11: 2023-03-01 | AX11: 2023-04-01 | AY11: 2023-05-01 | AZ11: 2023-06-01 | BA11: 2023-07-01 | BB11: 2023-08-01 | BC11: 2023-09-01 | BD11: 2023-10-01 | BE11: 2023-11-01 | BF11: 2023-12-01 | BG11: 2024-01-01 | BH11: 2024-02-01 | BI11: 2024-03-01 | BJ11: 2024-04-01 | BK11: 2024-05-01 | BL11: 2024-06-01 | BM11: 2024-07-01 | BN11: 2024-08-01 | BO11: 2024-09-01 | BP11: 2024-10-01 | BQ11: 2024-11-01 | BR11: 2024-12-01 | BS11: 2025-01-01 | BT11: 2025-02-01 | BU11: 2025-03-01 | BV11: 2025-04-01 | BW11: 2025-05-01 | BX11: 2025-06-01 | BY11: 2025-07-01 | BZ11: 2025-08-01 | CA11: 2025-09-01 | CB11: 2025-10-01 | CC11: 2025-11-01 | CD11: 2025-12-01 | CE11: 2026-01-01 | CF11: 2026-02-01 | CG11: 2026-03-01 | CH11: 2026-04-01
H12: тип листа | Q12: расчетный | X12: 2026-04-30 | AA12: 2021-05-31 | AB12: 2021-06-30 | AC12: 2021-07-31 | AD12: 2021-08-31 | AE12: 2021-09-30 | AF12: 2021-10-31 | AG12: 2021-11-30 | AH12: 2021-12-31 | AI12: 2022-01-31 | AJ12: 2022-02-28 | AK12: 2022-03-31 | AL12: 2022-04-30 | AM12: 2022-05-31 | AN12: 2022-06-30 | AO12: 2022-07-31 | AP12: 2022-08-31 | AQ12: 2022-09-30 | AR12: 2022-10-31 | AS12: 2022-11-30 | AT12: 2022-12-31 | AU12: 2023-01-31 | AV12: 2023-02-28 | AW12: 2023-03-31 | AX12: 2023-04-30 | AY12: 2023-05-31 | AZ12: 2023-06-30 | BA12: 2023-07-31 | BB12: 2023-08-31 | BC12: 2023-09-30 | BD12: 2023-10-31 | BE12: 2023-11-30 | BF12: 2023-12-31 | BG12: 2024-01-31 | BH12: 2024-02-29 | BI12: 2024-03-31 | BJ12: 2024-04-30 | BK12: 2024-05-31 | BL12: 2024-06-30 | BM12: 2024-07-31 | BN12: 2024-08-31 | BO12: 2024-09-30 | BP12: 2024-10-31 | BQ12: 2024-11-30 | BR12: 2024-12-31 | BS12: 2025-01-31 | BT12: 2025-02-28 | BU12: 2025-03-31 | BV12: 2025-04-30 | BW12: 2025-05-31 | BX12: 2025-06-30 | BY12: 2025-07-31 | BZ12: 2025-08-31 | CA12: 2025-09-30 | CB12: 2025-10-31 | CC12: 2025-11-30 | CD12: 2025-12-31 | CE12: 2026-01-31 | CF12: 2026-02-28 | CG12: 2026-03-31 | CH12: 2026-04-30
H13: показатель | M13: ед.изм. | Q13: значение | X13: итого | AA13: 2021-05-01 | AB13: 2021-06-01 | AC13: 2021-07-01 | AD13: 2021-08-01 | AE13: 2021-09-01 | AF13: 2021-10-01 | AG13: 2021-11-01 | AH13: 2021-12-01 | AI13: 2022-01-01 | AJ13: 2022-02-01 | AK13: 2022-03-01 | AL13: 2022-04-01 | AM13: 2022-05-01 | AN13: 2022-06-01 | AO13: 2022-07-01 | AP13: 2022-08-01 | AQ13: 2022-09-01 | AR13: 2022-10-01 | AS13: 2022-11-01 | AT13: 2022-12-01 | AU13: 2023-01-01 | AV13: 2023-02-01 | AW13: 2023-03-01 | AX13: 2023-04-01 | AY13: 2023-05-01 | AZ13: 2023-06-01 | BA13: 2023-07-01 | BB13: 2023-08-01 | BC13: 2023-09-01 | BD13: 2023-10-01 | BE13: 2023-11-01 | BF13: 2023-12-01 | BG13: 2024-01-01 | BH13: 2024-02-01 | BI13: 2024-03-01 | BJ13: 2024-04-01 | BK13: 2024-05-01 | BL13: 2024-06-01 | BM13: 2024-07-01 | BN13: 2024-08-01 | BO13: 2024-09-01 | BP13: 2024-10-01 | BQ13: 2024-11-01 | BR13: 2024-12-01 | BS13: 2025-01-01 | BT13: 2025-02-01 | BU13: 2025-03-01 | BV13: 2025-04-01 | BW13: 2025-05-01 | BX13: 2025-06-01 | BY13: 2025-07-01 | BZ13: 2025-08-01 | CA13: 2025-09-01 | CB13: 2025-10-01 | CC13: 2025-11-01 | CD13: 2025-12-01 | CE13: 2026-01-01 | CF13: 2026-02-01 | CG13: 2026-03-01 | CH13: 2026-04-01
D14: 0 | E14: 0 | F14: 0 | G14: 0 | S14: 0 | T14: 0
A15: 15
A16: 16 | G16: 0 | H16: Параметры рабочего дня сотрудника
A17: 17 | G17: 0 | H17: Параметры рабочего дня сотрудника | I17: Время одной смены рабочего дня | M17: кол-во часов | P17: * | Q17: 8 | S17: 0
A18: 18 | G18: 0 | H18: Параметры рабочего дня сотрудника | I18: Количество рабочих дней в месяце | M18: р.дней/мес. | P18: * | Q18: 20 | S18: 0
A19: 19 | G19: 0 | H19: Параметры рабочего дня сотрудника | I19: Количество рабочих дней в расчетном периоде | M19: р.дней/расч.пер. | Q19: 20 | S19: 0
A20: 20 | G20: 0 | H20: Параметры рабочего дня сотрудника | I20: Количество рабочих часов в расчетном периоде | M20: р.часов/расч.пер. | Q20: 160 | S20: 0
A21: 21
A22: 22 | G22: 0 | H22: Система налогообложения | AA22: ТОСЭР | AB22: ТОСЭР | AC22: ТОСЭР | AD22: ТОСЭР | AE22: ТОСЭР | AF22: ТОСЭР | AG22: ТОСЭР | AH22: ТОСЭР | AI22: ТОСЭР | AJ22: ТОСЭР | AK22: ТОСЭР | AL22: ТОСЭР | AM22: ТОСЭР | AN22: ТОСЭР | AO22: ТОСЭР | AP22: ТОСЭР | AQ22: ТОСЭР | AR22: ТОСЭР | AS22: ТОСЭР | AT22: ТОСЭР | AU22: ТОСЭР | AV22: ТОСЭР | AW22: ТОСЭР | AX22: ТОСЭР | AY22: ТОСЭР | AZ22: ТОСЭР | BA22: ТОСЭР | BB22: ТОСЭР | BC22: ТОСЭР | BD22: ТОСЭР | BE22: ТОСЭР | BF22: ТОСЭР | BG22: ТОСЭР | BH22: ТОСЭР | BI22: ТОСЭР | BJ22: ТОСЭР | BK22: ТОСЭР | BL22: ТОСЭР | BM22: ТОСЭР | BN22: ТОСЭР | BO22: ТОСЭР | BP22: ТОСЭР | BQ22: ТОСЭР | BR22: ТОСЭР | BS22: ТОСЭР | BT22: ТОСЭР | BU22: ТОСЭР | BV22: ТОСЭР | BW22: ТОСЭР | BX22: ТОСЭР | BY22: ТОСЭР | BZ22: ТОСЭР | CA22: ТОСЭР | CB22: ТОСЭР | CC22: ТОСЭР | CD22: ТОСЭР | CE22: ТОСЭР | CF22: ТОСЭР | CG22: ТОСЭР | CH22: ТОСЭР
A23: 23 | G23: 0 | H23: Система налогообложения | I23: Единое значение для всех периодов расчета | M23: вып.список | P23: * | Q23: ТОСЭР | R23: ^ | S23: 0
A24: 24 | G24: 0 | H24: Система налогообложения | I24: Вручную для каждого периода расчетов | M24: вып.список | Y24: *
A25: 25 | G25: 0 | H25: Система налогообложения | I25: г | J25: 2021 | M25: вып.список | P25: * | R25: ^ | S25: 0
A26: 26 | G26: 0 | H26: Система налогообложения | I26: г | J26: 2022 | M26: вып.список | P26: * | R26: ^ | S26: 0
A27: 27 | G27: 0 | H27: Система налогообложения | I27: г | J27: 2023 | M27: вып.список | P27: * | R27: ^ | S27: 0
A28: 28 | G28: 0 | H28: Система налогообложения | I28: г | J28: 2024 | M28: вып.список | P28: * | R28: ^ | S28: 0
A29: 29 | L29: пустая строка
A30: 30
A31: 31 | G31: 0 | H31: Ставки налога на прибыль
A32: 32 | G32: 0 | H32: Ставки налога на прибыль | I32: ОСНО | M32: % | P32: * | Q32: 0.2 | S32: 0
A33: 33 | G33: 0 | H33: Ставки налога на прибыль | I33: УСН(6%) | M33: % | P33: * | Q33: 0.06 | S33: 0
A34: 34 | G34: 0 | H34: Ставки налога на прибыль | I34: УСН(6%) | J34: ограничения суммы НП на вычет соцсборов | M34: % | P34: * | Q34: 0.5 | S34: 0
A35: 35 | G35: 0 | H35: Ставки налога на прибыль | I35: УСН(15%) | M35: % | P35: * | Q35: 0.15 | S35: 0
A36: 36 | G36: 0 | H36: Ставки налога на прибыль | I36: УСН(15%) | J36: минимальный процент от дохода | M36: % | P36: * | Q36: 0.01 | S36: 0
A37: 37 | G37: 0 | H37: Ставки налога на прибыль | I37: ТОСЭР | M37: %
A38: 38 | G38: 0 | H38: Ставки налога на прибыль | I38: г | J38: 5 | M38: % | P38: * | Q38: 0 | S38: 0
A39: 39 | G39: 0 | H39: Ставки налога на прибыль | I39: г | J39: 10 | M39: % | P39: * | Q39: 0.12 | S39: 0
A40: 40 | L40: пустая строка
A41: 41
A42: 42 | G42: 0 | H42: Ставки НДС
A43: 43 | G43: 0 | H43: Ставки НДС | I43: ОСНО | M43: % | P43: * | Q43: 0.2 | S43: 0
A44: 44 | G44: 0 | H44: Ставки НДС | I44: УСН(6%) | M44: % | P44: * | Q44: 0 | S44: 0
A45: 45 | G45: 0 | H45: Ставки НДС | I45: УСН(15%) | M45: % | P45: * | Q45: 0 | S45: 0
A46: 46 | G46: 0 | H46: Ставки НДС | I46: ТОСЭР | M46: %
A47: 47 | G47: 0 | H47: Ставки НДС | I47: г | J47: 5 | M47: % | P47: * | Q47: 0.2 | S47: 0
A48: 48 | G48: 0 | H48: Ставки НДС | I48: г | J48: 10 | M48: % | P48: * | Q48: 0.2 | S48: 0
A49: 49 | L49: пустая строка
A50: 50
A51: 51 | G51: 0 | H51: Ставки соцсборов
A52: 52 | G52: 0 | H52: Ставки соцсборов | I52: ОСНО | M52: % | P52: * | Q52: 0.3 | S52: 0
A53: 53 | G53: 0 | H53: Ставки соцсборов | I53: УСН(6%) | M53: % | P53: * | Q53: 0.3 | S53: 0
A54: 54 | G54: 0 | H54: Ставки соцсборов | I54: УСН(15%) | M54: % | P54: * | Q54: 0.3 | S54: 0
A55: 55 | G55: 0 | H55: Ставки соцсборов | I55: ТОСЭР | M55: %
A56: 56 | G56: 0 | H56: Ставки соцсборов | I56: г | J56: 5 | M56: % | P56: * | Q56: 0.076 | S56: 0
A57: 57 | G57: 0 | H57: Ставки соцсборов | I57: г | J57: 10 | M57: % | P57: * | Q57: 0.076 | S57: 0
A58: 58 | L58: пустая строка
A59: 59
A60: 60 | G60: 0 | H60: Ставки земельного налога | AA60: 0 | AB60: 0 | AC60: 0 | AD60: 0 | AE60: 0 | AF60: 0 | AG60: 0 | AH60: 0 | AI60: 0 | AJ60: 0 | AK60: 0 | AL60: 0 | AM60: 0 | AN60: 0 | AO60: 0 | AP60: 0 | AQ60: 0 | AR60: 0 | AS60: 0 | AT60: 0 | AU60: 0 | AV60: 0 | AW60: 0 | AX60: 0 | AY60: 0 | AZ60: 0 | BA60: 0 | BB60: 0 | BC60: 0 | BD60: 0 | BE60: 0 | BF60: 0 | BG60: 0 | BH60: 0 | BI60: 0 | BJ60: 0 | BK60: 0 | BL60: 0 | BM60: 0 | BN60: 0 | BO60: 0 | BP60: 0 | BQ60: 0 | BR60: 0 | BS60: 0 | BT60: 0 | BU60: 0 | BV60: 0 | BW60: 0 | BX60: 0 | BY60: 0 | BZ60: 0 | CA60: 0 | CB60: 0 | CC60: 0 | CD60: 0 | CE60: 0 | CF60: 0 | CG60: 0 | CH60: 0 | CI60: 0.015 | CJ60: 0.015 | CK60: 0.015 | CL60: 0.015 | CM60: 0.015 | CN60: 0.015 | CO60: 0.015 | CP60: 0.015 | CQ60: 0.015 | CR60: 0.015 | CS60: 0.015 | CT60: 0.015 | CU60: 0.015
A61: 61 | G61: 0 | H61: Ставки земельного налога | I61: ОСНО | M61: % | P61: * | Q61: 0.015 | S61: 0
A62: 62 | G62: 0 | H62: Ставки земельного налога | I62: УСН(6%) | M62: % | P62: * | Q62: 0.015 | S62: 0
A63: 63 | G63: 0 | H63: Ставки земельного налога | I63: УСН(15%) | M63: % | P63: * | Q63: 0.015 | S63: 0
A64: 64 | G64: 0 | H64: Ставки земельного налога | I64: ТОСЭР | M64: %
A65: 65 | G65: 0 | H65: Ставки земельного налога | I65: г | J65: 5 | M65: % | P65: * | Q65: 0 | S65: 0
A66: 66 | G66: 0 | H66: Ставки земельного налога | I66: г | J66: 20 | M66: % | P66: * | Q66: 0 | S66: 0
A67: 67 | L67: пустая строка
A68: 68
A69: 69 | G69: 0 | H69: Ставки налога на имущество | AA69: 0 | AB69: 0 | AC69: 0 | AD69: 0 | AE69: 0 | AF69: 0 | AG69: 0 | AH69: 0 | AI69: 0 | AJ69: 0 | AK69: 0 | AL69: 0 | AM69: 0 | AN69: 0 | AO69: 0 | AP69: 0 | AQ69: 0 | AR69: 0 | AS69: 0 | AT69: 0 | AU69: 0 | AV69: 0 | AW69: 0 | AX69: 0 | AY69: 0 | AZ69: 0 | BA69: 0 | BB69: 0 | BC69: 0 | BD69: 0 | BE69: 0 | BF69: 0 | BG69: 0 | BH69: 0 | BI69: 0 | BJ69: 0 | BK69: 0 | BL69: 0 | BM69: 0 | BN69: 0 | BO69: 0 | BP69: 0 | BQ69: 0 | BR69: 0 | BS69: 0 | BT69: 0 | BU69: 0 | BV69: 0 | BW69: 0 | BX69: 0 | BY69: 0 | BZ69: 0 | CA69: 0 | CB69: 0 | CC69: 0 | CD69: 0 | CE69: 0 | CF69: 0 | CG69: 0 | CH69: 0 | CI69: 0.015 | CJ69: 0.015 | CK69: 0.015 | CL69: 0.015 | CM69: 0.015 | CN69: 0.015 | CO69: 0.015 | CP69: 0.015 | CQ69: 0.015 | CR69: 0.015 | CS69: 0.015 | CT69: 0.015 | CU69: 0.015
A70: 70 | G70: 0 | H70: Ставки налога на имущество | I70: ОСНО | M70: % | P70: * | Q70: 0.015 | S70: 0
A71: 71 | G71: 0 | H71: Ставки налога на имущество | I71: УСН(6%) | M71: % | P71: * | Q71: 0.015 | S71: 0
A72: 72 | G72: 0 | H72: Ставки налога на имущество | I72: УСН(15%) | M72: % | P72: * | Q72: 0.015 | S72: 0
A73: 73 | G73: 0 | H73: Ставки налога на имущество | I73: ТОСЭР | M73: %
A74: 74 | G74: 0 | H74: Ставки налога на имущество | I74: г | J74: 5 | M74: % | P74: * | Q74: 0 | S74: 0
A75: 75 | G75: 0 | H75: Ставки налога на имущество | I75: г | J75: 20 | M75: % | P75: * | Q75: 0 | S75: 0
A76: 76 | L76: пустая строка
A77: 77
A78: 78 | G78: 0 | H78: Ставки транспортного налога | AA78: 0 | AB78: 0 | AC78: 0 | AD78: 0 | AE78: 0 | AF78: 0 | AG78: 0 | AH78: 0 | AI78: 0 | AJ78: 0 | AK78: 0 | AL78: 0 | AM78: 0 | AN78: 0 | AO78: 0 | AP78: 0 | AQ78: 0 | AR78: 0 | AS78: 0 | AT78: 0 | AU78: 0 | AV78: 0 | AW78: 0 | AX78: 0 | AY78: 0 | AZ78: 0 | BA78: 0 | BB78: 0 | BC78: 0 | BD78: 0 | BE78: 0 | BF78: 0 | BG78: 0 | BH78: 0 | BI78: 0 | BJ78: 0 | BK78: 0 | BL78: 0 | BM78: 0 | BN78: 0 | BO78: 0 | BP78: 0 | BQ78: 0 | BR78: 0 | BS78: 0 | BT78: 0 | BU78: 0 | BV78: 0 | BW78: 0 | BX78: 0 | BY78: 0 | BZ78: 0 | CA78: 0 | CB78: 0 | CC78: 0 | CD78: 0 | CE78: 0 | CF78: 0 | CG78: 0 | CH78: 0 | CI78: 0.0045 | CJ78: 0.0045 | CK78: 0.0045 | CL78: 0.0045 | CM78: 0.0045 | CN78: 0.0045 | CO78: 0.0045 | CP78: 0.0045 | CQ78: 0.0045 | CR78: 0.0045 | CS78: 0.0045 | CT78: 0.0045 | CU78: 0.0045
A79: 79 | G79: 0 | H79: Ставки транспортного налога | I79: ОСНО | M79: % | P79: * | Q79: 0.0045 | S79: 0
A80: 80 | G80: 0 | H80: Ставки транспортного налога | I80: УСН(6%) | M80: % | P80: * | Q80: 0.0045 | S80: 0
A81: 81 | G81: 0 | H81: Ставки транспортного налога | I81: УСН(15%) | M81: % | P81: * | Q81: 0.0045 | S81: 0
A82: 82 | G82: 0 | H82: Ставки транспортного налога | I82: ТОСЭР | M82: %
A83: 83 | G83: 0 | H83: Ставки транспортного налога | I83: г | J83: 5 | M83: % | P83: * | Q83: 0 | S83: 0
A84: 84 | G84: 0 | H84: Ставки транспортного налога | I84: г | J84: 20 | M84: % | P84: * | Q84: 0 | S84: 0
A85: 85 | L85: пустая строка
A86: 86
A87: 87 | G87: 0 | H87: НДС к возмещению по капзатратам
A88: 88 | G88: 0 | H88: НДС к возмещению по капзатратам | I88: кол-во месяцев на возмещение НДС | M88: кол-во мес. | P88: * | Q88: 7 | S88: 0

Sheet Items
I1: =COLUMN() -> 9 | M1: =COLUMN() -> 13 | Q1: =COLUMN() -> 17 | AD1: =COLUMN() -> 30 | AH1: =COLUMN() -> 34 | AL1: =COLUMN() -> 38 | AN1: =COLUMN() -> 40 | AQ1: =COLUMN() -> 43 | AU1: =COLUMN() -> 47 | BC1: =COLUMN() -> 55 | BG1: =COLUMN() -> 59 | BK1: =COLUMN() -> 63 | BO1: =COLUMN() -> 67 | BS1: =COLUMN() -> 71
I2: =LEFT(ADDRESS(1,COLUMN(),4),LEN(ADDRESS(1,COLUMN(),4))-1) -> I | M2: =LEFT(ADDRESS(1,COLUMN(),4),LEN(ADDRESS(1,COLUMN(),4))-1) -> M | Q2: =LEFT(ADDRESS(1,COLUMN(),4),LEN(ADDRESS(1,COLUMN(),4))-1) -> Q | AD2: =LEFT(ADDRESS(1,COLUMN(),4),LEN(ADDRESS(1,COLUMN(),4))-1) -> AD | AH2: =LEFT(ADDRESS(1,COLUMN(),4),LEN(ADDRESS(1,COLUMN(),4))-1) -> AH | AL2: =LEFT(ADDRESS(1,COLUMN(),4),LEN(ADDRESS(1,COLUMN(),4))-1) -> AL | AN2: =LEFT(ADDRESS(1,COLUMN(),4),LEN(ADDRESS(1,COLUMN(),4))-1) -> AN | AQ2: =LEFT(ADDRESS(1,COLUMN(),4),LEN(ADDRESS(1,COLUMN(),4))-1) -> AQ | AU2: =LEFT(ADDRESS(1,COLUMN(),4),LEN(ADDRESS(1,COLUMN(),4))-1) -> AU | BC2: =LEFT(ADDRESS(1,COLUMN(),4),LEN(ADDRESS(1,COLUMN(),4))-1) -> BC | BG2: =LEFT(ADDRESS(1,COLUMN(),4),LEN(ADDRESS(1,COLUMN(),4))-1) -> BG | BK2: =LEFT(ADDRESS(1,COLUMN(),4),LEN(ADDRESS(1,COLUMN(),4))-1) -> BK | BO2: =LEFT(ADDRESS(1,COLUMN(),4),LEN(ADDRESS(1,COLUMN(),4))-1) -> BO | BS2: =LEFT(ADDRESS(1,COLUMN(),4),LEN(ADDRESS(1,COLUMN(),4))-1) -> BS
F11: =INDIRECT("START!I30") -> Items | I11: =INDIRECT("START!K30") -> Справочники статей доходов и расходов и т.д.
I12: =START!$I$32 -> Mrkting | M12: =START!$I$32 -> Mrkting | Q12: =START!$I$32 -> Mrkting | AD12: =START!$I$34 -> Sales | AH12: =START!$I$34 -> Sales | AL12: =START!$I$35 -> Prdction | AN12: =START!$I$35 -> Prdction | AQ12: =START!$I$35 -> Prdction | AU12: =START!$I$33 -> CapEx | BC12: =START!$I$37 -> Exp | BG12: =START!$I$36 -> HR | BK12: =START!$I$54 -> Calc | BO12: =START!$I$54 -> Calc | BS12: =START!$I$54 -> Calc
I13: Капитальные затраты маркетинга | M13: Прямые переменные расходы маркетинга | Q13: Прямые постоянные расходы маркетинга | AD13: Прямые переменные коммерческие расходы | AH13: Прямые постоянные расходы отдела продаж | AL13: Прямые производственные расходы | AN13: ед.изм. | AQ13: Постоянные производственные расходы | AU13: Капитальные затраты | BC13: Постоянные расходы | BG13: Расходы на персонал | BK13: Статьи Баланса | BO13: Статьи отчета о прибылях и убытках | BS13: Статьи отчета о ДДС
D14: =INDIRECT("Cntrl!M17") -> 0 | E14: =SUM($F14:$PM14) -> 0 | F14: =IFERROR(_xlfn.SHEET($A$1)-SUMIFS(Cntrl!O$15:O$100000,Cntrl!I$15:I$100000,$F$11),1) -> 0 | I14: =IF(OR(I13=0,I13=""),1,IF(COUNTIF(13:13,I13)=1,0,1)) -> 0 | K14: =SUM(K$15:K$100000) -> 0 | M14: =IF(OR(M13=0,M13=""),1,IF(COUNTIF(13:13,M13)=1,0,1)) -> 0 | O14: =SUM(O$15:O$100000) -> 0 | Q14: =IF(OR(Q13=0,Q13=""),1,IF(COUNTIF(13:13,Q13)=1,0,1)) -> 0 | S14: =SUM(S$15:S$100000) -> 0 | AD14: =IF(OR(AD13=0,AD13=""),1,IF(COUNTIF(13:13,AD13)=1,0,1)) -> 0 | AF14: =SUM(AF$15:AF$100000) -> 0 | AH14: =IF(OR(AH13=0,AH13=""),1,IF(COUNTIF(13:13,AH13)=1,0,1)) -> 0 | AJ14: =SUM(AJ$15:AJ$100000) -> 0 | AL14: =IF(OR(AL13=0,AL13=""),1,IF(COUNTIF(13:13,AL13)=1,0,1)) -> 0 | AN14: =IF(OR(AN13=0,AN13=""),1,IF(COUNTIF(13:13,AN13)=1,0,1)) -> 0 | AO14: =SUM(AO$15:AO$100000) -> 0 | AQ14: =IF(OR(AQ13=0,AQ13=""),1,IF(COUNTIF(13:13,AQ13)=1,0,1)) -> 0 | AS14: =SUM(AS$15:AS$100000) -> 0 | AU14: =IF(OR(AU13=0,AU13=""),1,IF(COUNTIF(13:13,AU13)=1,0,1)) -> 0 | AW14: =SUM(AW$15:AW$100000) -> 0 | BA14: =SUM(BA$15:BA$100000) -> 0 | BC14: =IF(OR(BC13=0,BC13=""),1,IF(COUNTIF(13:13,BC13)=1,0,1)) -> 0 | BE14: =SUM(BE$15:BE$100000) -> 0 | BG14: =IF(OR(BG13=0,BG13=""),1,IF(COUNTIF(13:13,BG13)=1,0,1)) -> 0 | BI14: =SUM(BI$15:BI$100000) -> 0 | BK14: =IF(OR(BK13=0,BK13=""),1,IF(COUNTIF(13:13,BK13)=1,0,1)) -> 0 | BM14: =SUM(BM$15:BM$100000) -> 0 | BO14: =IF(OR(BO13=0,BO13=""),1,IF(COUNTIF(13:13,BO13)=1,0,1)) -> 0 | BQ14: =SUM(BQ$15:BQ$100000) -> 0 | BS14: =IF(OR(BS13=0,BS13=""),1,IF(COUNTIF(13:13,BS13)=1,0,1)) -> 0 | BU14: =SUM(BU$15:BU$100000) -> 0
A15: =ROW() -> 15 | I15: =$F$11&"!"&I$2&$A16&":"&I$2&($A15+MAX(J$15:J$100000)) -> Items!I16:I18 | M15: =$F$11&"!"&M$2&$A16&":"&M$2&($A15+MAX(N$15:N$100000)) -> Items!M16:M18 | Q15: =$F$11&"!"&Q$2&$A16&":"&Q$2&($A15+MAX(R$15:R$100000)) -> Items!Q16:Q17 | AD15: =$F$11&"!"&AD$2&$A16&":"&AD$2&($A15+MAX(AE$15:AE$100000)) -> Items!AD16:AD18 | AH15: =$F$11&"!"&AH$2&$A16&":"&AH$2&($A15+MAX(AI$15:AI$100000)) -> Items!AH16:AH17 | AL15: =$F$11&"!"&AL$2&$A16&":"&AL$2&($A15+MAX(AM$15:AM$100000)) -> Items!AL16:AL18 | AN15: =$F$11&"!"&AN$2&$A16&":"&AN$2&($A15+MAX(AO$15:AO$100000)) -> Items!AN16:AN15 | AQ15: =$F$11&"!"&AQ$2&$A16&":"&AQ$2&($A15+MAX(AR$15:AR$100000)) -> Items!AQ16:AQ17 | AU15: =$F$11&"!"&AU$2&$A16&":"&AU$2&($A15+MAX(AV$15:AV$100000)) -> Items!AU16:AU25 | BC15: =$F$11&"!"&BC$2&$A16&":"&BC$2&($A15+MAX(BD$15:BD$100000)) -> Items!BC16:BC22 | BG15: =$F$11&"!"&BG$2&$A16&":"&BG$2&($A15+MAX(BH$15:BH$100000)) -> Items!BG16:BG20 | BK15: =$F$11&"!"&BK$2&$A16&":"&BK$2&($A15+MAX(BL$15:BL$100000)) -> Items!BK16:BK46 | BO15: =$F$11&"!"&BO$2&$A16&":"&BO$2&($A15+MAX(BP$15:BP$100000)) -> Items!BO16:BO35 | BS15: =$F$11&"!"&BS$2&$A16&":"&BS$2&($A15+MAX(BT$15:BT$100000)) -> Items!BS16:BS42
A16: =ROW() -> 16 | H16: * | I16: Подготовка рекламных материалов | J16: =MAX(J$15:J15)+1 -> 1 | K16: =IF(OR(I16=0,I16=""),0,IF(COUNTIF(I$15:I$100000,I16)=1,0,1)) -> 0 | L16: * | M16: Расходы на привлечение заказчиков | N16: =MAX(N$15:N15)+1 -> 1 | O16: =IF(OR(M16=0,M16=""),0,IF(COUNTIF(M$15:M$100000,M16)=1,0,1)) -> 0 | Q16: ФОТ сотрудников маркетинга | R16: =MAX(R$15:R15)+1 -> 1 | S16: =IF(OR(Q16=0,Q16=""),0,IF(COUNTIF(Q$15:Q$100000,Q16)=1,0,1)) -> 0 | AC16: * | AD16: Представительские расходы | AE16: =MAX(AE$15:AE15)+1 -> 1 | AF16: =IF(OR(AD16=0,AD16=""),0,IF(COUNTIF(AD$15:AD$100000,AD16)=1,0,1)) -> 0 | AH16: ФОТ менеджеров по продаже | AI16: =MAX(AI$15:AI15)+1 -> 1 | AJ16: =IF(OR(AH16=0,AH16=""),0,IF(COUNTIF(AH$15:AH$100000,AH16)=1,0,1)) -> 0 | AK16: * | AL16: Спанбонд, мельтблаун и полипропилен | AM16: =MAX(AM$15:AM15)+1 -> 1 | AN16: гр | AO16: =IF(OR(AL16=0,AL16=""),0,IF(COUNTIF(AL$15:AL$100000,AL16)=1,0,1)) -> 0 | AQ16: ФОТ производственного персонала | AR16: =MAX(AR$15:AR15)+1 -> 1 | AS16: =IF(OR(AQ16=0,AQ16=""),0,IF(COUNTIF(AQ$15:AQ$100000,AQ16)=1,0,1)) -> 0 | AT16: * | AU16: 5*Двухручьевая линия производства масок | AV16: =MAX(AV$15:AV15)+1 -> 1 | AW16: =IF(OR(AU16=0,AU16=""),0,IF(COUNTIF(AU$15:AU$100000,AU16)=1,0,1)) -> 0 | AX16: * | AZ16: =MAX(AZ$15:AZ15)+1 -> 1 | BA16: =IF(OR(AY16=0,AY16=""),0,IF(COUNTIF(AY$15:AY$100000,AY16)=1,0,1)) -> 0 | BB16: * | BC16: Коммунальные расходы | BD16: =MAX(BD$15:BD15)+1 -> 1 | BE16: =IF(OR(BC16=0,BC16=""),0,IF(COUNTIF(BC$15:BC$100000,BC16)=1,0,1)) -> 0 | BF16: * | BG16: Содержание мест локации персонала | BH16: =MAX(BH$15:BH15)+1 -> 1 | BI16: =IF(OR(BG16=0,BG16=""),0,IF(COUNTIF(BG$15:BG$100000,BG16)=1,0,1)) -> 0 | BJ16: * | BK16: Дебиторская задолженность | BL16: =MAX(BL$15:BL15)+1 -> 1 | BM16: =IF(OR(BK16=0,BK16=""),0,IF(COUNTIF(BK$15:BK$100000,BK16)=1,0,1)) -> 0 | BN16: * | BO16: Выручка | BP16: =MAX(BP$15:BP15)+1 -> 1 | BQ16: =IF(OR(BO16=0,BO16=""),0,IF(COUNTIF(BO$15:BO$100000,BO16)=1,0,1)) -> 0 | BR16: * | BS16: Финпоток проекта без финансирования (CF) | BT16: =MAX(BT$15:BT15)+1 -> 1 | BU16: =IF(OR(BS16=0,BS16=""),0,IF(COUNTIF(BS$15:BS$100000,BS16)=1,0,1)) -> 0
A17: =ROW() -> 17 | H17: * | I17: Съемка видео-роликов | J17: =MAX(J$15:J16)+1 -> 2 | K17: =IF(OR(I17=0,I17=""),0,IF(COUNTIF(I$15:I$100000,I17)=1,0,1)) -> 0 | L17: * | M17: Расходы на онлайн агрегаторы | N17: =MAX(N$15:N16)+1 -> 2 | O17: =IF(OR(M17=0,M17=""),0,IF(COUNTIF(M$15:M$100000,M17)=1,0,1)) -> 0 | P17: * | Q17: Прочие расходы маркетинга | R17: =MAX(R$15:R16)+1 -> 2 | S17: =IF(OR(Q17=0,Q17=""),0,IF(COUNTIF(Q$15:Q$100000,Q17)=1,0,1)) -> 0 | AC17: * | AD17: Командировочные расходы | AE17: =MAX(AE$15:AE16)+1 -> 2 | AF17: =IF(OR(AD17=0,AD17=""),0,IF(COUNTIF(AD$15:AD$100000,AD17)=1,0,1)) -> 0 | AG17: * | AH17: Прочие расходы отдела продаж | AI17: =MAX(AI$15:AI16)+1 -> 2 | AJ17: =IF(OR(AH17=0,AH17=""),0,IF(COUNTIF(AH$15:AH$100000,AH17)=1,0,1)) -> 0 | AK17: * | AL17: Крепежные материалы | AM17: =MAX(AM$15:AM16)+1 -> 2 | AN17: гр | AO17: =IF(OR(AL17=0,AL17=""),0,IF(COUNTIF(AL$15:AL$100000,AL17)=1,0,1)) -> 0 | AP17: * | AQ17: Прочие производственные расходы | AR17: =MAX(AR$15:AR16)+1 -> 2 | AS17: =IF(OR(AQ17=0,AQ17=""),0,IF(COUNTIF(AQ$15:AQ$100000,AQ17)=1,0,1)) -> 0 | AT17: * | AU17: 2*Скоростная линия производства масок | AV17: =MAX(AV$15:AV16)+1 -> 2 | AW17: =IF(OR(AU17=0,AU17=""),0,IF(COUNTIF(AU$15:AU$100000,AU17)=1,0,1)) -> 0 | AX17: * | AZ17: =MAX(AZ$15:AZ16)+1 -> 2 | BA17: =IF(OR(AY17=0,AY17=""),0,IF(COUNTIF(AY$15:AY$100000,AY17)=1,0,1)) -> 0 | BB17: * | BC17: Юридические расходы | BD17: =MAX(BD$15:BD16)+1 -> 2 | BE17: 0 | BF17: * | BG17: Расходы на организацию рабочего места | BH17: =MAX(BH$15:BH16)+1 -> 2 | BI17: =IF(OR(BG17=0,BG17=""),0,IF(COUNTIF(BG$15:BG$100000,BG17)=1,0,1)) -> 0 | BJ17: * | BK17: Авансы полученные | BL17: =MAX(BL$15:BL16)+1 -> 2 | BM17: 0 | BN17: * | BO17: Себестоимость | BP17: =MAX(BP$15:BP16)+1 -> 2 | BQ17: 0 | BR17: * | BS17: Финпоток проекта нарастающим итогом | BT17: =MAX(BT$15:BT16)+1 -> 2 | BU17: 0
A18: =ROW() -> 18 | H18: * | I18: Аутсорсинг внешних исполнителей | J18: =MAX(J$15:J17)+1 -> 3 | K18: =IF(OR(I18=0,I18=""),0,IF(COUNTIF(I$15:I$100000,I18)=1,0,1)) -> 0 | L18: * | M18: Расходы на поддержание конверсии | N18: =MAX(N$15:N17)+1 -> 3 | O18: =IF(OR(M18=0,M18=""),0,IF(COUNTIF(M$15:M$100000,M18)=1,0,1)) -> 0 | AC18: * | AD18: Прочие расходники | AE18: =MAX(AE$15:AE17)+1 -> 3 | AF18: =IF(OR(AD18=0,AD18=""),0,IF(COUNTIF(AD$15:AD$100000,AD18)=1,0,1)) -> 0 | AK18: * | AL18: Упаковка | AM18: =MAX(AM$15:AM17)+1 -> 3 | AN18: шт | AO18: =IF(OR(AL18=0,AL18=""),0,IF(COUNTIF(AL$15:AL$100000,AL18)=1,0,1)) -> 0 | AT18: * | AU18: 4*Упаковочная машина шир. 250 | AV18: =MAX(AV$15:AV17)+1 -> 3 | AW18: =IF(OR(AU18=0,AU18=""),0,IF(COUNTIF(AU$15:AU$100000,AU18)=1,0,1)) -> 0 | AX18: * | AZ18: =MAX(AZ$15:AZ17)+1 -> 3 | BA18: =IF(OR(AY18=0,AY18=""),0,IF(COUNTIF(AY$15:AY$100000,AY18)=1,0,1)) -> 0 | BB18: * | BC18: Расходы на лицензии, ПО и т.п. | BD18: =MAX(BD$15:BD17)+1 -> 3 | BE18: 0 | BF18: * | BG18: Расходы на оргтехнику | BH18: =MAX(BH$15:BH17)+1 -> 3 | BI18: =IF(OR(BG18=0,BG18=""),0,IF(COUNTIF(BG$15:BG$100000,BG18)=1,0,1)) -> 0 | BJ18: * | BK18: Поступление запасов | BL18: =MAX(BL$15:BL17)+1 -> 3 | BM18: 0 | BN18: * | BO18: Валовая прибыль | BP18: =MAX(BP$15:BP17)+1 -> 3 | BQ18: 0 | BR18: * | BS18: Свободный положительный финпоток проекта | BT18: =MAX(BT$15:BT17)+1 -> 3 | BU18: 0
A19: =ROW() -> 19 | AT19: * | AU19: 1*Упаковочная машина шир. 350 | AV19: =MAX(AV$15:AV18)+1 -> 4 | AW19: =IF(OR(AU19=0,AU19=""),0,IF(COUNTIF(AU$15:AU$100000,AU19)=1,0,1)) -> 0 | AX19: * | AZ19: =MAX(AZ$15:AZ18)+1 -> 4 | BA19: =IF(OR(AY19=0,AY19=""),0,IF(COUNTIF(AY$15:AY$100000,AY19)=1,0,1)) -> 0 | BB19: * | BC19: Банковские расходы | BD19: =MAX(BD$15:BD18)+1 -> 4 | BE19: 0 | BF19: * | BG19: Канцелярские расходы | BH19: =MAX(BH$15:BH18)+1 -> 4 | BI19: =IF(OR(BG19=0,BG19=""),0,IF(COUNTIF(BG$15:BG$100000,BG19)=1,0,1)) -> 0 | BJ19: * | BK19: Списание запасов на незавершенное пр-во | BL19: =MAX(BL$15:BL18)+1 -> 4 | BM19: 0 | BN19: * | BO19: НДС начисленный | BP19: =MAX(BP$15:BP18)+1 -> 4 | BQ19: 0 | BR19: * | BS19: Свободный отрицательный финпоток проекта | BT19: =MAX(BT$15:BT18)+1 -> 4 | BU19: 0
A20: =ROW() -> 20 | AT20: * | AU20: 5*Машина пайки петель | AV20: =MAX(AV$15:AV19)+1 -> 5 | AW20: 0 | AX20: * | AZ20: =MAX(AZ$15:AZ19)+1 -> 5 | BA20: 0 | BB20: * | BC20: Расходы на эксплуатацию и ремонт | BD20: =MAX(BD$15:BD19)+1 -> 5 | BE20: 0 | BF20: * | BG20: Прочие расходы на персонал | BH20: =MAX(BH$15:BH19)+1 -> 5 | BI20: =IF(OR(BG20=0,BG20=""),0,IF(COUNTIF(BG$15:BG$100000,BG20)=1,0,1)) -> 0 | BJ20: * | BK20: Запасы | BL20: =MAX(BL$15:BL19)+1 -> 5 | BM20: 0 | BN20: * | BO20: НДС к возмещению | BP20: =MAX(BP$15:BP19)+1 -> 5 | BQ20: 0 | BR20: * | BS20: Свободный финпоток (FCF) | BT20: =MAX(BT$15:BT19)+1 -> 5 | BU20: 0
A21: =ROW() -> 21 | AT21: * | AU21: 1*Бобинорезка | AV21: =MAX(AV$15:AV20)+1 -> 6 | AW21: 0 | AX21: * | AZ21: =MAX(AZ$15:AZ20)+1 -> 6 | BA21: 0 | BB21: * | BC21: Расходы на банковскую гарантию (МСП) | BD21: =MAX(BD$15:BD20)+1 -> 6 | BE21: 0 | BJ21: * | BK21: Незавершенное производство | BL21: =MAX(BL$15:BL20)+1 -> 6 | BM21: 0 | BN21: * | BO21: Прямые расходы | BP21: =MAX(BP$15:BP20)+1 -> 6 | BQ21: 0 | BR21: * | BS21: Кассовый разрыв | BT21: =MAX(BT$15:BT20)+1 -> 6 | BU21: 0
A22: =ROW() -> 22 | AT22: * | AU22: 2*ПСР | AV22: =MAX(AV$15:AV21)+1 -> 7 | AW22: 0 | AX22: * | AZ22: =MAX(AZ$15:AZ21)+1 -> 7 | BA22: 0 | BB22: * | BC22: Постоянный расход - 7 | BD22: =MAX(BD$15:BD21)+1 -> 7 | BE22: 0 | BJ22: * | BK22: Авансы выданные | BL22: =MAX(BL$15:BL21)+1 -> 7 | BM22: 0 | BN22: * | BO22: Маржинальная прибыль | BP22: =MAX(BP$15:BP21)+1 -> 7 | BQ22: 0 | BR22: * | BS22: Поступление финансирования от Учредителей | BT22: =MAX(BT$15:BT21)+1 -> 7 | BU22: 0
A23: =ROW() -> 23 | AT23: * | AU23: 3*Линия производства респираторов серии FFP | AV23: =MAX(AV$15:AV22)+1 -> 8 | AW23: 0 | AX23: * | AZ23: =MAX(AZ$15:AZ22)+1 -> 8 | BA23: 0 | BJ23: * | BK23: Кредиторская задолженность | BL23: =MAX(BL$15:BL22)+1 -> 8 | BM23: 0 | BN23: * | BO23: Управленческие расходы | BP23: =MAX(BP$15:BP22)+1 -> 8 | BQ23: 0 | BR23: * | BS23: Финпоток проекта для кредиторов | BT23: =MAX(BT$15:BT22)+1 -> 8 | BU23: 0
A24: =ROW() -> 24 | AT24: * | AU24: 7ед. Оборудования на участок литья | AV24: =MAX(AV$15:AV23)+1 -> 9 | AW24: 0 | AX24: * | AZ24: =MAX(AZ$15:AZ23)+1 -> 9 | BA24: 0 | BJ24: * | BK24: Задолженность перед персоналом | BL24: =MAX(BL$15:BL23)+1 -> 9 | BM24: 0 | BN24: * | BO24: ФОТ управленческого персонала | BP24: =MAX(BP$15:BP23)+1 -> 9 | BQ24: 0 | BR24: * | BS24: Финпоток проекта для кредиторов нараст. итогом | BT24: =MAX(BT$15:BT23)+1 -> 9 | BU24: 0
A25: =ROW() -> 25 | AT25: * | AU25: Доставка, монтаж и ПНР | AV25: =MAX(AV$15:AV24)+1 -> 10 | AW25: 0 | AX25: * | AZ25: =MAX(AZ$15:AZ24)+1 -> 10 | BA25: 0 | BJ25: * | BK25: Задолженность по соцсборам | BL25: =MAX(BL$15:BL24)+1 -> 10 | BM25: 0 | BN25: * | BO25: EBITDA | BP25: =MAX(BP$15:BP24)+1 -> 10 | BQ25: 0 | BR25: * | BS25: Свободный полож. финпоток для кредиторов | BT25: =MAX(BT$15:BT24)+1 -> 10 | BU25: 0
A26: =ROW() -> 26 | BJ26: * | BK26: АКТИВЫ | BL26: =MAX(BL$15:BL25)+1 -> 11 | BM26: =IF(OR(BK26=0,BK26=""),0,IF(COUNTIF(BK$15:BK$100000,BK26)=1,0,1)) -> 0 | BN26: * | BO26: Капзатраты | BP26: =MAX(BP$15:BP25)+1 -> 11 | BQ26: =IF(OR(BO26=0,BO26=""),0,IF(COUNTIF(BO$15:BO$100000,BO26)=1,0,1)) -> 0 | BR26: * | BS26: Свободный отриц. финпоток для кредиторов | BT26: =MAX(BT$15:BT25)+1 -> 11 | BU26: 0
A27: =ROW() -> 27 | BJ27: * | BK27: ПАССИВЫ | BL27: =MAX(BL$15:BL26)+1 -> 12 | BM27: 0 | BN27: * | BO27: НДС к возмещению по капзатратам | BP27: =MAX(BP$15:BP26)+1 -> 12 | BQ27: 0 | BR27: * | BS27: Свободный финпоток для кредиторов | BT27: =MAX(BT$15:BT26)+1 -> 12 | BU27: 0
A28: =ROW() -> 28 | BJ28: * | BK28: Денежные средства | BL28: =MAX(BL$15:BL27)+1 -> 13 | BM28: 0 | BN28: * | BO28: Амортизация | BP28: =MAX(BP$15:BP27)+1 -> 13 | BQ28: 0 | BR28: * | BS28: Кассовый разрыв проекта для кредиторов | BT28: =MAX(BT$15:BT27)+1 -> 13 | BU28: 0
A29: =ROW() -> 29 | BJ29: * | BK29: Собственный капитал | BL29: =MAX(BL$15:BL28)+1 -> 14 | BM29: 0 | BN29: * | BO29: EBIT | BP29: =MAX(BP$15:BP28)+1 -> 14 | BQ29: 0 | BR29: * | BS29: Поступление кредита | BT29: =MAX(BT$15:BT28)+1 -> 14 | BU29: 0
A30: =ROW() -> 30 | BJ30: * | BK30: Промежуточный баланс-контроль | BL30: =MAX(BL$15:BL29)+1 -> 15 | BM30: 0 | BN30: * | BO30: Прочие доходы | BP30: =MAX(BP$15:BP29)+1 -> 15 | BQ30: 0 | BR30: * | BS30: Возврат кредита | BT30: =MAX(BT$15:BT29)+1 -> 15 | BU30: 0
A31: =ROW() -> 31 | BJ31: * | BK31: Задолженность по прямым расходам | BL31: =MAX(BL$15:BL30)+1 -> 16 | BM31: 0 | BN31: * | BO31: Проценты начисленные | BP31: =MAX(BP$15:BP30)+1 -> 16 | BQ31: 0 | BR31: * | BS31: Оплата процентов по кредиту | BT31: =MAX(BT$15:BT30)+1 -> 16 | BU31: 0
A32: =ROW() -> 32 | BJ32: * | BK32: Задолженность по управленческим расходам | BL32: =MAX(BL$15:BL31)+1 -> 17 | BM32: =IF(OR(BK32=0,BK32=""),0,IF(COUNTIF(BK$15:BK$100000,BK32)=1,0,1)) -> 0 | BN32: * | BO32: Прибыль до налога на прибыль | BP32: =MAX(BP$15:BP31)+1 -> 17 | BQ32: 0 | BR32: * | BS32: Финпоток проекта с учетом финансирования | BT32: =MAX(BT$15:BT31)+1 -> 17 | BU32: 0
A33: =ROW() -> 33 | BJ33: * | BK33: Задолженность по капзатратам | BL33: =MAX(BL$15:BL32)+1 -> 18 | BM33: 0 | BN33: * | BO33: Налог на прибыль | BP33: =MAX(BP$15:BP32)+1 -> 18 | BQ33: 0 | BR33: * | BS33: Финпоток проекта с уч. финансир. нараст. итогом | BT33: =MAX(BT$15:BT32)+1 -> 18 | BU33: 0
A34: =ROW() -> 34 | BJ34: * | BK34: Внеоборотные активы | BL34: =MAX(BL$15:BL33)+1 -> 19 | BM34: 0 | BN34: * | BO34: Чистая прибыль | BP34: =MAX(BP$15:BP33)+1 -> 19 | BQ34: 0 | BR34: * | BS34: Осаточный кассовый разрыв | BT34: =MAX(BT$15:BT33)+1 -> 19 | BU34: 0
A35: =ROW() -> 35 | BJ35: * | BK35: ДЗ по возмещению НДС с капзатрат | BL35: =MAX(BL$15:BL34)+1 -> 20 | BM35: 0 | BN35: * | BO35: Проценты начисленные по кредиту | BP35: =MAX(BP$15:BP34)+1 -> 20 | BQ35: 0 | BR35: * | BS35: Итоговый финпоток | BT35: =MAX(BT$15:BT34)+1 -> 20 | BU35: =IF(OR(BS35=0,BS35=""),0,IF(COUNTIF(BS$15:BS$100000,BS35)=1,0,1)) -> 0
A36: =ROW() -> 36 | BJ36: * | BK36: Задолженность по налогам | BL36: =MAX(BL$15:BL35)+1 -> 21 | BM36: 0 | BR36: * | BS36: Итоговый финпоток нараст. итогом | BT36: =MAX(BT$15:BT35)+1 -> 21 | BU36: 0
A37: =ROW() -> 37 | BJ37: * | BK37: Задолженность по НДС | BL37: =MAX(BL$15:BL36)+1 -> 22 | BM37: 0 | BR37: * | BS37: Итоговый кассовый разрыв | BT37: =MAX(BT$15:BT36)+1 -> 22 | BU37: 0
A38: =ROW() -> 38 | BJ38: * | BK38: Задолженность по НП | BL38: =MAX(BL$15:BL37)+1 -> 23 | BM38: 0 | BR38: * | BS38: Финпоток по операционной деятельности | BT38: =MAX(BT$15:BT37)+1 -> 23 | BU38: 0
A39: =ROW() -> 39 | BJ39: * | BK39: Остаток долга по кредиту | BL39: =MAX(BL$15:BL38)+1 -> 24 | BM39: 0 | BR39: * | BS39: Финпоток по основной деятельности | BT39: =MAX(BT$15:BT38)+1 -> 24 | BU39: 0
A40: =ROW() -> 40 | BJ40: * | BK40: Задолженность по выплате %% по кредиту | BL40: =MAX(BL$15:BL39)+1 -> 25 | BM40: 0 | BR40: * | BS40: Финпоток по финансовой деятельности | BT40: =MAX(BT$15:BT39)+1 -> 25 | BU40: 0
A41: =ROW() -> 41 | BJ41: * | BK41: Вложения Учредителей в капитал | BL41: =MAX(BL$15:BL40)+1 -> 26 | BM41: 0 | BR41: * | BS41: Поступление ДС | BT41: =MAX(BT$15:BT40)+1 -> 26 | BU41: 0
A42: =ROW() -> 42 | BJ42: * | BK42: БАЛАНС | BL42: =MAX(BL$15:BL41)+1 -> 27 | BM42: 0 | BR42: * | BS42: Итоговый свободный финпоток (Total FCF) | BT42: =MAX(BT$15:BT41)+1 -> 27 | BU42: 0
A43: =ROW() -> 43 | BJ43: * | BL43: =MAX(BL$15:BL42)+1 -> 28 | BM43: 0
A44: =ROW() -> 44 | BJ44: * | BL44: =MAX(BL$15:BL43)+1 -> 29 | BM44: 0
A45: =ROW() -> 45 | BJ45: * | BL45: =MAX(BL$15:BL44)+1 -> 30 | BM45: 0
A46: =ROW() -> 46 | BJ46: * | BL46: =MAX(BL$15:BL45)+1 -> 31 | BM46: 0
A47: =ROW() -> 47
A48: =ROW() -> 48
A49: =ROW() -> 49
A50: =ROW() -> 50
A51: =ROW() -> 51
A52: =ROW() -> 52
A53: =ROW() -> 53
A54: =ROW() -> 54
A55: =ROW() -> 55
A56: =ROW() -> 56
A57: =ROW() -> 57
A58: =ROW() -> 58
A59: =ROW() -> 59
A60: =ROW() -> 60
A61: =ROW() -> 61
A62: =ROW() -> 62
A63: =ROW() -> 63
A64: =ROW() -> 64
A65: =ROW() -> 65
A66: =ROW() -> 66
A67: =ROW() -> 67
A68: =ROW() -> 68
A69: =ROW() -> 69
A70: =ROW() -> 70

Sheet KPI
I1: =COLUMN() -> 9
I2: =LEFT(ADDRESS(1,COLUMN(),4),LEN(ADDRESS(1,COLUMN(),4))-1) -> I
F11: =INDIRECT("START!I31") -> KPI | I11: =INDIRECT("START!K31") -> Справочники ключевых показателей эффективности
I13: Список показателей эффективности | Q13: Формулы расчета показателей
D14: =INDIRECT("Cntrl!M17") -> 0 | E14: =SUM($F14:$ML14) -> 0 | F14: =IFERROR(_xlfn.SHEET($A$1)-SUMIFS(Cntrl!O$15:O$100000,Cntrl!I$15:I$100000,$F$11),1) -> 0 | I14: =IF(OR(I13=0,I13=""),1,IF(COUNTIF(13:13,I13)=1,0,1)) -> 0 | K14: =SUM(K$15:K$100000) -> 0
A15: =ROW() -> 15 | I15: =$F$11&"!"&I$2&$A16&":"&I$2&($A15+MAX(J$15:J$100000)) -> KPI!I16:I92
A16: =ROW() -> 16 | I16: Срок окупаемости по чистой прибыли | J16: =MAX(J$15:J15)+1 -> 1 | K16: =IF(OR(I16=0,I16=""),0,IF(COUNTIF(I$15:I$100000,I16)=1,0,1)) -> 0
A17: =ROW() -> 17 | I17: Точка безубыточности по чистой прибыли | J17: =MAX(J$15:J16)+1 -> 2 | K17: =IF(OR(I17=0,I17=""),0,IF(COUNTIF(I$15:I$100000,I17)=1,0,1)) -> 0
A18: =ROW() -> 18 | I18: Срок окупаемости по финпотоку (PBP) | J18: =MAX(J$15:J17)+1 -> 3 | K18: 0
A19: =ROW() -> 19 | I19: Точка безубыточности по финпотоку | J19: =MAX(J$15:J18)+1 -> 4 | K19: 0
A20: =ROW() -> 20 | I20: IRR проекта | J20: =MAX(J$15:J19)+1 -> 5 | K20: 0
A21: =ROW() -> 21 | I21: NPV(Учредителя) | J21: =MAX(J$15:J20)+1 -> 6 | K21: 0
A22: =ROW() -> 22 | I22: IRR для кредиторов | J22: =MAX(J$15:J21)+1 -> 7 | K22: 0
A23: =ROW() -> 23 | I23: NPV(Кредиторов) | J23: =MAX(J$15:J22)+1 -> 8 | K23: =IF(OR(I23=0,I23=""),0,IF(COUNTIF(I$15:I$100000,I23)=1,0,1)) -> 0
A24: =ROW() -> 24 | I24: Рентабельность | J24: =MAX(J$15:J23)+1 -> 9 | K24: 0
A25: =ROW() -> 25 | I25: WACC | J25: =MAX(J$15:J24)+1 -> 10 | K25: 0
A26: =ROW() -> 26 | I26: NPV(WACC) | J26: =MAX(J$15:J25)+1 -> 11 | K26: 0
A27: =ROW() -> 27 | I27: ROI | J27: =MAX(J$15:J26)+1 -> 12 | K27: 0
A28: =ROW() -> 28 | I28: Дисконтированный срок окупаемости (DPBP) | J28: =MAX(J$15:J27)+1 -> 13 | K28: 0
A29: =ROW() -> 29 | I29: Коэффициент текущей ликвидности (L1) | J29: =MAX(J$15:J28)+1 -> 14 | K29: 0 | Q29: Отношение оборотных активов к краткосрочным обязательствам
A30: =ROW() -> 30 | I30: Коэффициент промежуточного покрытия (L2) | J30: =MAX(J$15:J29)+1 -> 15 | K30: 0 | Q30: Отношение суммы активов А1 и А2 к краткосрочным обязательствам
A31: =ROW() -> 31 | I31: Коэффициент абсолютной ликвидности (L3) | J31: =MAX(J$15:J30)+1 -> 16 | K31: =IF(OR(I31=0,I31=""),0,IF(COUNTIF(I$15:I$100000,I31)=1,0,1)) -> 0 | Q31: Отношение суммы активов А1 к краткосрочным обязательствам
A32: =ROW() -> 32 | I32: Коэффициент общей платежеспособности (L4) | J32: =MAX(J$15:J31)+1 -> 17 | K32: 0 | Q32: Отношение всех активов ко всем обязательствам
A33: =ROW() -> 33 | I33: Коэфф. платежеспособности по тек. обяз. (L5) | J33: =MAX(J$15:J32)+1 -> 18 | K33: 0 | Q33: Отношение среднемесячной выручки к краткосрочным обязательствам
A34: =ROW() -> 34 | J34: =MAX(J$15:J33)+1 -> 19 | K34: 0
A35: =ROW() -> 35 | I35: Оценка стоимости бизнеса/компании | J35: =MAX(J$15:J34)+1 -> 20 | K35: 0
A36: =ROW() -> 36 | J36: =MAX(J$15:J35)+1 -> 21 | K36: 0
A37: =ROW() -> 37 | J37: =MAX(J$15:J36)+1 -> 22 | K37: 0
A38: =ROW() -> 38 | J38: =MAX(J$15:J37)+1 -> 23 | K38: 0
A39: =ROW() -> 39 | I39: Терминальная стоимость (TV) | J39: =MAX(J$15:J38)+1 -> 24 | K39: 0
A40: =ROW() -> 40 | I40: NPV(TV) | J40: =MAX(J$15:J39)+1 -> 25 | K40: =IF(OR(I40=0,I40=""),0,IF(COUNTIF(I$15:I$100000,I40)=1,0,1)) -> 0
A41: =ROW() -> 41 | I41: CFADS | J41: =MAX(J$15:J40)+1 -> 26 | K41: 0
A42: =ROW() -> 42 | I42: Выплаты долга [Debt (Principals+Interests)] | J42: =MAX(J$15:J41)+1 -> 27 | K42: 0
A43: =ROW() -> 43 | I43: Выплаты тела кредитов (Principals) | J43: =MAX(J$15:J42)+1 -> 28 | K43: 0
A44: =ROW() -> 44 | I44: Выплаты %% (Interests) | J44: =MAX(J$15:J43)+1 -> 29 | K44: 0
A45: =ROW() -> 45 | I45: Коэф. покрытия выплат долга (DSCR) | J45: =MAX(J$15:J44)+1 -> 30 | K45: 0
A46: =ROW() -> 46 | I46: Коэф. покрытия процентов (ICR) | J46: =MAX(J$15:J45)+1 -> 31 | K46: =IF(OR(I46=0,I46=""),0,IF(COUNTIF(I$15:I$100000,I46)=1,0,1)) -> 0
A47: =ROW() -> 47 | I47: CF(EBIT) | J47: =MAX(J$15:J46)+1 -> 32 | K47: 0
A48: =ROW() -> 48 | I48: Наиболее ликвидные активы (А1) | J48: =MAX(J$15:J47)+1 -> 33 | K48: 0
A49: =ROW() -> 49 | I49: Денежные средства | J49: =MAX(J$15:J48)+1 -> 34 | K49: 0
A50: =ROW() -> 50 | I50: Финансовые вложения | J50: =MAX(J$15:J49)+1 -> 35 | K50: 0
A51: =ROW() -> 51 | I51: Быстро реализуемые активы (А2) | J51: =MAX(J$15:J50)+1 -> 36 | K51: 0
A52: =ROW() -> 52 | I52: Незавершенное производство | J52: =MAX(J$15:J51)+1 -> 37 | K52: 0
A53: =ROW() -> 53 | I53: Дебиторская задолженность | J53: =MAX(J$15:J52)+1 -> 38 | K53: =IF(OR(I53=0,I53=""),0,IF(COUNTIF(I$15:I$100000,I53)=1,0,1)) -> 0
A54: =ROW() -> 54 | I54: Авансы выданные | J54: =MAX(J$15:J53)+1 -> 39 | K54: 0
A55: =ROW() -> 55 | I55: Медленно реализуемые активы (А3) | J55: =MAX(J$15:J54)+1 -> 40 | K55: 0
A56: =ROW() -> 56 | I56: Запасы | J56: =MAX(J$15:J55)+1 -> 41 | K56: 0
A57: =ROW() -> 57 | I57: Трудно реализуемые активы (А4) | J57: =MAX(J$15:J56)+1 -> 42 | K57: 0
A58: =ROW() -> 58 | I58: Внеоборотные активы | J58: =MAX(J$15:J57)+1 -> 43 | K58: 0
A59: =ROW() -> 59 | I59: Наиболее срочные обязательства (П1) | J59: =MAX(J$15:J58)+1 -> 44 | K59: 0
A60: =ROW() -> 60 | I60: Овердрафт | J60: =MAX(J$15:J59)+1 -> 45 | K60: 0
A61: =ROW() -> 61 | I61: Кредиторская задолженность | J61: =MAX(J$15:J60)+1 -> 46 | K61: 0
A62: =ROW() -> 62 | I62: Краткосрочные обязательства (П2) | J62: =MAX(J$15:J61)+1 -> 47 | K62: 0
A63: =ROW() -> 63 | I63: Прочие краткосрочные обязательства | J63: =MAX(J$15:J62)+1 -> 48 | K63: 0
A64: =ROW() -> 64 | I64: Долгосрочные обязательства (П3) | J64: =MAX(J$15:J63)+1 -> 49 | K64: 0
A65: =ROW() -> 65 | I65: Долгосрочные кредиты | J65: =MAX(J$15:J64)+1 -> 50 | K65: 0
A66: =ROW() -> 66 | I66: Постоянные пассивы (П4) | J66: =MAX(J$15:J65)+1 -> 51 | K66: 0
A67: =ROW() -> 67 | I67: Собственный капитал | J67: =MAX(J$15:J66)+1 -> 52 | K67: =IF(OR(I67=0,I67=""),0,IF(COUNTIF(I$15:I$100000,I67)=1,0,1)) -> 0
A68: =ROW() -> 68 | I68: Собственные оборотные средства (СОС) | J68: =MAX(J$15:J67)+1 -> 53 | K68: 0 | Q68: Разность собственного капитала и внеоборотных активов
A69: =ROW() -> 69 | I69: Коэффициент финансовой устойчивости (S1) | J69: =MAX(J$15:J68)+1 -> 54 | K69: 0 | Q69: Отношение суммы собственного капитала и долгосрочных обязательств к активам
A70: =ROW() -> 70 | I70: Коэффициент автономии (независимости) (S2) | J70: =MAX(J$15:J69)+1 -> 55 | K70: 0 | Q70: Отношение собственного капитала к активам
I71: Коэфф. обеспеч-ти собств. об. средствами (S3) | J71: =MAX(J$15:J70)+1 -> 56 | K71: 0 | Q71: Отношение объема СОС к оборотным активам
I72: Коэффициент финансового рычага (S4) | J72: =MAX(J$15:J71)+1 -> 57 | K72: 0 | Q72: Отношение собственного капитала к заемному капиталу
I73: Рентабельность продаж (Return On Sales) (R1) | J73: =MAX(J$15:J72)+1 -> 58 | K73: 0 | Q73: Отношение валовой прибыли к выручке
I74: Рентабельность активов (Return On Assets) (R2) | J74: =MAX(J$15:J73)+1 -> 59 | K74: 0 | Q74: Отношение среднемесячной чистой прибыли за период к уровню активов на конец периода
I75: Рентаб-сть собств. капитала (Return On Equity) (R3) | J75: =MAX(J$15:J74)+1 -> 60 | K75: 0 | Q75: Отношение среднемесячной чистой прибыли за период к уровню собственного капитала на конец периода
I76: Рент. инвестиций (Return On Invested Capital) (R4) | J76: =MAX(J$15:J75)+1 -> 61 | K76: 0 | Q76: Отношение среднемес. EBITDA за период к уровню инвестиций (собств.+долгосроч.) на конец периода
I77: Рент. об. капитала (Return On Working Capital) (R5) | J77: =MAX(J$15:J76)+1 -> 62 | K77: 0 | Q77: Отношение среднемес. марж. прибыли за период к уровню оборотного капитала на конец периода
I78: Оборачиваемость запасов и незавершенки | J78: =MAX(J$15:J77)+1 -> 63 | K78: 0
I79: Период оборач-сти запасов и незавершенки (P1) | J79: =MAX(J$15:J78)+1 -> 64 | K79: =IF(OR(I79=0,I79=""),0,IF(COUNTIF(I$15:I$100000,I79)=1,0,1)) -> 0
I80: Оборачиваемость дебиторской задолженности | J80: =MAX(J$15:J79)+1 -> 65 | K80: 0
I81: Период оборач-ти дебит. задолженности (P2) | J81: =MAX(J$15:J80)+1 -> 66 | K81: 0
I82: Оборачиваемость кредиторской задолженности | J82: =MAX(J$15:J81)+1 -> 67 | K82: 0
I83: Период оборач-ти кредит. задолженности (P3) | J83: =MAX(J$15:J82)+1 -> 68 | K83: 0
I84: Финансовый цикл (P4) | J84: =MAX(J$15:J83)+1 -> 69 | K84: =IF(OR(I84=0,I84=""),0,IF(COUNTIF(I$15:I$100000,I84)=1,0,1)) -> 0
I85: ТЕМПЫ РОСТА АКТИВОВ [T(A)] | J85: =MAX(J$15:J84)+1 -> 70 | K85: 0
I86: ТЕМПЫ РОСТА ВЫРУЧКИ [T(R)] | J86: =MAX(J$15:J85)+1 -> 71 | K86: 0
I87: ТЕМПЫ РОСТА ЧИСТОЙ ПРИБЫЛИ [T(E)] | J87: =MAX(J$15:J86)+1 -> 72 | K87: 0
J88: =MAX(J$15:J87)+1 -> 73 | K88: 0
J89: =MAX(J$15:J88)+1 -> 74 | K89: 0
J90: =MAX(J$15:J89)+1 -> 75 | K90: 0
J91: =MAX(J$15:J90)+1 -> 76 | K91: 0
J92: =MAX(J$15:J91)+1 -> 77 | K92: 0

Sheet Mrkting
Y1: номер столбца: | AA1: 27 | AB1: 28 | AC1: 29 | AD1: 30 | AE1: 31 | AF1: 32 | AG1: 33 | AH1: 34 | AI1: 35 | AJ1: 36 | AK1: 37 | AL1: 38 | AM1: 39 | AN1: 40 | AO1: 41 | AP1: 42 | AQ1: 43 | AR1: 44 | AS1: 45 | AT1: 46 | AU1: 47 | AV1: 48 | AW1: 49 | AX1: 50 | AY1: 51 | AZ1: 52 | BA1: 53 | BB1: 54 | BC1: 55 | BD1: 56 | BE1: 57 | BF1: 58 | BG1: 59 | BH1: 60 | BI1: 61 | BJ1: 62 | BK1: 63 | BL1: 64 | BM1: 65 | BN1: 66 | BO1: 67 | BP1: 68 | BQ1: 69 | BR1: 70 | BS1: 71 | BT1: 72 | BU1: 73 | BV1: 74 | BW1: 75 | BX1: 76 | BY1: 77 | BZ1: 78 | CA1: 79 | CB1: 80 | CC1: 81 | CD1: 82 | CE1: 83 | CF1: 84 | CG1: 85 | CH1: 86 | CI1: 87 | CJ1: 88 | CK1: 89 | CL1: 90 | CM1: 91 | CN1: 92 | CO1: 93 | CP1: 94 | CQ1: 95 | CR1: 96 | CS1: 97 | CT1: 98 | CU1: 99
Y2: номер периода модели: | AA2: 1 | AB2: 2 | AC2: 3 | AD2: 4 | AE2: 5 | AF2: 6 | AG2: 7 | AH2: 8 | AI2: 9 | AJ2: 10 | AK2: 11 | AL2: 12 | AM2: 13 | AN2: 14 | AO2: 15 | AP2: 16 | AQ2: 17 | AR2: 18 | AS2: 19 | AT2: 20 | AU2: 21 | AV2: 22 | AW2: 23 | AX2: 24 | AY2: 25 | AZ2: 26 | BA2: 27 | BB2: 28 | BC2: 29 | BD2: 30 | BE2: 31 | BF2: 32 | BG2: 33 | BH2: 34 | BI2: 35 | BJ2: 36 | BK2: 37 | BL2: 38 | BM2: 39 | BN2: 40 | BO2: 41 | BP2: 42 | BQ2: 43 | BR2: 44 | BS2: 45 | BT2: 46 | BU2: 47 | BV2: 48 | BW2: 49 | BX2: 50 | BY2: 51 | BZ2: 52 | CA2: 53 | CB2: 54 | CC2: 55 | CD2: 56 | CE2: 57 | CF2: 58 | CG2: 59 | CH2: 60 | CI2: 61 | CJ2: 62 | CK2: 63 | CL2: 64 | CM2: 65 | CN2: 66 | CO2: 67 | CP2: 68 | CQ2: 69 | CR2: 70 | CS2: 71 | CT2: 72 | CU2: 73
Y3: номер факт-периода:
Y4: номер план-периода: | AA4: 1 | AB4: 2 | AC4: 3 | AD4: 4 | AE4: 5 | AF4: 6 | AG4: 7 | AH4: 8 | AI4: 9 | AJ4: 10 | AK4: 11 | AL4: 12 | AM4: 13 | AN4: 14 | AO4: 15 | AP4: 16 | AQ4: 17 | AR4: 18 | AS4: 19 | AT4: 20 | AU4: 21 | AV4: 22 | AW4: 23 | AX4: 24 | AY4: 25 | AZ4: 26 | BA4: 27 | BB4: 28 | BC4: 29 | BD4: 30 | BE4: 31 | BF4: 32 | BG4: 33 | BH4: 34 | BI4: 35 | BJ4: 36 | BK4: 37 | BL4: 38 | BM4: 39 | BN4: 40 | BO4: 41 | BP4: 42 | BQ4: 43 | BR4: 44 | BS4: 45 | BT4: 46 | BU4: 47 | BV4: 48 | BW4: 49 | BX4: 50 | BY4: 51 | BZ4: 52 | CA4: 53 | CB4: 54 | CC4: 55 | CD4: 56 | CE4: 57 | CF4: 58 | CG4: 59 | CH4: 60
Y5: число даты начала: | AA5: 1 | AB5: 1 | AC5: 1 | AD5: 1 | AE5: 1 | AF5: 1 | AG5: 1 | AH5: 1 | AI5: 1 | AJ5: 1 | AK5: 1 | AL5: 1 | AM5: 1 | AN5: 1 | AO5: 1 | AP5: 1 | AQ5: 1 | AR5: 1 | AS5: 1 | AT5: 1 | AU5: 1 | AV5: 1 | AW5: 1 | AX5: 1 | AY5: 1 | AZ5: 1 | BA5: 1 | BB5: 1 | BC5: 1 | BD5: 1 | BE5: 1 | BF5: 1 | BG5: 1 | BH5: 1 | BI5: 1 | BJ5: 1 | BK5: 1 | BL5: 1 | BM5: 1 | BN5: 1 | BO5: 1 | BP5: 1 | BQ5: 1 | BR5: 1 | BS5: 1 | BT5: 1 | BU5: 1 | BV5: 1 | BW5: 1 | BX5: 1 | BY5: 1 | BZ5: 1 | CA5: 1 | CB5: 1 | CC5: 1 | CD5: 1 | CE5: 1 | CF5: 1 | CG5: 1 | CH5: 1
Y6: номер месяца даты начала: | AA6: 5 | AB6: 6 | AC6: 7 | AD6: 8 | AE6: 9 | AF6: 10 | AG6: 11 | AH6: 12 | AI6: 1 | AJ6: 2 | AK6: 3 | AL6: 4 | AM6: 5 | AN6: 6 | AO6: 7 | AP6: 8 | AQ6: 9 | AR6: 10 | AS6: 11 | AT6: 12 | AU6: 1 | AV6: 2 | AW6: 3 | AX6: 4 | AY6: 5 | AZ6: 6 | BA6: 7 | BB6: 8 | BC6: 9 | BD6: 10 | BE6: 11 | BF6: 12 | BG6: 1 | BH6: 2 | BI6: 3 | BJ6: 4 | BK6: 5 | BL6: 6 | BM6: 7 | BN6: 8 | BO6: 9 | BP6: 10 | BQ6: 11 | BR6: 12 | BS6: 1 | BT6: 2 | BU6: 3 | BV6: 4 | BW6: 5 | BX6: 6 | BY6: 7 | BZ6: 8 | CA6: 9 | CB6: 10 | CC6: 11 | CD6: 12 | CE6: 1 | CF6: 2 | CG6: 3 | CH6: 4
Y7: год даты начала: | AA7: 21 | AB7: 21 | AC7: 21 | AD7: 21 | AE7: 21 | AF7: 21 | AG7: 21 | AH7: 21 | AI7: 22 | AJ7: 22 | AK7: 22 | AL7: 22 | AM7: 22 | AN7: 22 | AO7: 22 | AP7: 22 | AQ7: 22 | AR7: 22 | AS7: 22 | AT7: 22 | AU7: 23 | AV7: 23 | AW7: 23 | AX7: 23 | AY7: 23 | AZ7: 23 | BA7: 23 | BB7: 23 | BC7: 23 | BD7: 23 | BE7: 23 | BF7: 23 | BG7: 24 | BH7: 24 | BI7: 24 | BJ7: 24 | BK7: 24 | BL7: 24 | BM7: 24 | BN7: 24 | BO7: 24 | BP7: 24 | BQ7: 24 | BR7: 24 | BS7: 25 | BT7: 25 | BU7: 25 | BV7: 25 | BW7: 25 | BX7: 25 | BY7: 25 | BZ7: 25 | CA7: 25 | CB7: 25 | CC7: 25 | CD7: 25 | CE7: 26 | CF7: 26 | CG7: 26 | CH7: 26
Y8: число даты окончания: | AA8: 31 | AB8: 30 | AC8: 31 | AD8: 31 | AE8: 30 | AF8: 31 | AG8: 30 | AH8: 31 | AI8: 31 | AJ8: 28 | AK8: 31 | AL8: 30 | AM8: 31 | AN8: 30 | AO8: 31 | AP8: 31 | AQ8: 30 | AR8: 31 | AS8: 30 | AT8: 31 | AU8: 31 | AV8: 28 | AW8: 31 | AX8: 30 | AY8: 31 | AZ8: 30 | BA8: 31 | BB8: 31 | BC8: 30 | BD8: 31 | BE8: 30 | BF8: 31 | BG8: 31 | BH8: 29 | BI8: 31 | BJ8: 30 | BK8: 31 | BL8: 30 | BM8: 31 | BN8: 31 | BO8: 30 | BP8: 31 | BQ8: 30 | BR8: 31 | BS8: 31 | BT8: 28 | BU8: 31 | BV8: 30 | BW8: 31 | BX8: 30 | BY8: 31 | BZ8: 31 | CA8: 30 | CB8: 31 | CC8: 30 | CD8: 31 | CE8: 31 | CF8: 28 | CG8: 31 | CH8: 30
Y9: номер месяца даты окончания: | AA9: 5 | AB9: 6 | AC9: 7 | AD9: 8 | AE9: 9 | AF9: 10 | AG9: 11 | AH9: 12 | AI9: 1 | AJ9: 2 | AK9: 3 | AL9: 4 | AM9: 5 | AN9: 6 | AO9: 7 | AP9: 8 | AQ9: 9 | AR9: 10 | AS9: 11 | AT9: 12 | AU9: 1 | AV9: 2 | AW9: 3 | AX9: 4 | AY9: 5 | AZ9: 6 | BA9: 7 | BB9: 8 | BC9: 9 | BD9: 10 | BE9: 11 | BF9: 12 | BG9: 1 | BH9: 2 | BI9: 3 | BJ9: 4 | BK9: 5 | BL9: 6 | BM9: 7 | BN9: 8 | BO9: 9 | BP9: 10 | BQ9: 11 | BR9: 12 | BS9: 1 | BT9: 2 | BU9: 3 | BV9: 4 | BW9: 5 | BX9: 6 | BY9: 7 | BZ9: 8 | CA9: 9 | CB9: 10 | CC9: 11 | CD9: 12 | CE9: 1 | CF9: 2 | CG9: 3 | CH9: 4
Y10: год даты окончания: | AA10: 21 | AB10: 21 | AC10: 21 | AD10: 21 | AE10: 21 | AF10: 21 | AG10: 21 | AH10: 21 | AI10: 22 | AJ10: 22 | AK10: 22 | AL10: 22 | AM10: 22 | AN10: 22 | AO10: 22 | AP10: 22 | AQ10: 22 | AR10: 22 | AS10: 22 | AT10: 22 | AU10: 23 | AV10: 23 | AW10: 23 | AX10: 23 | AY10: 23 | AZ10: 23 | BA10: 23 | BB10: 23 | BC10: 23 | BD10: 23 | BE10: 23 | BF10: 23 | BG10: 24 | BH10: 24 | BI10: 24 | BJ10: 24 | BK10: 24 | BL10: 24 | BM10: 24 | BN10: 24 | BO10: 24 | BP10: 24 | BQ10: 24 | BR10: 24 | BS10: 25 | BT10: 25 | BU10: 25 | BV10: 25 | BW10: 25 | BX10: 25 | BY10: 25 | BZ10: 25 | CA10: 25 | CB10: 25 | CC10: 25 | CD10: 25 | CE10: 26 | CF10: 26 | CG10: 26 | CH10: 26
F11: Mrkting | I11: Маркетинг. Параметры рынков сбыта и каналов привлечения клиентов | Q11: все включает НДС | X11: 2021-05-01 | AA11: 2021-05-01 | AB11: 2021-06-01 | AC11: 2021-07-01 | AD11: 2021-08-01 | AE11: 2021-09-01 | AF11: 2021-10-01 | AG11: 2021-11-01 | AH11: 2021-12-01 | AI11: 2022-01-01 | AJ11: 2022-02-01 | AK11: 2022-03-01 | AL11: 2022-04-01 | AM11: 2022-05-01 | AN11: 2022-06-01 | AO11: 2022-07-01 | AP11: 2022-08-01 | AQ11: 2022-09-01 | AR11: 2022-10-01 | AS11: 2022-11-01 | AT11: 2022-12-01 | AU11: 2023-01-01 | AV11: 2023-02-01 | AW11: 2023-03-01 | AX11: 2023-04-01 | AY11: 2023-05-01 | AZ11: 2023-06-01 | BA11: 2023-07-01 | BB11: 2023-08-01 | BC11: 2023-09-01 | BD11: 2023-10-01 | BE11: 2023-11-01 | BF11: 2023-12-01 | BG11: 2024-01-01 | BH11: 2024-02-01 | BI11: 2024-03-01 | BJ11: 2024-04-01 | BK11: 2024-05-01 | BL11: 2024-06-01 | BM11: 2024-07-01 | BN11: 2024-08-01 | BO11: 2024-09-01 | BP11: 2024-10-01 | BQ11: 2024-11-01 | BR11: 2024-12-01 | BS11: 2025-01-01 | BT11: 2025-02-01 | BU11: 2025-03-01 | BV11: 2025-04-01 | BW11: 2025-05-01 | BX11: 2025-06-01 | BY11: 2025-07-01 | BZ11: 2025-08-01 | CA11: 2025-09-01 | CB11: 2025-10-01 | CC11: 2025-11-01 | CD11: 2025-12-01 | CE11: 2026-01-01 | CF11: 2026-02-01 | CG11: 2026-03-01 | CH11: 2026-04-01
H12: тип листа | Q12: расчетный | X12: 2026-04-30 | AA12: 2021-05-31 | AB12: 2021-06-30 | AC12: 2021-07-31 | AD12: 2021-08-31 | AE12: 2021-09-30 | AF12: 2021-10-31 | AG12: 2021-11-30 | AH12: 2021-12-31 | AI12: 2022-01-31 | AJ12: 2022-02-28 | AK12: 2022-03-31 | AL12: 2022-04-30 | AM12: 2022-05-31 | AN12: 2022-06-30 | AO12: 2022-07-31 | AP12: 2022-08-31 | AQ12: 2022-09-30 | AR12: 2022-10-31 | AS12: 2022-11-30 | AT12: 2022-12-31 | AU12: 2023-01-31 | AV12: 2023-02-28 | AW12: 2023-03-31 | AX12: 2023-04-30 | AY12: 2023-05-31 | AZ12: 2023-06-30 | BA12: 2023-07-31 | BB12: 2023-08-31 | BC12: 2023-09-30 | BD12: 2023-10-31 | BE12: 2023-11-30 | BF12: 2023-12-31 | BG12: 2024-01-31 | BH12: 2024-02-29 | BI12: 2024-03-31 | BJ12: 2024-04-30 | BK12: 2024-05-31 | BL12: 2024-06-30 | BM12: 2024-07-31 | BN12: 2024-08-31 | BO12: 2024-09-30 | BP12: 2024-10-31 | BQ12: 2024-11-30 | BR12: 2024-12-31 | BS12: 2025-01-31 | BT12: 2025-02-28 | BU12: 2025-03-31 | BV12: 2025-04-30 | BW12: 2025-05-31 | BX12: 2025-06-30 | BY12: 2025-07-31 | BZ12: 2025-08-31 | CA12: 2025-09-30 | CB12: 2025-10-31 | CC12: 2025-11-30 | CD12: 2025-12-31 | CE12: 2026-01-31 | CF12: 2026-02-28 | CG12: 2026-03-31 | CH12: 2026-04-30
H13: показатель | M13: ед.изм. | Q13: значение | X13: итого | AA13: 2021-05-01 | AB13: 2021-06-01 | AC13: 2021-07-01 | AD13: 2021-08-01 | AE13: 2021-09-01 | AF13: 2021-10-01 | AG13: 2021-11-01 | AH13: 2021-12-01 | AI13: 2022-01-01 | AJ13: 2022-02-01 | AK13: 2022-03-01 | AL13: 2022-04-01 | AM13: 2022-05-01 | AN13: 2022-06-01 | AO13: 2022-07-01 | AP13: 2022-08-01 | AQ13: 2022-09-01 | AR13: 2022-10-01 | AS13: 2022-11-01 | AT13: 2022-12-01 | AU13: 2023-01-01 | AV13: 2023-02-01 | AW13: 2023-03-01 | AX13: 2023-04-01 | AY13: 2023-05-01 | AZ13: 2023-06-01 | BA13: 2023-07-01 | BB13: 2023-08-01 | BC13: 2023-09-01 | BD13: 2023-10-01 | BE13: 2023-11-01 | BF13: 2023-12-01 | BG13: 2024-01-01 | BH13: 2024-02-01 | BI13: 2024-03-01 | BJ13: 2024-04-01 | BK13: 2024-05-01 | BL13: 2024-06-01 | BM13: 2024-07-01 | BN13: 2024-08-01 | BO13: 2024-09-01 | BP13: 2024-10-01 | BQ13: 2024-11-01 | BR13: 2024-12-01 | BS13: 2025-01-01 | BT13: 2025-02-01 | BU13: 2025-03-01 | BV13: 2025-04-01 | BW13: 2025-05-01 | BX13: 2025-06-01 | BY13: 2025-07-01 | BZ13: 2025-08-01 | CA13: 2025-09-01 | CB13: 2025-10-01 | CC13: 2025-11-01 | CD13: 2025-12-01 | CE13: 2026-01-01 | CF13: 2026-02-01 | CG13: 2026-03-01 | CH13: 2026-04-01
D14: 0 | E14: 0 | F14: 0 | G14: 0 | S14: 0 | T14: 0
A15: 15 | Y15: обратный порядок периодизации | AA15: 73 | AB15: 72 | AC15: 71 | AD15: 70 | AE15: 69 | AF15: 68 | AG15: 67 | AH15: 66 | AI15: 65 | AJ15: 64 | AK15: 63 | AL15: 62 | AM15: 61 | AN15: 60 | AO15: 59 | AP15: 58 | AQ15: 57 | AR15: 56 | AS15: 55 | AT15: 54 | AU15: 53 | AV15: 52 | AW15: 51 | AX15: 50 | AY15: 49 | AZ15: 48 | BA15: 47 | BB15: 46 | BC15: 45 | BD15: 44 | BE15: 43 | BF15: 42 | BG15: 41 | BH15: 40 | BI15: 39 | BJ15: 38 | BK15: 37 | BL15: 36 | BM15: 35 | BN15: 34 | BO15: 33 | BP15: 32 | BQ15: 31 | BR15: 30 | BS15: 29 | BT15: 28 | BU15: 27 | BV15: 26 | BW15: 25 | BX15: 24 | BY15: 23 | BZ15: 22 | CA15: 21 | CB15: 20 | CC15: 19 | CD15: 18 | CE15: 17 | CF15: 16 | CG15: 15 | CH15: 14 | CI15: 13 | CJ15: 12 | CK15: 11 | CL15: 10 | CM15: 9 | CN15: 8 | CO15: 7 | CP15: 6 | CQ15: 5 | CR15: 4 | CS15: 3 | CT15: 2 | CU15: 1
A16: 16 | G16: 0 | H16: Метод расчета потока клиентов | K16: 1 | L16: Привлечение клиентов
A17: 17 | G17: 0 | H17: Метод расчета потока клиентов | I17: Производство СИЗ - Поток заказчиков | L17: начало 1 маркетингового блока
A18: 18
A19: 19 | G19: 0 | H19: Поток запусков создания производства СИЗ | L19: 1 | M19: кол-во произв-тв | Q19: запуски процесса | X19: 1 | AA19: 1 | AB19: 0 | AC19: 0 | AD19: 0 | AE19: 0 | AF19: 0 | AG19: 0 | AH19: 0 | AI19: 0 | AJ19: 0 | AK19: 0 | AL19: 0 | AM19: 0 | AN19: 0 | AO19: 0 | AP19: 0 | AQ19: 0 | AR19: 0 | AS19: 0 | AT19: 0 | AU19: 0 | AV19: 0 | AW19: 0 | AX19: 0 | AY19: 0 | AZ19: 0 | BA19: 0 | BB19: 0 | BC19: 0 | BD19: 0 | BE19: 0 | BF19: 0 | BG19: 0 | BH19: 0 | BI19: 0 | BJ19: 0 | BK19: 0 | BL19: 0 | BM19: 0 | BN19: 0 | BO19: 0 | BP19: 0 | BQ19: 0 | BR19: 0 | BS19: 0 | BT19: 0 | BU19: 0 | BV19: 0 | BW19: 0 | BX19: 0 | BY19: 0 | BZ19: 0 | CA19: 0 | CB19: 0 | CC19: 0 | CD19: 0 | CE19: 0 | CF19: 0 | CG19: 0 | CH19: 0 | CI19: 0 | CJ19: 0 | CK19: 0 | CL19: 0 | CM19: 0 | CN19: 0 | CO19: 0 | CP19: 0 | CQ19: 0 | CR19: 0 | CS19: 0 | CT19: 0 | CU19: 0
A20: 20 | G20: 0 | H20: дата старта | I20: Начальная дата старта запусков создания | M20: дата из списка | P20: * | Q20: 2021-05-01 | R20: ^ | S20: 0 | Y20: идентификаторы запуска | AA20: 1 | AB20: 0 | AC20: 0 | AD20: 0 | AE20: 0 | AF20: 0 | AG20: 0 | AH20: 0 | AI20: 0 | AJ20: 0 | AK20: 0 | AL20: 0 | AM20: 0 | AN20: 0 | AO20: 0 | AP20: 0 | AQ20: 0 | AR20: 0 | AS20: 0 | AT20: 0 | AU20: 0 | AV20: 0 | AW20: 0 | AX20: 0 | AY20: 0 | AZ20: 0 | BA20: 0 | BB20: 0 | BC20: 0 | BD20: 0 | BE20: 0 | BF20: 0 | BG20: 0 | BH20: 0 | BI20: 0 | BJ20: 0 | BK20: 0 | BL20: 0 | BM20: 0 | BN20: 0 | BO20: 0 | BP20: 0 | BQ20: 0 | BR20: 0 | BS20: 0 | BT20: 0 | BU20: 0 | BV20: 0 | BW20: 0 | BX20: 0 | BY20: 0 | BZ20: 0 | CA20: 0 | CB20: 0 | CC20: 0 | CD20: 0 | CE20: 0 | CF20: 0 | CG20: 0 | CH20: 0 | CI20: 0 | CJ20: 0 | CK20: 0 | CL20: 0 | CM20: 0 | CN20: 0 | CO20: 0 | CP20: 0 | CQ20: 0 | CR20: 0 | CS20: 0 | CT20: 0 | CU20: 0
A21: 21 | G21: 0 | H21: Поток запусков создания производства СИЗ | I21: номер соответствующего периода расчетов | M21: номер периода | Q21: 1 | S21: 0 | T21: 0
A22: 22 | G22: 0 | H22: дата старта | I22: Конечная дата активности по запуску создания | M22: дата из списка | P22: * | Q22: 2021-05-01 | R22: ^ | S22: 0
A23: 23 | G23: 0 | H23: Поток запусков создания производства СИЗ | I23: номер соответствующего периода расчетов | M23: номер периода | Q23: 1 | S23: 0 | T23: 0
A24: 24 | G24: 0 | H24: Поток запусков создания производства СИЗ | I24: Задание потока запусков создания вручную | M24: кол-во произв-тв | X24: 0 | Y24: *
A25: 25 | G25: 0 | H25: Поток запусков создания производства СИЗ | I25: Задание потока запусков создания через прогрессии
A26: 26 | G26: 0 | H26: Поток запусков создания производства СИЗ | I26: Задание потока запусков создания через прогрессии | J26: Начальная частота запусков создания | M26: кол-во периодов | P26: * | Q26: 1 | S26: 0
A27: 27 | G27: 0 | H27: Поток запусков создания производства СИЗ | I27: Задание потока запусков создания через прогрессии | J27: Лин. коэфф. изменения частоты создания | M27: кол-во периодов | P27: * | Q27: 0 | S27: 0
A28: 28 | G28: 0 | H28: дата старта | I28: Задание потока запусков создания через прогрессии | J28: Кол-во запусков создания в 1-ый период | M28: кол-во произв-тв | P28: * | Q28: 1 | S28: 0
A29: 29 | G29: 0 | H29: Поток запусков создания производства СИЗ | I29: Задание потока запусков создания через прогрессии | J29: Лин. коэфф. изменения кол-ва запусков создания | M29: кол-во произв-тв | P29: * | Q29: 1 | S29: 0
A30: 30 | G30: 0 | H30: дата старта | I30: Задание потока запусков создания через прогрессии | J30: Максимальное кол-во новых запусков за период | M30: кол-во произв-тв | P30: * | Q30: 5 | S30: 0
A31: 31
A32: 32 | G32: 0 | H32: Расчет максим. произв. мощности за месяц | M32: шт/месяц | Q32: 12050000 | T32: 0
A33: 33 | G33: 0 | H33: дата старта | I33: Полумаски FFP1 | M33: шт/месяц | P33: * | Q33: 800000 | S33: 0
A34: 34 | G34: 0 | H34: 0 | I34: Полумаски FFP2 | M34: шт/месяц | P34: * | Q34: 200000 | S34: 0
A35: 35 | G35: 0 | H35: Расчет максим. произв. мощности за месяц | I35: Полумаски FFP3 | M35: шт/месяц | P35: * | Q35: 450000 | S35: 0
A36: 36 | G36: 0 | H36: дата старта | I36: Полумаски FFP4 | M36: шт/месяц | P36: * | Q36: 600000 | S36: 0
A37: 37 | G37: 0 | H37: 0 | I37: Маски медицинские | M37: шт/месяц | P37: * | Q37: 8500000 | S37: 0
A38: 38 | G38: 0 | H38: Расчет максим. произв. мощности за месяц | I38: Маски гигиенические | M38: шт/месяц | P38: * | Q38: 1500000 | S38: 0
A39: 39
A40: 40 | G40: 0 | H40: Динамика выхода на максим. произв. мощность | M40: шт/месяц | Q40: процесс | X40: 434800000 | AA40: 0 | AB40: 0 | AC40: 0 | AD40: 0 | AE40: 200000 | AF40: 500000 | AG40: 800000 | AH40: 1100000 | AI40: 1400000 | AJ40: 1700000 | AK40: 2000000 | AL40: 2300000 | AM40: 2600000 | AN40: 2900000 | AO40: 3200000 | AP40: 3500000 | AQ40: 3800000 | AR40: 4100000 | AS40: 4400000 | AT40: 4700000 | AU40: 5000000 | AV40: 5300000 | AW40: 5600000 | AX40: 5900000 | AY40: 6200000 | AZ40: 6500000 | BA40: 6800000 | BB40: 7100000 | BC40: 7400000 | BD40: 7700000 | BE40: 8000000 | BF40: 8300000 | BG40: 8600000 | BH40: 8900000 | BI40: 9200000 | BJ40: 9500000 | BK40: 9800000 | BL40: 10100000 | BM40: 10400000 | BN40: 10700000 | BO40: 11000000 | BP40: 11300000 | BQ40: 11600000 | BR40: 11900000 | BS40: 12050000 | BT40: 12050000 | BU40: 12050000 | BV40: 12050000 | BW40: 12050000 | BX40: 12050000 | BY40: 12050000 | BZ40: 12050000 | CA40: 12050000 | CB40: 12050000 | CC40: 12050000 | CD40: 12050000 | CE40: 12050000 | CF40: 12050000 | CG40: 12050000 | CH40: 12050000 | CI40: 0 | CJ40: 0 | CK40: 0 | CL40: 0 | CM40: 0 | CN40: 0 | CO40: 0 | CP40: 0 | CQ40: 0 | CR40: 0 | CS40: 0 | CT40: 0 | CU40: 0
A41: 41 | G41: 0 | H41: Динамика выхода на максим. произв. мощность | I41: Стартовый период с запуска создания | M41: номер периода | P41: * | Q41: 5 | S41: 0
A42: 42 | G42: 0 | H42: Динамика выхода на максим. произв. мощность | I42: Финишный период с запуска создания | M42: номер периода | P42: * | S42: 0
A43: 43 | G43: 0 | H43: Динамика выхода на максим. произв. мощность | I43: Вручную для каждого периода расчетов | M43: шт/месяц | X43: 0 | Y43: *
A44: 44 | G44: 0 | H44: тип прогрессии | I44: Через прогрессию | P44: * | Q44: линейная | R44: ^ | S44: 0
A45: 45 | G45: 0 | H45: Динамика выхода на максим. произв. мощность | I45: Значение в стартовый период | M45: шт/месяц | P45: M | Q45: 200000 | S45: 0
A46: 46 | G46: 0 | H46: Динамика выхода на максим. произв. мощность | I46: Коэффициент прироста | M46: шт/месяц | P46: M | Q46: 300000 | S46: 0
A47: 47 | G47: 0 | H47: Динамика выхода на максим. произв. мощность | I47: Частота приростов | M47: кол-во периодов | P47: M | Q47: 1 | S47: 0
A48: 48 | G48: 0 | H48: Динамика выхода на максим. произв. мощность | I48: Обратное распределение трафика | M48: шт/месяц | X48: 434800000 | AA48: 0 | AB48: 0 | AC48: 0 | AD48: 0 | AE48: 0 | AF48: 0 | AG48: 0 | AH48: 0 | AI48: 0 | AJ48: 0 | AK48: 0 | AL48: 0 | AM48: 0 | AN48: 12050000 | AO48: 12050000 | AP48: 12050000 | AQ48: 12050000 | AR48: 12050000 | AS48: 12050000 | AT48: 12050000 | AU48: 12050000 | AV48: 12050000 | AW48: 12050000 | AX48: 12050000 | AY48: 12050000 | AZ48: 12050000 | BA48: 12050000 | BB48: 12050000 | BC48: 12050000 | BD48: 11900000 | BE48: 11600000 | BF48: 11300000 | BG48: 11000000 | BH48: 10700000 | BI48: 10400000 | BJ48: 10100000 | BK48: 9800000 | BL48: 9500000 | BM48: 9200000 | BN48: 8900000 | BO48: 8600000 | BP48: 8300000 | BQ48: 8000000 | BR48: 7700000 | BS48: 7400000 | BT48: 7100000 | BU48: 6800000 | BV48: 6500000 | BW48: 6200000 | BX48: 5900000 | BY48: 5600000 | BZ48: 5300000 | CA48: 5000000 | CB48: 4700000 | CC48: 4400000 | CD48: 4100000 | CE48: 3800000 | CF48: 3500000 | CG48: 3200000 | CH48: 2900000 | CI48: 2600000 | CJ48: 2300000 | CK48: 2000000 | CL48: 1700000 | CM48: 1400000 | CN48: 1100000 | CO48: 800000 | CP48: 500000 | CQ48: 200000 | CR48: 0 | CS48: 0 | CT48: 0 | CU48: 0
A49: 49 | G49: 0 | H49: Динамика выхода на максим. произв. мощность | I49: Процентное распределние трафика | M49: % | T49: 0 | X49: 1 | AA49: 0 | AB49: 0 | AC49: 0 | AD49: 0 | AE49: 0.0004599816007 | AF49: 0.001149954002 | AG49: 0.001839926403 | AH49: 0.002529898804 | AI49: 0.003219871205 | AJ49: 0.003909843606 | AK49: 0.004599816007 | AL49: 0.005289788408 | AM49: 0.00597976081 | AN49: 0.006669733211 | AO49: 0.007359705612 | AP49: 0.008049678013 | AQ49: 0.008739650414 | AR49: 0.009429622815 | AS49: 0.01011959522 | AT49: 0.01080956762 | AU49: 0.01149954002 | AV49: 0.01218951242 | AW49: 0.01287948482 | AX49: 0.01356945722 | AY49: 0.01425942962 | AZ49: 0.01494940202 | BA49: 0.01563937443 | BB49: 0.01632934683 | BC49: 0.01701931923 | BD49: 0.01770929163 | BE49: 0.01839926403 | BF49: 0.01908923643 | BG49: 0.01977920883 | BH49: 0.02046918123 | BI49: 0.02115915363 | BJ49: 0.02184912603 | BK49: 0.02253909844 | BL49: 0.02322907084 | BM49: 0.02391904324 | BN49: 0.02460901564 | BO49: 0.02529898804 | BP49: 0.02598896044 | BQ49: 0.02667893284 | BR49: 0.02736890524 | BS49: 0.02771389144 | BT49: 0.02771389144 | BU49: 0.02771389144 | BV49: 0.02771389144 | BW49: 0.02771389144 | BX49: 0.02771389144 | BY49: 0.02771389144 | BZ49: 0.02771389144 | CA49: 0.02771389144 | CB49: 0.02771389144 | CC49: 0.02771389144 | CD49: 0.02771389144 | CE49: 0.02771389144 | CF49: 0.02771389144 | CG49: 0.02771389144 | CH49: 0.02771389144 | CI49: 0 | CJ49: 0 | CK49: 0 | CL49: 0 | CM49: 0 | CN49: 0 | CO49: 0 | CP49: 0 | CQ49: 0 | CR49: 0 | CS49: 0 | CT49: 0 | CU49: 0
A50: 50
A51: 51 | G51: 0 | H51: Учет влияния сезонности | M51: за 100% берется максимальный трафик за период
A52: 52 | G52: 0 | H52: Учет влияния сезонности | I52: Номера месяцев года
A53: 53 | G53: 0 | H53: Учет влияния сезонности | I53: Номера месяцев года | J53: 1 | M53: % | P53: * | Q53: 0.3 | S53: 0
A54: 54 | G54: 0 | H54: Учет влияния сезонности | I54: Номера месяцев года | J54: 2 | M54: % | P54: * | Q54: 0.4 | S54: 0
A55: 55 | G55: 0 | H55: Учет влияния сезонности | I55: Номера месяцев года | J55: 3 | M55: % | P55: * | Q55: 0.6 | S55: 0
A56: 56 | G56: 0 | H56: Учет влияния сезонности | I56: Номера месяцев года | J56: 4 | M56: % | P56: * | Q56: 0.7 | S56: 0
A57: 57 | G57: 0 | H57: Учет влияния сезонности | I57: Номера месяцев года | J57: 5 | M57: % | P57: * | Q57: 0.7 | S57: 0
A58: 58 | G58: 0 | H58: Учет влияния сезонности | I58: Номера месяцев года | J58: 6 | M58: % | P58: * | Q58: 0.65 | S58: 0
A59: 59 | G59: 0 | H59: Учет влияния сезонности | I59: Номера месяцев года | J59: 7 | M59: % | P59: * | Q59: 0.5 | S59: 0
A60: 60 | G60: 0 | H60: Учет влияния сезонности | I60: Номера месяцев года | J60: 8 | M60: % | P60: * | Q60: 0.7 | S60: 0
A61: 61 | G61: 0 | H61: Учет влияния сезонности | I61: Номера месяцев года | J61: 9 | M61: % | P61: * | Q61: 0.8 | S61: 0
A62: 62 | G62: 0 | H62: Учет влияния сезонности | I62: Номера месяцев года | J62: 10 | M62: % | P62: * | Q62: 0.75 | S62: 0
A63: 63 | G63: 0 | H63: Учет влияния сезонности | I63: Номера месяцев года | J63: 11 | M63: % | P63: * | Q63: 0.6 | S63: 0
A64: 64 | G64: 0 | H64: Учет влияния сезонности | I64: Номера месяцев года | J64: 12 | M64: % | P64: * | Q64: 0.5 | S64: 0
A65: 65
A66: 66 | G66: 0 | H66: Трафик потребности в СИЗ, шт | L66: 1 | M66: шт/месяц | X66: 258495000 | AA66: 0 | AB66: 0 | AC66: 0 | AD66: 0 | AE66: 160000 | AF66: 375000 | AG66: 480000 | AH66: 550000 | AI66: 420000 | AJ66: 680000 | AK66: 1200000 | AL66: 1610000 | AM66: 1820000 | AN66: 1885000 | AO66: 1600000 | AP66: 2450000 | AQ66: 3040000 | AR66: 3075000 | AS66: 2640000 | AT66: 2350000 | AU66: 1500000 | AV66: 2120000 | AW66: 3360000 | AX66: 4130000 | AY66: 4340000 | AZ66: 4225000 | BA66: 3400000 | BB66: 4970000 | BC66: 5920000 | BD66: 5775000 | BE66: 4800000 | BF66: 4150000 | BG66: 2580000 | BH66: 3560000 | BI66: 5520000 | BJ66: 6650000 | BK66: 6860000 | BL66: 6565000 | BM66: 5200000 | BN66: 7490000 | BO66: 8800000 | BP66: 8475000 | BQ66: 6960000 | BR66: 5950000 | BS66: 3615000 | BT66: 4820000 | BU66: 7230000 | BV66: 8435000 | BW66: 8435000 | BX66: 7832500 | BY66: 6025000 | BZ66: 8435000 | CA66: 9640000 | CB66: 9037500 | CC66: 7230000 | CD66: 6025000 | CE66: 3615000 | CF66: 4820000 | CG66: 7230000 | CH66: 8435000 | CI66: 0 | CJ66: 0 | CK66: 0 | CL66: 0 | CM66: 0 | CN66: 0 | CO66: 0 | CP66: 0 | CQ66: 0 | CR66: 0 | CS66: 0 | CT66: 0 | CU66: 0
A67: 67
A68: 68 | G68: 0 | H68: Конверсия в заказ | L68: 1 | M68: % | X68: 0.9452494246 | AA68: 0.3 | AB68: 0.35 | AC68: 0.4 | AD68: 0.45 | AE68: 0.5 | AF68: 0.55 | AG68: 0.6 | AH68: 0.65 | AI68: 0.7 | AJ68: 0.75 | AK68: 0.8 | AL68: 0.85 | AM68: 0.9 | AN68: 0.95 | AO68: 0.95 | AP68: 0.95 | AQ68: 0.95 | AR68: 0.95 | AS68: 0.95 | AT68: 0.95 | AU68: 0.95 | AV68: 0.95 | AW68: 0.95 | AX68: 0.95 | AY68: 0.95 | AZ68: 0.95 | BA68: 0.95 | BB68: 0.95 | BC68: 0.95 | BD68: 0.95 | BE68: 0.95 | BF68: 0.95 | BG68: 0.95 | BH68: 0.95 | BI68: 0.95 | BJ68: 0.95 | BK68: 0.95 | BL68: 0.95 | BM68: 0.95 | BN68: 0.95 | BO68: 0.95 | BP68: 0.95 | BQ68: 0.95 | BR68: 0.95 | BS68: 0.95 | BT68: 0.95 | BU68: 0.95 | BV68: 0.95 | BW68: 0.95 | BX68: 0.95 | BY68: 0.95 | BZ68: 0.95 | CA68: 0.95 | CB68: 0.95 | CC68: 0.95 | CD68: 0.95 | CE68: 0.95 | CF68: 0.95 | CG68: 0.95 | CH68: 0.95 | CI68: 0 | CJ68: 0 | CK68: 0 | CL68: 0 | CM68: 0 | CN68: 0 | CO68: 0 | CP68: 0 | CQ68: 0 | CR68: 0 | CS68: 0 | CT68: 0 | CU68: 0
A69: 69 | G69: 0 | H69: Конверсия в заказ | I69: Единое значение для всех периодов расчета | M69: % | P69: * | S69: 0
A70: 70 | G70: 0 | H70: Конверсия в заказ | I70: Вручную для каждого периода расчетов | M70: % | X70: 0 | Y70: *
A71: 71 | G71: 0 | H71: тип прогрессии | I71: Через прогрессию | P71: * | Q71: линейная | R71: ^ | S71: 0
A72: 72 | G72: 0 | H72: Конверсия в заказ | I72: Значение в стартовый период | M72: % | P72: * | Q72: 0.3 | S72: 0
A73: 73 | G73: 0 | H73: Конверсия в заказ | I73: Коэффициент прироста | M73: % | P73: * | Q73: 0.05 | S73: 0
A74: 74 | G74: 0 | H74: Конверсия в заказ | I74: Частота приростов | M74: кол-во периодов | P74: * | Q74: 1 | S74: 0
A75: 75 | G75: 0 | H75: Конверсия в заказ | I75: Максимальное значение | M75: % | P75: * | Q75: 0.95 | S75: 0
A76: 76
A77: 77 | G77: 0 | H77: Поток потенциальных заказов | L77: 1 | M77: шт | T77: 0 | X77: 244342250 | AA77: 0 | AB77: 0 | AC77: 0 | AD77: 0 | AE77: 80000 | AF77: 206250 | AG77: 288000 | AH77: 357500 | AI77: 294000 | AJ77: 510000 | AK77: 960000 | AL77: 1368500 | AM77: 1638000 | AN77: 1790750 | AO77: 1520000 | AP77: 2327500 | AQ77: 2888000 | AR77: 2921250 | AS77: 2508000 | AT77: 2232500 | AU77: 1425000 | AV77: 2014000 | AW77: 3192000 | AX77: 3923500 | AY77: 4123000 | AZ77: 4013750 | BA77: 3230000 | BB77: 4721500 | BC77: 5624000 | BD77: 5486250 | BE77: 4560000 | BF77: 3942500 | BG77: 2451000 | BH77: 3382000 | BI77: 5244000 | BJ77: 6317500 | BK77: 6517000 | BL77: 6236750 | BM77: 4940000 | BN77: 7115500 | BO77: 8360000 | BP77: 8051250 | BQ77: 6612000 | BR77: 5652500 | BS77: 3434250 | BT77: 4579000 | BU77: 6868500 | BV77: 8013250 | BW77: 8013250 | BX77: 7440875 | BY77: 5723750 | BZ77: 8013250 | CA77: 9158000 | CB77: 8585625 | CC77: 6868500 | CD77: 5723750 | CE77: 3434250 | CF77: 4579000 | CG77: 6868500 | CH77: 8013250 | CI77: 0 | CJ77: 0 | CK77: 0 | CL77: 0 | CM77: 0 | CN77: 0 | CO77: 0 | CP77: 0 | CQ77: 0 | CR77: 0 | CS77: 0 | CT77: 0 | CU77: 0
A78: 78 | G78: 0 | H78: Поток потенциальных заказов | I78: Полумаски FFP1 | L78: 1 | M78: шт | T78: 0 | X78: 16221892.12 | AA78: 0 | AB78: 0 | AC78: 0 | AD78: 0 | AE78: 5311.20332 | AF78: 13692.94606 | AG78: 19120.33195 | AH78: 23734.43983 | AI78: 19518.6722 | AJ78: 33858.92116 | AK78: 63734.43983 | AL78: 90854.77178 | AM78: 108746.888 | AN78: 118887.9668 | AO78: 100912.8631 | AP78: 154522.8216 | AQ78: 191734.4398 | AR78: 193941.9087 | AS78: 166506.2241 | AT78: 148215.7676 | AU78: 94605.80913 | AV78: 133709.5436 | AW78: 211917.0124 | AX78: 260481.3278 | AY78: 273726.1411 | AZ78: 266473.029 | BA78: 214439.834 | BB78: 313460.5809 | BC78: 373377.5934 | BD78: 364232.3651 | BE78: 302738.5892 | BF78: 261742.7386 | BG78: 162721.9917 | BH78: 224531.1203 | BI78: 348149.3776 | BJ78: 419419.0871 | BK78: 432663.9004 | BL78: 414058.0913 | BM78: 327966.805 | BN78: 472398.3402 | BO78: 555020.7469 | BP78: 534522.8216 | BQ78: 438970.9544 | BR78: 375269.7095 | BS78: 228000 | BT78: 304000 | BU78: 456000 | BV78: 532000 | BW78: 532000 | BX78: 494000 | BY78: 380000 | BZ78: 532000 | CA78: 608000 | CB78: 570000 | CC78: 456000 | CD78: 380000 | CE78: 228000 | CF78: 304000 | CG78: 456000 | CH78: 532000 | CI78: 0 | CJ78: 0 | CK78: 0 | CL78: 0 | CM78: 0 | CN78: 0 | CO78: 0 | CP78: 0 | CQ78: 0 | CR78: 0 | CS78: 0 | CT78: 0 | CU78: 0
A79: 79 | G79: 0 | H79: Поток потенциальных заказов | I79: Полумаски FFP2 | L79: 1 | M79: шт | T79: 0 | X79: 4055473.029 | AA79: 0 | AB79: 0 | AC79: 0 | AD79: 0 | AE79: 1327.80083 | AF79: 3423.236515 | AG79: 4780.082988 | AH79: 5933.609959 | AI79: 4879.66805 | AJ79: 8464.73029 | AK79: 15933.60996 | AL79: 22713.69295 | AM79: 27186.72199 | AN79: 29721.9917 | AO79: 25228.21577 | AP79: 38630.70539 | AQ79: 47933.60996 | AR79: 48485.47718 | AS79: 41626.55602 | AT79: 37053.94191 | AU79: 23651.45228 | AV79: 33427.38589 | AW79: 52979.25311 | AX79: 65120.33195 | AY79: 68431.53527 | AZ79: 66618.25726 | BA79: 53609.95851 | BB79: 78365.14523 | BC79: 93344.39834 | BD79: 91058.09129 | BE79: 75684.6473 | BF79: 65435.68465 | BG79: 40680.49793 | BH79: 56132.78008 | BI79: 87037.3444 | BJ79: 104854.7718 | BK79: 108165.9751 | BL79: 103514.5228 | BM79: 81991.70124 | BN79: 118099.5851 | BO79: 138755.1867 | BP79: 133630.7054 | BQ79: 109742.7386 | BR79: 93817.42739 | BS79: 57000 | BT79: 76000 | BU79: 114000 | BV79: 133000 | BW79: 133000 | BX79: 123500 | BY79: 95000 | BZ79: 133000 | CA79: 152000 | CB79: 142500 | CC79: 114000 | CD79: 95000 | CE79: 57000 | CF79: 76000 | CG79: 114000 | CH79: 133000 | CI79: 0 | CJ79: 0 | CK79: 0 | CL79: 0 | CM79: 0 | CN79: 0 | CO79: 0 | CP79: 0 | CQ79: 0 | CR79: 0 | CS79: 0 | CT79: 0 | CU79: 0
A80: 80 | G80: 0 | H80: Поток потенциальных заказов | I80: Полумаски FFP3 | L80: 1 | M80: шт | T80: 0 | X80: 9124814.315 | AA80: 0 | AB80: 0 | AC80: 0 | AD80: 0 | AE80: 2987.551867 | AF80: 7702.282158 | AG80: 10755.18672 | AH80: 13350.62241 | AI80: 10979.25311 | AJ80: 19045.64315 | AK80: 35850.62241 | AL80: 51105.80913 | AM80: 61170.12448 | AN80: 66874.48133 | AO80: 56763.48548 | AP80: 86919.08714 | AQ80: 107850.6224 | AR80: 109092.3237 | AS80: 93659.75104 | AT80: 83371.36929 | AU80: 53215.76763 | AV80: 75211.61826 | AW80: 119203.3195 | AX80: 146520.7469 | AY80: 153970.9544 | AZ80: 149891.0788 | BA80: 120622.4066 | BB80: 176321.5768 | BC80: 210024.8963 | BD80: 204880.7054 | BE80: 170290.4564 | BF80: 147230.2905 | BG80: 91531.12033 | BH80: 126298.7552 | BI80: 195834.0249 | BJ80: 235923.2365 | BK80: 243373.444 | BL80: 232907.6763 | BM80: 184481.3278 | BN80: 265724.0664 | BO80: 312199.1701 | BP80: 300669.0871 | BQ80: 246921.1618 | BR80: 211089.2116 | BS80: 128250 | BT80: 171000 | BU80: 256500 | BV80: 299250 | BW80: 299250 | BX80: 277875 | BY80: 213750 | BZ80: 299250 | CA80: 342000 | CB80: 320625 | CC80: 256500 | CD80: 213750 | CE80: 128250 | CF80: 171000 | CG80: 256500 | CH80: 299250 | CI80: 0 | CJ80: 0 | CK80: 0 | CL80: 0 | CM80: 0 | CN80: 0 | CO80: 0 | CP80: 0 | CQ80: 0 | CR80: 0 | CS80: 0 | CT80: 0 | CU80: 0
A81: 81 | G81: 0 | H81: Поток потенциальных заказов | I81: Полумаски FFP4 | L81: 1 | M81: шт | T81: 0 | X81: 12166419.09 | AA81: 0 | AB81: 0 | AC81: 0 | AD81: 0 | AE81: 3983.40249 | AF81: 10269.70954 | AG81: 14340.24896 | AH81: 17800.82988 | AI81: 14639.00415 | AJ81: 25394.19087 | AK81: 47800.82988 | AL81: 68141.07884 | AM81: 81560.16598 | AN81: 89165.9751 | AO81: 75684.6473 | AP81: 115892.1162 | AQ81: 143800.8299 | AR81: 145456.4315 | AS81: 124879.668 | AT81: 111161.8257 | AU81: 70954.35685 | AV81: 100282.1577 | AW81: 158937.7593 | AX81: 195360.9959 | AY81: 205294.6058 | AZ81: 199854.7718 | BA81: 160829.8755 | BB81: 235095.4357 | BC81: 280033.195 | BD81: 273174.2739 | BE81: 227053.9419 | BF81: 196307.0539 | BG81: 122041.4938 | BH81: 168398.3402 | BI81: 261112.0332 | BJ81: 314564.3154 | BK81: 324497.9253 | BL81: 310543.5685 | BM81: 245975.1037 | BN81: 354298.7552 | BO81: 416265.5602 | BP81: 400892.1162 | BQ81: 329228.2158 | BR81: 281452.2822 | BS81: 171000 | BT81: 228000 | BU81: 342000 | BV81: 399000 | BW81: 399000 | BX81: 370500 | BY81: 285000 | BZ81: 399000 | CA81: 456000 | CB81: 427500 | CC81: 342000 | CD81: 285000 | CE81: 171000 | CF81: 228000 | CG81: 342000 | CH81: 399000 | CI81: 0 | CJ81: 0 | CK81: 0 | CL81: 0 | CM81: 0 | CN81: 0 | CO81: 0 | CP81: 0 | CQ81: 0 | CR81: 0 | CS81: 0 | CT81: 0 | CU81: 0
A82: 82 | G82: 0 | H82: Поток потенциальных заказов | I82: Маски медицинские | L82: 1 | M82: шт | T82: 0 | X82: 172357603.7 | AA82: 0 | AB82: 0 | AC82: 0 | AD82: 0 | AE82: 56431.53527 | AF82: 145487.5519 | AG82: 203153.527 | AH82: 252178.4232 | AI82: 207385.8921 | AJ82: 359751.0373 | AK82: 677178.4232 | AL82: 965331.9502 | AM82: 1155435.685 | AN82: 1263184.647 | AO82: 1072199.17 | AP82: 1641804.979 | AQ82: 2037178.423 | AR82: 2060632.78 | AS82: 1769128.631 | AT82: 1574792.531 | AU82: 1005186.722 | AV82: 1420663.9 | AW82: 2251618.257 | AX82: 2767614.108 | AY82: 2908340.249 | AZ82: 2831275.934 | BA82: 2278423.237 | BB82: 3330518.672 | BC82: 3967136.929 | BD82: 3869968.88 | BE82: 3216597.51 | BF82: 2781016.598 | BG82: 1728921.162 | BH82: 2385643.154 | BI82: 3699087.137 | BJ82: 4456327.801 | BK82: 4597053.942 | BL82: 4399367.22 | BM82: 3484647.303 | BN82: 5019232.365 | BO82: 5897095.436 | BP82: 5679304.979 | BQ82: 4664066.39 | BR82: 3987240.664 | BS82: 2422500 | BT82: 3230000 | BU82: 4845000 | BV82: 5652500 | BW82: 5652500 | BX82: 5248750 | BY82: 4037500 | BZ82: 5652500 | CA82: 6460000 | CB82: 6056250 | CC82: 4845000 | CD82: 4037500 | CE82: 2422500 | CF82: 3230000 | CG82: 4845000 | CH82: 5652500 | CI82: 0 | CJ82: 0 | CK82: 0 | CL82: 0 | CM82: 0 | CN82: 0 | CO82: 0 | CP82: 0 | CQ82: 0 | CR82: 0 | CS82: 0 | CT82: 0 | CU82: 0
A83: 83 | G83: 0 | H83: Поток потенциальных заказов | I83: Маски гигиенические | L83: 1 | M83: шт | T83: 0 | X83: 30416047.72 | AA83: 0 | AB83: 0 | AC83: 0 | AD83: 0 | AE83: 9958.506224 | AF83: 25674.27386 | AG83: 35850.62241 | AH83: 44502.07469 | AI83: 36597.51037 | AJ83: 63485.47718 | AK83: 119502.0747 | AL83: 170352.6971 | AM83: 203900.4149 | AN83: 222914.9378 | AO83: 189211.6183 | AP83: 289730.2905 | AQ83: 359502.0747 | AR83: 363641.0788 | AS83: 312199.1701 | AT83: 277904.5643 | AU83: 177385.8921 | AV83: 250705.3942 | AW83: 397344.3983 | AX83: 488402.4896 | AY83: 513236.5145 | AZ83: 499636.9295 | BA83: 402074.6888 | BB83: 587738.5892 | BC83: 700082.9876 | BD83: 682935.6846 | BE83: 567634.8548 | BF83: 490767.6349 | BG83: 305103.7344 | BH83: 420995.8506 | BI83: 652780.083 | BJ83: 786410.7884 | BK83: 811244.8133 | BL83: 776358.9212 | BM83: 614937.7593 | BN83: 885746.888 | BO83: 1040663.9 | BP83: 1002230.29 | BQ83: 823070.5394 | BR83: 703630.7054 | BS83: 427500 | BT83: 570000 | BU83: 855000 | BV83: 997500 | BW83: 997500 | BX83: 926250 | BY83: 712500 | BZ83: 997500 | CA83: 1140000 | CB83: 1068750 | CC83: 855000 | CD83: 712500 | CE83: 427500 | CF83: 570000 | CG83: 855000 | CH83: 997500 | CI83: 0 | CJ83: 0 | CK83: 0 | CL83: 0 | CM83: 0 | CN83: 0 | CO83: 0 | CP83: 0 | CQ83: 0 | CR83: 0 | CS83: 0 | CT83: 0 | CU83: 0
A84: 84 | L84: пустая строка
A85: 85
A86: 86 | G86: 0 | H86: Долевое распределение продукции
A87: 87 | G87: 0 | H87: продукция | I87: Разница между 100% и суммой % | M87: % | P87: * | Q87: Полумаски FFP1 | R87: ^ | S87: 0 | T87: 0 | X87: 0.06639004149 | AA87: 0.06639004149 | AB87: 0.06639004149 | AC87: 0.06639004149 | AD87: 0.06639004149 | AE87: 0.06639004149 | AF87: 0.06639004149 | AG87: 0.06639004149 | AH87: 0.06639004149 | AI87: 0.06639004149 | AJ87: 0.06639004149 | AK87: 0.06639004149 | AL87: 0.06639004149 | AM87: 0.06639004149 | AN87: 0.06639004149 | AO87: 0.06639004149 | AP87: 0.06639004149 | AQ87: 0.06639004149 | AR87: 0.06639004149 | AS87: 0.06639004149 | AT87: 0.06639004149 | AU87: 0.06639004149 | AV87: 0.06639004149 | AW87: 0.06639004149 | AX87: 0.06639004149 | AY87: 0.06639004149 | AZ87: 0.06639004149 | BA87: 0.06639004149 | BB87: 0.06639004149 | BC87: 0.06639004149 | BD87: 0.06639004149 | BE87: 0.06639004149 | BF87: 0.06639004149 | BG87: 0.06639004149 | BH87: 0.06639004149 | BI87: 0.06639004149 | BJ87: 0.06639004149 | BK87: 0.06639004149 | BL87: 0.06639004149 | BM87: 0.06639004149 | BN87: 0.06639004149 | BO87: 0.06639004149 | BP87: 0.06639004149 | BQ87: 0.06639004149 | BR87: 0.06639004149 | BS87: 0.06639004149 | BT87: 0.06639004149 | BU87: 0.06639004149 | BV87: 0.06639004149 | BW87: 0.06639004149 | BX87: 0.06639004149 | BY87: 0.06639004149 | BZ87: 0.06639004149 | CA87: 0.06639004149 | CB87: 0.06639004149 | CC87: 0.06639004149 | CD87: 0.06639004149 | CE87: 0.06639004149 | CF87: 0.06639004149 | CG87: 0.06639004149 | CH87: 0.06639004149 | CI87: 0.06639004149 | CJ87: 0.06639004149 | CK87: 0.06639004149 | CL87: 0.06639004149 | CM87: 0.06639004149 | CN87: 0.06639004149 | CO87: 0.06639004149 | CP87: 0.06639004149 | CQ87: 0.06639004149 | CR87: 0.06639004149 | CS87: 0.06639004149 | CT87: 0.06639004149 | CU87: 0.06639004149
A88: 88 | G88: 0 | H88: продукция | I88: Вручную для каждого периода расчетов | M88: % | P88: * | Q88: Полумаски FFP2 | R88: ^ | S88: 0 | T88: 0 | X88: 0.01659751037 | Y88: * | AA88: 0.01659751037 | AB88: 0.01659751037 | AC88: 0.01659751037 | AD88: 0.01659751037 | AE88: 0.01659751037 | AF88: 0.01659751037 | AG88: 0.01659751037 | AH88: 0.01659751037 | AI88: 0.01659751037 | AJ88: 0.01659751037 | AK88: 0.01659751037 | AL88: 0.01659751037 | AM88: 0.01659751037 | AN88: 0.01659751037 | AO88: 0.01659751037 | AP88: 0.01659751037 | AQ88: 0.01659751037 | AR88: 0.01659751037 | AS88: 0.01659751037 | AT88: 0.01659751037 | AU88: 0.01659751037 | AV88: 0.01659751037 | AW88: 0.01659751037 | AX88: 0.01659751037 | AY88: 0.01659751037 | AZ88: 0.01659751037 | BA88: 0.01659751037 | BB88: 0.01659751037 | BC88: 0.01659751037 | BD88: 0.01659751037 | BE88: 0.01659751037 | BF88: 0.01659751037 | BG88: 0.01659751037 | BH88: 0.01659751037 | BI88: 0.01659751037 | BJ88: 0.01659751037 | BK88: 0.01659751037 | BL88: 0.01659751037 | BM88: 0.01659751037 | BN88: 0.01659751037 | BO88: 0.01659751037 | BP88: 0.01659751037 | BQ88: 0.01659751037 | BR88: 0.01659751037 | BS88: 0.01659751037 | BT88: 0.01659751037 | BU88: 0.01659751037 | BV88: 0.01659751037 | BW88: 0.01659751037 | BX88: 0.01659751037 | BY88: 0.01659751037 | BZ88: 0.01659751037 | CA88: 0.01659751037 | CB88: 0.01659751037 | CC88: 0.01659751037 | CD88: 0.01659751037 | CE88: 0.01659751037 | CF88: 0.01659751037 | CG88: 0.01659751037 | CH88: 0.01659751037 | CI88: 0.01659751037 | CJ88: 0.01659751037 | CK88: 0.01659751037 | CL88: 0.01659751037 | CM88: 0.01659751037 | CN88: 0.01659751037 | CO88: 0.01659751037 | CP88: 0.01659751037 | CQ88: 0.01659751037 | CR88: 0.01659751037 | CS88: 0.01659751037 | CT88: 0.01659751037 | CU88: 0.01659751037
A89: 89 | G89: 0 | H89: продукция | I89: Вручную для каждого периода расчетов | M89: % | P89: * | Q89: Полумаски FFP3 | R89: ^ | S89: 0 | T89: 0 | X89: 0.03734439834 | Y89: * | AA89: 0.03734439834 | AB89: 0.03734439834 | AC89: 0.03734439834 | AD89: 0.03734439834 | AE89: 0.03734439834 | AF89: 0.03734439834 | AG89: 0.03734439834 | AH89: 0.03734439834 | AI89: 0.03734439834 | AJ89: 0.03734439834 | AK89: 0.03734439834 | AL89: 0.03734439834 | AM89: 0.03734439834 | AN89: 0.03734439834 | AO89: 0.03734439834 | AP89: 0.03734439834 | AQ89: 0.03734439834 | AR89: 0.03734439834 | AS89: 0.03734439834 | AT89: 0.03734439834 | AU89: 0.03734439834 | AV89: 0.03734439834 | AW89: 0.03734439834 | AX89: 0.03734439834 | AY89: 0.03734439834 | AZ89: 0.03734439834 | BA89: 0.03734439834 | BB89: 0.03734439834 | BC89: 0.03734439834 | BD89: 0.03734439834 | BE89: 0.03734439834 | BF89: 0.03734439834 | BG89: 0.03734439834 | BH89: 0.03734439834 | BI89: 0.03734439834 | BJ89: 0.03734439834 | BK89: 0.03734439834 | BL89: 0.03734439834 | BM89: 0.03734439834 | BN89: 0.03734439834 | BO89: 0.03734439834 | BP89: 0.03734439834 | BQ89: 0.03734439834 | BR89: 0.03734439834 | BS89: 0.03734439834 | BT89: 0.03734439834 | BU89: 0.03734439834 | BV89: 0.03734439834 | BW89: 0.03734439834 | BX89: 0.03734439834 | BY89: 0.03734439834 | BZ89: 0.03734439834 | CA89: 0.03734439834 | CB89: 0.03734439834 | CC89: 0.03734439834 | CD89: 0.03734439834 | CE89: 0.03734439834 | CF89: 0.03734439834 | CG89: 0.03734439834 | CH89: 0.03734439834 | CI89: 0.03734439834 | CJ89: 0.03734439834 | CK89: 0.03734439834 | CL89: 0.03734439834 | CM89: 0.03734439834 | CN89: 0.03734439834 | CO89: 0.03734439834 | CP89: 0.03734439834 | CQ89: 0.03734439834 | CR89: 0.03734439834 | CS89: 0.03734439834 | CT89: 0.03734439834 | CU89: 0.03734439834
A90: 90 | G90: 0 | H90: продукция | I90: Вручную для каждого периода расчетов | M90: % | P90: * | Q90: Полумаски FFP4 | R90: ^ | S90: 0 | T90: 0 | X90: 0.04979253112 | Y90: * | AA90: 0.04979253112 | AB90: 0.04979253112 | AC90: 0.04979253112 | AD90: 0.04979253112 | AE90: 0.04979253112 | AF90: 0.04979253112 | AG90: 0.04979253112 | AH90: 0.04979253112 | AI90: 0.04979253112 | AJ90: 0.04979253112 | AK90: 0.04979253112 | AL90: 0.04979253112 | AM90: 0.04979253112 | AN90: 0.04979253112 | AO90: 0.04979253112 | AP90: 0.04979253112 | AQ90: 0.04979253112 | AR90: 0.04979253112 | AS90: 0.04979253112 | AT90: 0.04979253112 | AU90: 0.04979253112 | AV90: 0.04979253112 | AW90: 0.04979253112 | AX90: 0.04979253112 | AY90: 0.04979253112 | AZ90: 0.04979253112 | BA90: 0.04979253112 | BB90: 0.04979253112 | BC90: 0.04979253112 | BD90: 0.04979253112 | BE90: 0.04979253112 | BF90: 0.04979253112 | BG90: 0.04979253112 | BH90: 0.04979253112 | BI90: 0.04979253112 | BJ90: 0.04979253112 | BK90: 0.04979253112 | BL90: 0.04979253112 | BM90: 0.04979253112 | BN90: 0.04979253112 | BO90: 0.04979253112 | BP90: 0.04979253112 | BQ90: 0.04979253112 | BR90: 0.04979253112 | BS90: 0.04979253112 | BT90: 0.04979253112 | BU90: 0.04979253112 | BV90: 0.04979253112 | BW90: 0.04979253112 | BX90: 0.04979253112 | BY90: 0.04979253112 | BZ90: 0.04979253112 | CA90: 0.04979253112 | CB90: 0.04979253112 | CC90: 0.04979253112 | CD90: 0.04979253112 | CE90: 0.04979253112 | CF90: 0.04979253112 | CG90: 0.04979253112 | CH90: 0.04979253112 | CI90: 0.04979253112 | CJ90: 0.04979253112 | CK90: 0.04979253112 | CL90: 0.04979253112 | CM90: 0.04979253112 | CN90: 0.04979253112 | CO90: 0.04979253112 | CP90: 0.04979253112 | CQ90: 0.04979253112 | CR90: 0.04979253112 | CS90: 0.04979253112 | CT90: 0.04979253112 | CU90: 0.04979253112
A91: 91 | G91: 0 | H91: продукция | I91: Вручную для каждого периода расчетов | M91: % | P91: * | Q91: Маски медицинские | R91: ^ | S91: 0 | T91: 0 | X91: 0.7053941909 | Y91: * | AA91: 0.7053941909 | AB91: 0.7053941909 | AC91: 0.7053941909 | AD91: 0.7053941909 | AE91: 0.7053941909 | AF91: 0.7053941909 | AG91: 0.7053941909 | AH91: 0.7053941909 | AI91: 0.7053941909 | AJ91: 0.7053941909 | AK91: 0.7053941909 | AL91: 0.7053941909 | AM91: 0.7053941909 | AN91: 0.7053941909 | AO91: 0.7053941909 | AP91: 0.7053941909 | AQ91: 0.7053941909 | AR91: 0.7053941909 | AS91: 0.7053941909 | AT91: 0.7053941909 | AU91: 0.7053941909 | AV91: 0.7053941909 | AW91: 0.7053941909 | AX91: 0.7053941909 | AY91: 0.7053941909 | AZ91: 0.7053941909 | BA91: 0.7053941909 | BB91: 0.7053941909 | BC91: 0.7053941909 | BD91: 0.7053941909 | BE91: 0.7053941909 | BF91: 0.7053941909 | BG91: 0.7053941909 | BH91: 0.7053941909 | BI91: 0.7053941909 | BJ91: 0.7053941909 | BK91: 0.7053941909 | BL91: 0.7053941909 | BM91: 0.7053941909 | BN91: 0.7053941909 | BO91: 0.7053941909 | BP91: 0.7053941909 | BQ91: 0.7053941909 | BR91: 0.7053941909 | BS91: 0.7053941909 | BT91: 0.7053941909 | BU91: 0.7053941909 | BV91: 0.7053941909 | BW91: 0.7053941909 | BX91: 0.7053941909 | BY91: 0.7053941909 | BZ91: 0.7053941909 | CA91: 0.7053941909 | CB91: 0.7053941909 | CC91: 0.7053941909 | CD91: 0.7053941909 | CE91: 0.7053941909 | CF91: 0.7053941909 | CG91: 0.7053941909 | CH91: 0.7053941909 | CI91: 0.7053941909 | CJ91: 0.7053941909 | CK91: 0.7053941909 | CL91: 0.7053941909 | CM91: 0.7053941909 | CN91: 0.7053941909 | CO91: 0.7053941909 | CP91: 0.7053941909 | CQ91: 0.7053941909 | CR91: 0.7053941909 | CS91: 0.7053941909 | CT91: 0.7053941909 | CU91: 0.7053941909
A92: 92 | G92: 0 | H92: продукция | I92: Вручную для каждого периода расчетов | M92: % | P92: * | Q92: Маски гигиенические | R92: ^ | S92: 0 | T92: 0 | X92: 0.1244813278 | Y92: * | AA92: 0.1244813278 | AB92: 0.1244813278 | AC92: 0.1244813278 | AD92: 0.1244813278 | AE92: 0.1244813278 | AF92: 0.1244813278 | AG92: 0.1244813278 | AH92: 0.1244813278 | AI92: 0.1244813278 | AJ92: 0.1244813278 | AK92: 0.1244813278 | AL92: 0.1244813278 | AM92: 0.1244813278 | AN92: 0.1244813278 | AO92: 0.1244813278 | AP92: 0.1244813278 | AQ92: 0.1244813278 | AR92: 0.1244813278 | AS92: 0.1244813278 | AT92: 0.1244813278 | AU92: 0.1244813278 | AV92: 0.1244813278 | AW92: 0.1244813278 | AX92: 0.1244813278 | AY92: 0.1244813278 | AZ92: 0.1244813278 | BA92: 0.1244813278 | BB92: 0.1244813278 | BC92: 0.1244813278 | BD92: 0.1244813278 | BE92: 0.1244813278 | BF92: 0.1244813278 | BG92: 0.1244813278 | BH92: 0.1244813278 | BI92: 0.1244813278 | BJ92: 0.1244813278 | BK92: 0.1244813278 | BL92: 0.1244813278 | BM92: 0.1244813278 | BN92: 0.1244813278 | BO92: 0.1244813278 | BP92: 0.1244813278 | BQ92: 0.1244813278 | BR92: 0.1244813278 | BS92: 0.1244813278 | BT92: 0.1244813278 | BU92: 0.1244813278 | BV92: 0.1244813278 | BW92: 0.1244813278 | BX92: 0.1244813278 | BY92: 0.1244813278 | BZ92: 0.1244813278 | CA92: 0.1244813278 | CB92: 0.1244813278 | CC92: 0.1244813278 | CD92: 0.1244813278 | CE92: 0.1244813278 | CF92: 0.1244813278 | CG92: 0.1244813278 | CH92: 0.1244813278 | CI92: 0.1244813278 | CJ92: 0.1244813278 | CK92: 0.1244813278 | CL92: 0.1244813278 | CM92: 0.1244813278 | CN92: 0.1244813278 | CO92: 0.1244813278 | CP92: 0.1244813278 | CQ92: 0.1244813278 | CR92: 0.1244813278 | CS92: 0.1244813278 | CT92: 0.1244813278 | CU92: 0.1244813278
A93: 93 | L93: пустая строка
A94: 94
A95: 95 | G95: 0 | H95: Базовый прайс-лист | M95: руб./шт | Q95: все включает НДС | X95: 15.34544172 | AA95: 14.65975104 | AB95: 14.65975104 | AC95: 14.65975104 | AD95: 14.65975104 | AE95: 14.65975104 | AF95: 14.65975104 | AG95: 14.80414938 | AH95: 14.80414938 | AI95: 14.80414938 | AJ95: 14.80414938 | AK95: 14.80414938 | AL95: 14.80414938 | AM95: 14.95143568 | AN95: 14.95143568 | AO95: 14.95143568 | AP95: 14.95143568 | AQ95: 14.95143568 | AR95: 14.95143568 | AS95: 15.10166772 | AT95: 15.10166772 | AU95: 15.10166772 | AV95: 15.10166772 | AW95: 15.10166772 | AX95: 15.10166772 | AY95: 15.25490439 | AZ95: 15.25490439 | BA95: 15.25490439 | BB95: 15.25490439 | BC95: 15.25490439 | BD95: 15.25490439 | BE95: 15.4112058 | BF95: 15.4112058 | BG95: 15.4112058 | BH95: 15.4112058 | BI95: 15.4112058 | BJ95: 15.4112058 | BK95: 15.57063323 | BL95: 15.57063323 | BM95: 15.57063323 | BN95: 15.57063323 | BO95: 15.57063323 | BP95: 15.57063323 | BQ95: 15.73324922 | BR95: 15.73324922 | BS95: 15.73324922 | BT95: 15.73324922 | BU95: 15.73324922 | BV95: 15.73324922 | BW95: 15.89911752 | BX95: 15.89911752 | BY95: 15.89911752 | BZ95: 15.89911752 | CA95: 15.89911752 | CB95: 15.89911752 | CC95: 16.06830319 | CD95: 16.06830319 | CE95: 16.06830319 | CF95: 16.06830319 | CG95: 16.06830319 | CH95: 16.06830319 | CI95: 0 | CJ95: 0 | CK95: 0 | CL95: 0 | CM95: 0 | CN95: 0 | CO95: 0 | CP95: 0 | CQ95: 0 | CR95: 0 | CS95: 0 | CT95: 0 | CU95: 0
A96: 96 | G96: 0 | H96: Базовый прайс-лист | I96: Полумаски FFP1 | M96: руб./шт | P96: M | Q96: 50 | S96: 0 | X96: 54.748605 | AA96: 50 | AB96: 50 | AC96: 50 | AD96: 50 | AE96: 50 | AF96: 50 | AG96: 51 | AH96: 51 | AI96: 51 | AJ96: 51 | AK96: 51 | AL96: 51 | AM96: 52.02 | AN96: 52.02 | AO96: 52.02 | AP96: 52.02 | AQ96: 52.02 | AR96: 52.02 | AS96: 53.0604 | AT96: 53.0604 | AU96: 53.0604 | AV96: 53.0604 | AW96: 53.0604 | AX96: 53.0604 | AY96: 54.121608 | AZ96: 54.121608 | BA96: 54.121608 | BB96: 54.121608 | BC96: 54.121608 | BD96: 54.121608 | BE96: 55.20404016 | BF96: 55.20404016 | BG96: 55.20404016 | BH96: 55.20404016 | BI96: 55.20404016 | BJ96: 55.20404016 | BK96: 56.30812096 | BL96: 56.30812096 | BM96: 56.30812096 | BN96: 56.30812096 | BO96: 56.30812096 | BP96: 56.30812096 | BQ96: 57.43428338 | BR96: 57.43428338 | BS96: 57.43428338 | BT96: 57.43428338 | BU96: 57.43428338 | BV96: 57.43428338 | BW96: 58.58296905 | BX96: 58.58296905 | BY96: 58.58296905 | BZ96: 58.58296905 | CA96: 58.58296905 | CB96: 58.58296905 | CC96: 59.75462843 | CD96: 59.75462843 | CE96: 59.75462843 | CF96: 59.75462843 | CG96: 59.75462843 | CH96: 59.75462843 | CI96: 0 | CJ96: 0 | CK96: 0 | CL96: 0 | CM96: 0 | CN96: 0 | CO96: 0 | CP96: 0 | CQ96: 0 | CR96: 0 | CS96: 0 | CT96: 0 | CU96: 0
A97: 97 | G97: 0 | H97: Базовый прайс-лист | I97: Полумаски FFP2 | M97: руб./шт | P97: M | Q97: 55 | S97: 0 | X97: 60.2234655 | AA97: 55 | AB97: 55 | AC97: 55 | AD97: 55 | AE97: 55 | AF97: 55 | AG97: 56.1 | AH97: 56.1 | AI97: 56.1 | AJ97: 56.1 | AK97: 56.1 | AL97: 56.1 | AM97: 57.222 | AN97: 57.222 | AO97: 57.222 | AP97: 57.222 | AQ97: 57.222 | AR97: 57.222 | AS97: 58.36644 | AT97: 58.36644 | AU97: 58.36644 | AV97: 58.36644 | AW97: 58.36644 | AX97: 58.36644 | AY97: 59.5337688 | AZ97: 59.5337688 | BA97: 59.5337688 | BB97: 59.5337688 | BC97: 59.5337688 | BD97: 59.5337688 | BE97: 60.72444418 | BF97: 60.72444418 | BG97: 60.72444418 | BH97: 60.72444418 | BI97: 60.72444418 | BJ97: 60.72444418 | BK97: 61.93893306 | BL97: 61.93893306 | BM97: 61.93893306 | BN97: 61.93893306 | BO97: 61.93893306 | BP97: 61.93893306 | BQ97: 63.17771172 | BR97: 63.17771172 | BS97: 63.17771172 | BT97: 63.17771172 | BU97: 63.17771172 | BV97: 63.17771172 | BW97: 64.44126596 | BX97: 64.44126596 | BY97: 64.44126596 | BZ97: 64.44126596 | CA97: 64.44126596 | CB97: 64.44126596 | CC97: 65.73009127 | CD97: 65.73009127 | CE97: 65.73009127 | CF97: 65.73009127 | CG97: 65.73009127 | CH97: 65.73009127 | CI97: 0 | CJ97: 0 | CK97: 0 | CL97: 0 | CM97: 0 | CN97: 0 | CO97: 0 | CP97: 0 | CQ97: 0 | CR97: 0 | CS97: 0 | CT97: 0 | CU97: 0
A98: 98 | G98: 0 | H98: Базовый прайс-лист | I98: Полумаски FFP3 | M98: руб./шт | P98: M | Q98: 80 | S98: 0 | X98: 87.597768 | AA98: 80 | AB98: 80 | AC98: 80 | AD98: 80 | AE98: 80 | AF98: 80 | AG98: 81.6 | AH98: 81.6 | AI98: 81.6 | AJ98: 81.6 | AK98: 81.6 | AL98: 81.6 | AM98: 83.232 | AN98: 83.232 | AO98: 83.232 | AP98: 83.232 | AQ98: 83.232 | AR98: 83.232 | AS98: 84.89664 | AT98: 84.89664 | AU98: 84.89664 | AV98: 84.89664 | AW98: 84.89664 | AX98: 84.89664 | AY98: 86.5945728 | AZ98: 86.5945728 | BA98: 86.5945728 | BB98: 86.5945728 | BC98: 86.5945728 | BD98: 86.5945728 | BE98: 88.32646426 | BF98: 88.32646426 | BG98: 88.32646426 | BH98: 88.32646426 | BI98: 88.32646426 | BJ98: 88.32646426 | BK98: 90.09299354 | BL98: 90.09299354 | BM98: 90.09299354 | BN98: 90.09299354 | BO98: 90.09299354 | BP98: 90.09299354 | BQ98: 91.89485341 | BR98: 91.89485341 | BS98: 91.89485341 | BT98: 91.89485341 | BU98: 91.89485341 | BV98: 91.89485341 | BW98: 93.73275048 | BX98: 93.73275048 | BY98: 93.73275048 | BZ98: 93.73275048 | CA98: 93.73275048 | CB98: 93.73275048 | CC98: 95.60740549 | CD98: 95.60740549 | CE98: 95.60740549 | CF98: 95.60740549 | CG98: 95.60740549 | CH98: 95.60740549 | CI98: 0 | CJ98: 0 | CK98: 0 | CL98: 0 | CM98: 0 | CN98: 0 | CO98: 0 | CP98: 0 | CQ98: 0 | CR98: 0 | CS98: 0 | CT98: 0 | CU98: 0
A99: 99 | G99: 0 | H99: Базовый прайс-лист | I99: Полумаски FFP4 | M99: руб./шт | P99: M | Q99: 107 | S99: 0 | X99: 107 | AA99: 107 | AB99: 107 | AC99: 107 | AD99: 107 | AE99: 107 | AF99: 107 | AG99: 107 | AH99: 107 | AI99: 107 | AJ99: 107 | AK99: 107 | AL99: 107 | AM99: 107 | AN99: 107 | AO99: 107 | AP99: 107 | AQ99: 107 | AR99: 107 | AS99: 107 | AT99: 107 | AU99: 107 | AV99: 107 | AW99: 107 | AX99: 107 | AY99: 107 | AZ99: 107 | BA99: 107 | BB99: 107 | BC99: 107 | BD99: 107 | BE99: 107 | BF99: 107 | BG99: 107 | BH99: 107 | BI99: 107 | BJ99: 107 | BK99: 107 | BL99: 107 | BM99: 107 | BN99: 107 | BO99: 107 | BP99: 107 | BQ99: 107 | BR99: 107 | BS99: 107 | BT99: 107 | BU99: 107 | BV99: 107 | BW99: 107 | BX99: 107 | BY99: 107 | BZ99: 107 | CA99: 107 | CB99: 107 | CC99: 107 | CD99: 107 | CE99: 107 | CF99: 107 | CG99: 107 | CH99: 107 | CI99: 0 | CJ99: 0 | CK99: 0 | CL99: 0 | CM99: 0 | CN99: 0 | CO99: 0 | CP99: 0 | CQ99: 0 | CR99: 0 | CS99: 0 | CT99: 0 | CU99: 0
A100: 100 | G100: 0 | H100: Базовый прайс-лист | I100: Маски медицинские | M100: руб./шт | P100: M | Q100: 2.5 | S100: 0 | X100: 2.5 | AA100: 2.5 | AB100: 2.5 | AC100: 2.5 | AD100: 2.5 | AE100: 2.5 | AF100: 2.5 | AG100: 2.5 | AH100: 2.5 | AI100: 2.5 | AJ100: 2.5 | AK100: 2.5 | AL100: 2.5 | AM100: 2.5 | AN100: 2.5 | AO100: 2.5 | AP100: 2.5 | AQ100: 2.5 | AR100: 2.5 | AS100: 2.5 | AT100: 2.5 | AU100: 2.5 | AV100: 2.5 | AW100: 2.5 | AX100: 2.5 | AY100: 2.5 | AZ100: 2.5 | BA100: 2.5 | BB100: 2.5 | BC100: 2.5 | BD100: 2.5 | BE100: 2.5 | BF100: 2.5 | BG100: 2.5 | BH100: 2.5 | BI100: 2.5 | BJ100: 2.5 | BK100: 2.5 | BL100: 2.5 | BM100: 2.5 | BN100: 2.5 | BO100: 2.5 | BP100: 2.5 | BQ100: 2.5 | BR100: 2.5 | BS100: 2.5 | BT100: 2.5 | BU100: 2.5 | BV100: 2.5 | BW100: 2.5 | BX100: 2.5 | BY100: 2.5 | BZ100: 2.5 | CA100: 2.5 | CB100: 2.5 | CC100: 2.5 | CD100: 2.5 | CE100: 2.5 | CF100: 2.5 | CG100: 2.5 | CH100: 2.5 | CI100: 0 | CJ100: 0 | CK100: 0 | CL100: 0 | CM100: 0 | CN100: 0 | CO100: 0 | CP100: 0 | CQ100: 0 | CR100: 0 | CS100: 0 | CT100: 0 | CU100: 0
A101: 101 | G101: 0 | H101: Базовый прайс-лист | I101: Маски гигиенические | M101: руб./шт | P101: M | Q101: 2.8 | S101: 0 | X101: 2.8 | AA101: 2.8 | AB101: 2.8 | AC101: 2.8 | AD101: 2.8 | AE101: 2.8 | AF101: 2.8 | AG101: 2.8 | AH101: 2.8 | AI101: 2.8 | AJ101: 2.8 | AK101: 2.8 | AL101: 2.8 | AM101: 2.8 | AN101: 2.8 | AO101: 2.8 | AP101: 2.8 | AQ101: 2.8 | AR101: 2.8 | AS101: 2.8 | AT101: 2.8 | AU101: 2.8 | AV101: 2.8 | AW101: 2.8 | AX101: 2.8 | AY101: 2.8 | AZ101: 2.8 | BA101: 2.8 | BB101: 2.8 | BC101: 2.8 | BD101: 2.8 | BE101: 2.8 | BF101: 2.8 | BG101: 2.8 | BH101: 2.8 | BI101: 2.8 | BJ101: 2.8 | BK101: 2.8 | BL101: 2.8 | BM101: 2.8 | BN101: 2.8 | BO101: 2.8 | BP101: 2.8 | BQ101: 2.8 | BR101: 2.8 | BS101: 2.8 | BT101: 2.8 | BU101: 2.8 | BV101: 2.8 | BW101: 2.8 | BX101: 2.8 | BY101: 2.8 | BZ101: 2.8 | CA101: 2.8 | CB101: 2.8 | CC101: 2.8 | CD101: 2.8 | CE101: 2.8 | CF101: 2.8 | CG101: 2.8 | CH101: 2.8 | CI101: 0 | CJ101: 0 | CK101: 0 | CL101: 0 | CM101: 0 | CN101: 0 | CO101: 0 | CP101: 0 | CQ101: 0 | CR101: 0 | CS101: 0 | CT101: 0 | CU101: 0
A102: 102 | L102: пустая строка
A103: 103 | G103: 0 | H103: Индексация прайс-листа
A104: 104 | G104: 0 | H104: Индексация прайс-листа | I104: Процент индексации/прироста | M104: % | P104: M | Q104: 0.02 | S104: 0
A105: 105 | G105: 0 | H105: Индексация прайс-листа | I105: Частота индексации | M105: кол-во периодов | P105: * | Q105: 6 | S105: 0
A106: 106
A107: 107 | G107: 0 | H107: Общий оборот (GMV) | L107: 1 | M107: руб. | T107: 0 | X107: 3812211425 | AA107: 0 | AB107: 0 | AC107: 0 | AD107: 0 | AE107: 1172780.083 | AF107: 3023573.651 | AG107: 4263595.021 | AH107: 5292483.402 | AI107: 4352419.917 | AJ107: 7550116.183 | AK107: 14211983.4 | AL107: 20259478.42 | AM107: 24490451.65 | AN107: 26774283.45 | AO107: 22726182.24 | AP107: 34799466.56 | AQ107: 43179746.26 | AR107: 43676881.49 | AS107: 37874982.64 | AT107: 33714473.18 | AU107: 21519876.5 | AV107: 30414758.78 | AW107: 48204523.36 | AX107: 59251393.29 | AY107: 62895970.81 | AZ107: 61229372.5 | BA107: 49273341.19 | BB107: 72026031.09 | BC107: 85793582.3 | BD107: 83692219.22 | BE107: 70275098.44 | BF107: 60758678.86 | BG107: 37772865.41 | BH107: 52120698.01 | BI107: 80816363.21 | BJ107: 97360292.64 | BK107: 101473816.8 | BL107: 97110146.83 | BM107: 76918928.18 | BN107: 110792840.8 | BO107: 130170493.8 | BP107: 125363060.8 | BQ107: 104028243.8 | BR107: 88932191.21 | BS107: 54031911.13 | BT107: 72042548.17 | BU107: 108063822.3 | BV107: 126074459.3 | BW107: 127403603.5 | BX107: 118303346.1 | BY107: 91002573.92 | BZ107: 127403603.5 | CA107: 145604118.3 | CB107: 136503860.9 | CC107: 110365140.5 | CD107: 91970950.4 | CE107: 55182570.24 | CF107: 73576760.32 | CG107: 110365140.5 | CH107: 128759330.6 | CI107: 0 | CJ107: 0 | CK107: 0 | CL107: 0 | CM107: 0 | CN107: 0 | CO107: 0 | CP107: 0 | CQ107: 0 | CR107: 0 | CS107: 0 | CT107: 0 | CU107: 0
A108: 108 | G108: 0 | H108: Общий оборот (GMV) | I108: Полумаски FFP1 | L108: 1 | M108: руб. | X108: 916940524 | AA108: 0 | AB108: 0 | AC108: 0 | AD108: 0 | AE108: 265560.166 | AF108: 684647.3029 | AG108: 975136.9295 | AH108: 1210456.432 | AI108: 995452.2822 | AJ108: 1726804.979 | AK108: 3250456.432 | AL108: 4633593.361 | AM108: 5657013.112 | AN108: 6184552.033 | AO108: 5249487.137 | AP108: 8038277.178 | AQ108: 9974025.56 | AR108: 10088858.09 | AS108: 8834886.851 | AT108: 7864387.917 | AU108: 5019822.075 | AV108: 7094681.866 | AW108: 11244401.45 | AX108: 13821243.45 | AY108: 14814498.91 | AZ108: 14421948.82 | BA108: 11605828.64 | BB108: 16964990.68 | BC108: 20207795.74 | BD108: 19712841.29 | BE108: 16712393.24 | BF108: 14449256.65 | BG108: 8982911.365 | BH108: 12395024.98 | BI108: 19219252.22 | BJ108: 23153628.13 | BK108: 24362491.24 | BL108: 23314833.09 | BM108: 18467194.53 | BN108: 26599862.89 | BO108: 31252175.35 | BP108: 30097975.69 | BQ108: 25211982.19 | BR108: 21553346.84 | BS108: 13095016.61 | BT108: 17460022.15 | BU108: 26190033.22 | BV108: 30555038.76 | BW108: 31166139.53 | BX108: 28939986.71 | BY108: 22261528.24 | BZ108: 31166139.53 | CA108: 35618445.18 | CB108: 33392292.36 | CC108: 27248110.56 | CD108: 22706758.8 | CE108: 13624055.28 | CF108: 18165407.04 | CG108: 27248110.56 | CH108: 31789462.33 | CI108: 0 | CJ108: 0 | CK108: 0 | CL108: 0 | CM108: 0 | CN108: 0 | CO108: 0 | CP108: 0 | CQ108: 0 | CR108: 0 | CS108: 0 | CT108: 0 | CU108: 0
A109: 109 | G109: 0 | H109: Общий оборот (GMV) | I109: Полумаски FFP2 | L109: 1 | M109: руб. | X109: 252158644.1 | AA109: 0 | AB109: 0 | AC109: 0 | AD109: 0 | AE109: 73029.04564 | AF109: 188278.0083 | AG109: 268162.6556 | AH109: 332875.5187 | AI109: 273749.3776 | AJ109: 474871.3693 | AK109: 893875.5187 | AL109: 1274238.174 | AM109: 1555678.606 | AN109: 1700751.809 | AO109: 1443608.963 | AP109: 2210526.224 | AQ109: 2742857.029 | AR109: 2774435.975 | AS109: 2429593.884 | AT109: 2162706.677 | AU109: 1380451.071 | AV109: 1951037.513 | AW109: 3092210.398 | AX109: 3800841.948 | AY109: 4073987.199 | AZ109: 3966035.926 | BA109: 3191602.875 | BB109: 4665372.438 | BC109: 5557143.83 | BD109: 5421031.354 | BE109: 4595908.14 | BF109: 3973545.579 | BG109: 2470300.625 | BH109: 3408631.871 | BI109: 5285294.361 | BJ109: 6367247.736 | BK109: 6699685.091 | BL109: 6411579.1 | BM109: 5078478.495 | BN109: 7314962.294 | BO109: 8594348.222 | BP109: 8276943.316 | BQ109: 6933295.102 | BR109: 5927170.382 | BS109: 3601129.568 | BT109: 4801506.091 | BU109: 7202259.136 | BV109: 8402635.659 | BW109: 8570688.372 | BX109: 7958496.345 | BY109: 6121920.266 | BZ109: 8570688.372 | CA109: 9795072.425 | CB109: 9182880.399 | CC109: 7493230.405 | CD109: 6244358.671 | CE109: 3746615.203 | CF109: 4995486.937 | CG109: 7493230.405 | CH109: 8742102.139 | CI109: 0 | CJ109: 0 | CK109: 0 | CL109: 0 | CM109: 0 | CN109: 0 | CO109: 0 | CP109: 0 | CQ109: 0 | CR109: 0 | CS109: 0 | CT109: 0 | CU109: 0
A110: 110 | G110: 0 | H110: Общий оборот (GMV) | I110: Полумаски FFP3 | L110: 1 | M110: руб. | X110: 825246471.6 | AA110: 0 | AB110: 0 | AC110: 0 | AD110: 0 | AE110: 239004.1494 | AF110: 616182.5726 | AG110: 877623.2365 | AH110: 1089410.788 | AI110: 895907.0539 | AJ110: 1554124.481 | AK110: 2925410.788 | AL110: 4170234.025 | AM110: 5091311.801 | AN110: 5566096.83 | AO110: 4724538.423 | AP110: 7234449.461 | AQ110: 8976623.004 | AR110: 9079972.282 | AS110: 7951398.166 | AT110: 7077949.125 | AU110: 4517839.867 | AV110: 6385213.679 | AW110: 10119961.3 | AX110: 12439119.1 | AY110: 13333049.02 | AZ110: 12979753.94 | BA110: 10445245.77 | BB110: 15268491.62 | BC110: 18187016.17 | BD110: 17741557.16 | BE110: 15041153.91 | BF110: 13004330.99 | BG110: 8084620.228 | BH110: 11155522.49 | BI110: 17297327 | BJ110: 20838265.32 | BK110: 21926242.12 | BL110: 20983349.78 | BM110: 16620475.07 | BN110: 23939876.6 | BO110: 28126957.82 | BP110: 27088178.13 | BQ110: 22690783.97 | BR110: 19398012.16 | BS110: 11785514.95 | BT110: 15714019.93 | BU110: 23571029.9 | BV110: 27499534.88 | BW110: 28049525.58 | BX110: 26045988.04 | BY110: 20035375.42 | BZ110: 28049525.58 | CA110: 32056600.66 | CB110: 30053063.12 | CC110: 24523299.51 | CD110: 20436082.92 | CE110: 12261649.75 | CF110: 16348866.34 | CG110: 24523299.51 | CH110: 28610516.09 | CI110: 0 | CJ110: 0 | CK110: 0 | CL110: 0 | CM110: 0 | CN110: 0 | CO110: 0 | CP110: 0 | CQ110: 0 | CR110: 0 | CS110: 0 | CT110: 0 | CU110: 0
A111: 111 | G111: 0 | H111: Общий оборот (GMV) | I111: Полумаски FFP4 | L111: 1 | M111: руб. | X111: 1301806842 | AA111: 0 | AB111: 0 | AC111: 0 | AD111: 0 | AE111: 426224.0664 | AF111: 1098858.921 | AG111: 1534406.639 | AH111: 1904688.797 | AI111: 1566373.444 | AJ111: 2717178.423 | AK111: 5114688.797 | AL111: 7291095.436 | AM111: 8726937.759 | AN111: 9540759.336 | AO111: 8098257.261 | AP111: 12400456.43 | AQ111: 15386688.8 | AR111: 15563838.17 | AS111: 13362124.48 | AT111: 11894315.35 | AU111: 7592116.183 | AV111: 10730190.87 | AW111: 17006340.25 | AX111: 20903626.56 | AY111: 21966522.82 | AZ111: 21384460.58 | BA111: 17208796.68 | BB111: 25155211.62 | BC111: 29963551.87 | BD111: 29229647.3 | BE111: 24294771.78 | BF111: 21004854.77 | BG111: 13058439.83 | BH111: 18018622.41 | BI111: 27938987.55 | BJ111: 33658381.74 | BK111: 34721278.01 | BL111: 33228161.83 | BM111: 26319336.1 | BN111: 37909966.8 | BO111: 44540414.94 | BP111: 42895456.43 | BQ111: 35227419.09 | BR111: 30115394.19 | BS111: 18297000 | BT111: 24396000 | BU111: 36594000 | BV111: 42693000 | BW111: 42693000 | BX111: 39643500 | BY111: 30495000 | BZ111: 42693000 | CA111: 48792000 | CB111: 45742500 | CC111: 36594000 | CD111: 30495000 | CE111: 18297000 | CF111: 24396000 | CG111: 36594000 | CH111: 42693000 | CI111: 0 | CJ111: 0 | CK111: 0 | CL111: 0 | CM111: 0 | CN111: 0 | CO111: 0 | CP111: 0 | CQ111: 0 | CR111: 0 | CS111: 0 | CT111: 0 | CU111: 0
A112: 112 | G112: 0 | H112: Общий оборот (GMV) | I112: Маски медицинские | L112: 1 | M112: руб. | X112: 430894009.3 | AA112: 0 | AB112: 0 | AC112: 0 | AD112: 0 | AE112: 141078.8382 | AF112: 363718.8797 | AG112: 507883.8174 | AH112: 630446.0581 | AI112: 518464.7303 | AJ112: 899377.5934 | AK112: 1692946.058 | AL112: 2413329.876 | AM112: 2888589.212 | AN112: 3157961.618 | AO112: 2680497.925 | AP112: 4104512.448 | AQ112: 5092946.058 | AR112: 5151581.95 | AS112: 4422821.577 | AT112: 3936981.328 | AU112: 2512966.805 | AV112: 3551659.751 | AW112: 5629045.643 | AX112: 6919035.27 | AY112: 7270850.622 | AZ112: 7078189.834 | BA112: 5696058.091 | BB112: 8326296.68 | BC112: 9917842.324 | BD112: 9674922.199 | BE112: 8041493.776 | BF112: 6952541.494 | BG112: 4322302.905 | BH112: 5964107.884 | BI112: 9247717.842 | BJ112: 11140819.5 | BK112: 11492634.85 | BL112: 10998418.05 | BM112: 8711618.257 | BN112: 12548080.91 | BO112: 14742738.59 | BP112: 14198262.45 | BQ112: 11660165.98 | BR112: 9968101.66 | BS112: 6056250 | BT112: 8075000 | BU112: 12112500 | BV112: 14131250 | BW112: 14131250 | BX112: 13121875 | BY112: 10093750 | BZ112: 14131250 | CA112: 16150000 | CB112: 15140625 | CC112: 12112500 | CD112: 10093750 | CE112: 6056250 | CF112: 8075000 | CG112: 12112500 | CH112: 14131250 | CI112: 0 | CJ112: 0 | CK112: 0 | CL112: 0 | CM112: 0 | CN112: 0 | CO112: 0 | CP112: 0 | CQ112: 0 | CR112: 0 | CS112: 0 | CT112: 0 | CU112: 0
A113: 113 | G113: 0 | H113: Общий оборот (GMV) | I113: Маски гигиенические | L113: 1 | M113: руб. | X113: 85164933.61 | AA113: 0 | AB113: 0 | AC113: 0 | AD113: 0 | AE113: 27883.81743 | AF113: 71887.9668 | AG113: 100381.7427 | AH113: 124605.8091 | AI113: 102473.029 | AJ113: 177759.3361 | AK113: 334605.8091 | AL113: 476987.5519 | AM113: 570921.1618 | AN113: 624161.8257 | AO113: 529792.5311 | AP113: 811244.8133 | AQ113: 1006605.809 | AR113: 1018195.021 | AS113: 874157.6763 | AT113: 778132.7801 | AU113: 496680.4979 | AV113: 701975.1037 | AW113: 1112564.315 | AX113: 1367526.971 | AY113: 1437062.241 | AZ113: 1398983.402 | BA113: 1125809.129 | BB113: 1645668.05 | BC113: 1960232.365 | BD113: 1912219.917 | BE113: 1589377.593 | BF113: 1374149.378 | BG113: 854290.4564 | BH113: 1178788.382 | BI113: 1827784.232 | BJ113: 2201950.207 | BK113: 2271485.477 | BL113: 2173804.979 | BM113: 1721825.726 | BN113: 2480091.286 | BO113: 2913858.921 | BP113: 2806244.813 | BQ113: 2304597.51 | BR113: 1970165.975 | BS113: 1197000 | BT113: 1596000 | BU113: 2394000 | BV113: 2793000 | BW113: 2793000 | BX113: 2593500 | BY113: 1995000 | BZ113: 2793000 | CA113: 3192000 | CB113: 2992500 | CC113: 2394000 | CD113: 1995000 | CE113: 1197000 | CF113: 1596000 | CG113: 2394000 | CH113: 2793000 | CI113: 0 | CJ113: 0 | CK113: 0 | CL113: 0 | CM113: 0 | CN113: 0 | CO113: 0 | CP113: 0 | CQ113: 0 | CR113: 0 | CS113: 0 | CT113: 0 | CU113: 0
A114: 114 | L114: пустая строка
A115: 115
A116: 116 | G116: 0 | H116: Доля продаж со скидками
A117: 117 | G117: 0 | H117: продукция | I117: Вручную для каждого периода расчетов | M117: % | Q117: Полумаски FFP1 | S117: 0 | T117: 0 | X117: 0.2 | Y117: * | AA117: 0.2 | AB117: 0.2 | AC117: 0.2 | AD117: 0.2 | AE117: 0.2 | AF117: 0.2 | AG117: 0.2 | AH117: 0.2 | AI117: 0.2 | AJ117: 0.2 | AK117: 0.2 | AL117: 0.2 | AM117: 0.2 | AN117: 0.2 | AO117: 0.2 | AP117: 0.2 | AQ117: 0.2 | AR117: 0.2 | AS117: 0.2 | AT117: 0.2 | AU117: 0.2 | AV117: 0.2 | AW117: 0.2 | AX117: 0.2 | AY117: 0.2 | AZ117: 0.2 | BA117: 0.2 | BB117: 0.2 | BC117: 0.2 | BD117: 0.2 | BE117: 0.2 | BF117: 0.2 | BG117: 0.2 | BH117: 0.2 | BI117: 0.2 | BJ117: 0.2 | BK117: 0.2 | BL117: 0.2 | BM117: 0.2 | BN117: 0.2 | BO117: 0.2 | BP117: 0.2 | BQ117: 0.2 | BR117: 0.2 | BS117: 0.2 | BT117: 0.2 | BU117: 0.2 | BV117: 0.2 | BW117: 0.2 | BX117: 0.2 | BY117: 0.2 | BZ117: 0.2 | CA117: 0.2 | CB117: 0.2 | CC117: 0.2 | CD117: 0.2 | CE117: 0.2 | CF117: 0.2 | CG117: 0.2 | CH117: 0.2 | CI117: 0.2 | CJ117: 0.2 | CK117: 0.2 | CL117: 0.2 | CM117: 0.2 | CN117: 0.2 | CO117: 0.2 | CP117: 0.2 | CQ117: 0.2 | CR117: 0.2 | CS117: 0.2 | CT117: 0.2 | CU117: 0.2
A118: 118 | G118: 0 | H118: продукция | I118: Вручную для каждого периода расчетов | M118: % | Q118: Полумаски FFP2 | S118: 0 | T118: 0 | X118: 0.15 | Y118: * | AA118: 0.15 | AB118: 0.15 | AC118: 0.15 | AD118: 0.15 | AE118: 0.15 | AF118: 0.15 | AG118: 0.15 | AH118: 0.15 | AI118: 0.15 | AJ118: 0.15 | AK118: 0.15 | AL118: 0.15 | AM118: 0.15 | AN118: 0.15 | AO118: 0.15 | AP118: 0.15 | AQ118: 0.15 | AR118: 0.15 | AS118: 0.15 | AT118: 0.15 | AU118: 0.15 | AV118: 0.15 | AW118: 0.15 | AX118: 0.15 | AY118: 0.15 | AZ118: 0.15 | BA118: 0.15 | BB118: 0.15 | BC118: 0.15 | BD118: 0.15 | BE118: 0.15 | BF118: 0.15 | BG118: 0.15 | BH118: 0.15 | BI118: 0.15 | BJ118: 0.15 | BK118: 0.15 | BL118: 0.15 | BM118: 0.15 | BN118: 0.15 | BO118: 0.15 | BP118: 0.15 | BQ118: 0.15 | BR118: 0.15 | BS118: 0.15 | BT118: 0.15 | BU118: 0.15 | BV118: 0.15 | BW118: 0.15 | BX118: 0.15 | BY118: 0.15 | BZ118: 0.15 | CA118: 0.15 | CB118: 0.15 | CC118: 0.15 | CD118: 0.15 | CE118: 0.15 | CF118: 0.15 | CG118: 0.15 | CH118: 0.15 | CI118: 0.15 | CJ118: 0.15 | CK118: 0.15 | CL118: 0.15 | CM118: 0.15 | CN118: 0.15 | CO118: 0.15 | CP118: 0.15 | CQ118: 0.15 | CR118: 0.15 | CS118: 0.15 | CT118: 0.15 | CU118: 0.15
A119: 119 | G119: 0 | H119: продукция | I119: Вручную для каждого периода расчетов | M119: % | Q119: Полумаски FFP3 | S119: 0 | T119: 0 | X119: 0.1 | Y119: * | AA119: 0.1 | AB119: 0.1 | AC119: 0.1 | AD119: 0.1 | AE119: 0.1 | AF119: 0.1 | AG119: 0.1 | AH119: 0.1 | AI119: 0.1 | AJ119: 0.1 | AK119: 0.1 | AL119: 0.1 | AM119: 0.1 | AN119: 0.1 | AO119: 0.1 | AP119: 0.1 | AQ119: 0.1 | AR119: 0.1 | AS119: 0.1 | AT119: 0.1 | AU119: 0.1 | AV119: 0.1 | AW119: 0.1 | AX119: 0.1 | AY119: 0.1 | AZ119: 0.1 | BA119: 0.1 | BB119: 0.1 | BC119: 0.1 | BD119: 0.1 | BE119: 0.1 | BF119: 0.1 | BG119: 0.1 | BH119: 0.1 | BI119: 0.1 | BJ119: 0.1 | BK119: 0.1 | BL119: 0.1 | BM119: 0.1 | BN119: 0.1 | BO119: 0.1 | BP119: 0.1 | BQ119: 0.1 | BR119: 0.1 | BS119: 0.1 | BT119: 0.1 | BU119: 0.1 | BV119: 0.1 | BW119: 0.1 | BX119: 0.1 | BY119: 0.1 | BZ119: 0.1 | CA119: 0.1 | CB119: 0.1 | CC119: 0.1 | CD119: 0.1 | CE119: 0.1 | CF119: 0.1 | CG119: 0.1 | CH119: 0.1 | CI119: 0.1 | CJ119: 0.1 | CK119: 0.1 | CL119: 0.1 | CM119: 0.1 | CN119: 0.1 | CO119: 0.1 | CP119: 0.1 | CQ119: 0.1 | CR119: 0.1 | CS119: 0.1 | CT119: 0.1 | CU119: 0.1
A120: 120 | G120: 0 | H120: продукция | I120: Вручную для каждого периода расчетов | M120: % | Q120: Полумаски FFP4 | S120: 0 | T120: 0 | X120: 0.2 | Y120: * | AA120: 0.2 | AB120: 0.2 | AC120: 0.2 | AD120: 0.2 | AE120: 0.2 | AF120: 0.2 | AG120: 0.2 | AH120: 0.2 | AI120: 0.2 | AJ120: 0.2 | AK120: 0.2 | AL120: 0.2 | AM120: 0.2 | AN120: 0.2 | AO120: 0.2 | AP120: 0.2 | AQ120: 0.2 | AR120: 0.2 | AS120: 0.2 | AT120: 0.2 | AU120: 0.2 | AV120: 0.2 | AW120: 0.2 | AX120: 0.2 | AY120: 0.2 | AZ120: 0.2 | BA120: 0.2 | BB120: 0.2 | BC120: 0.2 | BD120: 0.2 | BE120: 0.2 | BF120: 0.2 | BG120: 0.2 | BH120: 0.2 | BI120: 0.2 | BJ120: 0.2 | BK120: 0.2 | BL120: 0.2 | BM120: 0.2 | BN120: 0.2 | BO120: 0.2 | BP120: 0.2 | BQ120: 0.2 | BR120: 0.2 | BS120: 0.2 | BT120: 0.2 | BU120: 0.2 | BV120: 0.2 | BW120: 0.2 | BX120: 0.2 | BY120: 0.2 | BZ120: 0.2 | CA120: 0.2 | CB120: 0.2 | CC120: 0.2 | CD120: 0.2 | CE120: 0.2 | CF120: 0.2 | CG120: 0.2 | CH120: 0.2 | CI120: 0.2 | CJ120: 0.2 | CK120: 0.2 | CL120: 0.2 | CM120: 0.2 | CN120: 0.2 | CO120: 0.2 | CP120: 0.2 | CQ120: 0.2 | CR120: 0.2 | CS120: 0.2 | CT120: 0.2 | CU120: 0.2
A121: 121 | G121: 0 | H121: продукция | I121: Вручную для каждого периода расчетов | M121: % | Q121: Маски медицинские | S121: 0 | T121: 0 | X121: 0.15 | Y121: * | AA121: 0.15 | AB121: 0.15 | AC121: 0.15 | AD121: 0.15 | AE121: 0.15 | AF121: 0.15 | AG121: 0.15 | AH121: 0.15 | AI121: 0.15 | AJ121: 0.15 | AK121: 0.15 | AL121: 0.15 | AM121: 0.15 | AN121: 0.15 | AO121: 0.15 | AP121: 0.15 | AQ121: 0.15 | AR121: 0.15 | AS121: 0.15 | AT121: 0.15 | AU121: 0.15 | AV121: 0.15 | AW121: 0.15 | AX121: 0.15 | AY121: 0.15 | AZ121: 0.15 | BA121: 0.15 | BB121: 0.15 | BC121: 0.15 | BD121: 0.15 | BE121: 0.15 | BF121: 0.15 | BG121: 0.15 | BH121: 0.15 | BI121: 0.15 | BJ121: 0.15 | BK121: 0.15 | BL121: 0.15 | BM121: 0.15 | BN121: 0.15 | BO121: 0.15 | BP121: 0.15 | BQ121: 0.15 | BR121: 0.15 | BS121: 0.15 | BT121: 0.15 | BU121: 0.15 | BV121: 0.15 | BW121: 0.15 | BX121: 0.15 | BY121: 0.15 | BZ121: 0.15 | CA121: 0.15 | CB121: 0.15 | CC121: 0.15 | CD121: 0.15 | CE121: 0.15 | CF121: 0.15 | CG121: 0.15 | CH121: 0.15 | CI121: 0.15 | CJ121: 0.15 | CK121: 0.15 | CL121: 0.15 | CM121: 0.15 | CN121: 0.15 | CO121: 0.15 | CP121: 0.15 | CQ121: 0.15 | CR121: 0.15 | CS121: 0.15 | CT121: 0.15 | CU121: 0.15
A122: 122 | G122: 0 | H122: продукция | I122: Вручную для каждого периода расчетов | M122: % | Q122: Маски гигиенические | S122: 0 | T122: 0 | X122: 0.1 | Y122: * | AA122: 0.1 | AB122: 0.1 | AC122: 0.1 | AD122: 0.1 | AE122: 0.1 | AF122: 0.1 | AG122: 0.1 | AH122: 0.1 | AI122: 0.1 | AJ122: 0.1 | AK122: 0.1 | AL122: 0.1 | AM122: 0.1 | AN122: 0.1 | AO122: 0.1 | AP122: 0.1 | AQ122: 0.1 | AR122: 0.1 | AS122: 0.1 | AT122: 0.1 | AU122: 0.1 | AV122: 0.1 | AW122: 0.1 | AX122: 0.1 | AY122: 0.1 | AZ122: 0.1 | BA122: 0.1 | BB122: 0.1 | BC122: 0.1 | BD122: 0.1 | BE122: 0.1 | BF122: 0.1 | BG122: 0.1 | BH122: 0.1 | BI122: 0.1 | BJ122: 0.1 | BK122: 0.1 | BL122: 0.1 | BM122: 0.1 | BN122: 0.1 | BO122: 0.1 | BP122: 0.1 | BQ122: 0.1 | BR122: 0.1 | BS122: 0.1 | BT122: 0.1 | BU122: 0.1 | BV122: 0.1 | BW122: 0.1 | BX122: 0.1 | BY122: 0.1 | BZ122: 0.1 | CA122: 0.1 | CB122: 0.1 | CC122: 0.1 | CD122: 0.1 | CE122: 0.1 | CF122: 0.1 | CG122: 0.1 | CH122: 0.1 | CI122: 0.1 | CJ122: 0.1 | CK122: 0.1 | CL122: 0.1 | CM122: 0.1 | CN122: 0.1 | CO122: 0.1 | CP122: 0.1 | CQ122: 0.1 | CR122: 0.1 | CS122: 0.1 | CT122: 0.1 | CU122: 0.1
A123: 123 | L123: пустая строка
A124: 124
A125: 125 | G125: 0 | H125: Средний размер скидок
A126: 126 | G126: 0 | H126: Средний размер скидок | I126: Полумаски FFP1 | M126: % | P126: * | Q126: 0.25 | S126: 0 | X126: 0.155 | AA126: 0.25 | AB126: 0.25 | AC126: 0.25 | AD126: 0.24 | AE126: 0.24 | AF126: 0.24 | AG126: 0.23 | AH126: 0.23 | AI126: 0.23 | AJ126: 0.22 | AK126: 0.22 | AL126: 0.22 | AM126: 0.21 | AN126: 0.21 | AO126: 0.21 | AP126: 0.2 | AQ126: 0.2 | AR126: 0.2 | AS126: 0.19 | AT126: 0.19 | AU126: 0.19 | AV126: 0.18 | AW126: 0.18 | AX126: 0.18 | AY126: 0.17 | AZ126: 0.17 | BA126: 0.17 | BB126: 0.16 | BC126: 0.16 | BD126: 0.16 | BE126: 0.15 | BF126: 0.15 | BG126: 0.15 | BH126: 0.14 | BI126: 0.14 | BJ126: 0.14 | BK126: 0.13 | BL126: 0.13 | BM126: 0.13 | BN126: 0.12 | BO126: 0.12 | BP126: 0.12 | BQ126: 0.11 | BR126: 0.11 | BS126: 0.11 | BT126: 0.1 | BU126: 0.1 | BV126: 0.1 | BW126: 0.09 | BX126: 0.09 | BY126: 0.09 | BZ126: 0.08 | CA126: 0.08 | CB126: 0.08 | CC126: 0.07 | CD126: 0.07 | CE126: 0.07 | CF126: 0.06 | CG126: 0.06 | CH126: 0.06 | CI126: 0 | CJ126: 0 | CK126: 0 | CL126: 0 | CM126: 0 | CN126: 0 | CO126: 0 | CP126: 0 | CQ126: 0 | CR126: 0 | CS126: 0 | CT126: 0 | CU126: 0
A127: 127 | G127: 0 | H127: Средний размер скидок | I127: Полумаски FFP2 | M127: % | P127: * | Q127: 0.15 | S127: 0 | X127: 0.08 | AA127: 0.15 | AB127: 0.15 | AC127: 0.15 | AD127: 0.14 | AE127: 0.14 | AF127: 0.14 | AG127: 0.13 | AH127: 0.13 | AI127: 0.13 | AJ127: 0.12 | AK127: 0.12 | AL127: 0.12 | AM127: 0.11 | AN127: 0.11 | AO127: 0.11 | AP127: 0.1 | AQ127: 0.1 | AR127: 0.1 | AS127: 0.09 | AT127: 0.09 | AU127: 0.09 | AV127: 0.08 | AW127: 0.08 | AX127: 0.08 | AY127: 0.07 | AZ127: 0.07 | BA127: 0.07 | BB127: 0.06 | BC127: 0.06 | BD127: 0.06 | BE127: 0.05 | BF127: 0.05 | BG127: 0.05 | BH127: 0.04 | BI127: 0.04 | BJ127: 0.04 | BK127: 0.03 | BL127: 0.03 | BM127: 0.03 | BN127: 0.02 | BO127: 0.02 | BP127: 0.02 | BQ127: 0.01 | BR127: 0.01 | BS127: 0.01 | BT127: 0 | BU127: 0 | BV127: 0 | BW127: 0 | BX127: 0 | BY127: 0 | BZ127: 0 | CA127: 0 | CB127: 0 | CC127: 0 | CD127: 0 | CE127: 0 | CF127: 0 | CG127: 0 | CH127: 0 | CI127: 0 | CJ127: 0 | CK127: 0 | CL127: 0 | CM127: 0 | CN127: 0 | CO127: 0 | CP127: 0 | CQ127: 0 | CR127: 0 | CS127: 0 | CT127: 0 | CU127: 0
A128: 128 | G128: 0 | H128: Средний размер скидок | I128: Полумаски FFP3 | M128: % | P128: * | Q128: 0.2 | S128: 0 | X128: 0.105 | AA128: 0.2 | AB128: 0.2 | AC128: 0.2 | AD128: 0.19 | AE128: 0.19 | AF128: 0.19 | AG128: 0.18 | AH128: 0.18 | AI128: 0.18 | AJ128: 0.17 | AK128: 0.17 | AL128: 0.17 | AM128: 0.16 | AN128: 0.16 | AO128: 0.16 | AP128: 0.15 | AQ128: 0.15 | AR128: 0.15 | AS128: 0.14 | AT128: 0.14 | AU128: 0.14 | AV128: 0.13 | AW128: 0.13 | AX128: 0.13 | AY128: 0.12 | AZ128: 0.12 | BA128: 0.12 | BB128: 0.11 | BC128: 0.11 | BD128: 0.11 | BE128: 0.1 | BF128: 0.1 | BG128: 0.1 | BH128: 0.09 | BI128: 0.09 | BJ128: 0.09 | BK128: 0.08 | BL128: 0.08 | BM128: 0.08 | BN128: 0.07 | BO128: 0.07 | BP128: 0.07 | BQ128: 0.06 | BR128: 0.06 | BS128: 0.06 | BT128: 0.05 | BU128: 0.05 | BV128: 0.05 | BW128: 0.04 | BX128: 0.04 | BY128: 0.04 | BZ128: 0.03 | CA128: 0.03 | CB128: 0.03 | CC128: 0.02 | CD128: 0.02 | CE128: 0.02 | CF128: 0.01 | CG128: 0.01 | CH128: 0.01 | CI128: 0 | CJ128: 0 | CK128: 0 | CL128: 0 | CM128: 0 | CN128: 0 | CO128: 0 | CP128: 0 | CQ128: 0 | CR128: 0 | CS128: 0 | CT128: 0 | CU128: 0
A129: 129 | G129: 0 | H129: Средний размер скидок | I129: Полумаски FFP4 | M129: % | P129: * | Q129: 0.3 | S129: 0 | X129: 0.205 | AA129: 0.3 | AB129: 0.3 | AC129: 0.3 | AD129: 0.29 | AE129: 0.29 | AF129: 0.29 | AG129: 0.28 | AH129: 0.28 | AI129: 0.28 | AJ129: 0.27 | AK129: 0.27 | AL129: 0.27 | AM129: 0.26 | AN129: 0.26 | AO129: 0.26 | AP129: 0.25 | AQ129: 0.25 | AR129: 0.25 | AS129: 0.24 | AT129: 0.24 | AU129: 0.24 | AV129: 0.23 | AW129: 0.23 | AX129: 0.23 | AY129: 0.22 | AZ129: 0.22 | BA129: 0.22 | BB129: 0.21 | BC129: 0.21 | BD129: 0.21 | BE129: 0.2 | BF129: 0.2 | BG129: 0.2 | BH129: 0.19 | BI129: 0.19 | BJ129: 0.19 | BK129: 0.18 | BL129: 0.18 | BM129: 0.18 | BN129: 0.17 | BO129: 0.17 | BP129: 0.17 | BQ129: 0.16 | BR129: 0.16 | BS129: 0.16 | BT129: 0.15 | BU129: 0.15 | BV129: 0.15 | BW129: 0.14 | BX129: 0.14 | BY129: 0.14 | BZ129: 0.13 | CA129: 0.13 | CB129: 0.13 | CC129: 0.12 | CD129: 0.12 | CE129: 0.12 | CF129: 0.11 | CG129: 0.11 | CH129: 0.11 | CI129: 0 | CJ129: 0 | CK129: 0 | CL129: 0 | CM129: 0 | CN129: 0 | CO129: 0 | CP129: 0 | CQ129: 0 | CR129: 0 | CS129: 0 | CT129: 0 | CU129: 0
A130: 130 | G130: 0 | H130: Средний размер скидок | I130: Маски медицинские | M130: % | P130: * | Q130: 0.15 | S130: 0 | X130: 0.08 | AA130: 0.15 | AB130: 0.15 | AC130: 0.15 | AD130: 0.14 | AE130: 0.14 | AF130: 0.14 | AG130: 0.13 | AH130: 0.13 | AI130: 0.13 | AJ130: 0.12 | AK130: 0.12 | AL130: 0.12 | AM130: 0.11 | AN130: 0.11 | AO130: 0.11 | AP130: 0.1 | AQ130: 0.1 | AR130: 0.1 | AS130: 0.09 | AT130: 0.09 | AU130: 0.09 | AV130: 0.08 | AW130: 0.08 | AX130: 0.08 | AY130: 0.07 | AZ130: 0.07 | BA130: 0.07 | BB130: 0.06 | BC130: 0.06 | BD130: 0.06 | BE130: 0.05 | BF130: 0.05 | BG130: 0.05 | BH130: 0.04 | BI130: 0.04 | BJ130: 0.04 | BK130: 0.03 | BL130: 0.03 | BM130: 0.03 | BN130: 0.02 | BO130: 0.02 | BP130: 0.02 | BQ130: 0.01 | BR130: 0.01 | BS130: 0.01 | BT130: 0 | BU130: 0 | BV130: 0 | BW130: 0 | BX130: 0 | BY130: 0 | BZ130: 0 | CA130: 0 | CB130: 0 | CC130: 0 | CD130: 0 | CE130: 0 | CF130: 0 | CG130: 0 | CH130: 0 | CI130: 0 | CJ130: 0 | CK130: 0 | CL130: 0 | CM130: 0 | CN130: 0 | CO130: 0 | CP130: 0 | CQ130: 0 | CR130: 0 | CS130: 0 | CT130: 0 | CU130: 0
A131: 131 | G131: 0 | H131: Средний размер скидок | I131: Маски гигиенические | M131: % | P131: * | Q131: 0.15 | S131: 0 | X131: 0.08 | AA131: 0.15 | AB131: 0.15 | AC131: 0.15 | AD131: 0.14 | AE131: 0.14 | AF131: 0.14 | AG131: 0.13 | AH131: 0.13 | AI131: 0.13 | AJ131: 0.12 | AK131: 0.12 | AL131: 0.12 | AM131: 0.11 | AN131: 0.11 | AO131: 0.11 | AP131: 0.1 | AQ131: 0.1 | AR131: 0.1 | AS131: 0.09 | AT131: 0.09 | AU131: 0.09 | AV131: 0.08 | AW131: 0.08 | AX131: 0.08 | AY131: 0.07 | AZ131: 0.07 | BA131: 0.07 | BB131: 0.06 | BC131: 0.06 | BD131: 0.06 | BE131: 0.05 | BF131: 0.05 | BG131: 0.05 | BH131: 0.04 | BI131: 0.04 | BJ131: 0.04 | BK131: 0.03 | BL131: 0.03 | BM131: 0.03 | BN131: 0.02 | BO131: 0.02 | BP131: 0.02 | BQ131: 0.01 | BR131: 0.01 | BS131: 0.01 | BT131: 0 | BU131: 0 | BV131: 0 | BW131: 0 | BX131: 0 | BY131: 0 | BZ131: 0 | CA131: 0 | CB131: 0 | CC131: 0 | CD131: 0 | CE131: 0 | CF131: 0 | CG131: 0 | CH131: 0 | CI131: 0 | CJ131: 0 | CK131: 0 | CL131: 0 | CM131: 0 | CN131: 0 | CO131: 0 | CP131: 0 | CQ131: 0 | CR131: 0 | CS131: 0 | CT131: 0 | CU131: 0
A132: 132 | L132: пустая строка
A133: 133 | G133: 0 | H133: Линейные изменения размеров скидок
A134: 134 | G134: 0 | H134: Линейные изменения размеров скидок | I134: Коэффициент прироста | M134: % | P134: * | Q134: -0.01 | S134: 0
A135: 135 | G135: 0 | H135: Линейные изменения размеров скидок | I135: Частота приростов | M135: кол-во периодов | P135: * | Q135: 3 | S135: 0
A136: 136 | G136: 0 | H136: Линейные изменения размеров скидок | I136: Максимальное значение | M136: % | P136: * | Q136: 0.5 | S136: 0
A137: 137
A138: 138 | G138: 0 | H138: Маркетинговые скидки | L138: 1 | M138: руб. | T138: 0 | X138: 75478558.31 | AA138: 0 | AB138: 0 | AC138: 0 | AD138: 0 | AE138: 46895.60166 | AF138: 120902.723 | AG138: 163018.1577 | AH138: 202357.6089 | AI138: 166414.3693 | AJ138: 275996.7635 | AK138: 519523.3195 | AL138: 740591.3154 | AM138: 852466.8548 | AN138: 931962.7718 | AO138: 791055.9336 | AP138: 1152908.679 | AQ138: 1430547.912 | AR138: 1447018.036 | AS138: 1188802.278 | AT138: 1058214.149 | AU138: 675455.8395 | AV138: 903653.2731 | AW138: 1432205.188 | AX138: 1760418.876 | AY138: 1759396.788 | AZ138: 1712776.827 | BA138: 1378329.281 | BB138: 1894151.028 | BC138: 2256212.09 | BD138: 2200950.138 | BE138: 1726301.61 | BF138: 1492531.6 | BG138: 927887.1153 | BH138: 1193119.645 | BI138: 1850005.742 | BJ138: 2228720.686 | BK138: 2147480.614 | BL138: 2055132.686 | BM138: 1627827.87 | BN138: 2159464.029 | BO138: 2537153.999 | BP138: 2443452.289 | BQ138: 1848280.512 | BR138: 1580067.392 | BS138: 959990.5245 | BT138: 1159650.543 | BU138: 1739475.814 | BV138: 2029388.45 | BW138: 1868592.614 | BX138: 1735121.713 | BY138: 1334709.01 | BZ138: 1692824.809 | CA138: 1934656.925 | CB138: 1813740.867 | CC138: 1308776.147 | CD138: 1090646.789 | CE138: 654388.0735 | CF138: 771045.7509 | CG138: 1156568.626 | CH138: 1349330.064 | CI138: 0 | CJ138: 0 | CK138: 0 | CL138: 0 | CM138: 0 | CN138: 0 | CO138: 0 | CP138: 0 | CQ138: 0 | CR138: 0 | CS138: 0 | CT138: 0 | CU138: 0
A139: 139 | G139: 0 | H139: Маркетинговые скидки | I139: Полумаски FFP1 | L139: 1 | M139: руб. | X139: 21920175.24 | AA139: 0 | AB139: 0 | AC139: 0 | AD139: 0 | AE139: 12746.88797 | AF139: 32863.07054 | AG139: 44856.29876 | AH139: 55680.99585 | AI139: 45790.80498 | AJ139: 75979.41909 | AK139: 143020.083 | AL139: 203878.1079 | AM139: 237594.5507 | AN139: 259751.1854 | AO139: 220478.4598 | AP139: 321531.0871 | AQ139: 398961.0224 | AR139: 403554.3237 | AS139: 335725.7004 | AT139: 298846.7408 | AU139: 190753.2388 | AV139: 255408.5472 | AW139: 404798.4521 | AX139: 497564.764 | AY139: 503692.9628 | AZ139: 490346.2599 | BA139: 394598.1736 | BB139: 542879.7019 | BC139: 646649.4638 | BD139: 630810.9212 | BE139: 501371.7971 | BF139: 433477.6996 | BG139: 269487.3409 | BH139: 347060.6996 | BI139: 538139.0622 | BJ139: 648301.5876 | BK139: 633424.7723 | BL139: 606185.6603 | BM139: 480147.0577 | BN139: 638396.7093 | BO139: 750052.2085 | BP139: 722351.4167 | BQ139: 554663.6082 | BR139: 474173.6305 | BS139: 288090.3654 | BT139: 349200.443 | BU139: 523800.6644 | BV139: 611100.7752 | BW139: 560990.5116 | BX139: 520919.7608 | BY139: 400707.5083 | BZ139: 498658.2326 | CA139: 569895.1229 | CB139: 534276.6777 | CC139: 381473.5479 | CD139: 317894.6233 | CE139: 190736.774 | CF139: 217984.8845 | CG139: 326977.3268 | CH139: 381473.5479 | CI139: 0 | CJ139: 0 | CK139: 0 | CL139: 0 | CM139: 0 | CN139: 0 | CO139: 0 | CP139: 0 | CQ139: 0 | CR139: 0 | CS139: 0 | CT139: 0 | CU139: 0
A140: 140 | G140: 0 | H140: Маркетинговые скидки | I140: Полумаски FFP2 | L140: 1 | M140: руб. | X140: 1061342.899 | AA140: 0 | AB140: 0 | AC140: 0 | AD140: 0 | AE140: 1533.609959 | AF140: 3953.838174 | AG140: 5229.171784 | AH140: 6491.072614 | AI140: 5338.112863 | AJ140: 8547.684647 | AK140: 16089.75934 | AL140: 22936.28714 | AM140: 25668.697 | AN140: 28062.40485 | AO140: 23819.54788 | AP140: 33157.89336 | AQ140: 41142.85544 | AR140: 41616.53963 | AS140: 32799.51744 | AT140: 29196.54014 | AU140: 18636.08945 | AV140: 23412.45016 | AW140: 37106.52478 | AX140: 45610.10337 | AY140: 42776.86559 | AZ140: 41643.37722 | BA140: 33511.83019 | BB140: 41988.35194 | BC140: 50014.29447 | BD140: 48789.28219 | BE140: 34469.31105 | BF140: 29801.59185 | BG140: 18527.25469 | BH140: 20451.79122 | BI140: 31711.76617 | BJ140: 38203.48641 | BK140: 30148.58291 | BL140: 28852.10595 | BM140: 22853.15323 | BN140: 21944.88688 | BO140: 25783.04467 | BP140: 24830.82995 | BQ140: 10399.94265 | BR140: 8890.755573 | BS140: 5401.694352 | BT140: 0 | BU140: 0 | BV140: 0 | BW140: 0 | BX140: 0 | BY140: 0 | BZ140: 0 | CA140: 0 | CB140: 0 | CC140: 0 | CD140: 0 | CE140: 0 | CF140: 0 | CG140: 0 | CH140: 0 | CI140: 0 | CJ140: 0 | CK140: 0 | CL140: 0 | CM140: 0 | CN140: 0 | CO140: 0 | CP140: 0 | CQ140: 0 | CR140: 0 | CS140: 0 | CT140: 0 | CU140: 0
A141: 141 | G141: 0 | H141: Маркетинговые скидки | I141: Полумаски FFP3 | L141: 1 | M141: руб. | X141: 5737846.5 | AA141: 0 | AB141: 0 | AC141: 0 | AD141: 0 | AE141: 4541.078838 | AF141: 11707.46888 | AG141: 15797.21826 | AH141: 19609.39419 | AI141: 16126.32697 | AJ141: 26420.11618 | AK141: 49731.9834 | AL141: 70893.97842 | AM141: 81460.98881 | AN141: 89057.54928 | AO141: 75592.61477 | AP141: 108516.7419 | AQ141: 134649.3451 | AR141: 136199.5842 | AS141: 111319.5743 | AT141: 99091.28775 | AU141: 63249.75814 | AV141: 83007.77783 | AW141: 131559.4969 | AX141: 161708.5483 | AY141: 159996.5882 | AZ141: 155757.0473 | BA141: 125342.9493 | BB141: 167953.4078 | BC141: 200057.1779 | BD141: 195157.1287 | BE141: 150411.5391 | BF141: 130043.3099 | BG141: 80846.20228 | BH141: 100399.7024 | BI141: 155675.943 | BJ141: 187544.3879 | BK141: 175409.9369 | BL141: 167866.7982 | BM141: 132963.8006 | BN141: 167579.1362 | BO141: 196888.7047 | BP141: 189617.2469 | BQ141: 136144.7038 | BR141: 116388.073 | BS141: 70713.0897 | BT141: 78570.09967 | BU141: 117855.1495 | BV141: 137497.6744 | BW141: 112198.1023 | BX141: 104183.9522 | BY141: 80141.50166 | BZ141: 84148.57674 | CA141: 96169.80199 | CB141: 90159.18937 | CC141: 49046.59902 | CD141: 40872.16585 | CE141: 24523.29951 | CF141: 16348.86634 | CG141: 24523.29951 | CH141: 28610.51609 | CI141: 0 | CJ141: 0 | CK141: 0 | CL141: 0 | CM141: 0 | CN141: 0 | CO141: 0 | CP141: 0 | CQ141: 0 | CR141: 0 | CS141: 0 | CT141: 0 | CU141: 0
A142: 142 | G142: 0 | H142: Маркетинговые скидки | I142: Полумаски FFP4 | L142: 1 | M142: руб. | X142: 44605037.17 | AA142: 0 | AB142: 0 | AC142: 0 | AD142: 0 | AE142: 24720.99585 | AF142: 63733.81743 | AG142: 85926.77178 | AH142: 106662.5726 | AI142: 87716.91286 | AJ142: 146727.6349 | AK142: 276193.195 | AL142: 393719.1535 | AM142: 453800.7635 | AN142: 496119.4855 | AO142: 421109.3776 | AP142: 620022.8216 | AQ142: 769334.4398 | AR142: 778191.9087 | AS142: 641381.9751 | AT142: 570927.1369 | AU142: 364421.5768 | AV142: 493588.7801 | AW142: 782291.6515 | AX142: 961566.8216 | AY142: 966527.0041 | AZ142: 940916.2656 | BA142: 757187.0539 | BB142: 1056518.888 | BC142: 1258469.178 | BD142: 1227645.187 | BE142: 971790.8714 | BF142: 840194.1909 | BG142: 522337.5934 | BH142: 684707.6515 | BI142: 1061681.527 | BJ142: 1279018.506 | BK142: 1249966.008 | BL142: 1196213.826 | BM142: 947496.0996 | BN142: 1288938.871 | BO142: 1514374.108 | BP142: 1458445.519 | BQ142: 1127277.411 | BR142: 963692.6141 | BS142: 585504 | BT142: 731880 | BU142: 1097820 | BV142: 1280790 | BW142: 1195404 | BX142: 1110018 | BY142: 853860 | BZ142: 1110018 | CA142: 1268592 | CB142: 1189305 | CC142: 878256 | CD142: 731880 | CE142: 439128 | CF142: 536712 | CG142: 805068 | CH142: 939246 | CI142: 0 | CJ142: 0 | CK142: 0 | CL142: 0 | CM142: 0 | CN142: 0 | CO142: 0 | CP142: 0 | CQ142: 0 | CR142: 0 | CS142: 0 | CT142: 0 | CU142: 0
A143: 143 | G143: 0 | H143: Маркетинговые скидки | I143: Маски медицинские | L143: 1 | M143: руб. | X143: 1903360.737 | AA143: 0 | AB143: 0 | AC143: 0 | AD143: 0 | AE143: 2962.655602 | AF143: 7638.096473 | AG143: 9903.73444 | AH143: 12293.69813 | AI143: 10110.06224 | AJ143: 16188.79668 | AK143: 30473.02905 | AL143: 43439.93776 | AM143: 47661.72199 | AN143: 52106.3667 | AO143: 44228.21577 | AP143: 61567.68672 | AQ143: 76394.19087 | AR143: 77273.72925 | AS143: 59708.09129 | AT143: 53149.24793 | AU143: 33925.05187 | AV143: 42619.91701 | AW143: 67548.54772 | AX143: 83028.42324 | AY143: 76343.93154 | AZ143: 74320.99326 | BA143: 59808.60996 | BB143: 74936.67012 | BC143: 89260.58091 | BD143: 87074.29979 | BE143: 60311.20332 | BF143: 52144.0612 | BG143: 32417.27178 | BH143: 35784.6473 | BI143: 55486.30705 | BJ143: 66844.91701 | BK143: 51716.85685 | BL143: 49492.88122 | BM143: 39202.28216 | BN143: 37644.24274 | BO143: 44228.21577 | BP143: 42594.78734 | BQ143: 17490.24896 | BR143: 14952.15249 | BS143: 9084.375 | BT143: 0 | BU143: 0 | BV143: 0 | BW143: 0 | BX143: 0 | BY143: 0 | BZ143: 0 | CA143: 0 | CB143: 0 | CC143: 0 | CD143: 0 | CE143: 0 | CF143: 0 | CG143: 0 | CH143: 0 | CI143: 0 | CJ143: 0 | CK143: 0 | CL143: 0 | CM143: 0 | CN143: 0 | CO143: 0 | CP143: 0 | CQ143: 0 | CR143: 0 | CS143: 0 | CT143: 0 | CU143: 0
A144: 144 | G144: 0 | H144: Маркетинговые скидки | I144: Маски гигиенические | L144: 1 | M144: руб. | X144: 250795.7676 | AA144: 0 | AB144: 0 | AC144: 0 | AD144: 0 | AE144: 390.373444 | AF144: 1006.431535 | AG144: 1304.962656 | AH144: 1619.875519 | AI144: 1332.149378 | AJ144: 2133.112033 | AK144: 4015.26971 | AL144: 5723.850622 | AM144: 6280.13278 | AN144: 6865.780083 | AO144: 5827.717842 | AP144: 8112.448133 | AQ144: 10066.05809 | AR144: 10181.95021 | AS144: 7867.419087 | AT144: 7003.195021 | AU144: 4470.124481 | AV144: 5615.80083 | AW144: 8900.514523 | AX144: 10940.21577 | AY144: 10059.43568 | AZ144: 9792.883817 | BA144: 7880.6639 | BB144: 9874.008299 | BC144: 11761.39419 | BD144: 11473.3195 | BE144: 7946.887967 | BF144: 6870.746888 | BG144: 4271.452282 | BH144: 4715.153527 | BI144: 7311.136929 | BJ144: 8807.80083 | BK144: 6814.456432 | BL144: 6521.414938 | BM144: 5165.477178 | BN144: 4960.182573 | BO144: 5827.717842 | BP144: 5612.489627 | BQ144: 2304.59751 | BR144: 1970.165975 | BS144: 1197 | BT144: 0 | BU144: 0 | BV144: 0 | BW144: 0 | BX144: 0 | BY144: 0 | BZ144: 0 | CA144: 0 | CB144: 0 | CC144: 0 | CD144: 0 | CE144: 0 | CF144: 0 | CG144: 0 | CH144: 0 | CI144: 0 | CJ144: 0 | CK144: 0 | CL144: 0 | CM144: 0 | CN144: 0 | CO144: 0 | CP144: 0 | CQ144: 0 | CR144: 0 | CS144: 0 | CT144: 0 | CU144: 0
A145: 145 | L145: пустая строка
A146: 146
A147: 147 | G147: 0 | H147: Доля скидок в общем обороте | L147: 1 | M147: % | X147: 0.01979915327 | AA147: 0 | AB147: 0 | AC147: 0 | AD147: 0 | AE147: 0.03998669686 | AF147: 0.03998669686 | AG147: 0.03823490667 | AH147: 0.03823490667 | AI147: 0.03823490667 | AJ147: 0.03655530018 | AK147: 0.03655530018 | AL147: 0.03655530018 | AM147: 0.03480813122 | AN147: 0.03480813122 | AO147: 0.03480813122 | AP147: 0.03313006758 | AQ147: 0.03313006758 | AR147: 0.03313006758 | AS147: 0.03138753327 | AT147: 0.03138753327 | AU147: 0.03138753327 | AV147: 0.02971101232 | AW147: 0.02971101232 | AX147: 0.02971101232 | AY147: 0.02797312396 | AZ147: 0.02797312396 | BA147: 0.02797312396 | BB147: 0.02629814526 | BC147: 0.02629814526 | BD147: 0.02629814526 | BE147: 0.02456491201 | BF147: 0.02456491201 | BG147: 0.02456491201 | BH147: 0.02289147481 | BI147: 0.02289147481 | BJ147: 0.02289147481 | BK147: 0.02116290371 | BL147: 0.02116290371 | BM147: 0.02116290371 | BN147: 0.01949100694 | BO147: 0.01949100694 | BP147: 0.01949100694 | BQ147: 0.01776710289 | BR147: 0.01776710289 | BS147: 0.01776710289 | BT147: 0.01609674522 | BU147: 0.01609674522 | BV147: 0.01609674522 | BW147: 0.01466671713 | BX147: 0.01466671713 | BY147: 0.01466671713 | BZ147: 0.01328710306 | CA147: 0.01328710306 | CB147: 0.01328710306 | CC147: 0.01185860083 | CD147: 0.01185860083 | CE147: 0.01185860083 | CF147: 0.01047947406 | CG147: 0.01047947406 | CH147: 0.01047947406 | CI147: 0 | CJ147: 0 | CK147: 0 | CL147: 0 | CM147: 0 | CN147: 0 | CO147: 0 | CP147: 0 | CQ147: 0 | CR147: 0 | CS147: 0 | CT147: 0 | CU147: 0
A148: 148 | G148: 0 | H148: Доля скидок в общем обороте | I148: Полумаски FFP1 | L148: 1 | M148: % | X148: 0.02390577651 | AA148: 0 | AB148: 0 | AC148: 0 | AD148: 0 | AE148: 0.048 | AF148: 0.048 | AG148: 0.046 | AH148: 0.046 | AI148: 0.046 | AJ148: 0.044 | AK148: 0.044 | AL148: 0.044 | AM148: 0.042 | AN148: 0.042 | AO148: 0.042 | AP148: 0.04 | AQ148: 0.04 | AR148: 0.04 | AS148: 0.038 | AT148: 0.038 | AU148: 0.038 | AV148: 0.036 | AW148: 0.036 | AX148: 0.036 | AY148: 0.034 | AZ148: 0.034 | BA148: 0.034 | BB148: 0.032 | BC148: 0.032 | BD148: 0.032 | BE148: 0.03 | BF148: 0.03 | BG148: 0.03 | BH148: 0.028 | BI148: 0.028 | BJ148: 0.028 | BK148: 0.026 | BL148: 0.026 | BM148: 0.026 | BN148: 0.024 | BO148: 0.024 | BP148: 0.024 | BQ148: 0.022 | BR148: 0.022 | BS148: 0.022 | BT148: 0.02 | BU148: 0.02 | BV148: 0.02 | BW148: 0.018 | BX148: 0.018 | BY148: 0.018 | BZ148: 0.016 | CA148: 0.016 | CB148: 0.016 | CC148: 0.014 | CD148: 0.014 | CE148: 0.014 | CF148: 0.012 | CG148: 0.012 | CH148: 0.012 | CI148: 0 | CJ148: 0 | CK148: 0 | CL148: 0 | CM148: 0 | CN148: 0 | CO148: 0 | CP148: 0 | CQ148: 0 | CR148: 0 | CS148: 0 | CT148: 0 | CU148: 0
A149: 149 | G149: 0 | H149: Доля скидок в общем обороте | I149: Полумаски FFP2 | L149: 1 | M149: % | X149: 0.004209028419 | AA149: 0 | AB149: 0 | AC149: 0 | AD149: 0 | AE149: 0.021 | AF149: 0.021 | AG149: 0.0195 | AH149: 0.0195 | AI149: 0.0195 | AJ149: 0.018 | AK149: 0.018 | AL149: 0.018 | AM149: 0.0165 | AN149: 0.0165 | AO149: 0.0165 | AP149: 0.015 | AQ149: 0.015 | AR149: 0.015 | AS149: 0.0135 | AT149: 0.0135 | AU149: 0.0135 | AV149: 0.012 | AW149: 0.012 | AX149: 0.012 | AY149: 0.0105 | AZ149: 0.0105 | BA149: 0.0105 | BB149: 0.009 | BC149: 0.009 | BD149: 0.009 | BE149: 0.0075 | BF149: 0.0075 | BG149: 0.0075 | BH149: 0.006 | BI149: 0.006 | BJ149: 0.006 | BK149: 0.0045 | BL149: 0.0045 | BM149: 0.0045 | BN149: 0.003 | BO149: 0.003 | BP149: 0.003 | BQ149: 0.0015 | BR149: 0.0015 | BS149: 0.0015 | BT149: 0 | BU149: 0 | BV149: 0 | BW149: 0 | BX149: 0 | BY149: 0 | BZ149: 0 | CA149: 0 | CB149: 0 | CC149: 0 | CD149: 0 | CE149: 0 | CF149: 0 | CG149: 0 | CH149: 0 | CI149: 0 | CJ149: 0 | CK149: 0 | CL149: 0 | CM149: 0 | CN149: 0 | CO149: 0 | CP149: 0 | CQ149: 0 | CR149: 0 | CS149: 0 | CT149: 0 | CU149: 0
A150: 150 | G150: 0 | H150: Доля скидок в общем обороте | I150: Полумаски FFP3 | L150: 1 | M150: % | X150: 0.006952888256 | AA150: 0 | AB150: 0 | AC150: 0 | AD150: 0 | AE150: 0.019 | AF150: 0.019 | AG150: 0.018 | AH150: 0.018 | AI150: 0.018 | AJ150: 0.017 | AK150: 0.017 | AL150: 0.017 | AM150: 0.016 | AN150: 0.016 | AO150: 0.016 | AP150: 0.015 | AQ150: 0.015 | AR150: 0.015 | AS150: 0.014 | AT150: 0.014 | AU150: 0.014 | AV150: 0.013 | AW150: 0.013 | AX150: 0.013 | AY150: 0.012 | AZ150: 0.012 | BA150: 0.012 | BB150: 0.011 | BC150: 0.011 | BD150: 0.011 | BE150: 0.01 | BF150: 0.01 | BG150: 0.01 | BH150: 0.009 | BI150: 0.009 | BJ150: 0.009 | BK150: 0.008 | BL150: 0.008 | BM150: 0.008 | BN150: 0.007 | BO150: 0.007 | BP150: 0.007 | BQ150: 0.006 | BR150: 0.006 | BS150: 0.006 | BT150: 0.005 | BU150: 0.005 | BV150: 0.005 | BW150: 0.004 | BX150: 0.004 | BY150: 0.004 | BZ150: 0.003 | CA150: 0.003 | CB150: 0.003 | CC150: 0.002 | CD150: 0.002 | CE150: 0.002 | CF150: 0.001 | CG150: 0.001 | CH150: 0.001 | CI150: 0 | CJ150: 0 | CK150: 0 | CL150: 0 | CM150: 0 | CN150: 0 | CO150: 0 | CP150: 0 | CQ150: 0 | CR150: 0 | CS150: 0 | CT150: 0 | CU150: 0
A151: 151 | G151: 0 | H151: Доля скидок в общем обороте | I151: Полумаски FFP4 | L151: 1 | M151: % | X151: 0.03426394432 | AA151: 0 | AB151: 0 | AC151: 0 | AD151: 0 | AE151: 0.058 | AF151: 0.058 | AG151: 0.056 | AH151: 0.056 | AI151: 0.056 | AJ151: 0.054 | AK151: 0.054 | AL151: 0.054 | AM151: 0.052 | AN151: 0.052 | AO151: 0.052 | AP151: 0.05 | AQ151: 0.05 | AR151: 0.05 | AS151: 0.048 | AT151: 0.048 | AU151: 0.048 | AV151: 0.046 | AW151: 0.046 | AX151: 0.046 | AY151: 0.044 | AZ151: 0.044 | BA151: 0.044 | BB151: 0.042 | BC151: 0.042 | BD151: 0.042 | BE151: 0.04 | BF151: 0.04 | BG151: 0.04 | BH151: 0.038 | BI151: 0.038 | BJ151: 0.038 | BK151: 0.036 | BL151: 0.036 | BM151: 0.036 | BN151: 0.034 | BO151: 0.034 | BP151: 0.034 | BQ151: 0.032 | BR151: 0.032 | BS151: 0.032 | BT151: 0.03 | BU151: 0.03 | BV151: 0.03 | BW151: 0.028 | BX151: 0.028 | BY151: 0.028 | BZ151: 0.026 | CA151: 0.026 | CB151: 0.026 | CC151: 0.024 | CD151: 0.024 | CE151: 0.024 | CF151: 0.022 | CG151: 0.022 | CH151: 0.022 | CI151: 0 | CJ151: 0 | CK151: 0 | CL151: 0 | CM151: 0 | CN151: 0 | CO151: 0 | CP151: 0 | CQ151: 0 | CR151: 0 | CS151: 0 | CT151: 0 | CU151: 0
A152: 152 | G152: 0 | H152: Доля скидок в общем обороте | I152: Маски медицинские | L152: 1 | M152: % | X152: 0.004417236479 | AA152: 0 | AB152: 0 | AC152: 0 | AD152: 0 | AE152: 0.021 | AF152: 0.021 | AG152: 0.0195 | AH152: 0.0195 | AI152: 0.0195 | AJ152: 0.018 | AK152: 0.018 | AL152: 0.018 | AM152: 0.0165 | AN152: 0.0165 | AO152: 0.0165 | AP152: 0.015 | AQ152: 0.015 | AR152: 0.015 | AS152: 0.0135 | AT152: 0.0135 | AU152: 0.0135 | AV152: 0.012 | AW152: 0.012 | AX152: 0.012 | AY152: 0.0105 | AZ152: 0.0105 | BA152: 0.0105 | BB152: 0.009 | BC152: 0.009 | BD152: 0.009 | BE152: 0.0075 | BF152: 0.0075 | BG152: 0.0075 | BH152: 0.006 | BI152: 0.006 | BJ152: 0.006 | BK152: 0.0045 | BL152: 0.0045 | BM152: 0.0045 | BN152: 0.003 | BO152: 0.003 | BP152: 0.003 | BQ152: 0.0015 | BR152: 0.0015 | BS152: 0.0015 | BT152: 0 | BU152: 0 | BV152: 0 | BW152: 0 | BX152: 0 | BY152: 0 | BZ152: 0 | CA152: 0 | CB152: 0 | CC152: 0 | CD152: 0 | CE152: 0 | CF152: 0 | CG152: 0 | CH152: 0 | CI152: 0 | CJ152: 0 | CK152: 0 | CL152: 0 | CM152: 0 | CN152: 0 | CO152: 0 | CP152: 0 | CQ152: 0 | CR152: 0 | CS152: 0 | CT152: 0 | CU152: 0
A153: 153 | G153: 0 | H153: Доля скидок в общем обороте | I153: Маски гигиенические | L153: 1 | M153: % | X153: 0.002944824319 | AA153: 0 | AB153: 0 | AC153: 0 | AD153: 0 | AE153: 0.014 | AF153: 0.014 | AG153: 0.013 | AH153: 0.013 | AI153: 0.013 | AJ153: 0.012 | AK153: 0.012 | AL153: 0.012 | AM153: 0.011 | AN153: 0.011 | AO153: 0.011 | AP153: 0.01 | AQ153: 0.01 | AR153: 0.01 | AS153: 0.009 | AT153: 0.009 | AU153: 0.009 | AV153: 0.008 | AW153: 0.008 | AX153: 0.008 | AY153: 0.007 | AZ153: 0.007 | BA153: 0.007 | BB153: 0.006 | BC153: 0.006 | BD153: 0.006 | BE153: 0.005 | BF153: 0.005 | BG153: 0.005 | BH153: 0.004 | BI153: 0.004 | BJ153: 0.004 | BK153: 0.003 | BL153: 0.003 | BM153: 0.003 | BN153: 0.002 | BO153: 0.002 | BP153: 0.002 | BQ153: 0.001 | BR153: 0.001 | BS153: 0.001 | BT153: 0 | BU153: 0 | BV153: 0 | BW153: 0 | BX153: 0 | BY153: 0 | BZ153: 0 | CA153: 0 | CB153: 0 | CC153: 0 | CD153: 0 | CE153: 0 | CF153: 0 | CG153: 0 | CH153: 0 | CI153: 0 | CJ153: 0 | CK153: 0 | CL153: 0 | CM153: 0 | CN153: 0 | CO153: 0 | CP153: 0 | CQ153: 0 | CR153: 0 | CS153: 0 | CT153: 0 | CU153: 0
A154: 154 | L154: пустая строка
A155: 155
A156: 156 | G156: 0 | H156: Общий оборот (GMV) с учетом скидок | L156: 1 | M156: руб. | T156: 0 | X156: 3736732867 | AA156: 0 | AB156: 0 | AC156: 0 | AD156: 0 | AE156: 1125884.481 | AF156: 2902670.928 | AG156: 4100576.863 | AH156: 5090125.794 | AI156: 4186005.548 | AJ156: 7274119.419 | AK156: 13692460.08 | AL156: 19518887.11 | AM156: 23637984.8 | AN156: 25842320.68 | AO156: 21935126.31 | AP156: 33646557.88 | AQ156: 41749198.35 | AR156: 42229863.46 | AS156: 36686180.36 | AT156: 32656259.03 | AU156: 20844420.66 | AV156: 29511105.51 | AW156: 46772318.17 | AX156: 57490974.41 | AY156: 61136574.02 | AZ156: 59516595.68 | BA156: 47895011.9 | BB156: 70131880.06 | BC156: 83537370.21 | BD156: 81491269.08 | BE156: 68548796.83 | BF156: 59266147.26 | BG156: 36844978.3 | BH156: 50927578.37 | BI156: 78966357.47 | BJ156: 95131571.95 | BK156: 99326336.18 | BL156: 95055014.14 | BM156: 75291100.31 | BN156: 108633376.8 | BO156: 127633339.8 | BP156: 122919608.5 | BQ156: 102179963.3 | BR156: 87352123.82 | BS156: 53071920.6 | BT156: 70882897.63 | BU156: 106324346.4 | BV156: 124045070.9 | BW156: 125535010.9 | BX156: 116568224.4 | BY156: 89667864.91 | BZ156: 125710778.7 | CA156: 143669461.3 | CB156: 134690120 | CC156: 109056364.3 | CD156: 90880303.61 | CE156: 54528182.17 | CF156: 72805714.57 | CG156: 109208571.9 | CH156: 127410000.5 | CI156: 0 | CJ156: 0 | CK156: 0 | CL156: 0 | CM156: 0 | CN156: 0 | CO156: 0 | CP156: 0 | CQ156: 0 | CR156: 0 | CS156: 0 | CT156: 0 | CU156: 0
A157: 157 | G157: 0 | H157: Общий оборот (GMV) с учетом скидок | I157: Полумаски FFP1 | L157: 1 | M157: руб. | X157: 895020348.7 | AA157: 0 | AB157: 0 | AC157: 0 | AD157: 0 | AE157: 252813.278 | AF157: 651784.2324 | AG157: 930280.6307 | AH157: 1154775.436 | AI157: 949661.4772 | AJ157: 1650825.56 | AK157: 3107436.349 | AL157: 4429715.253 | AM157: 5419418.561 | AN157: 5924800.848 | AO157: 5029008.677 | AP157: 7716746.091 | AQ157: 9575064.538 | AR157: 9685303.768 | AS157: 8499161.151 | AT157: 7565541.176 | AU157: 4829068.836 | AV157: 6839273.318 | AW157: 10839603 | AX157: 13323678.68 | AY157: 14310805.94 | AZ157: 13931602.56 | BA157: 11211230.46 | BB157: 16422110.98 | BC157: 19561146.28 | BD157: 19082030.37 | BE157: 16211021.44 | BF157: 14015778.95 | BG157: 8713424.024 | BH157: 12047964.28 | BI157: 18681113.16 | BJ157: 22505326.54 | BK157: 23729066.47 | BL157: 22708647.43 | BM157: 17987047.47 | BN157: 25961466.18 | BO157: 30502123.14 | BP157: 29375624.28 | BQ157: 24657318.58 | BR157: 21079173.21 | BS157: 12806926.25 | BT157: 17110821.71 | BU157: 25666232.56 | BV157: 29943937.98 | BW157: 30605149.02 | BX157: 28419066.95 | BY157: 21860820.73 | BZ157: 30667481.3 | CA157: 35048550.06 | CB157: 32858015.68 | CC157: 26866637.02 | CD157: 22388864.18 | CE157: 13433318.51 | CF157: 17947422.16 | CG157: 26921133.24 | CH157: 31407988.78 | CI157: 0 | CJ157: 0 | CK157: 0 | CL157: 0 | CM157: 0 | CN157: 0 | CO157: 0 | CP157: 0 | CQ157: 0 | CR157: 0 | CS157: 0 | CT157: 0 | CU157: 0
A158: 158 | G158: 0 | H158: Общий оборот (GMV) с учетом скидок | I158: Полумаски FFP2 | L158: 1 | M158: руб. | X158: 251097301.2 | AA158: 0 | AB158: 0 | AC158: 0 | AD158: 0 | AE158: 71495.43568 | AF158: 184324.1701 | AG158: 262933.4838 | AH158: 326384.4461 | AI158: 268411.2647 | AJ158: 466323.6846 | AK158: 877785.7593 | AL158: 1251301.887 | AM158: 1530009.909 | AN158: 1672689.404 | AO158: 1419789.415 | AP158: 2177368.331 | AQ158: 2701714.174 | AR158: 2732819.435 | AS158: 2396794.367 | AT158: 2133510.137 | AU158: 1361814.981 | AV158: 1927625.063 | AW158: 3055103.873 | AX158: 3755231.844 | AY158: 4031210.334 | AZ158: 3924392.548 | BA158: 3158091.045 | BB158: 4623384.086 | BC158: 5507129.535 | BD158: 5372242.072 | BE158: 4561438.829 | BF158: 3943743.988 | BG158: 2451773.371 | BH158: 3388180.079 | BI158: 5253582.595 | BJ158: 6329044.249 | BK158: 6669536.508 | BL158: 6382726.994 | BM158: 5055625.342 | BN158: 7293017.407 | BO158: 8568565.177 | BP158: 8252112.486 | BQ158: 6922895.159 | BR158: 5918279.626 | BS158: 3595727.874 | BT158: 4801506.091 | BU158: 7202259.136 | BV158: 8402635.659 | BW158: 8570688.372 | BX158: 7958496.345 | BY158: 6121920.266 | BZ158: 8570688.372 | CA158: 9795072.425 | CB158: 9182880.399 | CC158: 7493230.405 | CD158: 6244358.671 | CE158: 3746615.203 | CF158: 4995486.937 | CG158: 7493230.405 | CH158: 8742102.139 | CI158: 0 | CJ158: 0 | CK158: 0 | CL158: 0 | CM158: 0 | CN158: 0 | CO158: 0 | CP158: 0 | CQ158: 0 | CR158: 0 | CS158: 0 | CT158: 0 | CU158: 0
A159: 159 | G159: 0 | H159: Общий оборот (GMV) с учетом скидок | I159: Полумаски FFP3 | L159: 1 | M159: руб. | X159: 819508625.1 | AA159: 0 | AB159: 0 | AC159: 0 | AD159: 0 | AE159: 234463.0705 | AF159: 604475.1037 | AG159: 861826.0183 | AH159: 1069801.394 | AI159: 879780.727 | AJ159: 1527704.365 | AK159: 2875678.805 | AL159: 4099340.046 | AM159: 5009850.812 | AN159: 5477039.281 | AO159: 4648945.808 | AP159: 7125932.719 | AQ159: 8841973.659 | AR159: 8943772.698 | AS159: 7840078.592 | AT159: 6978857.838 | AU159: 4454590.109 | AV159: 6302205.901 | AW159: 9988401.806 | AX159: 12277410.55 | AY159: 13173052.43 | AZ159: 12823996.89 | BA159: 10319902.82 | BB159: 15100538.21 | BC159: 17986958.99 | BD159: 17546400.03 | BE159: 14890742.37 | BF159: 12874287.68 | BG159: 8003774.026 | BH159: 11055122.78 | BI159: 17141651.06 | BJ159: 20650720.93 | BK159: 21750832.18 | BL159: 20815482.98 | BM159: 16487511.27 | BN159: 23772297.46 | BO159: 27930069.11 | BP159: 26898560.88 | BQ159: 22554639.27 | BR159: 19281624.09 | BS159: 11714801.86 | BT159: 15635449.83 | BU159: 23453174.75 | BV159: 27362037.21 | BW159: 27937327.48 | BX159: 25941804.09 | BY159: 19955233.91 | BZ159: 27965377 | CA159: 31960430.86 | CB159: 29962903.93 | CC159: 24474252.91 | CD159: 20395210.76 | CE159: 12237126.45 | CF159: 16332517.47 | CG159: 24498776.21 | CH159: 28581905.58 | CI159: 0 | CJ159: 0 | CK159: 0 | CL159: 0 | CM159: 0 | CN159: 0 | CO159: 0 | CP159: 0 | CQ159: 0 | CR159: 0 | CS159: 0 | CT159: 0 | CU159: 0
A160: 160 | G160: 0 | H160: Общий оборот (GMV) с учетом скидок | I160: Полумаски FFP4 | L160: 0 | M160: руб. | X160: 1257201805 | AA160: 0 | AB160: 0 | AC160: 0 | AD160: 0 | AE160: 401503.0705 | AF160: 1035125.104 | AG160: 1448479.867 | AH160: 1798026.224 | AI160: 1478656.531 | AJ160: 2570450.788 | AK160: 4838495.602 | AL160: 6897376.282 | AM160: 8273136.996 | AN160: 9044639.851 | AO160: 7677147.884 | AP160: 11780433.61 | AQ160: 14617354.36 | AR160: 14785646.27 | AS160: 12720742.51 | AT160: 11323388.22 | AU160: 7227694.606 | AV160: 10236602.09 | AW160: 16224048.6 | AX160: 19942059.73 | AY160: 20999995.82 | AZ160: 20443544.32 | BA160: 16451609.63 | BB160: 24098692.73 | BC160: 28705082.69 | BD160: 28002002.12 | BE160: 23322980.91 | BF160: 20164660.58 | BG160: 12536102.24 | BH160: 17333914.76 | BI160: 26877306.02 | BJ160: 32379363.24 | BK160: 33471312 | BL160: 32031948 | BM160: 25371840 | BN160: 36621027.93 | BO160: 43026040.83 | BP160: 41437010.91 | BQ160: 34100141.68 | BR160: 29151701.58 | BS160: 17711496 | BT160: 23664120 | BU160: 35496180 | BV160: 41412210 | BW160: 41497596 | BX160: 38533482 | BY160: 29641140 | BZ160: 41582982 | CA160: 47523408 | CB160: 44553195 | CC160: 35715744 | CD160: 29763120 | CE160: 17857872 | CF160: 23859288 | CG160: 35788932 | CH160: 41753754 | CI160: 0 | CJ160: 0 | CK160: 0 | CL160: 0 | CM160: 0 | CN160: 0 | CO160: 0 | CP160: 0 | CQ160: 0 | CR160: 0 | CS160: 0 | CT160: 0 | CU160: 0
A161: 161 | G161: 0 | H161: Общий оборот (GMV) с учетом скидок | I161: Маски медицинские | L161: 0 | M161: руб. | X161: 428990648.6 | AA161: 0 | AB161: 0 | AC161: 0 | AD161: 0 | AE161: 138116.1826 | AF161: 356080.7832 | AG161: 497980.083 | AH161: 618152.36 | AI161: 508354.668 | AJ161: 883188.7967 | AK161: 1662473.029 | AL161: 2369889.938 | AM161: 2840927.49 | AN161: 3105855.252 | AO161: 2636269.71 | AP161: 4042944.761 | AQ161: 5016551.867 | AR161: 5074308.221 | AS161: 4363113.485 | AT161: 3883832.08 | AU161: 2479041.753 | AV161: 3509039.834 | AW161: 5561497.095 | AX161: 6836006.846 | AY161: 7194506.691 | AZ161: 7003868.841 | BA161: 5636249.481 | BB161: 8251360.01 | BC161: 9828581.743 | BD161: 9587847.899 | BE161: 7981182.573 | BF161: 6900397.433 | BG161: 4289885.633 | BH161: 5928323.237 | BI161: 9192231.535 | BJ161: 11073974.59 | BK161: 11440918 | BL161: 10948925.17 | BM161: 8672415.975 | BN161: 12510436.67 | BO161: 14698510.37 | BP161: 14155667.66 | BQ161: 11642675.73 | BR161: 9953149.507 | BS161: 6047165.625 | BT161: 8075000 | BU161: 12112500 | BV161: 14131250 | BW161: 14131250 | BX161: 13121875 | BY161: 10093750 | BZ161: 14131250 | CA161: 16150000 | CB161: 15140625 | CC161: 12112500 | CD161: 10093750 | CE161: 6056250 | CF161: 8075000 | CG161: 12112500 | CH161: 14131250 | CI161: 0 | CJ161: 0 | CK161: 0 | CL161: 0 | CM161: 0 | CN161: 0 | CO161: 0 | CP161: 0 | CQ161: 0 | CR161: 0 | CS161: 0 | CT161: 0 | CU161: 0
A162: 162 | G162: 0 | H162: Общий оборот (GMV) с учетом скидок | I162: Маски гигиенические | L162: 0 | M162: руб. | X162: 84914137.84 | AA162: 0 | AB162: 0 | AC162: 0 | AD162: 0 | AE162: 27493.44398 | AF162: 70881.53527 | AG162: 99076.78008 | AH162: 122985.9336 | AI162: 101140.8797 | AJ162: 175626.2241 | AK162: 330590.5394 | AL162: 471263.7012 | AM162: 564641.029 | AN162: 617296.0456 | AO162: 523964.8133 | AP162: 803132.3651 | AQ162: 996539.751 | AR162: 1008013.071 | AS162: 866290.2573 | AT162: 771129.5851 | AU162: 492210.3734 | AV162: 696359.3029 | AW162: 1103663.801 | AX162: 1356586.755 | AY162: 1427002.805 | AZ162: 1389190.519 | BA162: 1117928.465 | BB162: 1635794.041 | BC162: 1948470.971 | BD162: 1900746.598 | BE162: 1581430.705 | BF162: 1367278.631 | BG162: 850019.0041 | BH162: 1174073.228 | BI162: 1820473.095 | BJ162: 2193142.407 | BK162: 2264671.021 | BL162: 2167283.564 | BM162: 1716660.249 | BN162: 2475131.104 | BO162: 2908031.203 | BP162: 2800632.324 | BQ162: 2302292.913 | BR162: 1968195.809 | BS162: 1195803 | BT162: 1596000 | BU162: 2394000 | BV162: 2793000 | BW162: 2793000 | BX162: 2593500 | BY162: 1995000 | BZ162: 2793000 | CA162: 3192000 | CB162: 2992500 | CC162: 2394000 | CD162: 1995000 | CE162: 1197000 | CF162: 1596000 | CG162: 2394000 | CH162: 2793000 | CI162: 0 | CJ162: 0 | CK162: 0 | CL162: 0 | CM162: 0 | CN162: 0 | CO162: 0 | CP162: 0 | CQ162: 0 | CR162: 0 | CS162: 0 | CT162: 0 | CU162: 0
A163: 163 | L163: пустая строка
A164: 164
A165: 165 | G165: 0 | H165: Подготовка рекламных материалов | L165: 1 | M165: руб. | Q165: начисление | X165: 1000000 | AA165: 0 | AB165: 800000 | AC165: 200000 | AD165: 0 | AE165: 0 | AF165: 0 | AG165: 0 | AH165: 0 | AI165: 0 | AJ165: 0 | AK165: 0 | AL165: 0 | AM165: 0 | AN165: 0 | AO165: 0 | AP165: 0 | AQ165: 0 | AR165: 0 | AS165: 0 | AT165: 0 | AU165: 0 | AV165: 0 | AW165: 0 | AX165: 0 | AY165: 0 | AZ165: 0 | BA165: 0 | BB165: 0 | BC165: 0 | BD165: 0 | BE165: 0 | BF165: 0 | BG165: 0 | BH165: 0 | BI165: 0 | BJ165: 0 | BK165: 0 | BL165: 0 | BM165: 0 | BN165: 0 | BO165: 0 | BP165: 0 | BQ165: 0 | BR165: 0 | BS165: 0 | BT165: 0 | BU165: 0 | BV165: 0 | BW165: 0 | BX165: 0 | BY165: 0 | BZ165: 0 | CA165: 0 | CB165: 0 | CC165: 0 | CD165: 0 | CE165: 0 | CF165: 0 | CG165: 0 | CH165: 0 | CI165: 0 | CJ165: 0 | CK165: 0 | CL165: 0 | CM165: 0 | CN165: 0 | CO165: 0 | CP165: 0 | CQ165: 0 | CR165: 0 | CS165: 0 | CT165: 0 | CU165: 0
A166: 166 | G166: 0 | H166: Подготовка рекламных материалов | I166: Распределение расхода для одного запуска | M166: руб. | Q166: процесс | T166: 0 | U166: 0 | X166: 1000000 | AA166: 0 | AB166: 800000 | AC166: 200000 | AD166: 0 | AE166: 0 | AF166: 0 | AG166: 0 | AH166: 0 | AI166: 0 | AJ166: 0 | AK166: 0 | AL166: 0 | AM166: 0 | AN166: 0 | AO166: 0 | AP166: 0 | AQ166: 0 | AR166: 0 | AS166: 0 | AT166: 0 | AU166: 0 | AV166: 0 | AW166: 0 | AX166: 0 | AY166: 0 | AZ166: 0 | BA166: 0 | BB166: 0 | BC166: 0 | BD166: 0 | BE166: 0 | BF166: 0 | BG166: 0 | BH166: 0 | BI166: 0 | BJ166: 0 | BK166: 0 | BL166: 0 | BM166: 0 | BN166: 0 | BO166: 0 | BP166: 0 | BQ166: 0 | BR166: 0 | BS166: 0 | BT166: 0 | BU166: 0 | BV166: 0 | BW166: 0 | BX166: 0 | BY166: 0 | BZ166: 0 | CA166: 0 | CB166: 0 | CC166: 0 | CD166: 0 | CE166: 0 | CF166: 0 | CG166: 0 | CH166: 0 | CI166: 0 | CJ166: 0 | CK166: 0 | CL166: 0 | CM166: 0 | CN166: 0 | CO166: 0 | CP166: 0 | CQ166: 0 | CR166: 0 | CS166: 0 | CT166: 0 | CU166: 0
A167: 167 | G167: 0 | H167: Подготовка рекламных материалов | I167: Распределение расхода для одного запуска | J167: Сумма расхода для одного запуска по этой статье | M167: руб. | P167: * | Q167: 1000000 | S167: 0 | Y167: обратное распределение расхода | AA167: 0 | AB167: 0 | AC167: 0 | AD167: 0 | AE167: 0 | AF167: 0 | AG167: 0 | AH167: 0 | AI167: 0 | AJ167: 0 | AK167: 0 | AL167: 0 | AM167: 0 | AN167: 0 | AO167: 0 | AP167: 0 | AQ167: 0 | AR167: 0 | AS167: 0 | AT167: 0 | AU167: 0 | AV167: 0 | AW167: 0 | AX167: 0 | AY167: 0 | AZ167: 0 | BA167: 0 | BB167: 0 | BC167: 0 | BD167: 0 | BE167: 0 | BF167: 0 | BG167: 0 | BH167: 0 | BI167: 0 | BJ167: 0 | BK167: 0 | BL167: 0 | BM167: 0 | BN167: 0 | BO167: 0 | BP167: 0 | BQ167: 0 | BR167: 0 | BS167: 0 | BT167: 0 | BU167: 0 | BV167: 0 | BW167: 0 | BX167: 0 | BY167: 0 | BZ167: 0 | CA167: 0 | CB167: 0 | CC167: 0 | CD167: 0 | CE167: 0 | CF167: 0 | CG167: 0 | CH167: 0 | CI167: 0 | CJ167: 0 | CK167: 0 | CL167: 0 | CM167: 0 | CN167: 0 | CO167: 0 | CP167: 0 | CQ167: 0 | CR167: 0 | CS167: 200000 | CT167: 800000 | CU167: 0
A168: 168 | G168: 0 | H168: Подготовка рекламных материалов | I168: Распределение расхода для одного запуска | J168: Процентное распределение расхода по периодам | M168: % | T168: 0 | X168: 1 | Y168: * | AB168: 0.8 | AC168: 0.2
A169: 169
A170: 170 | G170: 0 | H170: Подготовка рекламных материалов | L170: 1 | M170: руб. | Q170: оплата | X170: 1000000 | AA170: 80000 | AB170: 180000 | AC170: 600000 | AD170: 140000 | AE170: 0 | AF170: 0 | AG170: 0 | AH170: 0 | AI170: 0 | AJ170: 0 | AK170: 0 | AL170: 0 | AM170: 0 | AN170: 0 | AO170: 0 | AP170: 0 | AQ170: 0 | AR170: 0 | AS170: 0 | AT170: 0 | AU170: 0 | AV170: 0 | AW170: 0 | AX170: 0 | AY170: 0 | AZ170: 0 | BA170: 0 | BB170: 0 | BC170: 0 | BD170: 0 | BE170: 0 | BF170: 0 | BG170: 0 | BH170: 0 | BI170: 0 | BJ170: 0 | BK170: 0 | BL170: 0 | BM170: 0 | BN170: 0 | BO170: 0 | BP170: 0 | BQ170: 0 | BR170: 0 | BS170: 0 | BT170: 0 | BU170: 0 | BV170: 0 | BW170: 0 | BX170: 0 | BY170: 0 | BZ170: 0 | CA170: 0 | CB170: 0 | CC170: 0 | CD170: 0 | CE170: 0 | CF170: 0 | CG170: 0 | CH170: 0 | CI170: 0 | CJ170: 0 | CK170: 0 | CL170: 0 | CM170: 0 | CN170: 0 | CO170: 0 | CP170: 0 | CQ170: 0 | CR170: 0 | CS170: 0 | CT170: 0 | CU170: 0
A171: 171 | G171: 0 | H171: Подготовка рекламных материалов | I171: Задаем через указание % предоплаты и сроков
A172: 172 | G172: 0 | H172: Подготовка рекламных материалов | I172: Задаем через указание % предоплаты и сроков | J172: Размер предоплаты | M172: % | P172: * | Q172: 0.3 | S172: 0
A173: 173 | G173: 0 | H173: Подготовка рекламных материалов | I173: Задаем через указание % предоплаты и сроков | J173: Период оборачиваемости предоплаты (срок) | M173: кол-во дней | P173: * | Q173: 10 | S173: 0
A174: 174 | G174: 0 | H174: Подготовка рекламных материалов | I174: Задаем через указание % предоплаты и сроков | J174: расчет в количестве периодов | M174: кол-во периодов | Q174: 0.3333333333 | S174: 0 | T174: 0
A175: 175 | G175: 0 | H175: Подготовка рекламных материалов | I175: Задаем через указание % предоплаты и сроков | J175: Размер доплаты | M175: % | Q175: 0.7 | S175: 0 | T175: 0
A176: 176 | G176: 0 | H176: Подготовка рекламных материалов | I176: Задаем через указание % предоплаты и сроков | J176: Период оборачиваемости доплат (срок) | M176: кол-во дней | P176: * | Q176: 30 | S176: 0
A177: 177 | G177: 0 | H177: Подготовка рекламных материалов | I177: Задаем через указание % предоплаты и сроков | J177: расчет в количестве периодов | M177: кол-во периодов | Q177: 1 | S177: 0 | T177: 0
A178: 178
A179: 179 | G179: 0 | H179: Подготовка рекламных материалов | L179: 1 | M179: руб. | Q179: учет | X179: 1000000 | AA179: 0 | AB179: 0 | AC179: 0 | AD179: 0 | AE179: 459.9816007 | AF179: 1149.954002 | AG179: 1839.926403 | AH179: 2529.898804 | AI179: 3219.871205 | AJ179: 3909.843606 | AK179: 4599.816007 | AL179: 5289.788408 | AM179: 5979.76081 | AN179: 6669.733211 | AO179: 7359.705612 | AP179: 8049.678013 | AQ179: 8739.650414 | AR179: 9429.622815 | AS179: 10119.59522 | AT179: 10809.56762 | AU179: 11499.54002 | AV179: 12189.51242 | AW179: 12879.48482 | AX179: 13569.45722 | AY179: 14259.42962 | AZ179: 14949.40202 | BA179: 15639.37443 | BB179: 16329.34683 | BC179: 17019.31923 | BD179: 17709.29163 | BE179: 18399.26403 | BF179: 19089.23643 | BG179: 19779.20883 | BH179: 20469.18123 | BI179: 21159.15363 | BJ179: 21849.12603 | BK179: 22539.09844 | BL179: 23229.07084 | BM179: 23919.04324 | BN179: 24609.01564 | BO179: 25298.98804 | BP179: 25988.96044 | BQ179: 26678.93284 | BR179: 27368.90524 | BS179: 27713.89144 | BT179: 27713.89144 | BU179: 27713.89144 | BV179: 27713.89144 | BW179: 27713.89144 | BX179: 27713.89144 | BY179: 27713.89144 | BZ179: 27713.89144 | CA179: 27713.89144 | CB179: 27713.89144 | CC179: 27713.89144 | CD179: 27713.89144 | CE179: 27713.89144 | CF179: 27713.89144 | CG179: 27713.89144 | CH179: 27713.89144 | CI179: 0 | CJ179: 0 | CK179: 0 | CL179: 0 | CM179: 0 | CN179: 0 | CO179: 0 | CP179: 0 | CQ179: 0 | CR179: 0 | CS179: 0 | CT179: 0 | CU179: 0
A180: 180 | G180: 0 | H180: Подготовка рекламных материалов | I180: Применяется процентное распределение трафика
A181: 181 | G181: 0 | H181: Подготовка рекламных материалов | I181: Применяется процентное распределение трафика | J181: %-ное распределение учета расходов | M181: % | Q181: процесс | T181: 0 | X181: 1 | AA181: 0 | AB181: 0 | AC181: 0 | AD181: 0 | AE181: 0.0004599816007 | AF181: 0.001149954002 | AG181: 0.001839926403 | AH181: 0.002529898804 | AI181: 0.003219871205 | AJ181: 0.003909843606 | AK181: 0.004599816007 | AL181: 0.005289788408 | AM181: 0.00597976081 | AN181: 0.006669733211 | AO181: 0.007359705612 | AP181: 0.008049678013 | AQ181: 0.008739650414 | AR181: 0.009429622815 | AS181: 0.01011959522 | AT181: 0.01080956762 | AU181: 0.01149954002 | AV181: 0.01218951242 | AW181: 0.01287948482 | AX181: 0.01356945722 | AY181: 0.01425942962 | AZ181: 0.01494940202 | BA181: 0.01563937443 | BB181: 0.01632934683 | BC181: 0.01701931923 | BD181: 0.01770929163 | BE181: 0.01839926403 | BF181: 0.01908923643 | BG181: 0.01977920883 | BH181: 0.02046918123 | BI181: 0.02115915363 | BJ181: 0.02184912603 | BK181: 0.02253909844 | BL181: 0.02322907084 | BM181: 0.02391904324 | BN181: 0.02460901564 | BO181: 0.02529898804 | BP181: 0.02598896044 | BQ181: 0.02667893284 | BR181: 0.02736890524 | BS181: 0.02771389144 | BT181: 0.02771389144 | BU181: 0.02771389144 | BV181: 0.02771389144 | BW181: 0.02771389144 | BX181: 0.02771389144 | BY181: 0.02771389144 | BZ181: 0.02771389144 | CA181: 0.02771389144 | CB181: 0.02771389144 | CC181: 0.02771389144 | CD181: 0.02771389144 | CE181: 0.02771389144 | CF181: 0.02771389144 | CG181: 0.02771389144 | CH181: 0.02771389144 | CI181: 0 | CJ181: 0 | CK181: 0 | CL181: 0 | CM181: 0 | CN181: 0 | CO181: 0 | CP181: 0 | CQ181: 0 | CR181: 0 | CS181: 0 | CT181: 0 | CU181: 0
A182: 182 | G182: 0 | H182: Подготовка рекламных материалов | I182: Применяется процентное распределение трафика | J182: обратный порядок распределения учета расхода | M182: руб. | T182: 0 | Y182: обратный порядок процесса | AA182: 0 | AB182: 0 | AC182: 0 | AD182: 0 | AE182: 0 | AF182: 0 | AG182: 0 | AH182: 0 | AI182: 0 | AJ182: 0 | AK182: 0 | AL182: 0 | AM182: 0 | AN182: 27713.89144 | AO182: 27713.89144 | AP182: 27713.89144 | AQ182: 27713.89144 | AR182: 27713.89144 | AS182: 27713.89144 | AT182: 27713.89144 | AU182: 27713.89144 | AV182: 27713.89144 | AW182: 27713.89144 | AX182: 27713.89144 | AY182: 27713.89144 | AZ182: 27713.89144 | BA182: 27713.89144 | BB182: 27713.89144 | BC182: 27713.89144 | BD182: 27368.90524 | BE182: 26678.93284 | BF182: 25988.96044 | BG182: 25298.98804 | BH182: 24609.01564 | BI182: 23919.04324 | BJ182: 23229.07084 | BK182: 22539.09844 | BL182: 21849.12603 | BM182: 21159.15363 | BN182: 20469.18123 | BO182: 19779.20883 | BP182: 19089.23643 | BQ182: 18399.26403 | BR182: 17709.29163 | BS182: 17019.31923 | BT182: 16329.34683 | BU182: 15639.37443 | BV182: 14949.40202 | BW182: 14259.42962 | BX182: 13569.45722 | BY182: 12879.48482 | BZ182: 12189.51242 | CA182: 11499.54002 | CB182: 10809.56762 | CC182: 10119.59522 | CD182: 9429.622815 | CE182: 8739.650414 | CF182: 8049.678013 | CG182: 7359.705612 | CH182: 6669.733211 | CI182: 5979.76081 | CJ182: 5289.788408 | CK182: 4599.816007 | CL182: 3909.843606 | CM182: 3219.871205 | CN182: 2529.898804 | CO182: 1839.926403 | CP182: 1149.954002 | CQ182: 459.9816007 | CR182: 0 | CS182: 0 | CT182: 0 | CU182: 0
A183: 183 | L183: пустая строка
A184: 184
A185: 185 | G185: 0 | H185: Съемка видео-роликов | L185: 1 | M185: руб. | Q185: начисление | X185: 500000 | AA185: 0 | AB185: 500000 | AC185: 0 | AD185: 0 | AE185: 0 | AF185: 0 | AG185: 0 | AH185: 0 | AI185: 0 | AJ185: 0 | AK185: 0 | AL185: 0 | AM185: 0 | AN185: 0 | AO185: 0 | AP185: 0 | AQ185: 0 | AR185: 0 | AS185: 0 | AT185: 0 | AU185: 0 | AV185: 0 | AW185: 0 | AX185: 0 | AY185: 0 | AZ185: 0 | BA185: 0 | BB185: 0 | BC185: 0 | BD185: 0 | BE185: 0 | BF185: 0 | BG185: 0 | BH185: 0 | BI185: 0 | BJ185: 0 | BK185: 0 | BL185: 0 | BM185: 0 | BN185: 0 | BO185: 0 | BP185: 0 | BQ185: 0 | BR185: 0 | BS185: 0 | BT185: 0 | BU185: 0 | BV185: 0 | BW185: 0 | BX185: 0 | BY185: 0 | BZ185: 0 | CA185: 0 | CB185: 0 | CC185: 0 | CD185: 0 | CE185: 0 | CF185: 0 | CG185: 0 | CH185: 0 | CI185: 0 | CJ185: 0 | CK185: 0 | CL185: 0 | CM185: 0 | CN185: 0 | CO185: 0 | CP185: 0 | CQ185: 0 | CR185: 0 | CS185: 0 | CT185: 0 | CU185: 0
A186: 186 | G186: 0 | H186: Съемка видео-роликов | I186: Распределение расхода для одного запуска | M186: руб. | Q186: процесс | T186: 0 | U186: 0 | X186: 500000 | AA186: 0 | AB186: 500000 | AC186: 0 | AD186: 0 | AE186: 0 | AF186: 0 | AG186: 0 | AH186: 0 | AI186: 0 | AJ186: 0 | AK186: 0 | AL186: 0 | AM186: 0 | AN186: 0 | AO186: 0 | AP186: 0 | AQ186: 0 | AR186: 0 | AS186: 0 | AT186: 0 | AU186: 0 | AV186: 0 | AW186: 0 | AX186: 0 | AY186: 0 | AZ186: 0 | BA186: 0 | BB186: 0 | BC186: 0 | BD186: 0 | BE186: 0 | BF186: 0 | BG186: 0 | BH186: 0 | BI186: 0 | BJ186: 0 | BK186: 0 | BL186: 0 | BM186: 0 | BN186: 0 | BO186: 0 | BP186: 0 | BQ186: 0 | BR186: 0 | BS186: 0 | BT186: 0 | BU186: 0 | BV186: 0 | BW186: 0 | BX186: 0 | BY186: 0 | BZ186: 0 | CA186: 0 | CB186: 0 | CC186: 0 | CD186: 0 | CE186: 0 | CF186: 0 | CG186: 0 | CH186: 0 | CI186: 0 | CJ186: 0 | CK186: 0 | CL186: 0 | CM186: 0 | CN186: 0 | CO186: 0 | CP186: 0 | CQ186: 0 | CR186: 0 | CS186: 0 | CT186: 0 | CU186: 0
A187: 187 | G187: 0 | H187: Съемка видео-роликов | I187: Распределение расхода для одного запуска | J187: Сумма расхода для одного запуска по этой статье | M187: руб. | P187: * | Q187: 500000 | S187: 0 | Y187: обратное распределение расхода | AA187: 0 | AB187: 0 | AC187: 0 | AD187: 0 | AE187: 0 | AF187: 0 | AG187: 0 | AH187: 0 | AI187: 0 | AJ187: 0 | AK187: 0 | AL187: 0 | AM187: 0 | AN187: 0 | AO187: 0 | AP187: 0 | AQ187: 0 | AR187: 0 | AS187: 0 | AT187: 0 | AU187: 0 | AV187: 0 | AW187: 0 | AX187: 0 | AY187: 0 | AZ187: 0 | BA187: 0 | BB187: 0 | BC187: 0 | BD187: 0 | BE187: 0 | BF187: 0 | BG187: 0 | BH187: 0 | BI187: 0 | BJ187: 0 | BK187: 0 | BL187: 0 | BM187: 0 | BN187: 0 | BO187: 0 | BP187: 0 | BQ187: 0 | BR187: 0 | BS187: 0 | BT187: 0 | BU187: 0 | BV187: 0 | BW187: 0 | BX187: 0 | BY187: 0 | BZ187: 0 | CA187: 0 | CB187: 0 | CC187: 0 | CD187: 0 | CE187: 0 | CF187: 0 | CG187: 0 | CH187: 0 | CI187: 0 | CJ187: 0 | CK187: 0 | CL187: 0 | CM187: 0 | CN187: 0 | CO187: 0 | CP187: 0 | CQ187: 0 | CR187: 0 | CS187: 0 | CT187: 500000 | CU187: 0
A188: 188 | G188: 0 | H188: Съемка видео-роликов | I188: Распределение расхода для одного запуска | J188: Процентное распределение расхода по периодам | M188: % | T188: 0 | X188: 1 | Y188: * | AA188: 0 | AB188: 1
A189: 189
A190: 190 | G190: 0 | H190: Съемка видео-роликов | L190: 1 | M190: руб. | Q190: оплата | X190: 500000 | AA190: 50000 | AB190: 100000 | AC190: 350000 | AD190: 0 | AE190: 0 | AF190: 0 | AG190: 0 | AH190: 0 | AI190: 0 | AJ190: 0 | AK190: 0 | AL190: 0 | AM190: 0 | AN190: 0 | AO190: 0 | AP190: 0 | AQ190: 0 | AR190: 0 | AS190: 0 | AT190: 0 | AU190: 0 | AV190: 0 | AW190: 0 | AX190: 0 | AY190: 0 | AZ190: 0 | BA190: 0 | BB190: 0 | BC190: 0 | BD190: 0 | BE190: 0 | BF190: 0 | BG190: 0 | BH190: 0 | BI190: 0 | BJ190: 0 | BK190: 0 | BL190: 0 | BM190: 0 | BN190: 0 | BO190: 0 | BP190: 0 | BQ190: 0 | BR190: 0 | BS190: 0 | BT190: 0 | BU190: 0 | BV190: 0 | BW190: 0 | BX190: 0 | BY190: 0 | BZ190: 0 | CA190: 0 | CB190: 0 | CC190: 0 | CD190: 0 | CE190: 0 | CF190: 0 | CG190: 0 | CH190: 0 | CI190: 0 | CJ190: 0 | CK190: 0 | CL190: 0 | CM190: 0 | CN190: 0 | CO190: 0 | CP190: 0 | CQ190: 0 | CR190: 0 | CS190: 0 | CT190: 0 | CU190: 0
A191: 191 | G191: 0 | H191: Съемка видео-роликов | I191: Задаем через указание % предоплаты и сроков
A192: 192 | G192: 0 | H192: Съемка видео-роликов | I192: Задаем через указание % предоплаты и сроков | J192: Размер предоплаты | M192: % | P192: * | Q192: 0.3 | S192: 0
A193: 193 | G193: 0 | H193: Съемка видео-роликов | I193: Задаем через указание % предоплаты и сроков | J193: Период оборачиваемости предоплаты (срок) | M193: кол-во дней | P193: * | Q193: 10 | S193: 0
A194: 194 | G194: 0 | H194: Съемка видео-роликов | I194: Задаем через указание % предоплаты и сроков | J194: расчет в количестве периодов | M194: кол-во периодов | Q194: 0.3333333333 | S194: 0 | T194: 0
A195: 195 | G195: 0 | H195: Съемка видео-роликов | I195: Задаем через указание % предоплаты и сроков | J195: Размер доплаты | M195: % | Q195: 0.7 | S195: 0 | T195: 0
A196: 196 | G196: 0 | H196: Съемка видео-роликов | I196: Задаем через указание % предоплаты и сроков | J196: Период оборачиваемости доплат (срок) | M196: кол-во дней | P196: * | Q196: 30 | S196: 0
A197: 197 | G197: 0 | H197: Съемка видео-роликов | I197: Задаем через указание % предоплаты и сроков | J197: расчет в количестве периодов | M197: кол-во периодов | Q197: 1 | S197: 0 | T197: 0
A198: 198
A199: 199 | G199: 0 | H199: Съемка видео-роликов | L199: 1 | M199: руб. | Q199: учет | X199: 500000 | AA199: 0 | AB199: 0 | AC199: 0 | AD199: 0 | AE199: 229.9908004 | AF199: 574.9770009 | AG199: 919.9632015 | AH199: 1264.949402 | AI199: 1609.935603 | AJ199: 1954.921803 | AK199: 2299.908004 | AL199: 2644.894204 | AM199: 2989.880405 | AN199: 3334.866605 | AO199: 3679.852806 | AP199: 4024.839006 | AQ199: 4369.825207 | AR199: 4714.811408 | AS199: 5059.797608 | AT199: 5404.783809 | AU199: 5749.770009 | AV199: 6094.75621 | AW199: 6439.74241 | AX199: 6784.728611 | AY199: 7129.714811 | AZ199: 7474.701012 | BA199: 7819.687213 | BB199: 8164.673413 | BC199: 8509.659614 | BD199: 8854.645814 | BE199: 9199.632015 | BF199: 9544.618215 | BG199: 9889.604416 | BH199: 10234.59062 | BI199: 10579.57682 | BJ199: 10924.56302 | BK199: 11269.54922 | BL199: 11614.53542 | BM199: 11959.52162 | BN199: 12304.50782 | BO199: 12649.49402 | BP199: 12994.48022 | BQ199: 13339.46642 | BR199: 13684.45262 | BS199: 13856.94572 | BT199: 13856.94572 | BU199: 13856.94572 | BV199: 13856.94572 | BW199: 13856.94572 | BX199: 13856.94572 | BY199: 13856.94572 | BZ199: 13856.94572 | CA199: 13856.94572 | CB199: 13856.94572 | CC199: 13856.94572 | CD199: 13856.94572 | CE199: 13856.94572 | CF199: 13856.94572 | CG199: 13856.94572 | CH199: 13856.94572 | CI199: 0 | CJ199: 0 | CK199: 0 | CL199: 0 | CM199: 0 | CN199: 0 | CO199: 0 | CP199: 0 | CQ199: 0 | CR199: 0 | CS199: 0 | CT199: 0 | CU199: 0
A200: 200 | G200: 0 | H200: Съемка видео-роликов | I200: Применяется процентное распределение трафика
... 130 more rows

Sheet CapEx
Y1: номер столбца: | AA1: 27 | AB1: 28 | AC1: 29 | AD1: 30 | AE1: 31 | AF1: 32 | AG1: 33 | AH1: 34 | AI1: 35 | AJ1: 36 | AK1: 37 | AL1: 38 | AM1: 39 | AN1: 40 | AO1: 41 | AP1: 42 | AQ1: 43 | AR1: 44 | AS1: 45 | AT1: 46 | AU1: 47 | AV1: 48 | AW1: 49 | AX1: 50 | AY1: 51 | AZ1: 52 | BA1: 53 | BB1: 54 | BC1: 55 | BD1: 56 | BE1: 57 | BF1: 58 | BG1: 59 | BH1: 60 | BI1: 61 | BJ1: 62 | BK1: 63 | BL1: 64 | BM1: 65 | BN1: 66 | BO1: 67 | BP1: 68 | BQ1: 69 | BR1: 70 | BS1: 71 | BT1: 72 | BU1: 73 | BV1: 74 | BW1: 75 | BX1: 76 | BY1: 77 | BZ1: 78 | CA1: 79 | CB1: 80 | CC1: 81 | CD1: 82 | CE1: 83 | CF1: 84 | CG1: 85 | CH1: 86 | CI1: 87 | CJ1: 88 | CK1: 89 | CL1: 90 | CM1: 91 | CN1: 92 | CO1: 93 | CP1: 94 | CQ1: 95 | CR1: 96 | CS1: 97 | CT1: 98 | CU1: 99
Y2: номер периода модели: | AA2: 1 | AB2: 2 | AC2: 3 | AD2: 4 | AE2: 5 | AF2: 6 | AG2: 7 | AH2: 8 | AI2: 9 | AJ2: 10 | AK2: 11 | AL2: 12 | AM2: 13 | AN2: 14 | AO2: 15 | AP2: 16 | AQ2: 17 | AR2: 18 | AS2: 19 | AT2: 20 | AU2: 21 | AV2: 22 | AW2: 23 | AX2: 24 | AY2: 25 | AZ2: 26 | BA2: 27 | BB2: 28 | BC2: 29 | BD2: 30 | BE2: 31 | BF2: 32 | BG2: 33 | BH2: 34 | BI2: 35 | BJ2: 36 | BK2: 37 | BL2: 38 | BM2: 39 | BN2: 40 | BO2: 41 | BP2: 42 | BQ2: 43 | BR2: 44 | BS2: 45 | BT2: 46 | BU2: 47 | BV2: 48 | BW2: 49 | BX2: 50 | BY2: 51 | BZ2: 52 | CA2: 53 | CB2: 54 | CC2: 55 | CD2: 56 | CE2: 57 | CF2: 58 | CG2: 59 | CH2: 60 | CI2: 61 | CJ2: 62 | CK2: 63 | CL2: 64 | CM2: 65 | CN2: 66 | CO2: 67 | CP2: 68 | CQ2: 69 | CR2: 70 | CS2: 71 | CT2: 72 | CU2: 73
Y3: номер факт-периода:
Y4: номер план-периода: | AA4: 1 | AB4: 2 | AC4: 3 | AD4: 4 | AE4: 5 | AF4: 6 | AG4: 7 | AH4: 8 | AI4: 9 | AJ4: 10 | AK4: 11 | AL4: 12 | AM4: 13 | AN4: 14 | AO4: 15 | AP4: 16 | AQ4: 17 | AR4: 18 | AS4: 19 | AT4: 20 | AU4: 21 | AV4: 22 | AW4: 23 | AX4: 24 | AY4: 25 | AZ4: 26 | BA4: 27 | BB4: 28 | BC4: 29 | BD4: 30 | BE4: 31 | BF4: 32 | BG4: 33 | BH4: 34 | BI4: 35 | BJ4: 36 | BK4: 37 | BL4: 38 | BM4: 39 | BN4: 40 | BO4: 41 | BP4: 42 | BQ4: 43 | BR4: 44 | BS4: 45 | BT4: 46 | BU4: 47 | BV4: 48 | BW4: 49 | BX4: 50 | BY4: 51 | BZ4: 52 | CA4: 53 | CB4: 54 | CC4: 55 | CD4: 56 | CE4: 57 | CF4: 58 | CG4: 59 | CH4: 60
Y5: число даты начала: | AA5: 1 | AB5: 1 | AC5: 1 | AD5: 1 | AE5: 1 | AF5: 1 | AG5: 1 | AH5: 1 | AI5: 1 | AJ5: 1 | AK5: 1 | AL5: 1 | AM5: 1 | AN5: 1 | AO5: 1 | AP5: 1 | AQ5: 1 | AR5: 1 | AS5: 1 | AT5: 1 | AU5: 1 | AV5: 1 | AW5: 1 | AX5: 1 | AY5: 1 | AZ5: 1 | BA5: 1 | BB5: 1 | BC5: 1 | BD5: 1 | BE5: 1 | BF5: 1 | BG5: 1 | BH5: 1 | BI5: 1 | BJ5: 1 | BK5: 1 | BL5: 1 | BM5: 1 | BN5: 1 | BO5: 1 | BP5: 1 | BQ5: 1 | BR5: 1 | BS5: 1 | BT5: 1 | BU5: 1 | BV5: 1 | BW5: 1 | BX5: 1 | BY5: 1 | BZ5: 1 | CA5: 1 | CB5: 1 | CC5: 1 | CD5: 1 | CE5: 1 | CF5: 1 | CG5: 1 | CH5: 1
Y6: номер месяца даты начала: | AA6: 5 | AB6: 6 | AC6: 7 | AD6: 8 | AE6: 9 | AF6: 10 | AG6: 11 | AH6: 12 | AI6: 1 | AJ6: 2 | AK6: 3 | AL6: 4 | AM6: 5 | AN6: 6 | AO6: 7 | AP6: 8 | AQ6: 9 | AR6: 10 | AS6: 11 | AT6: 12 | AU6: 1 | AV6: 2 | AW6: 3 | AX6: 4 | AY6: 5 | AZ6: 6 | BA6: 7 | BB6: 8 | BC6: 9 | BD6: 10 | BE6: 11 | BF6: 12 | BG6: 1 | BH6: 2 | BI6: 3 | BJ6: 4 | BK6: 5 | BL6: 6 | BM6: 7 | BN6: 8 | BO6: 9 | BP6: 10 | BQ6: 11 | BR6: 12 | BS6: 1 | BT6: 2 | BU6: 3 | BV6: 4 | BW6: 5 | BX6: 6 | BY6: 7 | BZ6: 8 | CA6: 9 | CB6: 10 | CC6: 11 | CD6: 12 | CE6: 1 | CF6: 2 | CG6: 3 | CH6: 4
Y7: год даты начала: | AA7: 21 | AB7: 21 | AC7: 21 | AD7: 21 | AE7: 21 | AF7: 21 | AG7: 21 | AH7: 21 | AI7: 22 | AJ7: 22 | AK7: 22 | AL7: 22 | AM7: 22 | AN7: 22 | AO7: 22 | AP7: 22 | AQ7: 22 | AR7: 22 | AS7: 22 | AT7: 22 | AU7: 23 | AV7: 23 | AW7: 23 | AX7: 23 | AY7: 23 | AZ7: 23 | BA7: 23 | BB7: 23 | BC7: 23 | BD7: 23 | BE7: 23 | BF7: 23 | BG7: 24 | BH7: 24 | BI7: 24 | BJ7: 24 | BK7: 24 | BL7: 24 | BM7: 24 | BN7: 24 | BO7: 24 | BP7: 24 | BQ7: 24 | BR7: 24 | BS7: 25 | BT7: 25 | BU7: 25 | BV7: 25 | BW7: 25 | BX7: 25 | BY7: 25 | BZ7: 25 | CA7: 25 | CB7: 25 | CC7: 25 | CD7: 25 | CE7: 26 | CF7: 26 | CG7: 26 | CH7: 26
Y8: число даты окончания: | AA8: 31 | AB8: 30 | AC8: 31 | AD8: 31 | AE8: 30 | AF8: 31 | AG8: 30 | AH8: 31 | AI8: 31 | AJ8: 28 | AK8: 31 | AL8: 30 | AM8: 31 | AN8: 30 | AO8: 31 | AP8: 31 | AQ8: 30 | AR8: 31 | AS8: 30 | AT8: 31 | AU8: 31 | AV8: 28 | AW8: 31 | AX8: 30 | AY8: 31 | AZ8: 30 | BA8: 31 | BB8: 31 | BC8: 30 | BD8: 31 | BE8: 30 | BF8: 31 | BG8: 31 | BH8: 29 | BI8: 31 | BJ8: 30 | BK8: 31 | BL8: 30 | BM8: 31 | BN8: 31 | BO8: 30 | BP8: 31 | BQ8: 30 | BR8: 31 | BS8: 31 | BT8: 28 | BU8: 31 | BV8: 30 | BW8: 31 | BX8: 30 | BY8: 31 | BZ8: 31 | CA8: 30 | CB8: 31 | CC8: 30 | CD8: 31 | CE8: 31 | CF8: 28 | CG8: 31 | CH8: 30
Y9: номер месяца даты окончания: | AA9: 5 | AB9: 6 | AC9: 7 | AD9: 8 | AE9: 9 | AF9: 10 | AG9: 11 | AH9: 12 | AI9: 1 | AJ9: 2 | AK9: 3 | AL9: 4 | AM9: 5 | AN9: 6 | AO9: 7 | AP9: 8 | AQ9: 9 | AR9: 10 | AS9: 11 | AT9: 12 | AU9: 1 | AV9: 2 | AW9: 3 | AX9: 4 | AY9: 5 | AZ9: 6 | BA9: 7 | BB9: 8 | BC9: 9 | BD9: 10 | BE9: 11 | BF9: 12 | BG9: 1 | BH9: 2 | BI9: 3 | BJ9: 4 | BK9: 5 | BL9: 6 | BM9: 7 | BN9: 8 | BO9: 9 | BP9: 10 | BQ9: 11 | BR9: 12 | BS9: 1 | BT9: 2 | BU9: 3 | BV9: 4 | BW9: 5 | BX9: 6 | BY9: 7 | BZ9: 8 | CA9: 9 | CB9: 10 | CC9: 11 | CD9: 12 | CE9: 1 | CF9: 2 | CG9: 3 | CH9: 4
Y10: год даты окончания: | AA10: 21 | AB10: 21 | AC10: 21 | AD10: 21 | AE10: 21 | AF10: 21 | AG10: 21 | AH10: 21 | AI10: 22 | AJ10: 22 | AK10: 22 | AL10: 22 | AM10: 22 | AN10: 22 | AO10: 22 | AP10: 22 | AQ10: 22 | AR10: 22 | AS10: 22 | AT10: 22 | AU10: 23 | AV10: 23 | AW10: 23 | AX10: 23 | AY10: 23 | AZ10: 23 | BA10: 23 | BB10: 23 | BC10: 23 | BD10: 23 | BE10: 23 | BF10: 23 | BG10: 24 | BH10: 24 | BI10: 24 | BJ10: 24 | BK10: 24 | BL10: 24 | BM10: 24 | BN10: 24 | BO10: 24 | BP10: 24 | BQ10: 24 | BR10: 24 | BS10: 25 | BT10: 25 | BU10: 25 | BV10: 25 | BW10: 25 | BX10: 25 | BY10: 25 | BZ10: 25 | CA10: 25 | CB10: 25 | CC10: 25 | CD10: 25 | CE10: 26 | CF10: 26 | CG10: 26 | CH10: 26
F11: CapEx | I11: Календарный план-график капитальных затрат | Q11: все включает НДС | X11: 2021-05-01 | AA11: 2021-05-01 | AB11: 2021-06-01 | AC11: 2021-07-01 | AD11: 2021-08-01 | AE11: 2021-09-01 | AF11: 2021-10-01 | AG11: 2021-11-01 | AH11: 2021-12-01 | AI11: 2022-01-01 | AJ11: 2022-02-01 | AK11: 2022-03-01 | AL11: 2022-04-01 | AM11: 2022-05-01 | AN11: 2022-06-01 | AO11: 2022-07-01 | AP11: 2022-08-01 | AQ11: 2022-09-01 | AR11: 2022-10-01 | AS11: 2022-11-01 | AT11: 2022-12-01 | AU11: 2023-01-01 | AV11: 2023-02-01 | AW11: 2023-03-01 | AX11: 2023-04-01 | AY11: 2023-05-01 | AZ11: 2023-06-01 | BA11: 2023-07-01 | BB11: 2023-08-01 | BC11: 2023-09-01 | BD11: 2023-10-01 | BE11: 2023-11-01 | BF11: 2023-12-01 | BG11: 2024-01-01 | BH11: 2024-02-01 | BI11: 2024-03-01 | BJ11: 2024-04-01 | BK11: 2024-05-01 | BL11: 2024-06-01 | BM11: 2024-07-01 | BN11: 2024-08-01 | BO11: 2024-09-01 | BP11: 2024-10-01 | BQ11: 2024-11-01 | BR11: 2024-12-01 | BS11: 2025-01-01 | BT11: 2025-02-01 | BU11: 2025-03-01 | BV11: 2025-04-01 | BW11: 2025-05-01 | BX11: 2025-06-01 | BY11: 2025-07-01 | BZ11: 2025-08-01 | CA11: 2025-09-01 | CB11: 2025-10-01 | CC11: 2025-11-01 | CD11: 2025-12-01 | CE11: 2026-01-01 | CF11: 2026-02-01 | CG11: 2026-03-01 | CH11: 2026-04-01
H12: тип листа | Q12: расчетный | X12: 2026-04-30 | AA12: 2021-05-31 | AB12: 2021-06-30 | AC12: 2021-07-31 | AD12: 2021-08-31 | AE12: 2021-09-30 | AF12: 2021-10-31 | AG12: 2021-11-30 | AH12: 2021-12-31 | AI12: 2022-01-31 | AJ12: 2022-02-28 | AK12: 2022-03-31 | AL12: 2022-04-30 | AM12: 2022-05-31 | AN12: 2022-06-30 | AO12: 2022-07-31 | AP12: 2022-08-31 | AQ12: 2022-09-30 | AR12: 2022-10-31 | AS12: 2022-11-30 | AT12: 2022-12-31 | AU12: 2023-01-31 | AV12: 2023-02-28 | AW12: 2023-03-31 | AX12: 2023-04-30 | AY12: 2023-05-31 | AZ12: 2023-06-30 | BA12: 2023-07-31 | BB12: 2023-08-31 | BC12: 2023-09-30 | BD12: 2023-10-31 | BE12: 2023-11-30 | BF12: 2023-12-31 | BG12: 2024-01-31 | BH12: 2024-02-29 | BI12: 2024-03-31 | BJ12: 2024-04-30 | BK12: 2024-05-31 | BL12: 2024-06-30 | BM12: 2024-07-31 | BN12: 2024-08-31 | BO12: 2024-09-30 | BP12: 2024-10-31 | BQ12: 2024-11-30 | BR12: 2024-12-31 | BS12: 2025-01-31 | BT12: 2025-02-28 | BU12: 2025-03-31 | BV12: 2025-04-30 | BW12: 2025-05-31 | BX12: 2025-06-30 | BY12: 2025-07-31 | BZ12: 2025-08-31 | CA12: 2025-09-30 | CB12: 2025-10-31 | CC12: 2025-11-30 | CD12: 2025-12-31 | CE12: 2026-01-31 | CF12: 2026-02-28 | CG12: 2026-03-31 | CH12: 2026-04-30
H13: показатель | M13: ед.изм. | Q13: значение | X13: итого | AA13: 2021-05-01 | AB13: 2021-06-01 | AC13: 2021-07-01 | AD13: 2021-08-01 | AE13: 2021-09-01 | AF13: 2021-10-01 | AG13: 2021-11-01 | AH13: 2021-12-01 | AI13: 2022-01-01 | AJ13: 2022-02-01 | AK13: 2022-03-01 | AL13: 2022-04-01 | AM13: 2022-05-01 | AN13: 2022-06-01 | AO13: 2022-07-01 | AP13: 2022-08-01 | AQ13: 2022-09-01 | AR13: 2022-10-01 | AS13: 2022-11-01 | AT13: 2022-12-01 | AU13: 2023-01-01 | AV13: 2023-02-01 | AW13: 2023-03-01 | AX13: 2023-04-01 | AY13: 2023-05-01 | AZ13: 2023-06-01 | BA13: 2023-07-01 | BB13: 2023-08-01 | BC13: 2023-09-01 | BD13: 2023-10-01 | BE13: 2023-11-01 | BF13: 2023-12-01 | BG13: 2024-01-01 | BH13: 2024-02-01 | BI13: 2024-03-01 | BJ13: 2024-04-01 | BK13: 2024-05-01 | BL13: 2024-06-01 | BM13: 2024-07-01 | BN13: 2024-08-01 | BO13: 2024-09-01 | BP13: 2024-10-01 | BQ13: 2024-11-01 | BR13: 2024-12-01 | BS13: 2025-01-01 | BT13: 2025-02-01 | BU13: 2025-03-01 | BV13: 2025-04-01 | BW13: 2025-05-01 | BX13: 2025-06-01 | BY13: 2025-07-01 | BZ13: 2025-08-01 | CA13: 2025-09-01 | CB13: 2025-10-01 | CC13: 2025-11-01 | CD13: 2025-12-01 | CE13: 2026-01-01 | CF13: 2026-02-01 | CG13: 2026-03-01 | CH13: 2026-04-01
D14: 0 | E14: 0 | F14: 0 | G14: 0 | S14: 0 | T14: 0
A15: 15 | Y15: обратный порядок периодизации | AA15: 73 | AB15: 72 | AC15: 71 | AD15: 70 | AE15: 69 | AF15: 68 | AG15: 67 | AH15: 66 | AI15: 65 | AJ15: 64 | AK15: 63 | AL15: 62 | AM15: 61 | AN15: 60 | AO15: 59 | AP15: 58 | AQ15: 57 | AR15: 56 | AS15: 55 | AT15: 54 | AU15: 53 | AV15: 52 | AW15: 51 | AX15: 50 | AY15: 49 | AZ15: 48 | BA15: 47 | BB15: 46 | BC15: 45 | BD15: 44 | BE15: 43 | BF15: 42 | BG15: 41 | BH15: 40 | BI15: 39 | BJ15: 38 | BK15: 37 | BL15: 36 | BM15: 35 | BN15: 34 | BO15: 33 | BP15: 32 | BQ15: 31 | BR15: 30 | BS15: 29 | BT15: 28 | BU15: 27 | BV15: 26 | BW15: 25 | BX15: 24 | BY15: 23 | BZ15: 22 | CA15: 21 | CB15: 20 | CC15: 19 | CD15: 18 | CE15: 17 | CF15: 16 | CG15: 15 | CH15: 14 | CI15: 13 | CJ15: 12 | CK15: 11 | CL15: 10 | CM15: 9 | CN15: 8 | CO15: 7 | CP15: 6 | CQ15: 5 | CR15: 4 | CS15: 3 | CT15: 2 | CU15: 1
A16: 16 | G16: 0 | H16: План-график капитальных затрат | M16: руб. | T16: 0 | X16: 223250000 | AA16: 0 | AB16: 76625000 | AC16: 146625000 | AD16: 0 | AE16: 0 | AF16: 0 | AG16: 0 | AH16: 0 | AI16: 0 | AJ16: 0 | AK16: 0 | AL16: 0 | AM16: 0 | AN16: 0 | AO16: 0 | AP16: 0 | AQ16: 0 | AR16: 0 | AS16: 0 | AT16: 0 | AU16: 0 | AV16: 0 | AW16: 0 | AX16: 0 | AY16: 0 | AZ16: 0 | BA16: 0 | BB16: 0 | BC16: 0 | BD16: 0 | BE16: 0 | BF16: 0 | BG16: 0 | BH16: 0 | BI16: 0 | BJ16: 0 | BK16: 0 | BL16: 0 | BM16: 0 | BN16: 0 | BO16: 0 | BP16: 0 | BQ16: 0 | BR16: 0 | BS16: 0 | BT16: 0 | BU16: 0 | BV16: 0 | BW16: 0 | BX16: 0 | BY16: 0 | BZ16: 0 | CA16: 0 | CB16: 0 | CC16: 0 | CD16: 0 | CE16: 0 | CF16: 0 | CG16: 0 | CH16: 0 | CI16: 0 | CJ16: 0 | CK16: 0 | CL16: 0 | CM16: 0 | CN16: 0 | CO16: 0 | CP16: 0 | CQ16: 0 | CR16: 0 | CS16: 0 | CT16: 0 | CU16: 0
A17: 17 | G17: 0 | H17: План-график капитальных затрат | I17: 5*Двухручьевая линия производства масок | M17: руб. // % | P17: * | Q17: 18000000 | S17: 0 | T17: 0 | X17: 1 | Y17: * | AB17: 0.5 | AC17: 0.5
A18: 18 | G18: 0 | H18: План-график капитальных затрат | I18: 2*Скоростная линия производства масок | M18: руб. // % | P18: * | Q18: 9500000 | S18: 0 | T18: 0 | X18: 1 | Y18: * | AB18: 0.5 | AC18: 0.5
A19: 19 | G19: 0 | H19: План-график капитальных затрат | I19: 4*Упаковочная машина шир. 250 | M19: руб. // % | P19: * | Q19: 15000000 | S19: 0 | T19: 0 | X19: 1 | Y19: * | AB19: 0.5 | AC19: 0.5
A20: 20 | G20: 0 | H20: План-график капитальных затрат | I20: 1*Упаковочная машина шир. 350 | M20: руб. // % | P20: * | Q20: 3750000 | S20: 0 | T20: 0 | X20: 1 | Y20: * | AB20: 0.5 | AC20: 0.5
A21: 21 | G21: 0 | H21: План-график капитальных затрат | I21: 5*Машина пайки петель | M21: руб. // % | P21: * | Q21: 22000000 | S21: 0 | T21: 0 | X21: 1 | Y21: * | AB21: 0.5 | AC21: 0.5
A22: 22 | G22: 0 | H22: План-график капитальных затрат | I22: 1*Бобинорезка | M22: руб. // % | P22: * | Q22: 3000000 | S22: 0 | T22: 0 | X22: 1 | Y22: * | AB22: 0.5 | AC22: 0.5
A23: 23 | G23: 0 | H23: План-график капитальных затрат | I23: 2*ПСР | M23: руб. // % | P23: * | Q23: 18000000 | S23: 0 | T23: 0 | X23: 1 | Y23: * | AB23: 0.5 | AC23: 0.5
A24: 24 | G24: 0 | H24: План-график капитальных затрат | I24: 3*Линия производства респираторов серии FFP | M24: руб. // % | P24: * | Q24: 27000000 | S24: 0 | T24: 0 | X24: 1 | Y24: * | AB24: 0.5 | AC24: 0.5
A25: 25 | G25: 0 | H25: План-график капитальных затрат | I25: 7ед. Оборудования на участок литья | M25: руб. // % | P25: * | Q25: 37000000 | S25: 0 | T25: 0 | X25: 1 | Y25: * | AB25: 0.5 | AC25: 0.5
A26: 26 | G26: 0 | H26: План-график капитальных затрат | I26: Доставка, монтаж и ПНР | M26: руб. // % | P26: * | Q26: 70000000 | S26: 0 | T26: 0 | X26: 1 | Y26: * | AC26: 1
A27: 27 | L27: пустая строка
A28: 28 | T28: 0 | X28: 0 | AA28: 0 | AB28: 0 | AC28: 0 | AD28: 0 | AE28: 0 | AF28: 0 | AG28: 0 | AH28: 0 | AI28: 0 | AJ28: 0 | AK28: 0 | AL28: 0 | AM28: 0 | AN28: 0 | AO28: 0 | AP28: 0 | AQ28: 0 | AR28: 0 | AS28: 0 | AT28: 0 | AU28: 0 | AV28: 0 | AW28: 0 | AX28: 0 | AY28: 0 | AZ28: 0 | BA28: 0 | BB28: 0 | BC28: 0 | BD28: 0 | BE28: 0 | BF28: 0 | BG28: 0 | BH28: 0 | BI28: 0 | BJ28: 0 | BK28: 0 | BL28: 0 | BM28: 0 | BN28: 0 | BO28: 0 | BP28: 0 | BQ28: 0 | BR28: 0 | BS28: 0 | BT28: 0 | BU28: 0 | BV28: 0 | BW28: 0 | BX28: 0 | BY28: 0 | BZ28: 0 | CA28: 0 | CB28: 0 | CC28: 0 | CD28: 0 | CE28: 0 | CF28: 0 | CG28: 0 | CH28: 0 | CI28: 0 | CJ28: 0 | CK28: 0 | CL28: 0 | CM28: 0 | CN28: 0 | CO28: 0 | CP28: 0 | CQ28: 0 | CR28: 0 | CS28: 0 | CT28: 0 | CU28: 0
A29: 29 | G29: 0 | H29: Капитальные затраты | M29: руб. | Q29: начисление | T29: 0 | X29: 223250000 | AA29: 0 | AB29: 76625000 | AC29: 146625000 | AD29: 0 | AE29: 0 | AF29: 0 | AG29: 0 | AH29: 0 | AI29: 0 | AJ29: 0 | AK29: 0 | AL29: 0 | AM29: 0 | AN29: 0 | AO29: 0 | AP29: 0 | AQ29: 0 | AR29: 0 | AS29: 0 | AT29: 0 | AU29: 0 | AV29: 0 | AW29: 0 | AX29: 0 | AY29: 0 | AZ29: 0 | BA29: 0 | BB29: 0 | BC29: 0 | BD29: 0 | BE29: 0 | BF29: 0 | BG29: 0 | BH29: 0 | BI29: 0 | BJ29: 0 | BK29: 0 | BL29: 0 | BM29: 0 | BN29: 0 | BO29: 0 | BP29: 0 | BQ29: 0 | BR29: 0 | BS29: 0 | BT29: 0 | BU29: 0 | BV29: 0 | BW29: 0 | BX29: 0 | BY29: 0 | BZ29: 0 | CA29: 0 | CB29: 0 | CC29: 0 | CD29: 0 | CE29: 0 | CF29: 0 | CG29: 0 | CH29: 0 | CI29: 0 | CJ29: 0 | CK29: 0 | CL29: 0 | CM29: 0 | CN29: 0 | CO29: 0 | CP29: 0 | CQ29: 0 | CR29: 0 | CS29: 0 | CT29: 0 | CU29: 0
A30: 30 | G30: 0 | H30: Капитальные затраты | I30: 5*Двухручьевая линия производства масок | M30: руб. | Q30: начисление | X30: 18000000 | AA30: 0 | AB30: 9000000 | AC30: 9000000 | AD30: 0 | AE30: 0 | AF30: 0 | AG30: 0 | AH30: 0 | AI30: 0 | AJ30: 0 | AK30: 0 | AL30: 0 | AM30: 0 | AN30: 0 | AO30: 0 | AP30: 0 | AQ30: 0 | AR30: 0 | AS30: 0 | AT30: 0 | AU30: 0 | AV30: 0 | AW30: 0 | AX30: 0 | AY30: 0 | AZ30: 0 | BA30: 0 | BB30: 0 | BC30: 0 | BD30: 0 | BE30: 0 | BF30: 0 | BG30: 0 | BH30: 0 | BI30: 0 | BJ30: 0 | BK30: 0 | BL30: 0 | BM30: 0 | BN30: 0 | BO30: 0 | BP30: 0 | BQ30: 0 | BR30: 0 | BS30: 0 | BT30: 0 | BU30: 0 | BV30: 0 | BW30: 0 | BX30: 0 | BY30: 0 | BZ30: 0 | CA30: 0 | CB30: 0 | CC30: 0 | CD30: 0 | CE30: 0 | CF30: 0 | CG30: 0 | CH30: 0 | CI30: 0 | CJ30: 0 | CK30: 0 | CL30: 0 | CM30: 0 | CN30: 0 | CO30: 0 | CP30: 0 | CQ30: 0 | CR30: 0 | CS30: 0 | CT30: 0 | CU30: 0
A31: 31 | G31: 0 | H31: Капитальные затраты | I31: 2*Скоростная линия производства масок | M31: руб. | Q31: начисление | X31: 9500000 | AA31: 0 | AB31: 4750000 | AC31: 4750000 | AD31: 0 | AE31: 0 | AF31: 0 | AG31: 0 | AH31: 0 | AI31: 0 | AJ31: 0 | AK31: 0 | AL31: 0 | AM31: 0 | AN31: 0 | AO31: 0 | AP31: 0 | AQ31: 0 | AR31: 0 | AS31: 0 | AT31: 0 | AU31: 0 | AV31: 0 | AW31: 0 | AX31: 0 | AY31: 0 | AZ31: 0 | BA31: 0 | BB31: 0 | BC31: 0 | BD31: 0 | BE31: 0 | BF31: 0 | BG31: 0 | BH31: 0 | BI31: 0 | BJ31: 0 | BK31: 0 | BL31: 0 | BM31: 0 | BN31: 0 | BO31: 0 | BP31: 0 | BQ31: 0 | BR31: 0 | BS31: 0 | BT31: 0 | BU31: 0 | BV31: 0 | BW31: 0 | BX31: 0 | BY31: 0 | BZ31: 0 | CA31: 0 | CB31: 0 | CC31: 0 | CD31: 0 | CE31: 0 | CF31: 0 | CG31: 0 | CH31: 0 | CI31: 0 | CJ31: 0 | CK31: 0 | CL31: 0 | CM31: 0 | CN31: 0 | CO31: 0 | CP31: 0 | CQ31: 0 | CR31: 0 | CS31: 0 | CT31: 0 | CU31: 0
A32: 32 | G32: 0 | H32: Капитальные затраты | I32: 4*Упаковочная машина шир. 250 | M32: руб. | Q32: начисление | X32: 15000000 | AA32: 0 | AB32: 7500000 | AC32: 7500000 | AD32: 0 | AE32: 0 | AF32: 0 | AG32: 0 | AH32: 0 | AI32: 0 | AJ32: 0 | AK32: 0 | AL32: 0 | AM32: 0 | AN32: 0 | AO32: 0 | AP32: 0 | AQ32: 0 | AR32: 0 | AS32: 0 | AT32: 0 | AU32: 0 | AV32: 0 | AW32: 0 | AX32: 0 | AY32: 0 | AZ32: 0 | BA32: 0 | BB32: 0 | BC32: 0 | BD32: 0 | BE32: 0 | BF32: 0 | BG32: 0 | BH32: 0 | BI32: 0 | BJ32: 0 | BK32: 0 | BL32: 0 | BM32: 0 | BN32: 0 | BO32: 0 | BP32: 0 | BQ32: 0 | BR32: 0 | BS32: 0 | BT32: 0 | BU32: 0 | BV32: 0 | BW32: 0 | BX32: 0 | BY32: 0 | BZ32: 0 | CA32: 0 | CB32: 0 | CC32: 0 | CD32: 0 | CE32: 0 | CF32: 0 | CG32: 0 | CH32: 0 | CI32: 0 | CJ32: 0 | CK32: 0 | CL32: 0 | CM32: 0 | CN32: 0 | CO32: 0 | CP32: 0 | CQ32: 0 | CR32: 0 | CS32: 0 | CT32: 0 | CU32: 0
A33: 33 | G33: 0 | H33: Капитальные затраты | I33: 1*Упаковочная машина шир. 350 | M33: руб. | Q33: начисление | X33: 3750000 | AA33: 0 | AB33: 1875000 | AC33: 1875000 | AD33: 0 | AE33: 0 | AF33: 0 | AG33: 0 | AH33: 0 | AI33: 0 | AJ33: 0 | AK33: 0 | AL33: 0 | AM33: 0 | AN33: 0 | AO33: 0 | AP33: 0 | AQ33: 0 | AR33: 0 | AS33: 0 | AT33: 0 | AU33: 0 | AV33: 0 | AW33: 0 | AX33: 0 | AY33: 0 | AZ33: 0 | BA33: 0 | BB33: 0 | BC33: 0 | BD33: 0 | BE33: 0 | BF33: 0 | BG33: 0 | BH33: 0 | BI33: 0 | BJ33: 0 | BK33: 0 | BL33: 0 | BM33: 0 | BN33: 0 | BO33: 0 | BP33: 0 | BQ33: 0 | BR33: 0 | BS33: 0 | BT33: 0 | BU33: 0 | BV33: 0 | BW33: 0 | BX33: 0 | BY33: 0 | BZ33: 0 | CA33: 0 | CB33: 0 | CC33: 0 | CD33: 0 | CE33: 0 | CF33: 0 | CG33: 0 | CH33: 0 | CI33: 0 | CJ33: 0 | CK33: 0 | CL33: 0 | CM33: 0 | CN33: 0 | CO33: 0 | CP33: 0 | CQ33: 0 | CR33: 0 | CS33: 0 | CT33: 0 | CU33: 0
A34: 34 | G34: 0 | H34: Капитальные затраты | I34: 5*Машина пайки петель | M34: руб. | Q34: начисление | X34: 22000000 | AA34: 0 | AB34: 11000000 | AC34: 11000000 | AD34: 0 | AE34: 0 | AF34: 0 | AG34: 0 | AH34: 0 | AI34: 0 | AJ34: 0 | AK34: 0 | AL34: 0 | AM34: 0 | AN34: 0 | AO34: 0 | AP34: 0 | AQ34: 0 | AR34: 0 | AS34: 0 | AT34: 0 | AU34: 0 | AV34: 0 | AW34: 0 | AX34: 0 | AY34: 0 | AZ34: 0 | BA34: 0 | BB34: 0 | BC34: 0 | BD34: 0 | BE34: 0 | BF34: 0 | BG34: 0 | BH34: 0 | BI34: 0 | BJ34: 0 | BK34: 0 | BL34: 0 | BM34: 0 | BN34: 0 | BO34: 0 | BP34: 0 | BQ34: 0 | BR34: 0 | BS34: 0 | BT34: 0 | BU34: 0 | BV34: 0 | BW34: 0 | BX34: 0 | BY34: 0 | BZ34: 0 | CA34: 0 | CB34: 0 | CC34: 0 | CD34: 0 | CE34: 0 | CF34: 0 | CG34: 0 | CH34: 0 | CI34: 0 | CJ34: 0 | CK34: 0 | CL34: 0 | CM34: 0 | CN34: 0 | CO34: 0 | CP34: 0 | CQ34: 0 | CR34: 0 | CS34: 0 | CT34: 0 | CU34: 0
A35: 35 | G35: 0 | H35: Капитальные затраты | I35: 1*Бобинорезка | M35: руб. | Q35: начисление | X35: 3000000 | AA35: 0 | AB35: 1500000 | AC35: 1500000 | AD35: 0 | AE35: 0 | AF35: 0 | AG35: 0 | AH35: 0 | AI35: 0 | AJ35: 0 | AK35: 0 | AL35: 0 | AM35: 0 | AN35: 0 | AO35: 0 | AP35: 0 | AQ35: 0 | AR35: 0 | AS35: 0 | AT35: 0 | AU35: 0 | AV35: 0 | AW35: 0 | AX35: 0 | AY35: 0 | AZ35: 0 | BA35: 0 | BB35: 0 | BC35: 0 | BD35: 0 | BE35: 0 | BF35: 0 | BG35: 0 | BH35: 0 | BI35: 0 | BJ35: 0 | BK35: 0 | BL35: 0 | BM35: 0 | BN35: 0 | BO35: 0 | BP35: 0 | BQ35: 0 | BR35: 0 | BS35: 0 | BT35: 0 | BU35: 0 | BV35: 0 | BW35: 0 | BX35: 0 | BY35: 0 | BZ35: 0 | CA35: 0 | CB35: 0 | CC35: 0 | CD35: 0 | CE35: 0 | CF35: 0 | CG35: 0 | CH35: 0 | CI35: 0 | CJ35: 0 | CK35: 0 | CL35: 0 | CM35: 0 | CN35: 0 | CO35: 0 | CP35: 0 | CQ35: 0 | CR35: 0 | CS35: 0 | CT35: 0 | CU35: 0
A36: 36 | G36: 0 | H36: Капитальные затраты | I36: 2*ПСР | M36: руб. | Q36: начисление | X36: 18000000 | AA36: 0 | AB36: 9000000 | AC36: 9000000 | AD36: 0 | AE36: 0 | AF36: 0 | AG36: 0 | AH36: 0 | AI36: 0 | AJ36: 0 | AK36: 0 | AL36: 0 | AM36: 0 | AN36: 0 | AO36: 0 | AP36: 0 | AQ36: 0 | AR36: 0 | AS36: 0 | AT36: 0 | AU36: 0 | AV36: 0 | AW36: 0 | AX36: 0 | AY36: 0 | AZ36: 0 | BA36: 0 | BB36: 0 | BC36: 0 | BD36: 0 | BE36: 0 | BF36: 0 | BG36: 0 | BH36: 0 | BI36: 0 | BJ36: 0 | BK36: 0 | BL36: 0 | BM36: 0 | BN36: 0 | BO36: 0 | BP36: 0 | BQ36: 0 | BR36: 0 | BS36: 0 | BT36: 0 | BU36: 0 | BV36: 0 | BW36: 0 | BX36: 0 | BY36: 0 | BZ36: 0 | CA36: 0 | CB36: 0 | CC36: 0 | CD36: 0 | CE36: 0 | CF36: 0 | CG36: 0 | CH36: 0 | CI36: 0 | CJ36: 0 | CK36: 0 | CL36: 0 | CM36: 0 | CN36: 0 | CO36: 0 | CP36: 0 | CQ36: 0 | CR36: 0 | CS36: 0 | CT36: 0 | CU36: 0
A37: 37 | G37: 0 | H37: Капитальные затраты | I37: 3*Линия производства респираторов серии FFP | M37: руб. | Q37: начисление | X37: 27000000 | AA37: 0 | AB37: 13500000 | AC37: 13500000 | AD37: 0 | AE37: 0 | AF37: 0 | AG37: 0 | AH37: 0 | AI37: 0 | AJ37: 0 | AK37: 0 | AL37: 0 | AM37: 0 | AN37: 0 | AO37: 0 | AP37: 0 | AQ37: 0 | AR37: 0 | AS37: 0 | AT37: 0 | AU37: 0 | AV37: 0 | AW37: 0 | AX37: 0 | AY37: 0 | AZ37: 0 | BA37: 0 | BB37: 0 | BC37: 0 | BD37: 0 | BE37: 0 | BF37: 0 | BG37: 0 | BH37: 0 | BI37: 0 | BJ37: 0 | BK37: 0 | BL37: 0 | BM37: 0 | BN37: 0 | BO37: 0 | BP37: 0 | BQ37: 0 | BR37: 0 | BS37: 0 | BT37: 0 | BU37: 0 | BV37: 0 | BW37: 0 | BX37: 0 | BY37: 0 | BZ37: 0 | CA37: 0 | CB37: 0 | CC37: 0 | CD37: 0 | CE37: 0 | CF37: 0 | CG37: 0 | CH37: 0 | CI37: 0 | CJ37: 0 | CK37: 0 | CL37: 0 | CM37: 0 | CN37: 0 | CO37: 0 | CP37: 0 | CQ37: 0 | CR37: 0 | CS37: 0 | CT37: 0 | CU37: 0
A38: 38 | G38: 0 | H38: Капитальные затраты | I38: 7ед. Оборудования на участок литья | M38: руб. | Q38: начисление | X38: 37000000 | AA38: 0 | AB38: 18500000 | AC38: 18500000 | AD38: 0 | AE38: 0 | AF38: 0 | AG38: 0 | AH38: 0 | AI38: 0 | AJ38: 0 | AK38: 0 | AL38: 0 | AM38: 0 | AN38: 0 | AO38: 0 | AP38: 0 | AQ38: 0 | AR38: 0 | AS38: 0 | AT38: 0 | AU38: 0 | AV38: 0 | AW38: 0 | AX38: 0 | AY38: 0 | AZ38: 0 | BA38: 0 | BB38: 0 | BC38: 0 | BD38: 0 | BE38: 0 | BF38: 0 | BG38: 0 | BH38: 0 | BI38: 0 | BJ38: 0 | BK38: 0 | BL38: 0 | BM38: 0 | BN38: 0 | BO38: 0 | BP38: 0 | BQ38: 0 | BR38: 0 | BS38: 0 | BT38: 0 | BU38: 0 | BV38: 0 | BW38: 0 | BX38: 0 | BY38: 0 | BZ38: 0 | CA38: 0 | CB38: 0 | CC38: 0 | CD38: 0 | CE38: 0 | CF38: 0 | CG38: 0 | CH38: 0 | CI38: 0 | CJ38: 0 | CK38: 0 | CL38: 0 | CM38: 0 | CN38: 0 | CO38: 0 | CP38: 0 | CQ38: 0 | CR38: 0 | CS38: 0 | CT38: 0 | CU38: 0
A39: 39 | G39: 0 | H39: Капитальные затраты | I39: Доставка, монтаж и ПНР | M39: руб. | Q39: начисление | X39: 70000000 | AA39: 0 | AB39: 0 | AC39: 70000000 | AD39: 0 | AE39: 0 | AF39: 0 | AG39: 0 | AH39: 0 | AI39: 0 | AJ39: 0 | AK39: 0 | AL39: 0 | AM39: 0 | AN39: 0 | AO39: 0 | AP39: 0 | AQ39: 0 | AR39: 0 | AS39: 0 | AT39: 0 | AU39: 0 | AV39: 0 | AW39: 0 | AX39: 0 | AY39: 0 | AZ39: 0 | BA39: 0 | BB39: 0 | BC39: 0 | BD39: 0 | BE39: 0 | BF39: 0 | BG39: 0 | BH39: 0 | BI39: 0 | BJ39: 0 | BK39: 0 | BL39: 0 | BM39: 0 | BN39: 0 | BO39: 0 | BP39: 0 | BQ39: 0 | BR39: 0 | BS39: 0 | BT39: 0 | BU39: 0 | BV39: 0 | BW39: 0 | BX39: 0 | BY39: 0 | BZ39: 0 | CA39: 0 | CB39: 0 | CC39: 0 | CD39: 0 | CE39: 0 | CF39: 0 | CG39: 0 | CH39: 0 | CI39: 0 | CJ39: 0 | CK39: 0 | CL39: 0 | CM39: 0 | CN39: 0 | CO39: 0 | CP39: 0 | CQ39: 0 | CR39: 0 | CS39: 0 | CT39: 0 | CU39: 0
A40: 40 | L40: пустая строка
A41: 41
A42: 42 | G42: 0 | H42: Капитальные затраты | M42: руб. | Q42: оплата | X42: 223250000 | AA42: 104956250 | AB42: 62812500 | AC42: 33487500 | AD42: 21993750 | AE42: 0 | AF42: 0 | AG42: 0 | AH42: 0 | AI42: 0 | AJ42: 0 | AK42: 0 | AL42: 0 | AM42: 0 | AN42: 0 | AO42: 0 | AP42: 0 | AQ42: 0 | AR42: 0 | AS42: 0 | AT42: 0 | AU42: 0 | AV42: 0 | AW42: 0 | AX42: 0 | AY42: 0 | AZ42: 0 | BA42: 0 | BB42: 0 | BC42: 0 | BD42: 0 | BE42: 0 | BF42: 0 | BG42: 0 | BH42: 0 | BI42: 0 | BJ42: 0 | BK42: 0 | BL42: 0 | BM42: 0 | BN42: 0 | BO42: 0 | BP42: 0 | BQ42: 0 | BR42: 0 | BS42: 0 | BT42: 0 | BU42: 0 | BV42: 0 | BW42: 0 | BX42: 0 | BY42: 0 | BZ42: 0 | CA42: 0 | CB42: 0 | CC42: 0 | CD42: 0 | CE42: 0 | CF42: 0 | CG42: 0 | CH42: 0 | CI42: 0 | CJ42: 0 | CK42: 0 | CL42: 0 | CM42: 0 | CN42: 0 | CO42: 0 | CP42: 0 | CQ42: 0 | CR42: 0 | CS42: 0 | CT42: 0 | CU42: 0
A43: 43 | G43: 0 | H43: Капитальные затраты | I43: Задаем через указание % предоплаты и сроков
A44: 44 | G44: 0 | H44: Капитальные затраты | I44: Задаем через указание % предоплаты и сроков | J44: Размер предоплаты | M44: % | P44: * | Q44: 0.7 | S44: 0
A45: 45 | G45: 0 | H45: Капитальные затраты | I45: Задаем через указание % предоплаты и сроков | J45: Период оборачиваемости предоплаты (срок) | M45: кол-во дней | P45: * | Q45: 45 | S45: 0
A46: 46 | G46: 0 | H46: Капитальные затраты | I46: Задаем через указание % предоплаты и сроков | J46: расчет в количестве периодов | M46: кол-во периодов | Q46: 1.5 | S46: 0 | T46: 0
A47: 47 | G47: 0 | H47: Капитальные затраты | I47: Задаем через указание % предоплаты и сроков | J47: Размер доплаты | M47: % | Q47: 0.3 | S47: 0 | T47: 0
A48: 48 | G48: 0 | H48: Капитальные затраты | I48: Задаем через указание % предоплаты и сроков | J48: Период оборачиваемости доплат (срок) | M48: кол-во дней | P48: * | Q48: 15 | S48: 0
A49: 49 | G49: 0 | H49: Капитальные затраты | I49: Задаем через указание % предоплаты и сроков | J49: расчет в количестве периодов | M49: кол-во периодов | Q49: 0.5 | S49: 0 | T49: 0
A50: 50
A51: 51 | G51: 0 | H51: Ввод в эксплуатацию | M51: руб. | Q51: списание | T51: 0 | X51: 223250000 | AA51: 0 | AB51: 0 | AC51: 223250000 | AD51: 0 | AE51: 0 | AF51: 0 | AG51: 0 | AH51: 0 | AI51: 0 | AJ51: 0 | AK51: 0 | AL51: 0 | AM51: 0 | AN51: 0 | AO51: 0 | AP51: 0 | AQ51: 0 | AR51: 0 | AS51: 0 | AT51: 0 | AU51: 0 | AV51: 0 | AW51: 0 | AX51: 0 | AY51: 0 | AZ51: 0 | BA51: 0 | BB51: 0 | BC51: 0 | BD51: 0 | BE51: 0 | BF51: 0 | BG51: 0 | BH51: 0 | BI51: 0 | BJ51: 0 | BK51: 0 | BL51: 0 | BM51: 0 | BN51: 0 | BO51: 0 | BP51: 0 | BQ51: 0 | BR51: 0 | BS51: 0 | BT51: 0 | BU51: 0 | BV51: 0 | BW51: 0 | BX51: 0 | BY51: 0 | BZ51: 0 | CA51: 0 | CB51: 0 | CC51: 0 | CD51: 0 | CE51: 0 | CF51: 0 | CG51: 0 | CH51: 0 | CI51: 0 | CJ51: 0 | CK51: 0 | CL51: 0 | CM51: 0 | CN51: 0 | CO51: 0 | CP51: 0 | CQ51: 0 | CR51: 0 | CS51: 0 | CT51: 0 | CU51: 0
A52: 52 | G52: 0 | H52: Ввод в эксплуатацию | I52: 5*Двухручьевая линия производства масок | M52: руб. | P52: * | Q52: в последний период всех капзатрат | R52: ^ | S52: 0 | T52: 0 | X52: 18000000 | AA52: 0 | AB52: 0 | AC52: 18000000 | AD52: 0 | AE52: 0 | AF52: 0 | AG52: 0 | AH52: 0 | AI52: 0 | AJ52: 0 | AK52: 0 | AL52: 0 | AM52: 0 | AN52: 0 | AO52: 0 | AP52: 0 | AQ52: 0 | AR52: 0 | AS52: 0 | AT52: 0 | AU52: 0 | AV52: 0 | AW52: 0 | AX52: 0 | AY52: 0 | AZ52: 0 | BA52: 0 | BB52: 0 | BC52: 0 | BD52: 0 | BE52: 0 | BF52: 0 | BG52: 0 | BH52: 0 | BI52: 0 | BJ52: 0 | BK52: 0 | BL52: 0 | BM52: 0 | BN52: 0 | BO52: 0 | BP52: 0 | BQ52: 0 | BR52: 0 | BS52: 0 | BT52: 0 | BU52: 0 | BV52: 0 | BW52: 0 | BX52: 0 | BY52: 0 | BZ52: 0 | CA52: 0 | CB52: 0 | CC52: 0 | CD52: 0 | CE52: 0 | CF52: 0 | CG52: 0 | CH52: 0 | CI52: 0 | CJ52: 0 | CK52: 0 | CL52: 0 | CM52: 0 | CN52: 0 | CO52: 0 | CP52: 0 | CQ52: 0 | CR52: 0 | CS52: 0 | CT52: 0 | CU52: 0
A53: 53 | G53: 0 | H53: Ввод в эксплуатацию | I53: 2*Скоростная линия производства масок | M53: руб. | P53: * | Q53: в последний период всех капзатрат | R53: ^ | S53: 0 | T53: 0 | X53: 9500000 | AA53: 0 | AB53: 0 | AC53: 9500000 | AD53: 0 | AE53: 0 | AF53: 0 | AG53: 0 | AH53: 0 | AI53: 0 | AJ53: 0 | AK53: 0 | AL53: 0 | AM53: 0 | AN53: 0 | AO53: 0 | AP53: 0 | AQ53: 0 | AR53: 0 | AS53: 0 | AT53: 0 | AU53: 0 | AV53: 0 | AW53: 0 | AX53: 0 | AY53: 0 | AZ53: 0 | BA53: 0 | BB53: 0 | BC53: 0 | BD53: 0 | BE53: 0 | BF53: 0 | BG53: 0 | BH53: 0 | BI53: 0 | BJ53: 0 | BK53: 0 | BL53: 0 | BM53: 0 | BN53: 0 | BO53: 0 | BP53: 0 | BQ53: 0 | BR53: 0 | BS53: 0 | BT53: 0 | BU53: 0 | BV53: 0 | BW53: 0 | BX53: 0 | BY53: 0 | BZ53: 0 | CA53: 0 | CB53: 0 | CC53: 0 | CD53: 0 | CE53: 0 | CF53: 0 | CG53: 0 | CH53: 0 | CI53: 0 | CJ53: 0 | CK53: 0 | CL53: 0 | CM53: 0 | CN53: 0 | CO53: 0 | CP53: 0 | CQ53: 0 | CR53: 0 | CS53: 0 | CT53: 0 | CU53: 0
A54: 54 | G54: 0 | H54: Ввод в эксплуатацию | I54: 4*Упаковочная машина шир. 250 | M54: руб. | P54: * | Q54: в последний период всех капзатрат | R54: ^ | S54: 0 | T54: 0 | X54: 15000000 | AA54: 0 | AB54: 0 | AC54: 15000000 | AD54: 0 | AE54: 0 | AF54: 0 | AG54: 0 | AH54: 0 | AI54: 0 | AJ54: 0 | AK54: 0 | AL54: 0 | AM54: 0 | AN54: 0 | AO54: 0 | AP54: 0 | AQ54: 0 | AR54: 0 | AS54: 0 | AT54: 0 | AU54: 0 | AV54: 0 | AW54: 0 | AX54: 0 | AY54: 0 | AZ54: 0 | BA54: 0 | BB54: 0 | BC54: 0 | BD54: 0 | BE54: 0 | BF54: 0 | BG54: 0 | BH54: 0 | BI54: 0 | BJ54: 0 | BK54: 0 | BL54: 0 | BM54: 0 | BN54: 0 | BO54: 0 | BP54: 0 | BQ54: 0 | BR54: 0 | BS54: 0 | BT54: 0 | BU54: 0 | BV54: 0 | BW54: 0 | BX54: 0 | BY54: 0 | BZ54: 0 | CA54: 0 | CB54: 0 | CC54: 0 | CD54: 0 | CE54: 0 | CF54: 0 | CG54: 0 | CH54: 0 | CI54: 0 | CJ54: 0 | CK54: 0 | CL54: 0 | CM54: 0 | CN54: 0 | CO54: 0 | CP54: 0 | CQ54: 0 | CR54: 0 | CS54: 0 | CT54: 0 | CU54: 0
A55: 55 | G55: 0 | H55: Ввод в эксплуатацию | I55: 1*Упаковочная машина шир. 350 | M55: руб. | P55: * | Q55: в последний период всех капзатрат | R55: ^ | S55: 0 | T55: 0 | X55: 3750000 | AA55: 0 | AB55: 0 | AC55: 3750000 | AD55: 0 | AE55: 0 | AF55: 0 | AG55: 0 | AH55: 0 | AI55: 0 | AJ55: 0 | AK55: 0 | AL55: 0 | AM55: 0 | AN55: 0 | AO55: 0 | AP55: 0 | AQ55: 0 | AR55: 0 | AS55: 0 | AT55: 0 | AU55: 0 | AV55: 0 | AW55: 0 | AX55: 0 | AY55: 0 | AZ55: 0 | BA55: 0 | BB55: 0 | BC55: 0 | BD55: 0 | BE55: 0 | BF55: 0 | BG55: 0 | BH55: 0 | BI55: 0 | BJ55: 0 | BK55: 0 | BL55: 0 | BM55: 0 | BN55: 0 | BO55: 0 | BP55: 0 | BQ55: 0 | BR55: 0 | BS55: 0 | BT55: 0 | BU55: 0 | BV55: 0 | BW55: 0 | BX55: 0 | BY55: 0 | BZ55: 0 | CA55: 0 | CB55: 0 | CC55: 0 | CD55: 0 | CE55: 0 | CF55: 0 | CG55: 0 | CH55: 0 | CI55: 0 | CJ55: 0 | CK55: 0 | CL55: 0 | CM55: 0 | CN55: 0 | CO55: 0 | CP55: 0 | CQ55: 0 | CR55: 0 | CS55: 0 | CT55: 0 | CU55: 0
A56: 56 | G56: 0 | H56: Ввод в эксплуатацию | I56: 5*Машина пайки петель | M56: руб. | P56: * | Q56: в последний период всех капзатрат | R56: ^ | S56: 0 | T56: 0 | X56: 22000000 | AA56: 0 | AB56: 0 | AC56: 22000000 | AD56: 0 | AE56: 0 | AF56: 0 | AG56: 0 | AH56: 0 | AI56: 0 | AJ56: 0 | AK56: 0 | AL56: 0 | AM56: 0 | AN56: 0 | AO56: 0 | AP56: 0 | AQ56: 0 | AR56: 0 | AS56: 0 | AT56: 0 | AU56: 0 | AV56: 0 | AW56: 0 | AX56: 0 | AY56: 0 | AZ56: 0 | BA56: 0 | BB56: 0 | BC56: 0 | BD56: 0 | BE56: 0 | BF56: 0 | BG56: 0 | BH56: 0 | BI56: 0 | BJ56: 0 | BK56: 0 | BL56: 0 | BM56: 0 | BN56: 0 | BO56: 0 | BP56: 0 | BQ56: 0 | BR56: 0 | BS56: 0 | BT56: 0 | BU56: 0 | BV56: 0 | BW56: 0 | BX56: 0 | BY56: 0 | BZ56: 0 | CA56: 0 | CB56: 0 | CC56: 0 | CD56: 0 | CE56: 0 | CF56: 0 | CG56: 0 | CH56: 0 | CI56: 0 | CJ56: 0 | CK56: 0 | CL56: 0 | CM56: 0 | CN56: 0 | CO56: 0 | CP56: 0 | CQ56: 0 | CR56: 0 | CS56: 0 | CT56: 0 | CU56: 0
A57: 57 | G57: 0 | H57: Ввод в эксплуатацию | I57: 1*Бобинорезка | M57: руб. | P57: * | Q57: в последний период всех капзатрат | R57: ^ | S57: 0 | T57: 0 | X57: 3000000 | AA57: 0 | AB57: 0 | AC57: 3000000 | AD57: 0 | AE57: 0 | AF57: 0 | AG57: 0 | AH57: 0 | AI57: 0 | AJ57: 0 | AK57: 0 | AL57: 0 | AM57: 0 | AN57: 0 | AO57: 0 | AP57: 0 | AQ57: 0 | AR57: 0 | AS57: 0 | AT57: 0 | AU57: 0 | AV57: 0 | AW57: 0 | AX57: 0 | AY57: 0 | AZ57: 0 | BA57: 0 | BB57: 0 | BC57: 0 | BD57: 0 | BE57: 0 | BF57: 0 | BG57: 0 | BH57: 0 | BI57: 0 | BJ57: 0 | BK57: 0 | BL57: 0 | BM57: 0 | BN57: 0 | BO57: 0 | BP57: 0 | BQ57: 0 | BR57: 0 | BS57: 0 | BT57: 0 | BU57: 0 | BV57: 0 | BW57: 0 | BX57: 0 | BY57: 0 | BZ57: 0 | CA57: 0 | CB57: 0 | CC57: 0 | CD57: 0 | CE57: 0 | CF57: 0 | CG57: 0 | CH57: 0 | CI57: 0 | CJ57: 0 | CK57: 0 | CL57: 0 | CM57: 0 | CN57: 0 | CO57: 0 | CP57: 0 | CQ57: 0 | CR57: 0 | CS57: 0 | CT57: 0 | CU57: 0
A58: 58 | G58: 0 | H58: Ввод в эксплуатацию | I58: 2*ПСР | M58: руб. | P58: * | Q58: в последний период всех капзатрат | R58: ^ | S58: 0 | T58: 0 | X58: 18000000 | AA58: 0 | AB58: 0 | AC58: 18000000 | AD58: 0 | AE58: 0 | AF58: 0 | AG58: 0 | AH58: 0 | AI58: 0 | AJ58: 0 | AK58: 0 | AL58: 0 | AM58: 0 | AN58: 0 | AO58: 0 | AP58: 0 | AQ58: 0 | AR58: 0 | AS58: 0 | AT58: 0 | AU58: 0 | AV58: 0 | AW58: 0 | AX58: 0 | AY58: 0 | AZ58: 0 | BA58: 0 | BB58: 0 | BC58: 0 | BD58: 0 | BE58: 0 | BF58: 0 | BG58: 0 | BH58: 0 | BI58: 0 | BJ58: 0 | BK58: 0 | BL58: 0 | BM58: 0 | BN58: 0 | BO58: 0 | BP58: 0 | BQ58: 0 | BR58: 0 | BS58: 0 | BT58: 0 | BU58: 0 | BV58: 0 | BW58: 0 | BX58: 0 | BY58: 0 | BZ58: 0 | CA58: 0 | CB58: 0 | CC58: 0 | CD58: 0 | CE58: 0 | CF58: 0 | CG58: 0 | CH58: 0 | CI58: 0 | CJ58: 0 | CK58: 0 | CL58: 0 | CM58: 0 | CN58: 0 | CO58: 0 | CP58: 0 | CQ58: 0 | CR58: 0 | CS58: 0 | CT58: 0 | CU58: 0
A59: 59 | G59: 0 | H59: Ввод в эксплуатацию | I59: 3*Линия производства респираторов серии FFP | M59: руб. | P59: * | Q59: в последний период всех капзатрат | R59: ^ | S59: 0 | T59: 0 | X59: 27000000 | AA59: 0 | AB59: 0 | AC59: 27000000 | AD59: 0 | AE59: 0 | AF59: 0 | AG59: 0 | AH59: 0 | AI59: 0 | AJ59: 0 | AK59: 0 | AL59: 0 | AM59: 0 | AN59: 0 | AO59: 0 | AP59: 0 | AQ59: 0 | AR59: 0 | AS59: 0 | AT59: 0 | AU59: 0 | AV59: 0 | AW59: 0 | AX59: 0 | AY59: 0 | AZ59: 0 | BA59: 0 | BB59: 0 | BC59: 0 | BD59: 0 | BE59: 0 | BF59: 0 | BG59: 0 | BH59: 0 | BI59: 0 | BJ59: 0 | BK59: 0 | BL59: 0 | BM59: 0 | BN59: 0 | BO59: 0 | BP59: 0 | BQ59: 0 | BR59: 0 | BS59: 0 | BT59: 0 | BU59: 0 | BV59: 0 | BW59: 0 | BX59: 0 | BY59: 0 | BZ59: 0 | CA59: 0 | CB59: 0 | CC59: 0 | CD59: 0 | CE59: 0 | CF59: 0 | CG59: 0 | CH59: 0 | CI59: 0 | CJ59: 0 | CK59: 0 | CL59: 0 | CM59: 0 | CN59: 0 | CO59: 0 | CP59: 0 | CQ59: 0 | CR59: 0 | CS59: 0 | CT59: 0 | CU59: 0
A60: 60 | G60: 0 | H60: Ввод в эксплуатацию | I60: 7ед. Оборудования на участок литья | M60: руб. | P60: * | Q60: в последний период всех капзатрат | R60: ^ | S60: 0 | T60: 0 | X60: 37000000 | AA60: 0 | AB60: 0 | AC60: 37000000 | AD60: 0 | AE60: 0 | AF60: 0 | AG60: 0 | AH60: 0 | AI60: 0 | AJ60: 0 | AK60: 0 | AL60: 0 | AM60: 0 | AN60: 0 | AO60: 0 | AP60: 0 | AQ60: 0 | AR60: 0 | AS60: 0 | AT60: 0 | AU60: 0 | AV60: 0 | AW60: 0 | AX60: 0 | AY60: 0 | AZ60: 0 | BA60: 0 | BB60: 0 | BC60: 0 | BD60: 0 | BE60: 0 | BF60: 0 | BG60: 0 | BH60: 0 | BI60: 0 | BJ60: 0 | BK60: 0 | BL60: 0 | BM60: 0 | BN60: 0 | BO60: 0 | BP60: 0 | BQ60: 0 | BR60: 0 | BS60: 0 | BT60: 0 | BU60: 0 | BV60: 0 | BW60: 0 | BX60: 0 | BY60: 0 | BZ60: 0 | CA60: 0 | CB60: 0 | CC60: 0 | CD60: 0 | CE60: 0 | CF60: 0 | CG60: 0 | CH60: 0 | CI60: 0 | CJ60: 0 | CK60: 0 | CL60: 0 | CM60: 0 | CN60: 0 | CO60: 0 | CP60: 0 | CQ60: 0 | CR60: 0 | CS60: 0 | CT60: 0 | CU60: 0
A61: 61 | G61: 0 | H61: Ввод в эксплуатацию | I61: Доставка, монтаж и ПНР | M61: руб. | P61: * | Q61: в последний период всех капзатрат | R61: ^ | S61: 0 | T61: 0 | X61: 70000000 | AA61: 0 | AB61: 0 | AC61: 70000000 | AD61: 0 | AE61: 0 | AF61: 0 | AG61: 0 | AH61: 0 | AI61: 0 | AJ61: 0 | AK61: 0 | AL61: 0 | AM61: 0 | AN61: 0 | AO61: 0 | AP61: 0 | AQ61: 0 | AR61: 0 | AS61: 0 | AT61: 0 | AU61: 0 | AV61: 0 | AW61: 0 | AX61: 0 | AY61: 0 | AZ61: 0 | BA61: 0 | BB61: 0 | BC61: 0 | BD61: 0 | BE61: 0 | BF61: 0 | BG61: 0 | BH61: 0 | BI61: 0 | BJ61: 0 | BK61: 0 | BL61: 0 | BM61: 0 | BN61: 0 | BO61: 0 | BP61: 0 | BQ61: 0 | BR61: 0 | BS61: 0 | BT61: 0 | BU61: 0 | BV61: 0 | BW61: 0 | BX61: 0 | BY61: 0 | BZ61: 0 | CA61: 0 | CB61: 0 | CC61: 0 | CD61: 0 | CE61: 0 | CF61: 0 | CG61: 0 | CH61: 0 | CI61: 0 | CJ61: 0 | CK61: 0 | CL61: 0 | CM61: 0 | CN61: 0 | CO61: 0 | CP61: 0 | CQ61: 0 | CR61: 0 | CS61: 0 | CT61: 0 | CU61: 0
A62: 62 | L62: пустая строка
A63: 63
A64: 64 | G64: 0 | H64: Параметры амортизации разовых капзатрат | Q64: процесс
A65: 65 | G65: 0 | H65: Параметры амортизации разовых капзатрат | I65: 5*Двухручьевая линия производства масок | M65: кол-во лет // % | P65: * | Q65: 15 | S65: 0 | T65: 0 | X65: 0.3277777778 | AA65: 0 | AB65: 0.005555555556 | AC65: 0.005555555556 | AD65: 0.005555555556 | AE65: 0.005555555556 | AF65: 0.005555555556 | AG65: 0.005555555556 | AH65: 0.005555555556 | AI65: 0.005555555556 | AJ65: 0.005555555556 | AK65: 0.005555555556 | AL65: 0.005555555556 | AM65: 0.005555555556 | AN65: 0.005555555556 | AO65: 0.005555555556 | AP65: 0.005555555556 | AQ65: 0.005555555556 | AR65: 0.005555555556 | AS65: 0.005555555556 | AT65: 0.005555555556 | AU65: 0.005555555556 | AV65: 0.005555555556 | AW65: 0.005555555556 | AX65: 0.005555555556 | AY65: 0.005555555556 | AZ65: 0.005555555556 | BA65: 0.005555555556 | BB65: 0.005555555556 | BC65: 0.005555555556 | BD65: 0.005555555556 | BE65: 0.005555555556 | BF65: 0.005555555556 | BG65: 0.005555555556 | BH65: 0.005555555556 | BI65: 0.005555555556 | BJ65: 0.005555555556 | BK65: 0.005555555556 | BL65: 0.005555555556 | BM65: 0.005555555556 | BN65: 0.005555555556 | BO65: 0.005555555556 | BP65: 0.005555555556 | BQ65: 0.005555555556 | BR65: 0.005555555556 | BS65: 0.005555555556 | BT65: 0.005555555556 | BU65: 0.005555555556 | BV65: 0.005555555556 | BW65: 0.005555555556 | BX65: 0.005555555556 | BY65: 0.005555555556 | BZ65: 0.005555555556 | CA65: 0.005555555556 | CB65: 0.005555555556 | CC65: 0.005555555556 | CD65: 0.005555555556 | CE65: 0.005555555556 | CF65: 0.005555555556 | CG65: 0.005555555556 | CH65: 0.005555555556 | CI65: 0 | CJ65: 0 | CK65: 0 | CL65: 0 | CM65: 0 | CN65: 0 | CO65: 0 | CP65: 0 | CQ65: 0 | CR65: 0 | CS65: 0 | CT65: 0 | CU65: 0
A66: 66 | G66: 0 | H66: Параметры амортизации разовых капзатрат | I66: 2*Скоростная линия производства масок | M66: кол-во лет // % | P66: * | Q66: 15 | S66: 0 | T66: 0 | X66: 0.3277777778 | AA66: 0 | AB66: 0.005555555556 | AC66: 0.005555555556 | AD66: 0.005555555556 | AE66: 0.005555555556 | AF66: 0.005555555556 | AG66: 0.005555555556 | AH66: 0.005555555556 | AI66: 0.005555555556 | AJ66: 0.005555555556 | AK66: 0.005555555556 | AL66: 0.005555555556 | AM66: 0.005555555556 | AN66: 0.005555555556 | AO66: 0.005555555556 | AP66: 0.005555555556 | AQ66: 0.005555555556 | AR66: 0.005555555556 | AS66: 0.005555555556 | AT66: 0.005555555556 | AU66: 0.005555555556 | AV66: 0.005555555556 | AW66: 0.005555555556 | AX66: 0.005555555556 | AY66: 0.005555555556 | AZ66: 0.005555555556 | BA66: 0.005555555556 | BB66: 0.005555555556 | BC66: 0.005555555556 | BD66: 0.005555555556 | BE66: 0.005555555556 | BF66: 0.005555555556 | BG66: 0.005555555556 | BH66: 0.005555555556 | BI66: 0.005555555556 | BJ66: 0.005555555556 | BK66: 0.005555555556 | BL66: 0.005555555556 | BM66: 0.005555555556 | BN66: 0.005555555556 | BO66: 0.005555555556 | BP66: 0.005555555556 | BQ66: 0.005555555556 | BR66: 0.005555555556 | BS66: 0.005555555556 | BT66: 0.005555555556 | BU66: 0.005555555556 | BV66: 0.005555555556 | BW66: 0.005555555556 | BX66: 0.005555555556 | BY66: 0.005555555556 | BZ66: 0.005555555556 | CA66: 0.005555555556 | CB66: 0.005555555556 | CC66: 0.005555555556 | CD66: 0.005555555556 | CE66: 0.005555555556 | CF66: 0.005555555556 | CG66: 0.005555555556 | CH66: 0.005555555556 | CI66: 0 | CJ66: 0 | CK66: 0 | CL66: 0 | CM66: 0 | CN66: 0 | CO66: 0 | CP66: 0 | CQ66: 0 | CR66: 0 | CS66: 0 | CT66: 0 | CU66: 0
